Workbook

Sheet HOME
A1: DĚVČATA
B9: DISCIPLÍNY

Sheet TVOJE
B1: 6.A | E1: 6.B | H1: 7.A | K1: 7.B | N1: 8.A | R1: 8.B | U1: 9.A

Sheet TVOJE2
D3: výkon | F3: místo | G3: body | I3: 19 - 20 | J3: 18 - 19 | K3: 17 - 18
C4: 60 m
C6: 300 m
C8: 800 m
C10: dálka
C12: výška
C14: míček
C16: koule
C18: člunek
C20: lehsed
C22: odbíjení
C24: plavání
C26: šplh
C28: švihadlo
C30: z místa

Sheet FOTO
B2: PRO ZOBRAZENÍ FOTOGRAFIÍ JE TŘEBA PŘÍSTUP K INTERNETU
E5: DALŠÍ SPORTOVNÍ AKCE
B7: 2020 | C7: VYHLÁŠENÍ SE NEUSKUTEČNILO | E7: 10.12.2019 OF FLORBAL STARŠÍ ŽÁCI | F7: 13.11.2019 OF PLAVÁNÍ JILEMNICE
E8: 19.12.2019 OF FLORBAL ML.ŽÁCI JIL. | F8: 25.9.2019 JILEMNICKÉ ŠTAFETY
E9: 24. 9.2019 OF ČTYŘBOJ TURNOV
B11: 2019 | C11: VYHLÁŠENÍ SPORTOVCE ŠKOLY 13. ROČNÍK | E11: 6. 12. 2018 OF FLORBAL 6.-7. ROČ | F11: 14.11.2018 OF PLAVÁNÍ JILEMNICE
E12: 26. 9.2018 OF ČTYŘBOJ TURNOV
B13: 2018 | C13: VYHLÁŠENÍ SPORTOVCE ŠKOLY 12. ROČNÍK
B15: 2017 | C15: VYHLÁŠENÍ SPORTOVCE ŠKOLY 11. ROČNÍK
B17: 2016 | C17: VYHLÁŠENÍ SPORTOVCE ŠKOLY 10. ROČNÍK | E17: 11. 5. 2016 POHÁR ROZHLASU TURNOV
C20: průběžně budu přídávat další

Sheet D15
C1: T O P 1 5 | S1: stav k | U1: =TODAY() -> 2022-06-28
F3: 60 m | G3: 300m | H3: 800m | I3: dálka | J3: výška | K3: míček | L3: koule | M3: člunek | N3: lehsed | O3: odbíjení | P3: plavání | Q3: šplh | R3: švihadlo | S3: z místa | T3: REPRE | U3: CELKEM
A5: 1. | B5: =B35 -> HEJRALOVÁ | C5: Natálie | D5: 6.A | F5: 764.8169188 | G5: 756.23959 | H5: 673.3444205 | I5: 728.641 | J5: 739.5 | K5: 421.6 | L5: 320 | M5: 617.8466914 | N5: 0 | O5: 0 | P5: 0 | Q5: 0 | R5: 624.5 | S5: 571.8385269 | T5: 0 | U5: 6218.327148
A6: 2. | B6: KERLE | C6: Nikita | D6: 6.A | F6: 751.7160543 | G6: 768.0251173 | H6: 755.4031017 | I6: 786.028 | J6: 739.5 | K6: 376.1 | L6: 293.3333333 | M6: 652.6879227 | N6: 0 | O6: 0 | P6: 0 | Q6: 522.60153 | R6: 624.5 | S6: 642.4050992 | T6: 50 | U6: 6962.300159
A7: 3. | B7: PACLÍKOVÁ | C7: Markéta | D7: 6.A | F7: 768.9982226 | G7: 670.7979785 | H7: 637.2104618 | I7: 712.99 | J7: 772 | K7: 494.4 | L7: 400 | M7: 665.3271387 | N7: 0 | O7: 0 | P7: 0 | Q7: 451.697354 | R7: 687 | S7: 731.789424 | T7: 0 | U7: 6992.21058
A8: 4. | B8: PLŮCHOVÁ | C8: Michaela | D8: 6.A | F8: 768.9982226 | G8: 670.5045724 | H8: 0 | I8: 683.427 | J8: 707 | K8: 348.8 | L8: 434.6666667 | M8: 655.8061868 | N8: 0 | O8: 0 | P8: 0 | Q8: 402.0033409 | R8: 755.75 | S8: 684.7450425 | T8: 0 | U8: 6111.701032
A9: 5. | B9: ŠERCLOVÁ | C9: Nikola | D9: 6.A | F9: 615.0502178 | G9: 453.5029268 | H9: 523.3306615 | I9: 605.172 | J9: 0 | K9: 0 | L9: 295.1111111 | M9: 0 | N9: 0 | O9: 0 | P9: 0 | Q9: 0 | R9: 218.25 | S9: 553.0207743 | T9: 0 | U9: 3263.437691
A10: 6. | B10: VÁCLAVÍKOVÁ | C10: Alena | D10: 6.A | F10: 732.8279147 | G10: 619.6360362 | H10: 637.1757464 | I10: 667.776 | J10: 609.5 | K10: 0 | L10: 299.5555556 | M10: 625.8017316 | N10: 0 | O10: 0 | P10: 0 | Q10: 0 | R10: 562 | S10: 632.9962229 | T10: 0 | U10: 5387.269207
A11: 7. | B11: DUCHÁČKOVÁ | C11: Tereza | D11: 6.B | F11: 639.8829998 | G11: 519.5353501 | H11: 0 | I11: 645.169 | J11: 544.5 | K11: 230.5 | L11: 0 | M11: 546.0553207 | N11: 0 | O11: 0 | P11: 0 | Q11: 0 | R11: 312 | S11: 426.0009443 | T11: 0 | U11: 3863.643615
A12: 8. | B12: FLAŠKOVÁ | C12: Anna Sabriel | D12: 6.B | F12: 659.5843689 | G12: 538.7969665 | H12: 0 | I12: 662.559 | J12: 674.5 | K12: 421.6 | L12: 268.4444444 | M12: 571.7881429 | N12: 0 | O12: 0 | P12: 0 | Q12: 0 | R12: 287 | S12: 411.8876298 | T12: 0 | U12: 4496.160553
A13: 9. | B13: HAASOVÁ | C13: Julie | D13: 6.B | F13: 763.9857211 | G13: 669.1866468 | H13: 631.6614553 | I13: 765.16 | J13: 674.5 | K13: 421.6 | L13: 0 | M13: 583.210053 | N13: 0 | O13: 0 | P13: 0 | Q13: 416.6340522 | R13: 493.25 | S13: 694.1539188 | T13: 0 | U13: 6113.341847
A14: 10. | B14: HOBLOVÁ | C14: Barbora | D14: 6.B | F14: 746.9100306 | G14: 640.1947662 | H14: 607.091731 | I14: 619.084 | J14: 609.5 | K14: 376.1 | L14: 0 | M14: 618.9717897 | N14: 0 | O14: 0 | P14: 0 | Q14: 463.7390164 | R14: 612 | S14: 581.2474032 | T14: 0 | U14: 5874.838737
A15: 11. | B15: HORÁČKOVÁ | C15: Valérie | D15: 6.B | F15: 749.3058977 | G15: 706.3640243 | H15: 600.1715761 | I15: 664.298 | J15: 642 | K15: 367 | L15: 394.6666667 | M15: 652.6879227 | N15: 0 | O15: 0 | P15: 674.2839858 | Q15: 0 | R15: 0 | S15: 675.3361662 | T15: 0 | U15: 6126.114239
A16: 12. | B16: JIRANOVÁ | C16: Anežka | D16: 6.B | F16: 543.3745736 | G16: 0 | H16: 386.435699 | I16: 570.392 | J16: 512 | K16: 321.5 | L16: 271.1111111 | M16: 528.6214516 | N16: 0 | O16: 0 | P16: 0 | Q16: 0 | R16: 280.75 | S16: 336.6166195 | T16: 0 | U16: 3750.801455
A17: 13. | B17: JODASOVÁ | C17: Denisa | D17: 6.B | F17: 727.4835608 | G17: 0 | H17: 614.4710633 | I17: 756.465 | J17: 0 | K17: 603.6 | L17: 396.4444444 | M17: 684.4726129 | N17: 0 | O17: 0 | P17: 0 | Q17: 475.8707635 | R17: 555.75 | S17: 665.9272899 | T17: 0 | U17: 5480.484735
A18: 14. | B18: KRČÍKOVÁ | C18: Beatrix | D18: 6.B | F18: 723.7101275 | G18: 619.6360362 | H18: 561.9108716 | I18: 737.336 | J18: 707 | K18: =K48 -> 430.7 | L18: 402.6666667 | M18: 0 | N18: 0 | O18: 0 | P18: 0 | Q18: 0 | R18: 455.75 | S18: 689.4494806 | T18: 0 | U18: 5328.159183
A19: 15. | B19: =B49 -> KUBÁTOVÁ | C19: Veronika | D19: 6.B | F19: 604.6311348 | G19: 479.9161539 | H19: 0 | I19: 513.005 | J19: 0 | K19: 130.4 | L19: 0 | M19: 0 | N19: 0 | O19: 0 | P19: 0 | Q19: 0 | R19: 5.75 | S19: 482.4542021 | T19: 0 | U19: 2216.156491
F34: 60 m | G34: 300m | H34: 800m | I34: dálka | J34: výška | K34: míček | L34: koule | M34: člunek | N34: lehsed | O34: odbíjení | P34: plavání | Q34: šplh | R34: švihadlo | S34: z místa | T34: REPRE | U34: CELKEM
B35: ='D60'!B101 -> HEJRALOVÁ | C35: ='D60'!C101 -> Natálie | D35: ='D60'!D101 -> 6.A | F35: ='D60'!H101 -> 764.8169188 | G35: ='D300'!H101 -> 756.23959 | H35: ='D800'!H101 -> 673.3444205 | I35: =Ddál!H101 -> 728.641 | J35: =Dvýš!H101 -> 739.5 | K35: =Dmíč!H101 -> 421.6 | L35: =Dkou!H101 -> 320 | M35: =Dčlu!H101 -> 617.8466914 | N35: =Dls!H101 -> 0 | O35: =Dodbíj!H101 -> 0 | P35: =Dplav!H101 -> 0 | Q35: =Dšplh!H101 -> 0 | R35: =Dšvih!H101 -> 624.5 | S35: ='Dz mís'!H101 -> 571.8385269 | T35: =Drepre!E4 -> 0 | U35: =SUM(F35:T35) -> 6218.327148
B36: ='D60'!B102 -> KERLE | C36: ='D60'!C102 -> Nikita | D36: ='D60'!D102 -> 6.A | F36: ='D60'!H102 -> 751.7160543 | G36: ='D300'!H102 -> 768.0251173 | H36: ='D800'!H102 -> 755.4031017 | I36: =Ddál!H102 -> 786.028 | J36: =Dvýš!H102 -> 739.5 | K36: =Dmíč!H102 -> 376.1 | L36: =Dkou!H102 -> 293.3333333 | M36: =Dčlu!H102 -> 652.6879227 | N36: =Dls!H102 -> 0 | O36: =Dodbíj!H102 -> 0 | P36: =Dplav!H102 -> 0 | Q36: =Dšplh!H102 -> 522.60153 | R36: =Dšvih!H102 -> 624.5 | S36: ='Dz mís'!H102 -> 642.4050992 | T36: =Drepre!E5 -> 50 | U36: =SUM(F36:T36) -> 6962.300159
B37: ='D60'!B103 -> PACLÍKOVÁ | C37: ='D60'!C103 -> Markéta | D37: ='D60'!D103 -> 6.A | F37: ='D60'!H103 -> 768.9982226 | G37: ='D300'!H103 -> 670.7979785 | H37: ='D800'!H103 -> 637.2104618 | I37: =Ddál!H103 -> 712.99 | J37: =Dvýš!H103 -> 772 | K37: =Dmíč!H103 -> 494.4 | L37: =Dkou!H103 -> 400 | M37: =Dčlu!H103 -> 665.3271387 | N37: =Dls!H103 -> 0 | O37: =Dodbíj!H103 -> 0 | P37: =Dplav!H103 -> 0 | Q37: =Dšplh!H103 -> 451.697354 | R37: =Dšvih!H103 -> 687 | S37: ='Dz mís'!H103 -> 731.789424 | T37: =Drepre!E6 -> 0 | U37: =SUM(F37:T37) -> 6992.21058
B38: ='D60'!B104 -> PLŮCHOVÁ | C38: ='D60'!C104 -> Michaela | D38: ='D60'!D104 -> 6.A | F38: ='D60'!H104 -> 768.9982226 | G38: ='D300'!H104 -> 670.5045724 | H38: ='D800'!H104 -> 0 | I38: =Ddál!H104 -> 683.427 | J38: =Dvýš!H104 -> 707 | K38: =Dmíč!H104 -> 348.8 | L38: =Dkou!H104 -> 434.6666667 | M38: =Dčlu!H104 -> 655.8061868 | N38: =Dls!H104 -> 0 | O38: =Dodbíj!H104 -> 0 | P38: =Dplav!H104 -> 0 | Q38: =Dšplh!H104 -> 402.0033409 | R38: =Dšvih!H104 -> 755.75 | S38: ='Dz mís'!H104 -> 684.7450425 | T38: =Drepre!E7 -> 0 | U38: =SUM(F38:T38) -> 6111.701032
B39: ='D60'!B105 -> ŠERCLOVÁ | C39: ='D60'!C105 -> Nikola | D39: ='D60'!D105 -> 6.A | F39: ='D60'!H105 -> 615.0502178 | G39: ='D300'!H105 -> 453.5029268 | H39: ='D800'!H105 -> 523.3306615 | I39: =Ddál!H105 -> 605.172 | J39: =Dvýš!H105 -> 0 | K39: =Dmíč!H105 -> 0 | L39: =Dkou!H105 -> 295.1111111 | M39: =Dčlu!H105 -> 0 | N39: =Dls!H105 -> 0 | O39: =Dodbíj!H105 -> 0 | P39: =Dplav!H105 -> 0 | Q39: =Dšplh!H105 -> 0 | R39: =Dšvih!H105 -> 218.25 | S39: ='Dz mís'!H105 -> 553.0207743 | T39: =Drepre!E8 -> 0 | U39: =SUM(F39:T39) -> 3263.437691
B40: ='D60'!B106 -> VÁCLAVÍKOVÁ | C40: ='D60'!C106 -> Alena | D40: ='D60'!D106 -> 6.A | F40: ='D60'!H106 -> 732.8279147 | G40: ='D300'!H106 -> 619.6360362 | H40: ='D800'!H106 -> 637.1757464 | I40: =Ddál!H106 -> 667.776 | J40: =Dvýš!H106 -> 609.5 | K40: =Dmíč!H106 -> 0 | L40: =Dkou!H106 -> 299.5555556 | M40: =Dčlu!H106 -> 625.8017316 | N40: =Dls!H106 -> 0 | O40: =Dodbíj!H106 -> 0 | P40: =Dplav!H106 -> 0 | Q40: =Dšplh!H106 -> 0 | R40: =Dšvih!H106 -> 562 | S40: ='Dz mís'!H106 -> 632.9962229 | T40: =Drepre!E9 -> 0 | U40: =SUM(F40:T40) -> 5387.269207
B41: ='D60'!B107 -> DUCHÁČKOVÁ | C41: ='D60'!C107 -> Tereza | D41: ='D60'!D107 -> 6.B | F41: ='D60'!H107 -> 639.8829998 | G41: ='D300'!H107 -> 519.5353501 | H41: ='D800'!H107 -> 0 | I41: =Ddál!H107 -> 645.169 | J41: =Dvýš!H107 -> 544.5 | K41: =Dmíč!H107 -> 230.5 | L41: =Dkou!H107 -> 0 | M41: =Dčlu!H107 -> 546.0553207 | N41: =Dls!H107 -> 0 | O41: =Dodbíj!H107 -> 0 | P41: =Dplav!H107 -> 0 | Q41: =Dšplh!H107 -> 0 | R41: =Dšvih!H107 -> 312 | S41: ='Dz mís'!H107 -> 426.0009443 | T41: =Drepre!E10 -> 0 | U41: =SUM(F41:T41) -> 3863.643615
B42: ='D60'!B108 -> FLAŠKOVÁ | C42: ='D60'!C108 -> Anna Sabriel | D42: ='D60'!D108 -> 6.B | F42: ='D60'!H108 -> 659.5843689 | G42: ='D300'!H108 -> 538.7969665 | H42: ='D800'!H108 -> 0 | I42: =Ddál!H108 -> 662.559 | J42: =Dvýš!H108 -> 674.5 | K42: =Dmíč!H108 -> 421.6 | L42: =Dkou!H108 -> 268.4444444 | M42: =Dčlu!H108 -> 571.7881429 | N42: =Dls!H108 -> 0 | O42: =Dodbíj!H108 -> 0 | P42: =Dplav!H108 -> 0 | Q42: =Dšplh!H108 -> 0 | R42: =Dšvih!H108 -> 287 | S42: ='Dz mís'!H108 -> 411.8876298 | T42: =Drepre!E11 -> 0 | U42: =SUM(F42:T42) -> 4496.160553
B43: ='D60'!B109 -> HAASOVÁ | C43: ='D60'!C109 -> Julie | D43: ='D60'!D109 -> 6.B | F43: ='D60'!H109 -> 763.9857211 | G43: ='D300'!H109 -> 669.1866468 | H43: ='D800'!H109 -> 631.6614553 | I43: =Ddál!H109 -> 765.16 | J43: =Dvýš!H109 -> 674.5 | K43: =Dmíč!H109 -> 421.6 | L43: =Dkou!H109 -> 0 | M43: =Dčlu!H109 -> 583.210053 | N43: =Dls!H109 -> 0 | O43: =Dodbíj!H109 -> 0 | P43: =Dplav!H109 -> 0 | Q43: =Dšplh!H109 -> 416.6340522 | R43: =Dšvih!H109 -> 493.25 | S43: ='Dz mís'!H109 -> 694.1539188 | T43: =Drepre!E12 -> 0 | U43: =SUM(F43:T43) -> 6113.341847
B44: ='D60'!B110 -> HOBLOVÁ | C44: ='D60'!C110 -> Barbora | D44: ='D60'!D110 -> 6.B | F44: ='D60'!H110 -> 746.9100306 | G44: ='D300'!H110 -> 640.1947662 | H44: ='D800'!H110 -> 607.091731 | I44: =Ddál!H110 -> 619.084 | J44: =Dvýš!H110 -> 609.5 | K44: =Dmíč!H110 -> 376.1 | L44: =Dkou!H110 -> 0 | M44: =Dčlu!H110 -> 618.9717897 | N44: =Dls!H110 -> 0 | O44: =Dodbíj!H110 -> 0 | P44: =Dplav!H110 -> 0 | Q44: =Dšplh!H110 -> 463.7390164 | R44: =Dšvih!H110 -> 612 | S44: ='Dz mís'!H110 -> 581.2474032 | T44: =Drepre!E13 -> 0 | U44: =SUM(F44:T44) -> 5874.838737
B45: ='D60'!B111 -> HORÁČKOVÁ | C45: ='D60'!C111 -> Valérie | D45: ='D60'!D111 -> 6.B | F45: ='D60'!H111 -> 749.3058977 | G45: ='D300'!H111 -> 706.3640243 | H45: ='D800'!H111 -> 600.1715761 | I45: =Ddál!H111 -> 664.298 | J45: =Dvýš!H111 -> 642 | K45: =Dmíč!H111 -> 367 | L45: =Dkou!H111 -> 394.6666667 | M45: =Dčlu!H111 -> 652.6879227 | N45: =Dls!H111 -> 0 | O45: =Dodbíj!H111 -> 0 | P45: =Dplav!H111 -> 674.2839858 | Q45: =Dšplh!H111 -> 0 | R45: =Dšvih!H111 -> 0 | S45: ='Dz mís'!H111 -> 675.3361662 | T45: =Drepre!E14 -> 0 | U45: =SUM(F45:T45) -> 6126.114239
B46: ='D60'!B112 -> JIRANOVÁ | C46: ='D60'!C112 -> Anežka | D46: ='D60'!D112 -> 6.B | F46: ='D60'!H112 -> 543.3745736 | G46: ='D300'!H112 -> 0 | H46: ='D800'!H112 -> 386.435699 | I46: =Ddál!H112 -> 570.392 | J46: =Dvýš!H112 -> 512 | K46: =Dmíč!H112 -> 321.5 | L46: =Dkou!H112 -> 271.1111111 | M46: =Dčlu!H112 -> 528.6214516 | N46: =Dls!H112 -> 0 | O46: =Dodbíj!H112 -> 0 | P46: =Dplav!H112 -> 0 | Q46: =Dšplh!H112 -> 0 | R46: =Dšvih!H112 -> 280.75 | S46: ='Dz mís'!H112 -> 336.6166195 | T46: =Drepre!E15 -> 0 | U46: =SUM(F46:T46) -> 3750.801455
B47: ='D60'!B113 -> JODASOVÁ | C47: ='D60'!C113 -> Denisa | D47: ='D60'!D113 -> 6.B | F47: ='D60'!H113 -> 727.4835608 | G47: ='D300'!H113 -> 0 | H47: ='D800'!H113 -> 614.4710633 | I47: =Ddál!H113 -> 756.465 | J47: =Dvýš!H113 -> 0 | K47: =Dmíč!H113 -> 603.6 | L47: =Dkou!H113 -> 396.4444444 | M47: =Dčlu!H113 -> 684.4726129 | N47: =Dls!H113 -> 0 | O47: =Dodbíj!H113 -> 0 | P47: =Dplav!H113 -> 0 | Q47: =Dšplh!H113 -> 475.8707635 | R47: =Dšvih!H113 -> 555.75 | S47: ='Dz mís'!H113 -> 665.9272899 | T47: =Drepre!E16 -> 0 | U47: =SUM(F47:T47) -> 5480.484735
B48: ='D60'!B114 -> KRČÍKOVÁ | C48: ='D60'!C114 -> Beatrix | D48: ='D60'!D114 -> 6.B | F48: ='D60'!H114 -> 723.7101275 | G48: ='D300'!H114 -> 619.6360362 | H48: ='D800'!H114 -> 561.9108716 | I48: =Ddál!H114 -> 737.336 | J48: =Dvýš!H114 -> 707 | K48: =Dmíč!H114 -> 430.7 | L48: =Dkou!H114 -> 402.6666667 | M48: =Dčlu!H114 -> 0 | N48: =Dls!H114 -> 0 | O48: =Dodbíj!H114 -> 0 | P48: =Dplav!H114 -> 0 | Q48: =Dšplh!H114 -> 0 | R48: =Dšvih!H114 -> 455.75 | S48: ='Dz mís'!H114 -> 689.4494806 | T48: =Drepre!E17 -> 0 | U48: =SUM(F48:T48) -> 5328.159183
B49: ='D60'!B115 -> KUBÁTOVÁ | C49: ='D60'!C115 -> Veronika | D49: ='D60'!D115 -> 6.B | F49: ='D60'!H115 -> 604.6311348 | G49: ='D300'!H115 -> 479.9161539 | H49: ='D800'!H115 -> 0 | I49: =Ddál!H115 -> 513.005 | J49: =Dvýš!H115 -> 0 | K49: =Dmíč!H115 -> 130.4 | L49: =Dkou!H115 -> 0 | M49: =Dčlu!H115 -> 0 | N49: =Dls!H115 -> 0 | O49: =Dodbíj!H115 -> 0 | P49: =Dplav!H115 -> 0 | Q49: =Dšplh!H115 -> 0 | R49: =Dšvih!H115 -> 5.75 | S49: ='Dz mís'!H115 -> 482.4542021 | T49: =Drepre!E18 -> 0 | U49: =SUM(F49:T49) -> 2216.156491
B50: ='D60'!B116 -> LENČEŠOVÁ | C50: ='D60'!C116 -> Silvie | D50: ='D60'!D116 -> 6.B | F50: ='D60'!H116 -> 646.5323184 | G50: ='D300'!H116 -> 574.7607486 | H50: ='D800'!H116 -> 593.1024863 | I50: =Ddál!H116 -> 619.084 | J50: =Dvýš!H116 -> 544.5 | K50: =Dmíč!H116 -> 385.2 | L50: =Dkou!H116 -> 221.3333333 | M50: =Dčlu!H116 -> 590.36733 | N50: =Dls!H116 -> 0 | O50: =Dodbíj!H116 -> 0 | P50: =Dplav!H116 -> 0 | Q50: =Dšplh!H116 -> 0 | R50: =Dšvih!H116 -> 593.25 | S50: ='Dz mís'!H116 -> 505.9763928 | T50: =Drepre!E19 -> 0 | U50: =SUM(F50:T50) -> 5274.106609
B51: ='D60'!B117 -> MATERNOVÁ | C51: ='D60'!C117 -> Lenka | D51: ='D60'!D117 -> 6.B | F51: ='D60'!H117 -> 833.3097864 | G51: ='D300'!H117 -> 778.8054495 | H51: ='D800'!H117 -> 655.443528 | I51: =Ddál!H117 -> 627.779 | J51: =Dvýš!H117 -> 707 | K51: =Dmíč!H117 -> 285.1 | L51: =Dkou!H117 -> 0 | M51: =Dčlu!H117 -> 631.5993748 | N51: =Dls!H117 -> 0 | O51: =Dodbíj!H117 -> 0 | P51: =Dplav!H117 -> 0 | Q51: =Dšplh!H117 -> 704.0775205 | R51: =Dšvih!H117 -> 343.25 | S51: ='Dz mís'!H117 -> 520.0897073 | T51: =Drepre!E20 -> 0 | U51: =SUM(F51:T51) -> 6086.454366
B52: ='D60'!B118 -> TÓTHOVÁ | C52: ='D60'!C118 -> Viktorie | D52: ='D60'!D118 -> 6.B | F52: ='D60'!H118 -> 665.3271387 | G52: ='D300'!H118 -> 580.7553227 | H52: ='D800'!H118 -> 504.4566103 | I52: =Ddál!H118 -> 669.515 | J52: =Dvýš!H118 -> 642 | K52: =Dmíč!H118 -> 403.4 | L52: =Dkou!H118 -> 297.7777778 | M52: =Dčlu!H118 -> 557.021277 | N52: =Dls!H118 -> 0 | O52: =Dodbíj!H118 -> 0 | P52: =Dplav!H118 -> 0 | Q52: =Dšplh!H118 -> 0 | R52: =Dšvih!H118 -> 380.75 | S52: ='Dz mís'!H118 -> 661.2228517 | T52: =Drepre!E21 -> 0 | U52: =SUM(F52:T52) -> 5362.225978
B53: ='D60'!B119 -> ERBENOVÁ | C53: ='D60'!C119 -> Sára | D53: ='D60'!D119 -> 7.A | F53: ='D60'!H119 -> 656.433122 | G53: ='D300'!H119 -> 451.6691419 | H53: ='D800'!H119 -> 418.9762983 | I53: =Ddál!H119 -> 599.955 | J53: =Dvýš!H119 -> 0 | K53: =Dmíč!H119 -> 266.9 | L53: =Dkou!H119 -> 0 | M53: =Dčlu!H119 -> 576.2088537 | N53: =Dls!H119 -> 0 | O53: =Dodbíj!H119 -> 51 | P53: =Dplav!H119 -> 0 | Q53: =Dšplh!H119 -> 0 | R53: =Dšvih!H119 -> 0 | S53: ='Dz mís'!H119 -> 491.8630784 | T53: =Drepre!E22 -> 0 | U53: =SUM(F53:T53) -> 3513.005494
B54: ='D60'!B120 -> GINGALOVÁ | C54: ='D60'!C120 -> Linda | D54: ='D60'!D120 -> 7.A | F54: ='D60'!H120 -> 794.1122881 | G54: ='D300'!H120 -> 0 | H54: ='D800'!H120 -> 419.0474093 | I54: =Ddál!H120 -> 733.858 | J54: =Dvýš!H120 -> 739.5 | K54: =Dmíč!H120 -> 439.8 | L54: =Dkou!H120 -> 0 | M54: =Dčlu!H120 -> 0 | N54: =Dls!H120 -> 0 | O54: =Dodbíj!H120 -> 0 | P54: =Dplav!H120 -> 0 | Q54: =Dšplh!H120 -> 0 | R54: =Dšvih!H120 -> 593.25 | S54: ='Dz mís'!H120 -> 0 | T54: =Drepre!E23 -> 75 | U54: =SUM(F54:T54) -> 3794.567697
B55: ='D60'!B121 -> HOFMANOVÁ | C55: ='D60'!C121 -> Nicol | D55: ='D60'!D121 -> 7.A | F55: ='D60'!H121 -> 687.8763334 | G55: ='D300'!H121 -> 0 | H55: ='D800'!H121 -> 0 | I55: =Ddál!H121 -> 617.345 | J55: =Dvýš!H121 -> 0 | K55: =Dmíč!H121 -> 394.3 | L55: =Dkou!H121 -> 454.2222222 | M55: =Dčlu!H121 -> 527.3543314 | N55: =Dls!H121 -> 0 | O55: =Dodbíj!H121 -> 51 | P55: =Dplav!H121 -> 0 | Q55: =Dšplh!H121 -> 0 | R55: =Dšvih!H121 -> 368.25 | S55: ='Dz mís'!H121 -> 604.769594 | T55: =Drepre!E24 -> 0 | U55: =SUM(F55:T55) -> 3705.117481
B56: ='D60'!B122 -> HOLEŠOVSKÁ | C56: ='D60'!C122 -> Aneta | D56: ='D60'!D122 -> 7.A | F56: ='D60'!H122 -> 717.0084238 | G56: ='D300'!H122 -> 0 | H56: ='D800'!H122 -> 455.6505699 | I56: =Ddál!H122 -> 679.949 | J56: =Dvýš!H122 -> 0 | K56: =Dmíč!H122 -> 496.22 | L56: =Dkou!H122 -> 0 | M56: =Dčlu!H122 -> 0 | N56: =Dls!H122 -> 0 | O56: =Dodbíj!H122 -> 0 | P56: =Dplav!H122 -> 0 | Q56: =Dšplh!H122 -> 0 | R56: =Dšvih!H122 -> 1124.5 | S56: ='Dz mís'!H122 -> 0 | T56: =Drepre!E25 -> 25 | U56: =SUM(F56:T56) -> 3498.327994
B57: ='D60'!B123 -> HOLUBCOVÁ | C57: ='D60'!C123 -> Alena | D57: ='D60'!D123 -> 7.A | F57: ='D60'!H123 -> 797.6963731 | G57: ='D300'!H123 -> 592.2896774 | H57: ='D800'!H123 -> 563.0705145 | I57: =Ddál!H123 -> 678.21 | J57: =Dvýš!H123 -> 739.5 | K57: =Dmíč!H123 -> 704.792 | L57: =Dkou!H123 -> 546.6666667 | M57: =Dčlu!H123 -> 608.9785948 | N57: =Dls!H123 -> 0 | O57: =Dodbíj!H123 -> 30 | P57: =Dplav!H123 -> 0 | Q57: =Dšplh!H123 -> 0 | R57: =Dšvih!H123 -> 499.5 | S57: ='Dz mís'!H123 -> 717.6761095 | T57: =Drepre!E26 -> 75 | U57: =SUM(F57:T57) -> 6553.379936
B58: ='D60'!B124 -> KOHOUTOVÁ | C58: ='D60'!C124 -> Anna | D58: ='D60'!D124 -> 7.A | F58: ='D60'!H124 -> 655.1803496 | G58: ='D300'!H124 -> 493.4515905 | H58: ='D800'!H124 -> 529.275343 | I58: =Ddál!H124 -> 579.087 | J58: =Dvýš!H124 -> 674.5 | K58: =Dmíč!H124 -> 294.2 | L58: =Dkou!H124 -> 329.7777778 | M58: =Dčlu!H124 -> 537.2109456 | N58: =Dls!H124 -> 0 | O58: =Dodbíj!H124 -> 21 | P58: =Dplav!H124 -> 0 | Q58: =Dšplh!H124 -> 0 | R58: =Dšvih!H124 -> 537 | S58: ='Dz mís'!H124 -> 482.4542021 | T58: =Drepre!E27 -> 0 | U58: =SUM(F58:T58) -> 5133.137208
B59: ='D60'!B125 -> KRAUSOVÁ | C59: ='D60'!C125 -> Anežka | D59: ='D60'!D125 -> 7.A | F59: ='D60'!H125 -> 657.6902978 | G59: ='D300'!H125 -> 540.0743995 | H59: ='D800'!H125 -> 0 | I59: =Ddál!H125 -> 718.207 | J59: =Dvýš!H125 -> 674.5 | K59: =Dmíč!H125 -> 321.5 | L59: =Dkou!H125 -> 457.7777778 | M59: =Dčlu!H125 -> 608.4320493 | N59: =Dls!H125 -> 0 | O59: =Dodbíj!H125 -> 48 | P59: =Dplav!H125 -> 0 | Q59: =Dšplh!H125 -> 0 | R59: =Dšvih!H125 -> 499.5 | S59: ='Dz mís'!H125 -> 618.8829084 | T59: =Drepre!E28 -> 0 | U59: =SUM(F59:T59) -> 5144.564433
B60: ='D60'!B126 -> KUŽELOVÁ | C60: ='D60'!C126 -> Apoléna | D60: ='D60'!D126 -> 7.A | F60: ='D60'!H126 -> 737.466945 | G60: ='D300'!H126 -> 0 | H60: ='D800'!H126 -> 488.103682 | I60: =Ddál!H126 -> 660.82 | J60: =Dvýš!H126 -> 674.5 | K60: =Dmíč!H126 -> 403.4 | L60: =Dkou!H126 -> 0 | M60: =Dčlu!H126 -> 0 | N60: =Dls!H126 -> 0 | O60: =Dodbíj!H126 -> 0 | P60: =Dplav!H126 -> 0 | Q60: =Dšplh!H126 -> 0 | R60: =Dšvih!H126 -> 843.25 | S60: ='Dz mís'!H126 -> 0 | T60: =Drepre!E29 -> 0 | U60: =SUM(F60:T60) -> 3807.540627
B61: ='D60'!B127 -> MORÁVKOVÁ | C61: ='D60'!C127 -> Lucie | D61: ='D60'!D127 -> 7.A | F61: ='D60'!H127 -> 635.1253288 | G61: ='D300'!H127 -> 0 | H61: ='D800'!H127 -> 454.8424973 | I61: =Ddál!H127 -> 0 | J61: =Dvýš!H127 -> 0 | K61: =Dmíč!H127 -> 330.6 | L61: =Dkou!H127 -> 0 | M61: =Dčlu!H127 -> 0 | N61: =Dls!H127 -> 0 | O61: =Dodbíj!H127 -> 0 | P61: =Dplav!H127 -> 0 | Q61: =Dšplh!H127 -> 0 | R61: =Dšvih!H127 -> 0 | S61: ='Dz mís'!H127 -> 0 | T61: =Drepre!E30 -> 0 | U61: =SUM(F61:T61) -> 1420.567826
B62: ='D60'!B128 -> SKLENÁROVÁ | C62: ='D60'!C128 -> Eliška | D62: ='D60'!D128 -> 7.A | F62: ='D60'!H128 -> 0 | G62: ='D300'!H128 -> 0 | H62: ='D800'!H128 -> 0 | I62: =Ddál!H128 -> 598.216 | J62: =Dvýš!H128 -> 674.5 | K62: =Dmíč!H128 -> 0 | L62: =Dkou!H128 -> 0 | M62: =Dčlu!H128 -> 551.0325142 | N62: =Dls!H128 -> 0 | O62: =Dodbíj!H128 -> 21 | P62: =Dplav!H128 -> 0 | Q62: =Dšplh!H128 -> 0 | R62: =Dšvih!H128 -> 337 | S62: ='Dz mís'!H128 -> 595.3607177 | T62: =Drepre!E31 -> 0 | U62: =SUM(F62:T62) -> 2777.109232
B63: ='D60'!B129 -> ŠEJNOVÁ | C63: ='D60'!C129 -> Karolína | D63: ='D60'!D129 -> 7.A | F63: ='D60'!H129 -> 0 | G63: ='D300'!H129 -> 562.6990245 | H63: ='D800'!H129 -> 424.778443 | I63: =Ddál!H129 -> 652.125 | J63: =Dvýš!H129 -> 642 | K63: =Dmíč!H129 -> 294.2 | L63: =Dkou!H129 -> 357.3333333 | M63: =Dčlu!H129 -> 594.0061377 | N63: =Dls!H129 -> 0 | O63: =Dodbíj!H129 -> 51 | P63: =Dplav!H129 -> 0 | Q63: =Dšplh!H129 -> 0 | R63: =Dšvih!H129 -> 299.5 | S63: ='Dz mís'!H129 -> 694.1539188 | T63: =Drepre!E32 -> 0 | U63: =SUM(F63:T63) -> 4571.795857
B64: ='D60'!B130 -> ŠTOLFOVÁ | C64: ='D60'!C130 -> Tereza | D64: ='D60'!D130 -> 7.A | F64: ='D60'!H130 -> 698.2771171 | G64: ='D300'!H130 -> 602.2851006 | H64: ='D800'!H130 -> 0 | I64: =Ddál!H130 -> 669.515 | J64: =Dvýš!H130 -> 707 | K64: =Dmíč!H130 -> 266.9 | L64: =Dkou!H130 -> 319.1111111 | M64: =Dčlu!H130 -> 0 | N64: =Dls!H130 -> 0 | O64: =Dodbíj!H130 -> 48 | P64: =Dplav!H130 -> 0 | Q64: =Dšplh!H130 -> 0 | R64: =Dšvih!H130 -> 343.25 | S64: ='Dz mís'!H130 -> 0 | T64: =Drepre!E33 -> 0 | U64: =SUM(F64:T64) -> 3654.338329
B65: ='D60'!B131 -> ŠUBÍKOVÁ | C65: ='D60'!C131 -> Klára | D65: ='D60'!D131 -> 7.A | F65: ='D60'!H131 -> 717.7473842 | G65: ='D300'!H131 -> 632.6027201 | H65: ='D800'!H131 -> 559.8837889 | I65: =Ddál!H131 -> 709.512 | J65: =Dvýš!H131 -> 739.5 | K65: =Dmíč!H131 -> 403.4 | L65: =Dkou!H131 -> 306.6666667 | M65: =Dčlu!H131 -> 611.7248058 | N65: =Dls!H131 -> 0 | O65: =Dodbíj!H131 -> 30 | P65: =Dplav!H131 -> 0 | Q65: =Dšplh!H131 -> 446.1265852 | R65: =Dšvih!H131 -> 487 | S65: ='Dz mís'!H131 -> 623.5873466 | T65: =Drepre!E34 -> 75 | U65: =SUM(F65:T65) -> 6342.751297
B66: ='D60'!B132 -> ŠULKOVSKÁ | C66: ='D60'!C132 -> Klára | D66: ='D60'!D132 -> 7.A | F66: ='D60'!H132 -> 650.829991 | G66: ='D300'!H132 -> 482.454311 | H66: ='D800'!H132 -> 0 | I66: =Ddál!H132 -> 648.647 | J66: =Dvýš!H132 -> 0 | K66: =Dmíč!H132 -> 385.2 | L66: =Dkou!H132 -> 379.5555556 | M66: =Dčlu!H132 -> 0 | N66: =Dls!H132 -> 0 | O66: =Dodbíj!H132 -> 51 | P66: =Dplav!H132 -> 0 | Q66: =Dšplh!H132 -> 453.8858886 | R66: =Dšvih!H132 -> 249.5 | S66: ='Dz mís'!H132 -> 0 | T66: =Drepre!E35 -> 0 | U66: =SUM(F66:T66) -> 3301.072746
B67: ='D60'!B133 -> TULÁČKOVÁ | C67: ='D60'!C133 -> Natálie | D67: ='D60'!D133 -> 7.A | F67: ='D60'!H133 -> 725.2151469 | G67: ='D300'!H133 -> 0 | H67: ='D800'!H133 -> 526.1371516 | I67: =Ddál!H133 -> 672.993 | J67: =Dvýš!H133 -> 0 | K67: =Dmíč!H133 -> 367 | L67: =Dkou!H133 -> 0 | M67: =Dčlu!H133 -> 0 | N67: =Dls!H133 -> 0 | O67: =Dodbíj!H133 -> 0 | P67: =Dplav!H133 -> 0 | Q67: =Dšplh!H133 -> 0 | R67: =Dšvih!H133 -> 699.5 | S67: ='Dz mís'!H133 -> 0 | T67: =Drepre!E36 -> 0 | U67: =SUM(F67:T67) -> 2990.845298
B68: ='D60'!B134 -> VOJTÍŠKOVÁ | C68: ='D60'!C134 -> Ella | D68: ='D60'!D134 -> 7.A | F68: ='D60'!H134 -> 797.6963731 | G68: ='D300'!H134 -> 0 | H68: ='D800'!H134 -> 466.572273 | I68: =Ddál!H134 -> 784.289 | J68: =Dvýš!H134 -> 824 | K68: =Dmíč!H134 -> 0 | L68: =Dkou!H134 -> 0 | M68: =Dčlu!H134 -> 0 | N68: =Dls!H134 -> 0 | O68: =Dodbíj!H134 -> 0 | P68: =Dplav!H134 -> 0 | Q68: =Dšplh!H134 -> 0 | R68: =Dšvih!H134 -> 687 | S68: ='Dz mís'!H134 -> 0 | T68: =Drepre!E37 -> 125 | U68: =SUM(F68:T68) -> 3684.557646
B69: ='D60'!B135 -> DRUGÁČOVÁ | C69: ='D60'!C135 -> Kristinka | D69: ='D60'!D135 -> 7.B | F69: ='D60'!H135 -> 0 | G69: ='D300'!H135 -> 0 | H69: ='D800'!H135 -> 0 | I69: =Ddál!H135 -> 747.77 | J69: =Dvýš!H135 -> 0 | K69: =Dmíč!H135 -> 0 | L69: =Dkou!H135 -> 484.4444444 | M69: =Dčlu!H135 -> 0 | N69: =Dls!H135 -> 0 | O69: =Dodbíj!H135 -> 0 | P69: =Dplav!H135 -> 0 | Q69: =Dšplh!H135 -> 0 | R69: =Dšvih!H135 -> 0 | S69: ='Dz mís'!H135 -> 0 | T69: =Drepre!E38 -> 0 | U69: =SUM(F69:T69) -> 1232.214444
B70: ='D60'!B136 -> FAJSTAVROVÁ | C70: ='D60'!C136 -> Karolína | D70: ='D60'!D136 -> 7.B | F70: ='D60'!H136 -> 845.1795388 | G70: ='D300'!H136 -> 0 | H70: ='D800'!H136 -> 708.0911515 | I70: =Ddál!H136 -> 699.078 | J70: =Dvýš!H136 -> 0 | K70: =Dmíč!H136 -> 558.1 | L70: =Dkou!H136 -> 0 | M70: =Dčlu!H136 -> 0 | N70: =Dls!H136 -> 0 | O70: =Dodbíj!H136 -> 0 | P70: =Dplav!H136 -> 0 | Q70: =Dšplh!H136 -> 0 | R70: =Dšvih!H136 -> 974.5 | S70: ='Dz mís'!H136 -> 0 | T70: =Drepre!E39 -> 75 | U70: =SUM(F70:T70) -> 3859.94869
B71: ='D60'!B137 -> FAJSTAVROVÁ | C71: ='D60'!C137 -> Magdaléna | D71: ='D60'!D137 -> 7.B | F71: ='D60'!H137 -> 783.5377564 | G71: ='D300'!H137 -> 0 | H71: ='D800'!H137 -> 773.28098 | I71: =Ddál!H137 -> 688.644 | J71: =Dvýš!H137 -> 0 | K71: =Dmíč!H137 -> 521.7 | L71: =Dkou!H137 -> 0 | M71: =Dčlu!H137 -> 0 | N71: =Dls!H137 -> 0 | O71: =Dodbíj!H137 -> 0 | P71: =Dplav!H137 -> 0 | Q71: =Dšplh!H137 -> 444.6165782 | R71: =Dšvih!H137 -> 1193.25 | S71: ='Dz mís'!H137 -> 0 | T71: =Drepre!E40 -> 125 | U71: =SUM(F71:T71) -> 4530.029315
B72: ='D60'!B138 -> HLAVATÁ | C72: ='D60'!C138 -> Anna | D72: ='D60'!D138 -> 7.B | F72: ='D60'!H138 -> 0 | G72: ='D300'!H138 -> 0 | H72: ='D800'!H138 -> 0 | I72: =Ddál!H138 -> 688.644 | J72: =Dvýš!H138 -> 0 | K72: =Dmíč!H138 -> 0 | L72: =Dkou!H138 -> 0 | M72: =Dčlu!H138 -> 0 | N72: =Dls!H138 -> 0 | O72: =Dodbíj!H138 -> 0 | P72: =Dplav!H138 -> 0 | Q72: =Dšplh!H138 -> 0 | R72: =Dšvih!H138 -> 0 | S72: ='Dz mís'!H138 -> 0 | T72: =Drepre!E41 -> 0 | U72: =SUM(F72:T72) -> 688.644
B73: ='D60'!B139 -> JINDROVÁ | C73: ='D60'!C139 -> Barbora | D73: ='D60'!D139 -> 7.B | F73: ='D60'!H139 -> 696.1738475 | G73: ='D300'!H139 -> 0 | H73: ='D800'!H139 -> 567.4324968 | I73: =Ddál!H139 -> 685.166 | J73: =Dvýš!H139 -> 0 | K73: =Dmíč!H139 -> 294.2 | L73: =Dkou!H139 -> 0 | M73: =Dčlu!H139 -> 0 | N73: =Dls!H139 -> 0 | O73: =Dodbíj!H139 -> 0 | P73: =Dplav!H139 -> 0 | Q73: =Dšplh!H139 -> 431.2749904 | R73: =Dšvih!H139 -> 1187 | S73: ='Dz mís'!H139 -> 0 | T73: =Drepre!E42 -> 75 | U73: =SUM(F73:T73) -> 3936.247335
B74: ='D60'!B140 -> MAŘASOVÁ | C74: ='D60'!C140 -> Vendula | D74: ='D60'!D140 -> 7.B | F74: ='D60'!H140 -> 697.5747265 | G74: ='D300'!H140 -> 0 | H74: ='D800'!H140 -> 603.647079 | I74: =Ddál!H140 -> 669.515 | J74: =Dvýš!H140 -> 544.5 | K74: =Dmíč!H140 -> 321.5 | L74: =Dkou!H140 -> 0 | M74: =Dčlu!H140 -> 0 | N74: =Dls!H140 -> 0 | O74: =Dodbíj!H140 -> 0 | P74: =Dplav!H140 -> 0 | Q74: =Dšplh!H140 -> 0 | R74: =Dšvih!H140 -> 0 | S74: ='Dz mís'!H140 -> 0 | T74: =Drepre!E43 -> 25 | U74: =SUM(F74:T74) -> 2861.736806
B75: ='D60'!B141 -> PETŘÍČKOVÁ | C75: ='D60'!C141 -> Natálie | D75: ='D60'!D141 -> 7.B | F75: ='D60'!H141 -> 857.3693744 | G75: ='D300'!H141 -> 752.8989932 | H75: ='D800'!H141 -> 621.5329785 | I75: =Ddál!H141 -> 803.418 | J75: =Dvýš!H141 -> 674.5 | K75: =Dmíč!H141 -> 430.7 | L75: =Dkou!H141 -> 0 | M75: =Dčlu!H141 -> 0 | N75: =Dls!H141 -> 0 | O75: =Dodbíj!H141 -> 0 | P75: =Dplav!H141 -> 0 | Q75: =Dšplh!H141 -> 575.7593696 | R75: =Dšvih!H141 -> 0 | S75: ='Dz mís'!H141 -> 0 | T75: =Drepre!E44 -> 125 | U75: =SUM(F75:T75) -> 4841.178716
B76: ='D60'!B142 -> PETŘÍKOVÁ | C76: ='D60'!C142 -> Adéla | D76: ='D60'!D142 -> 7.B | F76: ='D60'!H142 -> 684.4726129 | G76: ='D300'!H142 -> 648.0633403 | H76: ='D800'!H142 -> 0 | I76: =Ddál!H142 -> 606.911 | J76: =Dvýš!H142 -> 0 | K76: =Dmíč!H142 -> 294.2 | L76: =Dkou!H142 -> 303.1111111 | M76: =Dčlu!H142 -> 542.4862631 | N76: =Dls!H142 -> 0 | O76: =Dodbíj!H142 -> 18 | P76: =Dplav!H142 -> 0 | Q76: =Dšplh!H142 -> 0 | R76: =Dšvih!H142 -> 180.75 | S76: ='Dz mís'!H142 -> 374.2521246 | T76: =Drepre!E45 -> 0 | U76: =SUM(F76:T76) -> 3652.246452
B77: ='D60'!B143 -> REGÁLOVÁ | C77: ='D60'!C143 -> Karolína | D77: ='D60'!D143 -> 7.B | F77: ='D60'!H143 -> 716.2708683 | G77: ='D300'!H143 -> 0 | H77: ='D800'!H143 -> 461.5765526 | I77: =Ddál!H143 -> 669.515 | J77: =Dvýš!H143 -> 674.5 | K77: =Dmíč!H143 -> 530.8 | L77: =Dkou!H143 -> 0 | M77: =Dčlu!H143 -> 0 | N77: =Dls!H143 -> 0 | O77: =Dodbíj!H143 -> 0 | P77: =Dplav!H143 -> 0 | Q77: =Dšplh!H143 -> 0 | R77: =Dšvih!H143 -> 943.25 | S77: ='Dz mís'!H143 -> 0 | T77: =Drepre!E46 -> 25 | U77: =SUM(F77:T77) -> 4020.912421
B78: ='D60'!B144 -> RIEGROVÁ | C78: ='D60'!C144 -> Magdaléna | D78: ='D60'!D144 -> 7.B | F78: ='D60'!H144 -> 0 | G78: ='D300'!H144 -> 0 | H78: ='D800'!H144 -> 0 | I78: =Ddál!H144 -> 629.518 | J78: =Dvýš!H144 -> 0 | K78: =Dmíč!H144 -> 367 | L78: =Dkou!H144 -> 342.2222222 | M78: =Dčlu!H144 -> 577.1996631 | N78: =Dls!H144 -> 0 | O78: =Dodbíj!H144 -> 18 | P78: =Dplav!H144 -> 0 | Q78: =Dšplh!H144 -> 409.2425526 | R78: =Dšvih!H144 -> 593.25 | S78: ='Dz mís'!H144 -> 0 | T78: =Drepre!E47 -> 0 | U78: =SUM(F78:T78) -> 2936.432438
B79: ='D60'!B145 -> RYBENSKÁ | C79: ='D60'!C145 -> Sabina | D79: ='D60'!D145 -> 7.B | F79: ='D60'!H145 -> 726.7259659 | G79: ='D300'!H145 -> 0 | H79: ='D800'!H145 -> 539.3479667 | I79: =Ddál!H145 -> 0 | J79: =Dvýš!H145 -> 0 | K79: =Dmíč!H145 -> 279.64 | L79: =Dkou!H145 -> 0 | M79: =Dčlu!H145 -> 0 | N79: =Dls!H145 -> 0 | O79: =Dodbíj!H145 -> 0 | P79: =Dplav!H145 -> 0 | Q79: =Dšplh!H145 -> 0 | R79: =Dšvih!H145 -> 0 | S79: ='Dz mís'!H145 -> 0 | T79: =Drepre!E48 -> 0 | U79: =SUM(F79:T79) -> 1545.713933
B80: ='D60'!B146 -> STEINEROVÁ | C80: ='D60'!C146 -> Barbora | D80: ='D60'!D146 -> 7.B | F80: ='D60'!H146 -> 758.213978 | G80: ='D300'!H146 -> 576.6316536 | H80: ='D800'!H146 -> 572.0531676 | I80: =Ddál!H146 -> 780.811 | J80: =Dvýš!H146 -> 674.5 | K80: =Dmíč!H146 -> 610.152 | L80: =Dkou!H146 -> 0 | M80: =Dčlu!H146 -> 0 | N80: =Dls!H146 -> 0 | O80: =Dodbíj!H146 -> 0 | P80: =Dplav!H146 -> 0 | Q80: =Dšplh!H146 -> 505.3521125 | R80: =Dšvih!H146 -> 687 | S80: ='Dz mís'!H146 -> 0 | T80: =Drepre!E49 -> 100 | U80: =SUM(F80:T80) -> 5264.713912
B81: ='D60'!B147 -> TOMEŠOVÁ | C81: ='D60'!C147 -> Barbora | D81: ='D60'!D147 -> 7.B | F81: ='D60'!H147 -> 758.213978 | G81: ='D300'!H147 -> 0 | H81: ='D800'!H147 -> 622.1998224 | I81: =Ddál!H147 -> 0 | J81: =Dvýš!H147 -> 0 | K81: =Dmíč!H147 -> 439.8 | L81: =Dkou!H147 -> 0 | M81: =Dčlu!H147 -> 0 | N81: =Dls!H147 -> 0 | O81: =Dodbíj!H147 -> 0 | P81: =Dplav!H147 -> 0 | Q81: =Dšplh!H147 -> 0 | R81: =Dšvih!H147 -> 762 | S81: ='Dz mís'!H147 -> 0 | T81: =Drepre!E50 -> 75 | U81: =SUM(F81:T81) -> 2657.2138
B82: ='D60'!B148 -> VOHNOUTOVÁ | C82: ='D60'!C148 -> Aneta | D82: ='D60'!D148 -> 7.B | F82: ='D60'!H148 -> 830.3908887 | G82: ='D300'!H148 -> 0 | H82: ='D800'!H148 -> 654.5712168 | I82: =Ddál!H148 -> 765.16 | J82: =Dvýš!H148 -> 674.5 | K82: =Dmíč!H148 -> 640.364 | L82: =Dkou!H148 -> 0 | M82: =Dčlu!H148 -> 0 | N82: =Dls!H148 -> 0 | O82: =Dodbíj!H148 -> 0 | P82: =Dplav!H148 -> 0 | Q82: =Dšplh!H148 -> 0 | R82: =Dšvih!H148 -> 949.5 | S82: ='Dz mís'!H148 -> 0 | T82: =Drepre!E51 -> 125 | U82: =SUM(F82:T82) -> 4639.486106
B83: ='D60'!B149 -> HAVLÍKOVÁ | C83: ='D60'!C149 -> Michaela | D83: ='D60'!D149 -> 8.A | F83: ='D60'!H149 -> 761.5021628 | G83: ='D300'!H149 -> 551.6592039 | H83: ='D800'!H149 -> 588.871486 | I83: =Ddál!H149 -> 686.905 | J83: =Dvýš!H149 -> 642 | K83: =Dmíč!H149 -> 294.2 | L83: =Dkou!H149 -> 307.5555556 | M83: =Dčlu!H149 -> 597.1577358 | N83: =Dls!H149 -> 0 | O83: =Dodbíj!H149 -> 27 | P83: =Dplav!H149 -> 0 | Q83: =Dšplh!H149 -> 0 | R83: =Dšvih!H149 -> 387 | S83: ='Dz mís'!H149 -> 614.1784703 | T83: =Drepre!E52 -> 0 | U83: =SUM(F83:T83) -> 5458.029614
B84: ='D60'!B150 -> HOLUBCOVÁ | C84: ='D60'!C150 -> Sára | D84: ='D60'!D150 -> 8.A | F84: ='D60'!H150 -> 845.1795388 | G84: ='D300'!H150 -> 714.0486869 | H84: ='D800'!H150 -> 622.8678506 | I84: =Ddál!H150 -> 765.16 | J84: =Dvýš!H150 -> 739.5 | K84: =Dmíč!H150 -> 476.2 | L84: =Dkou!H150 -> 455.1111111 | M84: =Dčlu!H150 -> 685.830371 | N84: =Dls!H150 -> 0 | O84: =Dodbíj!H150 -> 30 | P84: =Dplav!H150 -> 0 | Q84: =Dšplh!H150 -> 447.2046317 | R84: =Dšvih!H150 -> 505.75 | S84: ='Dz mís'!H150 -> 811.7648725 | T84: =Drepre!E53 -> 75 | U84: =SUM(F84:T84) -> 7173.617063
B85: ='D60'!B151 -> HONCŮ | C85: ='D60'!C151 -> Tereza | D85: ='D60'!D151 -> 8.A | F85: ='D60'!H151 -> 740.5899524 | G85: ='D300'!H151 -> 619.6360362 | H85: ='D800'!H151 -> 0 | I85: =Ddál!H151 -> 712.99 | J85: =Dvýš!H151 -> 707 | K85: =Dmíč!H151 -> 458 | L85: =Dkou!H151 -> 432.8888889 | M85: =Dčlu!H151 -> 680.4288819 | N85: =Dls!H151 -> 0 | O85: =Dodbíj!H151 -> 27 | P85: =Dplav!H151 -> 0 | Q85: =Dšplh!H151 -> 0 | R85: =Dšvih!H151 -> 0 | S85: ='Dz mís'!H151 -> 717.6761095 | T85: =Drepre!E54 -> 0 | U85: =SUM(F85:T85) -> 5096.209869
B86: ='D60'!B152 -> HORÁČKOVÁ | C86: ='D60'!C152 -> Kateřina | D86: ='D60'!D152 -> 8.A | F86: ='D60'!H152 -> 771.527443 | G86: ='D300'!H152 -> 731.9845285 | H86: ='D800'!H152 -> 662.7147931 | I86: =Ddál!H152 -> 0 | J86: =Dvýš!H152 -> 772 | K86: =Dmíč!H152 -> 494.4 | L86: =Dkou!H152 -> 678.2222222 | M86: =Dčlu!H152 -> 711.146982 | N86: =Dls!H152 -> 0 | O86: =Dodbíj!H152 -> 57 | P86: =Dplav!H152 -> 0 | Q86: =Dšplh!H152 -> 444.1703492 | R86: =Dšvih!H152 -> 487 | S86: ='Dz mís'!H152 -> 830.5826251 | T86: =Drepre!E55 -> 125 | U86: =SUM(F86:T86) -> 6765.748943
B87: ='D60'!B153 -> JOUDALOVÁ | C87: ='D60'!C153 -> Daniela | D87: ='D60'!D153 -> 8.A | F87: ='D60'!H153 -> 0 | G87: ='D300'!H153 -> 0 | H87: ='D800'!H153 -> 0 | I87: =Ddál!H153 -> 0 | J87: =Dvýš!H153 -> 0 | K87: =Dmíč!H153 -> 0 | L87: =Dkou!H153 -> 0 | M87: =Dčlu!H153 -> 0 | N87: =Dls!H153 -> 0 | O87: =Dodbíj!H153 -> 0 | P87: =Dplav!H153 -> 0 | Q87: =Dšplh!H153 -> 0 | R87: =Dšvih!H153 -> 0 | S87: ='Dz mís'!H153 -> 0 | T87: =Drepre!E56 -> 0 | U87: =SUM(F87:T87) -> 0
B88: ='D60'!B154 -> KLÍMOVÁ | C88: ='D60'!C154 -> Anna | D88: ='D60'!D154 -> 8.A | F88: ='D60'!H154 -> 689.2465651 | G88: ='D300'!H154 -> 644.7326762 | H88: ='D800'!H154 -> 602.1580514 | I88: =Ddál!H154 -> 686.905 | J88: =Dvýš!H154 -> 707 | K88: =Dmíč!H154 -> 458 | L88: =Dkou!H154 -> 491.5555556 | M88: =Dčlu!H154 -> 650.2128345 | N88: =Dls!H154 -> 0 | O88: =Dodbíj!H154 -> 27 | P88: =Dplav!H154 -> 0 | Q88: =Dšplh!H154 -> 423.2687918 | R88: =Dšvih!H154 -> 518.25 | S88: ='Dz mís'!H154 -> 680.0406043 | T88: =Drepre!E57 -> 0 | U88: =SUM(F88:T88) -> 6578.370079
B89: ='D60'!B155 -> KOHOUTOVÁ | C89: ='D60'!C155 -> Veronika | D89: ='D60'!D155 -> 8.A | F89: ='D60'!H155 -> 809.5555339 | G89: ='D300'!H155 -> 714.6948658 | H89: ='D800'!H155 -> 622.1998224 | I89: =Ddál!H155 -> 759.943 | J89: =Dvýš!H155 -> 707 | K89: =Dmíč!H155 -> 512.6 | L89: =Dkou!H155 -> 497.7777778 | M89: =Dčlu!H155 -> 682.4452332 | N89: =Dls!H155 -> 0 | O89: =Dodbíj!H155 -> 30 | P89: =Dplav!H155 -> 0 | Q89: =Dšplh!H155 -> 476.7738135 | R89: =Dšvih!H155 -> 605.75 | S89: ='Dz mís'!H155 -> 670.631728 | T89: =Drepre!E58 -> 75 | U89: =SUM(F89:T89) -> 7164.371775
B90: ='D60'!B156 -> KOVÁŘOVÁ | C90: ='D60'!C156 -> Viktorie | D90: ='D60'!D156 -> 8.A | F90: ='D60'!H156 -> 734.3682412 | G90: ='D300'!H156 -> 683.2990891 | H90: ='D800'!H156 -> 713.0921927 | I90: =Ddál!H156 -> 765.16 | J90: =Dvýš!H156 -> 772 | K90: =Dmíč!H156 -> 448.9 | L90: =Dkou!H156 -> 440.8888889 | M90: =Dčlu!H156 -> 669.2069266 | N90: =Dls!H156 -> 0 | O90: =Dodbíj!H156 -> 18 | P90: =Dplav!H156 -> 0 | Q90: =Dšplh!H156 -> 410.0206641 | R90: =Dšvih!H156 -> 474.5 | S90: ='Dz mís'!H156 -> 722.3805477 | T90: =Drepre!E59 -> 75 | U90: =SUM(F90:T90) -> 6926.81655
B91: ='D60'!B157 -> KYNČLOVÁ | C91: ='D60'!C157 -> Anna | D91: ='D60'!D157 -> 8.A | F91: ='D60'!H157 -> 809.5555339 | G91: ='D300'!H157 -> 887.4063233 | H91: ='D800'!H157 -> 936.3260374 | I91: =Ddál!H157 -> 766.899 | J91: =Dvýš!H157 -> 707 | K91: =Dmíč!H157 -> 512.6 | L91: =Dkou!H157 -> 413.3333333 | M91: =Dčlu!H157 -> 721.4634001 | N91: =Dls!H157 -> 0 | O91: =Dodbíj!H157 -> 18 | P91: =Dplav!H157 -> 0 | Q91: =Dšplh!H157 -> 475.1994211 | R91: =Dšvih!H157 -> 574.5 | S91: ='Dz mís'!H157 -> 858.809254 | T91: =Drepre!E60 -> 125 | U91: =SUM(F91:T91) -> 7806.092303
B92: ='D60'!B158 -> MATOUŠOVÁ | C92: ='D60'!C158 -> Tereza | D92: ='D60'!D158 -> 8.A | F92: ='D60'!H158 -> 717.0084238 | G92: ='D300'!H158 -> 578.8648988 | H92: ='D800'!H158 -> 514.1956 | I92: =Ddál!H158 -> 704.295 | J92: =Dvýš!H158 -> 804.5 | K92: =Dmíč!H158 -> 421.6 | L92: =Dkou!H158 -> 435.5555556 | M92: =Dčlu!H158 -> 591.4028439 | N92: =Dls!H158 -> 0 | O92: =Dodbíj!H158 -> 30 | P92: =Dplav!H158 -> 0 | Q92: =Dšplh!H158 -> 0 | R92: =Dšvih!H158 -> 318.25 | S92: ='Dz mís'!H158 -> 496.5675165 | T92: =Drepre!E61 -> 75 | U92: =SUM(F92:T92) -> 5687.239839
B93: ='D60'!B159 -> MAZÁNKOVÁ | C93: ='D60'!C159 -> Zuzana | D93: ='D60'!D159 -> 8.A | F93: ='D60'!H159 -> 706.0903887 | G93: ='D300'!H159 -> 633.2750965 | H93: ='D800'!H159 -> 635.7551148 | I93: =Ddál!H159 -> 660.82 | J93: =Dvýš!H159 -> 0 | K93: =Dmíč!H159 -> 285.1 | L93: =Dkou!H159 -> 377.7777778 | M93: =Dčlu!H159 -> 604.6311348 | N93: =Dls!H159 -> 0 | O93: =Dodbíj!H159 -> 0 | P93: =Dplav!H159 -> 0 | Q93: =Dšplh!H159 -> 0 | R93: =Dšvih!H159 -> 0 | S93: ='Dz mís'!H159 -> 0 | T93: =Drepre!E62 -> 0 | U93: =SUM(F93:T93) -> 3903.449513
B94: ='D60'!B160 -> MORKESOVÁ | C94: ='D60'!C160 -> Sabrina | D94: ='D60'!D160 -> 8.A | F94: ='D60'!H160 -> 869.8924174 | G94: ='D300'!H160 -> 716.1520599 | H94: ='D800'!H160 -> 642.1897386 | I94: =Ddál!H160 -> 791.245 | J94: =Dvýš!H160 -> 804.5 | K94: =Dmíč!H160 -> 731 | L94: =Dkou!H160 -> 635.5555556 | M94: =Dčlu!H160 -> 736.6900017 | N94: =Dls!H160 -> 0 | O94: =Dodbíj!H160 -> 57 | P94: =Dplav!H160 -> 0 | Q94: =Dšplh!H160 -> 387.5087813 | R94: =Dšvih!H160 -> 562 | S94: ='Dz mís'!H160 -> 821.1737488 | T94: =Drepre!E63 -> 75 | U94: =SUM(F94:T94) -> 7829.907303
B95: ='D60'!B161 -> POHOŘALÁ | C95: ='D60'!C161 -> Alžběta | D95: ='D60'!D161 -> 8.A | F95: ='D60'!H161 -> 785.2819338 | G95: ='D300'!H161 -> 725.4880991 | H95: ='D800'!H161 -> 666.7379697 | I95: =Ddál!H161 -> 768.638 | J95: =Dvýš!H161 -> 739.5 | K95: =Dmíč!H161 -> 439.8 | L95: =Dkou!H161 -> 475.5555556 | M95: =Dčlu!H161 -> 702.5190053 | N95: =Dls!H161 -> 0 | O95: =Dodbíj!H161 -> 18 | P95: =Dplav!H161 -> 0 | Q95: =Dšplh!H161 -> 0 | R95: =Dšvih!H161 -> 480.75 | S95: ='Dz mís'!H161 -> 698.8583569 | T95: =Drepre!E64 -> 75 | U95: =SUM(F95:T95) -> 6576.12892
B96: ='D60'!B162 -> SCHOLZOVÁ | C96: ='D60'!C162 -> Laura | D96: ='D60'!D162 -> 8.A | F96: ='D60'!H162 -> 713.3346153 | G96: ='D300'!H162 -> 0 | H96: ='D800'!H162 -> 0 | I96: =Ddál!H162 -> 0 | J96: =Dvýš!H162 -> 0 | K96: =Dmíč!H162 -> 0 | L96: =Dkou!H162 -> 0 | M96: =Dčlu!H162 -> 0 | N96: =Dls!H162 -> 0 | O96: =Dodbíj!H162 -> 6 | P96: =Dplav!H162 -> 0 | Q96: =Dšplh!H162 -> 0 | R96: =Dšvih!H162 -> 418.25 | S96: ='Dz mís'!H162 -> 482.4542021 | T96: =Drepre!E65 -> 0 | U96: =SUM(F96:T96) -> 1620.038817
B97: ='D60'!B163 -> VÁCLAVÍKOVÁ | C97: ='D60'!C163 -> Valerie | D97: ='D60'!D163 -> 8.A | F97: ='D60'!H163 -> 763.1561993 | G97: ='D300'!H163 -> 765.5013173 | H97: ='D800'!H163 -> 681.1853019 | I97: =Ddál!H163 -> 742.553 | J97: =Dvýš!H163 -> 739.5 | K97: =Dmíč!H163 -> 530.8 | L97: =Dkou!H163 -> 740.4444444 | M97: =Dčlu!H163 -> 698.9808132 | N97: =Dls!H163 -> 0 | O97: =Dodbíj!H163 -> 30 | P97: =Dplav!H163 -> 0 | Q97: =Dšplh!H163 -> 0 | R97: =Dšvih!H163 -> 530.75 | S97: ='Dz mís'!H163 -> 703.5627951 | T97: =Drepre!E66 -> 125 | U97: =SUM(F97:T97) -> 7051.433871
B98: ='D60'!B164 -> ZAPADLOVÁ | C98: ='D60'!C164 -> Emma | D98: ='D60'!D164 -> 8.A | F98: ='D60'!H164 -> 877.3568795 | G98: ='D300'!H164 -> 737.7217531 | H98: ='D800'!H164 -> 0 | I98: =Ddál!H164 -> 722 | J98: =Dvýš!H164 -> 772 | K98: =Dmíč!H164 -> 685.5 | L98: =Dkou!H164 -> 488.8888889 | M98: =Dčlu!H164 -> 662.763503 | N98: =Dls!H164 -> 0 | O98: =Dodbíj!H164 -> 24 | P98: =Dplav!H164 -> 816.3966928 | Q98: =Dšplh!H164 -> 650.8138046 | R98: =Dšvih!H164 -> 562 | S98: ='Dz mís'!H164 -> 694.1539188 | T98: =Drepre!E67 -> 75 | U98: =SUM(F98:T98) -> 7768.595441
B99: ='D60'!B165 -> ŽIŠKOVÁ | C99: ='D60'!C165 -> Mia | D99: ='D60'!D165 -> 8.A | F99: ='D60'!H165 -> 0 | G99: ='D300'!H165 -> 0 | H99: ='D800'!H165 -> 0 | I99: =Ddál!H165 -> 0 | J99: =Dvýš!H165 -> 0 | K99: =Dmíč!H165 -> 439.8 | L99: =Dkou!H165 -> 0 | M99: =Dčlu!H165 -> 0 | N99: =Dls!H165 -> 0 | O99: =Dodbíj!H165 -> 24 | P99: =Dplav!H165 -> 0 | Q99: =Dšplh!H165 -> 0 | R99: =Dšvih!H165 -> 0 | S99: ='Dz mís'!H165 -> 0 | T99: =Drepre!E68 -> 0 | U99: =SUM(F99:T99) -> 463.8
B100: ='D60'!B166 -> FARSKÁ | C100: ='D60'!C166 -> Tereza | D100: ='D60'!D166 -> 8.B | F100: ='D60'!H166 -> 688.5608212 | G100: ='D300'!H166 -> 0 | H100: ='D800'!H166 -> 0 | I100: =Ddál!H166 -> 530.395 | J100: =Dvýš!H166 -> 0 | K100: =Dmíč!H166 -> 348.8 | L100: =Dkou!H166 -> 475.5555556 | M100: =Dčlu!H166 -> 577.1996631 | N100: =Dls!H166 -> 0 | O100: =Dodbíj!H166 -> 0 | P100: =Dplav!H166 -> 0 | Q100: =Dšplh!H166 -> 0 | R100: =Dšvih!H166 -> 718.25 | S100: ='Dz mís'!H166 -> 0 | T100: =Drepre!E69 -> 0 | U100: =SUM(F100:T100) -> 3338.76104
B101: ='D60'!B167 -> FEIXOVÁ | C101: ='D60'!C167 -> Rozálie | D101: ='D60'!D167 -> 8.B | F101: ='D60'!H167 -> 629.2685755 | G101: ='D300'!H167 -> 0 | H101: ='D800'!H167 -> 400.3279324 | I101: =Ddál!H167 -> 0 | J101: =Dvýš!H167 -> 0 | K101: =Dmíč!H167 -> 248.7 | L101: =Dkou!H167 -> 0 | M101: =Dčlu!H167 -> 0 | N101: =Dls!H167 -> 0 | O101: =Dodbíj!H167 -> 0 | P101: =Dplav!H167 -> 0 | Q101: =Dšplh!H167 -> 0 | R101: =Dšvih!H167 -> 512 | S101: ='Dz mís'!H167 -> 0 | T101: =Drepre!E70 -> 0 | U101: =SUM(F101:T101) -> 1790.296508
B102: ='D60'!B168 -> FIŠEROVÁ | C102: ='D60'!C168 -> Michaela | D102: ='D60'!D168 -> 8.B | F102: ='D60'!H168 -> 653.3093968 | G102: ='D300'!H168 -> 414.7631176 | H102: ='D800'!H168 -> 491.274606 | I102: =Ddál!H168 -> 0 | J102: =Dvýš!H168 -> 0 | K102: =Dmíč!H168 -> 357.9 | L102: =Dkou!H168 -> 0 | M102: =Dčlu!H168 -> 639.8829998 | N102: =Dls!H168 -> 0 | O102: =Dodbíj!H168 -> 0 | P102: =Dplav!H168 -> 665.6336337 | Q102: =Dšplh!H168 -> 0 | R102: =Dšvih!H168 -> 874.5 | S102: ='Dz mís'!H168 -> 0 | T102: =Drepre!E71 -> 25 | U102: =SUM(F102:T102) -> 4122.263754
B103: ='D60'!B169 -> HAVLÍČKOVÁ | C103: ='D60'!C169 -> Kristýna | D103: ='D60'!D169 -> 8.B | F103: ='D60'!H169 -> 590.8846744 | G103: ='D300'!H169 -> 485.7450286 | H103: ='D800'!H169 -> 419.2252672 | I103: =Ddál!H169 -> 0 | J103: =Dvýš!H169 -> 0 | K103: =Dmíč!H169 -> 294.2 | L103: =Dkou!H169 -> 520 | M103: =Dčlu!H169 -> 525.2545668 | N103: =Dls!H169 -> 0 | O103: =Dodbíj!H169 -> 0 | P103: =Dplav!H169 -> 673.7673432 | Q103: =Dšplh!H169 -> 0 | R103: =Dšvih!H169 -> 505.75 | S103: ='Dz mís'!H169 -> 0 | T103: =Drepre!E72 -> 25 | U103: =SUM(F103:T103) -> 4039.82688
B104: ='D60'!B170 -> JODASOVÁ | C104: ='D60'!C170 -> Nikola | D104: ='D60'!D170 -> 8.B | F104: ='D60'!H170 -> 745.3206618 | G104: ='D300'!H170 -> 673.1522455 | H104: ='D800'!H170 -> 0 | I104: =Ddál!H170 -> 0 | J104: =Dvýš!H170 -> 0 | K104: =Dmíč!H170 -> 0 | L104: =Dkou!H170 -> 564.4444444 | M104: =Dčlu!H170 -> 0 | N104: =Dls!H170 -> 0 | O104: =Dodbíj!H170 -> 0 | P104: =Dplav!H170 -> 0 | Q104: =Dšplh!H170 -> 0 | R104: =Dšvih!H170 -> 737 | S104: ='Dz mís'!H170 -> 0 | T104: =Drepre!E73 -> 25 | U104: =SUM(F104:T104) -> 2744.917352
B105: ='D60'!B171 -> KADAVÁ | C105: ='D60'!C171 -> Nikola | D105: ='D60'!D171 -> 8.B | F105: ='D60'!H171 -> 587.2804808 | G105: ='D300'!H171 -> 461.7956858 | H105: ='D800'!H171 -> 407.3877654 | I105: =Ddál!H171 -> 608.65 | J105: =Dvýš!H171 -> 0 | K105: =Dmíč!H171 -> 276 | L105: =Dkou!H171 -> 448.8888889 | M105: =Dčlu!H171 -> 542.4862631 | N105: =Dls!H171 -> 0 | O105: =Dodbíj!H171 -> 0 | P105: =Dplav!H171 -> 0 | Q105: =Dšplh!H171 -> 0 | R105: =Dšvih!H171 -> 312 | S105: ='Dz mís'!H171 -> 0 | T105: =Drepre!E74 -> 0 | U105: =SUM(F105:T105) -> 3644.489084
B106: ='D60'!B172 -> KRAFKOVÁ | C106: ='D60'!C172 -> Lucie | D106: ='D60'!D172 -> 8.B | F106: ='D60'!H172 -> 0 | G106: ='D300'!H172 -> 0 | H106: ='D800'!H172 -> 0 | I106: =Ddál!H172 -> 0 | J106: =Dvýš!H172 -> 0 | K106: =Dmíč!H172 -> 0 | L106: =Dkou!H172 -> 0 | M106: =Dčlu!H172 -> 0 | N106: =Dls!H172 -> 0 | O106: =Dodbíj!H172 -> 0 | P106: =Dplav!H172 -> 0 | Q106: =Dšplh!H172 -> 0 | R106: =Dšvih!H172 -> 0 | S106: ='Dz mís'!H172 -> 0 | T106: =Drepre!E75 -> 0 | U106: =SUM(F106:T106) -> 0
B107: ='D60'!B173 -> KŘIVINKOVÁ | C107: ='D60'!C173 -> Alžběta | D107: ='D60'!D173 -> 8.B | F107: ='D60'!H173 -> 683.1197966 | G107: ='D300'!H173 -> 0 | H107: ='D800'!H173 -> 488.554688 | I107: =Ddál!H173 -> 700.817 | J107: =Dvýš!H173 -> 0 | K107: =Dmíč!H173 -> 439.8 | L107: =Dkou!H173 -> 0 | M107: =Dčlu!H173 -> 0 | N107: =Dls!H173 -> 0 | O107: =Dodbíj!H173 -> 0 | P107: =Dplav!H173 -> 0 | Q107: =Dšplh!H173 -> 0 | R107: =Dšvih!H173 -> 474.5 | S107: ='Dz mís'!H173 -> 0 | T107: =Drepre!E76 -> 0 | U107: =SUM(F107:T107) -> 2786.791485
B108: ='D60'!B174 -> LEŠÁKOVÁ | C108: ='D60'!C174 -> Lenka | D108: ='D60'!D174 -> 8.B | F108: ='D60'!H174 -> 568.3921302 | G108: ='D300'!H174 -> 495.0510051 | H108: ='D800'!H174 -> 468.4674902 | I108: =Ddál!H174 -> 645.169 | J108: =Dvýš!H174 -> 0 | K108: =Dmíč!H174 -> 276 | L108: =Dkou!H174 -> 306.6666667 | M108: =Dčlu!H174 -> 562.1813176 | N108: =Dls!H174 -> 0 | O108: =Dodbíj!H174 -> 0 | P108: =Dplav!H174 -> 0 | Q108: =Dšplh!H174 -> 0 | R108: =Dšvih!H174 -> 712 | S108: ='Dz mís'!H174 -> 0 | T108: =Drepre!E77 -> 0 | U108: =SUM(F108:T108) -> 4033.92761
B109: ='D60'!B175 -> NYKLÍČKOVÁ | C109: ='D60'!C175 -> Adéla | D109: ='D60'!D175 -> 8.B | F109: ='D60'!H175 -> 783.5377564 | G109: ='D300'!H175 -> 739.5928269 | H109: ='D800'!H175 -> 754.4331766 | I109: =Ddál!H175 -> 756.465 | J109: =Dvýš!H175 -> 759 | K109: =Dmíč!H175 -> 430.7 | L109: =Dkou!H175 -> 0 | M109: =Dčlu!H175 -> 687.193098 | N109: =Dls!H175 -> 0 | O109: =Dodbíj!H175 -> 0 | P109: =Dplav!H175 -> 0 | Q109: =Dšplh!H175 -> 0 | R109: =Dšvih!H175 -> 1312 | S109: ='Dz mís'!H175 -> 0 | T109: =Drepre!E78 -> 125 | U109: =SUM(F109:T109) -> 6347.921858
B110: ='D60'!B176 -> PLŮCHOVÁ | C110: ='D60'!C176 -> Petra | D110: ='D60'!D176 -> 8.B | F110: ='D60'!H176 -> 714.799956 | G110: ='D300'!H176 -> 605.0427942 | H110: ='D800'!H176 -> 571.4722382 | I110: =Ddál!H176 -> 632.996 | J110: =Dvýš!H176 -> 0 | K110: =Dmíč!H176 -> 439.8 | L110: =Dkou!H176 -> 564.4444444 | M110: =Dčlu!H176 -> 607.8863977 | N110: =Dls!H176 -> 0 | O110: =Dodbíj!H176 -> 0 | P110: =Dplav!H176 -> 0 | Q110: =Dšplh!H176 -> 0 | R110: =Dšvih!H176 -> 1430.75 | S110: ='Dz mís'!H176 -> 0 | T110: =Drepre!E79 -> 75 | U110: =SUM(F110:T110) -> 5642.19183
B111: ='D60'!B177 -> PODZIMKOVÁ | C111: ='D60'!C177 -> Eliška | D111: ='D60'!D177 -> 8.B | F111: ='D60'!H177 -> 696.1738475 | G111: ='D300'!H177 -> 414.7631176 | H111: ='D800'!H177 -> 452.8320384 | I111: =Ddál!H177 -> 648.647 | J111: =Dvýš!H177 -> 0 | K111: =Dmíč!H177 -> 476.2 | L111: =Dkou!H177 -> 0 | M111: =Dčlu!H177 -> 604.0916787 | N111: =Dls!H177 -> 0 | O111: =Dodbíj!H177 -> 0 | P111: =Dplav!H177 -> 0 | Q111: =Dšplh!H177 -> 0 | R111: =Dšvih!H177 -> 999.5 | S111: ='Dz mís'!H177 -> 0 | T111: =Drepre!E80 -> 25 | U111: =SUM(F111:T111) -> 4317.207682
B112: ='D60'!B178 -> RUTKAYOVÁ | C112: ='D60'!C178 -> Klára | D112: ='D60'!D178 -> 8.B | F112: ='D60'!H178 -> 568.3921302 | G112: ='D300'!H178 -> 0 | H112: ='D800'!H178 -> 458.4964942 | I112: =Ddál!H178 -> 613.867 | J112: =Dvýš!H178 -> 0 | K112: =Dmíč!H178 -> 276 | L112: =Dkou!H178 -> 0 | M112: =Dčlu!H178 -> 0 | N112: =Dls!H178 -> 0 | O112: =Dodbíj!H178 -> 0 | P112: =Dplav!H178 -> 0 | Q112: =Dšplh!H178 -> 0 | R112: =Dšvih!H178 -> 405.75 | S112: ='Dz mís'!H178 -> 0 | T112: =Drepre!E81 -> 0 | U112: =SUM(F112:T112) -> 2322.505624
B113: ='D60'!B179 -> SEIDLOVÁ | C113: ='D60'!C179 -> Zuzana | D113: ='D60'!D179 -> 8.B | F113: ='D60'!H179 -> 690.6218344 | G113: ='D300'!H179 -> 620.4185028 | H113: ='D800'!H179 -> 500.281933 | I113: =Ddál!H179 -> 721.685 | J113: =Dvýš!H179 -> 0 | K113: =Dmíč!H179 -> 527.16 | L113: =Dkou!H179 -> 0 | M113: =Dčlu!H179 -> 0 | N113: =Dls!H179 -> 0 | O113: =Dodbíj!H179 -> 0 | P113: =Dplav!H179 -> 0 | Q113: =Dšplh!H179 -> 0 | R113: =Dšvih!H179 -> 730.75 | S113: ='Dz mís'!H179 -> 0 | T113: =Drepre!E82 -> 75 | U113: =SUM(F113:T113) -> 3865.91727
B114: ='D60'!B180 -> TOMÁŠOVÁ | C114: ='D60'!C180 -> Sára | D114: ='D60'!D180 -> 8.B | F114: ='D60'!H180 -> 0 | G114: ='D300'!H180 -> 422.2691738 | H114: ='D800'!H180 -> 0 | I114: =Ddál!H180 -> 636.474 | J114: =Dvýš!H180 -> 0 | K114: =Dmíč!H180 -> 339.7 | L114: =Dkou!H180 -> 478.2222222 | M114: =Dčlu!H180 -> 513.7683828 | N114: =Dls!H180 -> 0 | O114: =Dodbíj!H180 -> 0 | P114: =Dplav!H180 -> 0 | Q114: =Dšplh!H180 -> 0 | R114: =Dšvih!H180 -> 418.25 | S114: ='Dz mís'!H180 -> 0 | T114: =Drepre!E83 -> 0 | U114: =SUM(F114:T114) -> 2808.683779
B115: ='D60'!B181 -> VANCLOVÁ | C115: ='D60'!C181 -> Barbora | D115: ='D60'!D181 -> 8.B | F115: ='D60'!H181 -> 704.6578226 | G115: ='D300'!H181 -> 621.7258792 | H115: ='D800'!H181 -> 500.0477145 | I115: =Ddál!H181 -> 0 | J115: =Dvýš!H181 -> 0 | K115: =Dmíč!H181 -> 0 | L115: =Dkou!H181 -> 413.3333333 | M115: =Dčlu!H181 -> 0 | N115: =Dls!H181 -> 0 | O115: =Dodbíj!H181 -> 0 | P115: =Dplav!H181 -> 697.4771063 | Q115: =Dšplh!H181 -> 0 | R115: =Dšvih!H181 -> 1012 | S115: ='Dz mís'!H181 -> 0 | T115: =Drepre!E84 -> 50 | U115: =SUM(F115:T115) -> 3999.241856
B116: ='D60'!B182 -> VOTOČKOVÁ | C116: ='D60'!C182 -> Veronika | D116: ='D60'!D182 -> 8.B | F116: ='D60'!H182 -> 552.4041764 | G116: ='D300'!H182 -> 0 | H116: ='D800'!H182 -> 419.581329 | I116: =Ddál!H182 -> 624.301 | J116: =Dvýš!H182 -> 0 | K116: =Dmíč!H182 -> 294.2 | L116: =Dkou!H182 -> 0 | M116: =Dčlu!H182 -> 0 | N116: =Dls!H182 -> 0 | O116: =Dodbíj!H182 -> 0 | P116: =Dplav!H182 -> 0 | Q116: =Dšplh!H182 -> 0 | R116: =Dšvih!H182 -> 280.75 | S116: ='Dz mís'!H182 -> 0 | T116: =Drepre!E85 -> 0 | U116: =SUM(F116:T116) -> 2171.236505
B117: ='D60'!B183 -> HARTIGOVÁ | C117: ='D60'!C183 -> Anna | D117: ='D60'!D183 -> 9.A | F117: ='D60'!H183 -> 735.914573 | G117: ='D300'!H183 -> 0 | H117: ='D800'!H183 -> 582.3774788 | I117: =Ddál!H183 -> 704.295 | J117: =Dvýš!H183 -> 804.5 | K117: =Dmíč!H183 -> 448.9 | L117: =Dkou!H183 -> 608.8888889 | M117: =Dčlu!H183 -> 663.4027089 | N117: =Dls!H183 -> 0 | O117: =Dodbíj!H183 -> 117 | P117: =Dplav!H183 -> 0 | Q117: =Dšplh!H183 -> 0 | R117: =Dšvih!H183 -> 0 | S117: ='Dz mís'!H183 -> 802.3559962 | T117: =Drepre!E86 -> 0 | U117: =SUM(F117:T117) -> 5467.634646
B118: ='D60'!B184 -> HONCŮ | C118: ='D60'!C184 -> Rozálie | D118: ='D60'!D184 -> 9.A | F118: ='D60'!H184 -> 878.4330368 | G118: ='D300'!H184 -> 759.9587597 | H118: ='D800'!H184 -> 542.3207232 | I118: =Ddál!H184 -> 850.371 | J118: =Dvýš!H184 -> 772 | K118: =Dmíč!H184 -> 512.6 | L118: =Dkou!H184 -> 612.4444444 | M118: =Dčlu!H184 -> 740.5899524 | N118: =Dls!H184 -> 0 | O118: =Dodbíj!H184 -> 36 | P118: =Dplav!H184 -> 0 | Q118: =Dšplh!H184 -> 413.0164443 | R118: =Dšvih!H184 -> 749.5 | S118: ='Dz mís'!H184 -> 854.1048159 | T118: =Drepre!E87 -> 50 | U118: =SUM(F118:T118) -> 7771.339177
B119: ='D60'!B185 -> CHALOUPSKÁ | C119: ='D60'!C185 -> Lucie | D119: ='D60'!D185 -> 9.A | F119: ='D60'!H185 -> 862.5460372 | G119: ='D300'!H185 -> 769.8358009 | H119: ='D800'!H185 -> 0 | I119: =Ddál!H185 -> 791.245 | J119: =Dvýš!H185 -> 0 | K119: =Dmíč!H185 -> 512.6 | L119: =Dkou!H185 -> 644.4444444 | M119: =Dčlu!H185 -> 743.7375504 | N119: =Dls!H185 -> 0 | O119: =Dodbíj!H185 -> 0 | P119: =Dplav!H185 -> 0 | Q119: =Dšplh!H185 -> 0 | R119: =Dšvih!H185 -> 449.5 | S119: ='Dz mís'!H185 -> 0 | T119: =Drepre!E88 -> 0 | U119: =SUM(F119:T119) -> 4773.908833
B120: ='D60'!B186 -> KŘÍŽKOVÁ | C120: ='D60'!C186 -> Anna | D120: ='D60'!D186 -> 9.A | F120: ='D60'!H186 -> 735.914573 | G120: ='D300'!H186 -> 602.785119 | H120: ='D800'!H186 -> 553.8180204 | I120: =Ddál!H186 -> 704.295 | J120: =Dvýš!H186 -> 707 | K120: =Dmíč!H186 -> 439.8 | L120: =Dkou!H186 -> 506.6666667 | M120: =Dčlu!H186 -> 647.1430823 | N120: =Dls!H186 -> 0 | O120: =Dodbíj!H186 -> 45 | P120: =Dplav!H186 -> 0 | Q120: =Dšplh!H186 -> 517.1207348 | R120: =Dšvih!H186 -> 562 | S120: ='Dz mís'!H186 -> 680.0406043 | T120: =Drepre!E89 -> 0 | U120: =SUM(F120:T120) -> 6701.5838
B121: ='D60'!B187 -> LUKEŠOVÁ | C121: ='D60'!C187 -> Kristýna | D121: ='D60'!D187 -> 9.A | F121: ='D60'!H187 -> 772.3739541 | G121: ='D300'!H187 -> 0 | H121: ='D800'!H187 -> 550.224032 | I121: =Ddál!H187 -> 723.424 | J121: =Dvýš!H187 -> 642 | K121: =Dmíč!H187 -> 367 | L121: =Dkou!H187 -> 493.3333333 | M121: =Dčlu!H187 -> 644.7063505 | N121: =Dls!H187 -> 0 | O121: =Dodbíj!H187 -> 36 | P121: =Dplav!H187 -> 0 | Q121: =Dšplh!H187 -> 533.5855559 | R121: =Dšvih!H187 -> 437 | S121: ='Dz mís'!H187 -> 647.1095373 | T121: =Drepre!E90 -> 0 | U121: =SUM(F121:T121) -> 5846.756763
B122: ='D60'!B188 -> MOTLÍKOVÁ | C122: ='D60'!C188 -> Eliška | D122: ='D60'!D188 -> 9.A | F122: ='D60'!H188 -> 803.1293306 | G122: ='D300'!H188 -> 687.5449085 | H122: ='D800'!H188 -> 735.4713627 | I122: =Ddál!H188 -> 779.072 | J122: =Dvýš!H188 -> 0 | K122: =Dmíč!H188 -> 421.6 | L122: =Dkou!H188 -> 657.7777778 | M122: =Dčlu!H188 -> 710.4205226 | N122: =Dls!H188 -> 0 | O122: =Dodbíj!H188 -> 66 | P122: =Dplav!H188 -> 0 | Q122: =Dšplh!H188 -> 406.3782689 | R122: =Dšvih!H188 -> 780.75 | S122: ='Dz mís'!H188 -> 722.3805477 | T122: =Drepre!E91 -> 50 | U122: =SUM(F122:T122) -> 6820.524719
B123: ='D60'!B189 -> POHOŘELÁ | C123: ='D60'!C189 -> Amálie | D123: ='D60'!D189 -> 9.A | F123: ='D60'!H189 -> 798.5971053 | G123: ='D300'!H189 -> 661.3607479 | H123: ='D800'!H189 -> 550.224032 | I123: =Ddál!H189 -> 643.43 | J123: =Dvýš!H189 -> 0 | K123: =Dmíč!H189 -> 330.6 | L123: =Dkou!H189 -> 640 | M123: =Dčlu!H189 -> 693.3875973 | N123: =Dls!H189 -> 0 | O123: =Dodbíj!H189 -> 45 | P123: =Dplav!H189 -> 0 | Q123: =Dšplh!H189 -> 0 | R123: =Dšvih!H189 -> 774.5 | S123: ='Dz mís'!H189 -> 745.9027384 | T123: =Drepre!E92 -> 0 | U123: =SUM(F123:T123) -> 5883.002221
B124: ='D60'!B190 -> POLÁČKOVÁ | C124: ='D60'!C190 -> Natálie | D124: ='D60'!D190 -> 9.A | F124: ='D60'!H190 -> 557.9530791 | G124: ='D300'!H190 -> 335.4112609 | H124: ='D800'!H190 -> 0 | I124: =Ddál!H190 -> 558.219 | J124: =Dvýš!H190 -> 0 | K124: =Dmíč!H190 -> 367 | L124: =Dkou!H190 -> 383.1111111 | M124: =Dčlu!H190 -> 543.3745736 | N124: =Dls!H190 -> 0 | O124: =Dodbíj!H190 -> 27 | P124: =Dplav!H190 -> 0 | Q124: =Dšplh!H190 -> 0 | R124: =Dšvih!H190 -> 249.5 | S124: ='Dz mís'!H190 -> 454.2275732 | T124: =Drepre!E93 -> 0 | U124: =SUM(F124:T124) -> 3475.796598
B125: ='D60'!B191 -> ŘEHOŘKOVÁ | C125: ='D60'!C191 -> Lucie | D125: ='D60'!D191 -> 9.A | F125: ='D60'!H191 -> 753.3308272 | G125: ='D300'!H191 -> 588.2872143 | H125: ='D800'!H191 -> 478.6073658 | I125: =Ddál!H191 -> 773.855 | J125: =Dvýš!H191 -> 707 | K125: =Dmíč!H191 -> 467.1 | L125: =Dkou!H191 -> 717.3333333 | M125: =Dčlu!H191 -> 647.1430823 | N125: =Dls!H191 -> 0 | O125: =Dodbíj!H191 -> 27 | P125: =Dplav!H191 -> 0 | Q125: =Dšplh!H191 -> 0 | R125: =Dšvih!H191 -> 368.25 | S125: ='Dz mís'!H191 -> 680.0406043 | T125: =Drepre!E94 -> 0 | U125: =SUM(F125:T125) -> 6207.947427
B126: ='D60'!B192 -> SKÁLOVÁ | C126: ='D60'!C192 -> Alena | D126: ='D60'!D192 -> 9.A | F126: ='D60'!H192 -> 675.105182 | G126: ='D300'!H192 -> 526.7705963 | H126: ='D800'!H192 -> 447.0398202 | I126: =Ddál!H192 -> 641.691 | J126: =Dvýš!H192 -> 642 | K126: =Dmíč!H192 -> 357.9 | L126: =Dkou!H192 -> 680 | M126: =Dčlu!H192 -> 600.8732728 | N126: =Dls!H192 -> 0 | O126: =Dodbíj!H192 -> 15 | P126: =Dplav!H192 -> 0 | Q126: =Dšplh!H192 -> 0 | R126: =Dšvih!H192 -> 249.5 | S126: ='Dz mís'!H192 -> 510.680831 | T126: =Drepre!E95 -> 0 | U126: =SUM(F126:T126) -> 5346.560702
B127: ='D60'!B193 -> VÁVROVÁ | C127: ='D60'!C193 -> Aneta | D127: ='D60'!D193 -> 9.A | F127: ='D60'!H193 -> 817.9599417 | G127: ='D300'!H193 -> 745.5954452 | H127: ='D800'!H193 -> 546.9377943 | I127: =Ddál!H193 -> 839.937 | J127: =Dvýš!H193 -> 772 | K127: =Dmíč!H193 -> 430.7 | L127: =Dkou!H193 -> 497.7777778 | M127: =Dčlu!H193 -> 675.105182 | N127: =Dls!H193 -> 0 | O127: =Dodbíj!H193 -> 117 | P127: =Dplav!H193 -> 0 | Q127: =Dšplh!H193 -> 0 | R127: =Dšvih!H193 -> 737 | S127: ='Dz mís'!H193 -> 717.6761095 | T127: =Drepre!E96 -> 50 | U127: =SUM(F127:T127) -> 6947.689251
B128: ='D60'!B194 -> ZELINKOVÁ | C128: ='D60'!C194 -> Klára | D128: ='D60'!D194 -> 9.A | F128: ='D60'!H194 -> 768.9982226 | G128: ='D300'!H194 -> 578.8648988 | H128: ='D800'!H194 -> 0 | I128: =Ddál!H194 -> 716.468 | J128: =Dvýš!H194 -> 739.5 | K128: =Dmíč!H194 -> 503.5 | L128: =Dkou!H194 -> 795.5555556 | M128: =Dčlu!H194 -> 708.9717082 | N128: =Dls!H194 -> 0 | O128: =Dodbíj!H194 -> 66 | P128: =Dplav!H194 -> 0 | Q128: =Dšplh!H194 -> 0 | R128: =Dšvih!H194 -> 468.25 | S128: ='Dz mís'!H194 -> 788.2426818 | T128: =Drepre!E97 -> 50 | U128: =SUM(F128:T128) -> 6184.351067

Sheet Droč
C1: CELKOVÉ VÝSLEDKY | U1: =TODAY() -> 2022-06-28
B3: 6. ročník | F3: 60 m | G3: 300m | H3: 800m | I3: dálka | J3: výška | K3: míček | L3: koule | M3: člunek | N3: lehsed | O3: odbíjení | P3: plavání | Q3: šplh | R3: švihadlo | S3: z místa | T3: REPRE | U3: CELKEM
A5: 1. | B5: =B139 -> HEJRALOVÁ | C5: =C139 -> Natálie | D5: 6.A | E5: 0 | F5: 764.8169188 | G5: 756.23959 | H5: 673.3444205 | I5: 728.641 | J5: 739.5 | K5: 421.6 | L5: 320 | M5: 617.8466914 | N5: 0 | O5: 0 | P5: 0 | Q5: 0 | R5: 624.5 | S5: 571.8385269 | T5: 0 | U5: 6218.327148
A6: 2. | B6: =B140 -> KERLE | C6: Nikita | D6: 6.A | E6: 0 | F6: 751.7160543 | G6: 768.0251173 | H6: 755.4031017 | I6: 786.028 | J6: 739.5 | K6: 376.1 | L6: 293.3333333 | M6: 652.6879227 | N6: 0 | O6: 0 | P6: 0 | Q6: 522.60153 | R6: 624.5 | S6: 642.4050992 | T6: 50 | U6: 6962.300159
A7: 3. | B7: =B141 -> PACLÍKOVÁ | C7: Markéta | D7: 6.A | E7: 0 | F7: 768.9982226 | G7: 670.7979785 | H7: 637.2104618 | I7: 712.99 | J7: 772 | K7: 494.4 | L7: 400 | M7: 665.3271387 | N7: 0 | O7: 0 | P7: 0 | Q7: 451.697354 | R7: 687 | S7: 731.789424 | T7: 0 | U7: 6992.21058
A8: 4. | B8: =B142 -> PLŮCHOVÁ | C8: Michaela | D8: 6.A | E8: 0 | F8: 768.9982226 | G8: 670.5045724 | H8: 0 | I8: 683.427 | J8: 707 | K8: 348.8 | L8: 434.6666667 | M8: 655.8061868 | N8: 0 | O8: 0 | P8: 0 | Q8: 402.0033409 | R8: 755.75 | S8: 684.7450425 | T8: 0 | U8: 6111.701032
A9: 5. | B9: =B143 -> ŠERCLOVÁ | C9: Nikola | D9: 6.A | E9: 0 | F9: 615.0502178 | G9: 453.5029268 | H9: 523.3306615 | I9: 605.172 | J9: 0 | K9: 0 | L9: 295.1111111 | M9: 0 | N9: 0 | O9: 0 | P9: 0 | Q9: 0 | R9: 218.25 | S9: 553.0207743 | T9: 0 | U9: 3263.437691
A10: 6. | B10: =B144 -> VÁCLAVÍKOVÁ | C10: Alena | D10: 6.A | E10: 0 | F10: 732.8279147 | G10: 619.6360362 | H10: 637.1757464 | I10: 667.776 | J10: 609.5 | K10: 0 | L10: 299.5555556 | M10: 625.8017316 | N10: 0 | O10: 0 | P10: 0 | Q10: 0 | R10: 562 | S10: 632.9962229 | T10: 0 | U10: 5387.269207
A11: 7. | B11: =B145 -> DUCHÁČKOVÁ | C11: Tereza | D11: 6.B | E11: 0 | F11: 639.8829998 | G11: 519.5353501 | H11: 0 | I11: 645.169 | J11: 544.5 | K11: 230.5 | L11: 0 | M11: 546.0553207 | N11: 0 | O11: 0 | P11: 0 | Q11: 0 | R11: 312 | S11: 426.0009443 | T11: 0 | U11: 3863.643615
A12: 8. | B12: =B146 -> FLAŠKOVÁ | C12: Anna Sabriel | D12: 6.B | E12: 0 | F12: 659.5843689 | G12: 538.7969665 | H12: 0 | I12: 662.559 | J12: 674.5 | K12: 421.6 | L12: 268.4444444 | M12: 571.7881429 | N12: 0 | O12: 0 | P12: 0 | Q12: 0 | R12: 287 | S12: 411.8876298 | T12: 0 | U12: 4496.160553
A13: 9. | B13: =B147 -> HAASOVÁ | C13: Julie | D13: 6.B | E13: 0 | F13: 763.9857211 | G13: 669.1866468 | H13: 631.6614553 | I13: 765.16 | J13: 674.5 | K13: 421.6 | L13: 0 | M13: 583.210053 | N13: 0 | O13: 0 | P13: 0 | Q13: 416.6340522 | R13: 493.25 | S13: 694.1539188 | T13: 0 | U13: 6113.341847
A14: 10. | B14: =B148 -> HOBLOVÁ | C14: Barbora | D14: 6.B | E14: 0 | F14: 746.9100306 | G14: 640.1947662 | H14: 607.091731 | I14: 619.084 | J14: 609.5 | K14: 376.1 | L14: 0 | M14: 618.9717897 | N14: 0 | O14: 0 | P14: 0 | Q14: 463.7390164 | R14: 612 | S14: 581.2474032 | T14: 0 | U14: 5874.838737
A15: 11. | B15: =B149 -> HORÁČKOVÁ | C15: Valérie | D15: 6.B | E15: 0 | F15: 749.3058977 | G15: 706.3640243 | H15: 600.1715761 | I15: 664.298 | J15: 642 | K15: 367 | L15: 394.6666667 | M15: 652.6879227 | N15: 0 | O15: 0 | P15: 674.2839858 | Q15: 0 | R15: 0 | S15: 675.3361662 | T15: 0 | U15: 6126.114239
A16: 12. | B16: =B150 -> JIRANOVÁ | C16: Anežka | D16: 6.B | E16: 0 | F16: 543.3745736 | G16: 0 | H16: 386.435699 | I16: 570.392 | J16: 512 | K16: 321.5 | L16: 271.1111111 | M16: 528.6214516 | N16: 0 | O16: 0 | P16: 0 | Q16: 0 | R16: 280.75 | S16: 336.6166195 | T16: 0 | U16: 3750.801455
A17: 13. | B17: =B151 -> JODASOVÁ | C17: Denisa | D17: 6.B | E17: 0 | F17: 727.4835608 | G17: 0 | H17: 614.4710633 | I17: 756.465 | J17: 0 | K17: 603.6 | L17: 396.4444444 | M17: 684.4726129 | N17: 0 | O17: 0 | P17: 0 | Q17: 475.8707635 | R17: 555.75 | S17: 665.9272899 | T17: 0 | U17: 5480.484735
A18: 14. | B18: =B152 -> KRČÍKOVÁ | C18: Beatrix | D18: 6.B | E18: 0 | F18: 723.7101275 | G18: 619.6360362 | H18: 561.9108716 | I18: 737.336 | J18: 707 | K18: 430.7 | L18: 402.6666667 | M18: 0 | N18: 0 | O18: 0 | P18: 0 | Q18: 0 | R18: 455.75 | S18: 689.4494806 | T18: 0 | U18: 5328.159183
A19: 15. | B19: =B153 -> KUBÁTOVÁ | C19: Veronika | D19: 6.B | E19: 0 | F19: 604.6311348 | G19: 479.9161539 | H19: 0 | I19: 513.005 | J19: 0 | K19: 130.4 | L19: 0 | M19: 0 | N19: 0 | O19: 0 | P19: 0 | Q19: 0 | R19: 5.75 | S19: 482.4542021 | T19: 0 | U19: 2216.156491
A20: 16. | B20: =B154 -> LENČEŠOVÁ | C20: Silvie | D20: 6.B | E20: 0 | F20: 646.5323184 | G20: 574.7607486 | H20: 593.1024863 | I20: 619.084 | J20: 544.5 | K20: 385.2 | L20: 221.3333333 | M20: 590.36733 | N20: 0 | O20: 0 | P20: 0 | Q20: 0 | R20: 593.25 | S20: 505.9763928 | T20: 0 | U20: 5274.106609
A21: 17. | B21: =B155 -> MATERNOVÁ | C21: Lenka | D21: 6.B | E21: 0 | F21: 833.3097864 | G21: 778.8054495 | H21: 655.443528 | I21: 627.779 | J21: 707 | K21: 285.1 | L21: 0 | M21: 631.5993748 | N21: 0 | O21: 0 | P21: 0 | Q21: 704.0775205 | R21: 343.25 | S21: 520.0897073 | T21: 0 | U21: 6086.454366
A22: 18. | B22: =B156 -> TÓTHOVÁ | C22: Viktorie | D22: 6.B | E22: 0 | F22: 665.3271387 | G22: 580.7553227 | H22: 504.4566103 | I22: 669.515 | J22: 642 | K22: 403.4 | L22: 297.7777778 | M22: 557.021277 | N22: 0 | O22: 0 | P22: 0 | Q22: 0 | R22: 380.75 | S22: 661.2228517 | T22: 0 | U22: 5362.225978
C32: CELKOVÉ VÝSLEDKY | U32: =TODAY() -> 2022-06-28
B34: 7. ročník | F34: 60 m | G34: 300m | H34: 800m | I34: dálka | J34: výška | K34: míček | L34: koule | M34: člunek | N34: lehsed | O34: odbíjení | P34: plavání | Q34: šplh | R34: švihadlo | S34: z místa | T34: REPRE | U34: CELKEM
A36: 1. | B36: =B157 -> ERBENOVÁ | C36: =C157 -> Sára | D36: 7.A | E36: 0 | F36: 656.433122 | G36: 451.6691419 | H36: 418.9762983 | I36: 599.955 | J36: 0 | K36: 266.9 | L36: 0 | M36: 576.2088537 | N36: 0 | O36: 51 | P36: 0 | Q36: 0 | R36: 0 | S36: 491.8630784 | T36: 0 | U36: 3513.005494
A37: 2. | B37: =B158 -> GINGALOVÁ | C37: Linda | D37: 7.A | E37: 0 | F37: 794.1122881 | G37: 0 | H37: 419.0474093 | I37: 733.858 | J37: 739.5 | K37: 439.8 | L37: 0 | M37: 0 | N37: 0 | O37: 0 | P37: 0 | Q37: 0 | R37: 593.25 | S37: 0 | T37: 75 | U37: 3794.567697
A38: 3. | B38: =B159 -> HOFMANOVÁ | C38: Nicol | D38: 7.A | E38: 0 | F38: 687.8763334 | G38: 0 | H38: 0 | I38: 617.345 | J38: 0 | K38: 394.3 | L38: 454.2222222 | M38: 527.3543314 | N38: 0 | O38: 51 | P38: 0 | Q38: 0 | R38: 368.25 | S38: 604.769594 | T38: 0 | U38: 3705.117481
A39: 4. | B39: =B160 -> HOLEŠOVSKÁ | C39: Aneta | D39: 7.A | E39: 0 | F39: 717.0084238 | G39: 0 | H39: 455.6505699 | I39: 679.949 | J39: 0 | K39: 496.22 | L39: 0 | M39: 0 | N39: 0 | O39: 0 | P39: 0 | Q39: 0 | R39: 1124.5 | S39: 0 | T39: 25 | U39: 3498.327994
A40: 5. | B40: =B161 -> HOLUBCOVÁ | C40: Alena | D40: 7.A | E40: 0 | F40: 797.6963731 | G40: 592.2896774 | H40: 563.0705145 | I40: 678.21 | J40: 739.5 | K40: 704.792 | L40: 546.6666667 | M40: 608.9785948 | N40: 0 | O40: 30 | P40: 0 | Q40: 0 | R40: 499.5 | S40: 717.6761095 | T40: 75 | U40: 6553.379936
A41: 6. | B41: =B162 -> KOHOUTOVÁ | C41: Anna | D41: 7.A | E41: 0 | F41: 655.1803496 | G41: 493.4515905 | H41: 529.275343 | I41: 579.087 | J41: 674.5 | K41: 294.2 | L41: 329.7777778 | M41: 537.2109456 | N41: 0 | O41: 21 | P41: 0 | Q41: 0 | R41: 537 | S41: 482.4542021 | T41: 0 | U41: 5133.137208
A42: 7. | B42: =B163 -> KRAUSOVÁ | C42: Anežka | D42: 7.A | E42: 0 | F42: 657.6902978 | G42: 540.0743995 | H42: 0 | I42: 718.207 | J42: 674.5 | K42: 321.5 | L42: 457.7777778 | M42: 608.4320493 | N42: 0 | O42: 48 | P42: 0 | Q42: 0 | R42: 499.5 | S42: 618.8829084 | T42: 0 | U42: 5144.564433
A43: 8. | B43: =B164 -> KUŽELOVÁ | C43: Apoléna | D43: 7.A | E43: 0 | F43: 737.466945 | G43: 0 | H43: 488.103682 | I43: 660.82 | J43: 674.5 | K43: 403.4 | L43: 0 | M43: 0 | N43: 0 | O43: 0 | P43: 0 | Q43: 0 | R43: 843.25 | S43: 0 | T43: 0 | U43: 3807.540627
A44: 9. | B44: =B165 -> MORÁVKOVÁ | C44: Lucie | D44: 7.A | E44: 0 | F44: 635.1253288 | G44: 0 | H44: 454.8424973 | I44: 0 | J44: 0 | K44: 330.6 | L44: 0 | M44: 0 | N44: 0 | O44: 0 | P44: 0 | Q44: 0 | R44: 0 | S44: 0 | T44: 0 | U44: 1420.567826
A45: 10. | B45: =B166 -> SKLENÁROVÁ | C45: Eliška | D45: 7.A | E45: 0 | F45: 0 | G45: 0 | H45: 0 | I45: 598.216 | J45: 674.5 | K45: 0 | L45: 0 | M45: 551.0325142 | N45: 0 | O45: 21 | P45: 0 | Q45: 0 | R45: 337 | S45: 595.3607177 | T45: 0 | U45: 2777.109232
A46: 11. | B46: =B167 -> ŠEJNOVÁ | C46: Karolína | D46: 7.A | E46: 0 | F46: 0 | G46: 562.6990245 | H46: 424.778443 | I46: 652.125 | J46: 642 | K46: 294.2 | L46: 357.3333333 | M46: 594.0061377 | N46: 0 | O46: 51 | P46: 0 | Q46: 0 | R46: 299.5 | S46: 694.1539188 | T46: 0 | U46: 4571.795857
A47: 12. | B47: =B168 -> ŠTOLFOVÁ | C47: Tereza | D47: 7.A | E47: 0 | F47: 698.2771171 | G47: 602.2851006 | H47: 0 | I47: 669.515 | J47: 707 | K47: 266.9 | L47: 319.1111111 | M47: 0 | N47: 0 | O47: 48 | P47: 0 | Q47: 0 | R47: 343.25 | S47: 0 | T47: 0 | U47: 3654.338329
A48: 13. | B48: =B169 -> ŠUBÍKOVÁ | C48: Klára | D48: 7.A | E48: 0 | F48: 717.7473842 | G48: 632.6027201 | H48: 559.8837889 | I48: 709.512 | J48: 739.5 | K48: 403.4 | L48: 306.6666667 | M48: 611.7248058 | N48: 0 | O48: 30 | P48: 0 | Q48: 446.1265852 | R48: 487 | S48: 623.5873466 | T48: 75 | U48: 6342.751297
A49: 14. | B49: =B170 -> ŠULKOVSKÁ | C49: Klára | D49: 7.A | E49: 0 | F49: 650.829991 | G49: 482.454311 | H49: 0 | I49: 648.647 | J49: 0 | K49: 385.2 | L49: 379.5555556 | M49: 0 | N49: 0 | O49: 51 | P49: 0 | Q49: 453.8858886 | R49: 249.5 | S49: 0 | T49: 0 | U49: 3301.072746
A50: 15. | B50: =B171 -> TULÁČKOVÁ | C50: Natálie | D50: 7.A | E50: 0 | F50: 725.2151469 | G50: 0 | H50: 526.1371516 | I50: 672.993 | J50: 0 | K50: 367 | L50: 0 | M50: 0 | N50: 0 | O50: 0 | P50: 0 | Q50: 0 | R50: 699.5 | S50: 0 | T50: 0 | U50: 2990.845298
A51: 16. | B51: =B172 -> VOJTÍŠKOVÁ | C51: Ella | D51: 7.A | E51: 0 | F51: 797.6963731 | G51: 0 | H51: 466.572273 | I51: 784.289 | J51: 824 | K51: 0 | L51: 0 | M51: 0 | N51: 0 | O51: 0 | P51: 0 | Q51: 0 | R51: 687 | S51: 0 | T51: 125 | U51: 3684.557646
A52: 17. | B52: =B173 -> DRUGÁČOVÁ | C52: Kristinka | D52: 7.B | E52: 0 | F52: 0 | G52: 0 | H52: 0 | I52: 747.77 | J52: 0 | K52: 0 | L52: 484.4444444 | M52: 0 | N52: 0 | O52: 0 | P52: 0 | Q52: 0 | R52: 0 | S52: 0 | T52: 0 | U52: 1232.214444
A53: 18. | B53: =B174 -> FAJSTAVROVÁ | C53: Karolína | D53: 7.B | E53: 0 | F53: 845.1795388 | G53: 0 | H53: 708.0911515 | I53: 699.078 | J53: 0 | K53: 558.1 | L53: 0 | M53: 0 | N53: 0 | O53: 0 | P53: 0 | Q53: 0 | R53: 974.5 | S53: 0 | T53: 75 | U53: 3859.94869
A54: 19. | B54: =B175 -> FAJSTAVROVÁ | C54: Magdaléna | D54: 7.B | E54: 0 | F54: 783.5377564 | G54: 0 | H54: 773.28098 | I54: 688.644 | J54: 0 | K54: 521.7 | L54: 0 | M54: 0 | N54: 0 | O54: 0 | P54: 0 | Q54: 444.6165782 | R54: 1193.25 | S54: 0 | T54: 125 | U54: 4530.029315
A55: 20. | B55: =B176 -> HLAVATÁ | C55: Anna | D55: 7.B | E55: 0 | F55: 0 | G55: 0 | H55: 0 | I55: 688.644 | J55: 0 | K55: 0 | L55: 0 | M55: 0 | N55: 0 | O55: 0 | P55: 0 | Q55: 0 | R55: 0 | S55: 0 | T55: 0 | U55: 688.644
A56: 21. | B56: =B177 -> JINDROVÁ | C56: Barbora | D56: 7.B | E56: 0 | F56: 696.1738475 | G56: 0 | H56: 567.4324968 | I56: 685.166 | J56: 0 | K56: 294.2 | L56: 0 | M56: 0 | N56: 0 | O56: 0 | P56: 0 | Q56: 431.2749904 | R56: 1187 | S56: 0 | T56: 75 | U56: 3936.247335
A57: 22. | B57: =B178 -> MAŘASOVÁ | C57: Vendula | D57: 7.B | E57: 0 | F57: 697.5747265 | G57: 0 | H57: 603.647079 | I57: 669.515 | J57: 544.5 | K57: 321.5 | L57: 0 | M57: 0 | N57: 0 | O57: 0 | P57: 0 | Q57: 0 | R57: 0 | S57: 0 | T57: 25 | U57: 2861.736806
A58: 23. | B58: =B179 -> PETŘÍČKOVÁ | C58: Natálie | D58: 7.B | E58: 0 | F58: 857.3693744 | G58: 752.8989932 | H58: 621.5329785 | I58: 803.418 | J58: 674.5 | K58: 430.7 | L58: 0 | M58: 0 | N58: 0 | O58: 0 | P58: 0 | Q58: 575.7593696 | R58: 0 | S58: 0 | T58: 125 | U58: 4841.178716
A59: 24. | B59: =B180 -> PETŘÍKOVÁ | C59: Adéla | D59: 7.B | E59: 0 | F59: 684.4726129 | G59: 648.0633403 | H59: 0 | I59: 606.911 | J59: 0 | K59: 294.2 | L59: 303.1111111 | M59: 542.4862631 | N59: 0 | O59: 18 | P59: 0 | Q59: 0 | R59: 180.75 | S59: 374.2521246 | T59: 0 | U59: 3652.246452
A60: 25. | B60: =B181 -> REGÁLOVÁ | C60: Karolína | D60: 7.B | E60: 0 | F60: 716.2708683 | G60: 0 | H60: 461.5765526 | I60: 669.515 | J60: 674.5 | K60: 530.8 | L60: 0 | M60: 0 | N60: 0 | O60: 0 | P60: 0 | Q60: 0 | R60: 943.25 | S60: 0 | T60: 25 | U60: 4020.912421
A61: 26. | B61: =B182 -> RIEGROVÁ | C61: Magdaléna | D61: 7.B | E61: 0 | F61: 0 | G61: 0 | H61: 0 | I61: 629.518 | J61: 0 | K61: 367 | L61: 342.2222222 | M61: 577.1996631 | N61: 0 | O61: 18 | P61: 0 | Q61: 409.2425526 | R61: 593.25 | S61: 0 | T61: 0 | U61: 2936.432438
A62: 27. | B62: =B183 -> RYBENSKÁ | C62: Sabina | D62: 7.B | E62: 0 | F62: 726.7259659 | G62: 0 | H62: 539.3479667 | I62: 0 | J62: 0 | K62: 279.64 | L62: 0 | M62: 0 | N62: 0 | O62: 0 | P62: 0 | Q62: 0 | R62: 0 | S62: 0 | T62: 0 | U62: 1545.713933
A63: 28. | B63: =B184 -> STEINEROVÁ | C63: Barbora | D63: 7.B | E63: 0 | F63: 758.213978 | G63: 576.6316536 | H63: 572.0531676 | I63: 780.811 | J63: 674.5 | K63: 610.152 | L63: 0 | M63: 0 | N63: 0 | O63: 0 | P63: 0 | Q63: 505.3521125 | R63: 687 | S63: 0 | T63: 100 | U63: 5264.713912
A64: 29. | B64: =B185 -> TOMEŠOVÁ | C64: Barbora | D64: 7.B | E64: 0 | F64: 758.213978 | G64: 0 | H64: 622.1998224 | I64: 0 | J64: 0 | K64: 439.8 | L64: 0 | M64: 0 | N64: 0 | O64: 0 | P64: 0 | Q64: 0 | R64: 762 | S64: 0 | T64: 75 | U64: 2657.2138
A65: 30. | B65: =B186 -> VOHNOUTOVÁ | C65: Aneta | D65: 7.B | E65: 0 | F65: 830.3908887 | G65: 0 | H65: 654.5712168 | I65: 765.16 | J65: 674.5 | K65: 640.364 | L65: 0 | M65: 0 | N65: 0 | O65: 0 | P65: 0 | Q65: 0 | R65: 949.5 | S65: 0 | T65: 125 | U65: 4639.486106
C70: CELKOVÉ VÝSLEDKY | U70: =U32 -> 2022-06-28
B71: 8. ročník | F71: 60 m | G71: 300m | H71: 800m | I71: dálka | J71: výška | K71: míček | L71: koule | M71: člunek | N71: lehsed | O71: odbíjení | P71: plavání | Q71: šplh | R71: švihadlo | S71: z místa | T71: REPRE | U71: CELKEM
A73: 1. | B73: =B187 -> HAVLÍKOVÁ | C73: =C187 -> Michaela | D73: 8.A | F73: =F187 -> 761.5021628 | G73: 551.6592039 | H73: 588.871486 | I73: 686.905 | J73: 642 | K73: 294.2 | L73: 307.5555556 | M73: 597.1577358 | N73: 0 | O73: 27 | P73: 0 | Q73: 0 | R73: 387 | S73: 614.1784703 | T73: 0 | U73: 5458.029614
A74: 2. | B74: =B188 -> HOLUBCOVÁ | C74: Sára | D74: 8.A | F74: =F188 -> 845.1795388 | G74: 714.0486869 | H74: 622.8678506 | I74: 765.16 | J74: 739.5 | K74: 476.2 | L74: 455.1111111 | M74: 685.830371 | N74: 0 | O74: 30 | P74: 0 | Q74: 447.2046317 | R74: 505.75 | S74: 811.7648725 | T74: 75 | U74: 7173.617063
A75: 3. | B75: =B189 -> HONCŮ | C75: Tereza | D75: 8.A | F75: =F189 -> 740.5899524 | G75: 619.6360362 | H75: 0 | I75: 712.99 | J75: 707 | K75: 458 | L75: 432.8888889 | M75: 680.4288819 | N75: 0 | O75: 27 | P75: 0 | Q75: 0 | R75: 0 | S75: 717.6761095 | T75: 0 | U75: 5096.209869
A76: 4. | B76: =B190 -> HORÁČKOVÁ | C76: Kateřina | D76: 8.A | F76: =F190 -> 771.527443 | G76: 731.9845285 | H76: 662.7147931 | I76: 0 | J76: 772 | K76: 494.4 | L76: 678.2222222 | M76: 711.146982 | N76: 0 | O76: 57 | P76: 0 | Q76: 444.1703492 | R76: 487 | S76: 830.5826251 | T76: 125 | U76: 6765.748943
A77: 5. | B77: =B191 -> JOUDALOVÁ | C77: Daniela | D77: 8.A | F77: =F191 -> 0 | G77: 0 | H77: 0 | I77: 0 | J77: 0 | K77: 0 | L77: 0 | M77: 0 | N77: 0 | O77: 0 | P77: 0 | Q77: 0 | R77: 0 | S77: 0 | T77: 0 | U77: 0
A78: 6. | B78: =B192 -> KLÍMOVÁ | C78: Anna | D78: 8.A | F78: =F192 -> 689.2465651 | G78: 644.7326762 | H78: 602.1580514 | I78: 686.905 | J78: 707 | K78: 458 | L78: 491.5555556 | M78: 650.2128345 | N78: 0 | O78: 27 | P78: 0 | Q78: 423.2687918 | R78: 518.25 | S78: 680.0406043 | T78: 0 | U78: 6578.370079
A79: 7. | B79: =B193 -> KOHOUTOVÁ | C79: Veronika | D79: 8.A | F79: =F193 -> 809.5555339 | G79: 714.6948658 | H79: 622.1998224 | I79: 759.943 | J79: 707 | K79: 512.6 | L79: 497.7777778 | M79: 682.4452332 | N79: 0 | O79: 30 | P79: 0 | Q79: 476.7738135 | R79: 605.75 | S79: 670.631728 | T79: 75 | U79: 7164.371775
A80: 8. | B80: =B194 -> KOVÁŘOVÁ | C80: Viktorie | D80: 8.A | F80: =F194 -> 734.3682412 | G80: 683.2990891 | H80: 713.0921927 | I80: 765.16 | J80: 772 | K80: 448.9 | L80: 440.8888889 | M80: 669.2069266 | N80: 0 | O80: 18 | P80: 0 | Q80: 410.0206641 | R80: 474.5 | S80: 722.3805477 | T80: 75 | U80: 6926.81655
A81: 9. | B81: =B195 -> KYNČLOVÁ | C81: Anna | D81: 8.A | F81: =F195 -> 809.5555339 | G81: 887.4063233 | H81: 936.3260374 | I81: 766.899 | J81: 707 | K81: 512.6 | L81: 413.3333333 | M81: 721.4634001 | N81: 0 | O81: 18 | P81: 0 | Q81: 475.1994211 | R81: 574.5 | S81: 858.809254 | T81: 125 | U81: 7806.092303
A82: 10. | B82: =B196 -> MATOUŠOVÁ | C82: Tereza | D82: 8.A | F82: =F196 -> 717.0084238 | G82: 578.8648988 | H82: 514.1956 | I82: 704.295 | J82: 804.5 | K82: 421.6 | L82: 435.5555556 | M82: 591.4028439 | N82: 0 | O82: 30 | P82: 0 | Q82: 0 | R82: 318.25 | S82: 496.5675165 | T82: 75 | U82: 5687.239839
A83: 11. | B83: =B197 -> MAZÁNKOVÁ | C83: Zuzana | D83: 8.A | F83: =F197 -> 706.0903887 | G83: 633.2750965 | H83: 635.7551148 | I83: 660.82 | J83: 0 | K83: 285.1 | L83: 377.7777778 | M83: 604.6311348 | N83: 0 | O83: 0 | P83: 0 | Q83: 0 | R83: 0 | S83: 0 | T83: 0 | U83: 3903.449513
A84: 12. | B84: =B198 -> MORKESOVÁ | C84: Sabrina | D84: 8.A | F84: =F198 -> 869.8924174 | G84: 716.1520599 | H84: 642.1897386 | I84: 791.245 | J84: 804.5 | K84: 731 | L84: 635.5555556 | M84: 736.6900017 | N84: 0 | O84: 57 | P84: 0 | Q84: 387.5087813 | R84: 562 | S84: 821.1737488 | T84: 75 | U84: 7829.907303
A85: 13. | B85: =B199 -> POHOŘALÁ | C85: Alžběta | D85: 8.A | F85: =F199 -> 785.2819338 | G85: 725.4880991 | H85: 666.7379697 | I85: 768.638 | J85: 739.5 | K85: 439.8 | L85: 475.5555556 | M85: 702.5190053 | N85: 0 | O85: 18 | P85: 0 | Q85: 0 | R85: 480.75 | S85: 698.8583569 | T85: 75 | U85: 6576.12892
A86: 14. | B86: =B200 -> SCHOLZOVÁ | C86: Laura | D86: 8.A | F86: =F200 -> 713.3346153 | G86: 0 | H86: 0 | I86: 0 | J86: 0 | K86: 0 | L86: 0 | M86: 0 | N86: 0 | O86: 6 | P86: 0 | Q86: 0 | R86: 418.25 | S86: 482.4542021 | T86: 0 | U86: 1620.038817
A87: 15. | B87: =B201 -> VÁCLAVÍKOVÁ | C87: Valerie | D87: 8.A | F87: =F201 -> 763.1561993 | G87: 765.5013173 | H87: 681.1853019 | I87: 742.553 | J87: 739.5 | K87: 530.8 | L87: 740.4444444 | M87: 698.9808132 | N87: 0 | O87: 30 | P87: 0 | Q87: 0 | R87: 530.75 | S87: 703.5627951 | T87: 125 | U87: 7051.433871
A88: 16. | B88: =B202 -> ZAPADLOVÁ | C88: Emma | D88: 8.A | F88: =F202 -> 877.3568795 | G88: 737.7217531 | H88: 0 | I88: 722 | J88: 772 | K88: 685.5 | L88: 488.8888889 | M88: 662.763503 | N88: 0 | O88: 24 | P88: 816.3966928 | Q88: 650.8138046 | R88: 562 | S88: 694.1539188 | T88: 75 | U88: 7768.595441
A89: 17. | B89: =B203 -> ŽIŠKOVÁ | C89: Mia | D89: 8.A | F89: =F203 -> 0 | G89: 0 | H89: 0 | I89: 0 | J89: 0 | K89: 439.8 | L89: 0 | M89: 0 | N89: 0 | O89: 24 | P89: 0 | Q89: 0 | R89: 0 | S89: 0 | T89: 0 | U89: 463.8
A90: 18. | B90: =B204 -> FARSKÁ | C90: Tereza | D90: 8.B | F90: =F204 -> 688.5608212 | G90: 0 | H90: 0 | I90: 530.395 | J90: 0 | K90: 348.8 | L90: 475.5555556 | M90: 577.1996631 | N90: 0 | O90: 0 | P90: 0 | Q90: 0 | R90: 718.25 | S90: 0 | T90: 0 | U90: 3338.76104
A91: 19. | B91: =B205 -> FEIXOVÁ | C91: Rozálie | D91: 8.B | F91: =F205 -> 629.2685755 | G91: 0 | H91: 400.3279324 | I91: 0 | J91: 0 | K91: 248.7 | L91: 0 | M91: 0 | N91: 0 | O91: 0 | P91: 0 | Q91: 0 | R91: 512 | S91: 0 | T91: 0 | U91: 1790.296508
A92: 20. | B92: =B206 -> FIŠEROVÁ | C92: Michaela | D92: 8.B | F92: =F206 -> 653.3093968 | G92: 414.7631176 | H92: 491.274606 | I92: 0 | J92: 0 | K92: 357.9 | L92: 0 | M92: 639.8829998 | N92: 0 | O92: 0 | P92: 665.6336337 | Q92: 0 | R92: 874.5 | S92: 0 | T92: 25 | U92: 4122.263754
A93: 21. | B93: =B207 -> HAVLÍČKOVÁ | C93: Kristýna | D93: 8.B | F93: =F207 -> 590.8846744 | G93: 485.7450286 | H93: 419.2252672 | I93: 0 | J93: 0 | K93: 294.2 | L93: 520 | M93: 525.2545668 | N93: 0 | O93: 0 | P93: 673.7673432 | Q93: 0 | R93: 505.75 | S93: 0 | T93: 25 | U93: 4039.82688
A94: 22. | B94: =B208 -> JODASOVÁ | C94: Nikola | D94: 8.B | F94: =F208 -> 745.3206618 | G94: 673.1522455 | H94: 0 | I94: 0 | J94: 0 | K94: 0 | L94: 564.4444444 | M94: 0 | N94: 0 | O94: 0 | P94: 0 | Q94: 0 | R94: 737 | S94: 0 | T94: 25 | U94: 2744.917352
A95: 23. | B95: =B209 -> KADAVÁ | C95: Nikola | D95: 8.B | F95: =F209 -> 587.2804808 | G95: 461.7956858 | H95: 407.3877654 | I95: 608.65 | J95: 0 | K95: 276 | L95: 448.8888889 | M95: 542.4862631 | N95: 0 | O95: 0 | P95: 0 | Q95: 0 | R95: 312 | S95: 0 | T95: 0 | U95: 3644.489084
A96: 24. | B96: =B210 -> KRAFKOVÁ | C96: Lucie | D96: 8.B | F96: =F210 -> 0 | G96: 0 | H96: 0 | I96: 0 | J96: 0 | K96: 0 | L96: 0 | M96: 0 | N96: 0 | O96: 0 | P96: 0 | Q96: 0 | R96: 0 | S96: 0 | T96: 0 | U96: 0
A97: 25. | B97: =B211 -> KŘIVINKOVÁ | C97: Alžběta | D97: 8.B | F97: =F211 -> 683.1197966 | G97: 0 | H97: 488.554688 | I97: 700.817 | J97: 0 | K97: 439.8 | L97: 0 | M97: 0 | N97: 0 | O97: 0 | P97: 0 | Q97: 0 | R97: 474.5 | S97: 0 | T97: 0 | U97: 2786.791485
A98: 26. | B98: =B212 -> LEŠÁKOVÁ | C98: Lenka | D98: 8.B | F98: =F212 -> 568.3921302 | G98: 495.0510051 | H98: 468.4674902 | I98: 645.169 | J98: 0 | K98: 276 | L98: 306.6666667 | M98: 562.1813176 | N98: 0 | O98: 0 | P98: 0 | Q98: 0 | R98: 712 | S98: 0 | T98: 0 | U98: 4033.92761
A99: 27. | B99: =B213 -> NYKLÍČKOVÁ | C99: Adéla | D99: 8.B | F99: =F213 -> 783.5377564 | G99: 739.5928269 | H99: 754.4331766 | I99: 756.465 | J99: 759 | K99: 430.7 | L99: 0 | M99: 687.193098 | N99: 0 | O99: 0 | P99: 0 | Q99: 0 | R99: 1312 | S99: 0 | T99: 125 | U99: 6347.921858
A100: 28. | B100: =B214 -> PLŮCHOVÁ | C100: Petra | D100: 8.B | F100: =F214 -> 714.799956 | G100: 605.0427942 | H100: 571.4722382 | I100: 632.996 | J100: 0 | K100: 439.8 | L100: 564.4444444 | M100: 607.8863977 | N100: 0 | O100: 0 | P100: 0 | Q100: 0 | R100: 1430.75 | S100: 0 | T100: 75 | U100: 5642.19183
A101: 29. | B101: =B215 -> PODZIMKOVÁ | C101: Eliška | D101: 8.B | F101: =F215 -> 696.1738475 | G101: 414.7631176 | H101: 452.8320384 | I101: 648.647 | J101: 0 | K101: 476.2 | L101: 0 | M101: 604.0916787 | N101: 0 | O101: 0 | P101: 0 | Q101: 0 | R101: 999.5 | S101: 0 | T101: 25 | U101: 4317.207682
A102: 30. | B102: =B216 -> RUTKAYOVÁ | C102: Klára | D102: 8.B | F102: =F216 -> 568.3921302 | G102: 0 | H102: 458.4964942 | I102: 613.867 | J102: 0 | K102: 276 | L102: 0 | M102: 0 | N102: 0 | O102: 0 | P102: 0 | Q102: 0 | R102: 405.75 | S102: 0 | T102: 0 | U102: 2322.505624
A103: 31. | B103: =B217 -> SEIDLOVÁ | C103: Zuzana | D103: 8.B | F103: =F217 -> 690.6218344 | G103: 620.4185028 | H103: 500.281933 | I103: 721.685 | J103: 0 | K103: 527.16 | L103: 0 | M103: 0 | N103: 0 | O103: 0 | P103: 0 | Q103: 0 | R103: 730.75 | S103: 0 | T103: 75 | U103: 3865.91727
A104: 32. | B104: =B218 -> TOMÁŠOVÁ | C104: Sára | D104: 8.B | F104: =F218 -> 0 | G104: 422.2691738 | H104: 0 | I104: 636.474 | J104: 0 | K104: 339.7 | L104: 478.2222222 | M104: 513.7683828 | N104: 0 | O104: 0 | P104: 0 | Q104: 0 | R104: 418.25 | S104: 0 | T104: 0 | U104: 2808.683779
A105: 33. | B105: =B219 -> VANCLOVÁ | C105: Barbora | D105: 8.B | F105: =F219 -> 704.6578226 | G105: 621.7258792 | H105: 500.0477145 | I105: 0 | J105: 0 | K105: 0 | L105: 413.3333333 | M105: 0 | N105: 0 | O105: 0 | P105: 697.4771063 | Q105: 0 | R105: 1012 | S105: 0 | T105: 50 | U105: 3999.241856
A106: 34. | B106: =B220 -> VOTOČKOVÁ | C106: Veronika | D106: 8.B | F106: =F220 -> 552.4041764 | G106: 0 | H106: 419.581329 | I106: 624.301 | J106: 0 | K106: 294.2 | L106: 0 | M106: 0 | N106: 0 | O106: 0 | P106: 0 | Q106: 0 | R106: 280.75 | S106: 0 | T106: 0 | U106: 2171.236505
C108: CELKOVÉ VÝSLEDKY | U108: =U70 -> 2022-06-28
B110: 9. ročník | F110: 60 m | G110: 300m | H110: 800m | I110: dálka | J110: výška | K110: míček | L110: koule | M110: člunek | N110: lehsed | O110: odbíjení | P110: plavání | Q110: šplh | R110: švihadlo | S110: z místa | T110: REPRE | U110: CELKEM
A112: 1. | B112: =B221 -> HARTIGOVÁ | C112: =C221 -> Anna | D112: 9.A | F112: =F221 -> 735.914573 | G112: 0 | H112: 582.3774788 | I112: 704.295 | J112: 804.5 | K112: 448.9 | L112: 608.8888889 | M112: 663.4027089 | N112: 0 | O112: 117 | P112: 0 | Q112: 0 | R112: 0 | S112: 802.3559962 | T112: 0 | U112: 5467.634646
A113: 2. | B113: =B222 -> HONCŮ | C113: Rozálie | D113: 9.A | F113: =F222 -> 878.4330368 | G113: 759.9587597 | H113: 542.3207232 | I113: 850.371 | J113: 772 | K113: 512.6 | L113: 612.4444444 | M113: 740.5899524 | N113: 0 | O113: 36 | P113: 0 | Q113: 413.0164443 | R113: 749.5 | S113: 854.1048159 | T113: 50 | U113: 7771.339177
A114: 3. | B114: =B223 -> CHALOUPSKÁ | C114: Lucie | D114: 9.A | F114: =F223 -> 862.5460372 | G114: 769.8358009 | H114: 0 | I114: 791.245 | J114: 0 | K114: 512.6 | L114: 644.4444444 | M114: 743.7375504 | N114: 0 | O114: 0 | P114: 0 | Q114: 0 | R114: 449.5 | S114: 0 | T114: 0 | U114: 4773.908833
A115: 4. | B115: =B224 -> KŘÍŽKOVÁ | C115: Anna | D115: 9.A | F115: =F224 -> 735.914573 | G115: 602.785119 | H115: 553.8180204 | I115: 704.295 | J115: 707 | K115: 439.8 | L115: 506.6666667 | M115: 647.1430823 | N115: 0 | O115: 45 | P115: 0 | Q115: 517.1207348 | R115: 562 | S115: 680.0406043 | T115: 0 | U115: 6701.5838
A116: 5. | B116: =B225 -> LUKEŠOVÁ | C116: Kristýna | D116: 9.A | F116: =F225 -> 772.3739541 | G116: 0 | H116: 550.224032 | I116: 723.424 | J116: 642 | K116: 367 | L116: 493.3333333 | M116: 644.7063505 | N116: 0 | O116: 36 | P116: 0 | Q116: 533.5855559 | R116: 437 | S116: 647.1095373 | T116: 0 | U116: 5846.756763
A117: 6. | B117: =B226 -> MOTLÍKOVÁ | C117: Eliška | D117: 9.A | F117: =F226 -> 803.1293306 | G117: 687.5449085 | H117: 735.4713627 | I117: 779.072 | J117: 0 | K117: 421.6 | L117: 657.7777778 | M117: 710.4205226 | N117: 0 | O117: 66 | P117: 0 | Q117: 406.3782689 | R117: 780.75 | S117: 722.3805477 | T117: 50 | U117: 6820.524719
A118: 7. | B118: =B227 -> POHOŘELÁ | C118: Amálie | D118: 9.A | F118: =F227 -> 798.5971053 | G118: 661.3607479 | H118: 550.224032 | I118: 643.43 | J118: 0 | K118: 330.6 | L118: 640 | M118: 693.3875973 | N118: 0 | O118: 45 | P118: 0 | Q118: 0 | R118: 774.5 | S118: 745.9027384 | T118: 0 | U118: 5883.002221
A119: 8. | B119: =B228 -> POLÁČKOVÁ | C119: Natálie | D119: 9.A | F119: =F228 -> 557.9530791 | G119: 335.4112609 | H119: 0 | I119: 558.219 | J119: 0 | K119: 367 | L119: 383.1111111 | M119: 543.3745736 | N119: 0 | O119: 27 | P119: 0 | Q119: 0 | R119: 249.5 | S119: 454.2275732 | T119: 0 | U119: 3475.796598
A120: 9. | B120: =B229 -> ŘEHOŘKOVÁ | C120: Lucie | D120: 9.A | F120: =F229 -> 753.3308272 | G120: 588.2872143 | H120: 478.6073658 | I120: 773.855 | J120: 707 | K120: 467.1 | L120: 717.3333333 | M120: 647.1430823 | N120: 0 | O120: 27 | P120: 0 | Q120: 0 | R120: 368.25 | S120: 680.0406043 | T120: 0 | U120: 6207.947427
A121: 10. | B121: =B230 -> SKÁLOVÁ | C121: Alena | D121: 9.A | F121: =F230 -> 675.105182 | G121: 526.7705963 | H121: 447.0398202 | I121: 641.691 | J121: 642 | K121: 357.9 | L121: 680 | M121: 600.8732728 | N121: 0 | O121: 15 | P121: 0 | Q121: 0 | R121: 249.5 | S121: 510.680831 | T121: 0 | U121: 5346.560702
A122: 11. | B122: =B231 -> VÁVROVÁ | C122: Aneta | D122: 9.A | F122: =F231 -> 817.9599417 | G122: 745.5954452 | H122: 546.9377943 | I122: 839.937 | J122: 772 | K122: 430.7 | L122: 497.7777778 | M122: 675.105182 | N122: 0 | O122: 117 | P122: 0 | Q122: 0 | R122: 737 | S122: 717.6761095 | T122: 50 | U122: 6947.689251
A123: 12. | B123: =B232 -> ZELINKOVÁ | C123: Klára | D123: 9.A | F123: =F232 -> 768.9982226 | G123: 578.8648988 | H123: 0 | I123: 716.468 | J123: 739.5 | K123: 503.5 | L123: 795.5555556 | M123: 708.9717082 | N123: 0 | O123: 66 | P123: 0 | Q123: 0 | R123: 468.25 | S123: 788.2426818 | T123: 50 | U123: 6184.351067
B139: ='D60'!B101 -> HEJRALOVÁ | C139: ='D60'!C101 -> Natálie | D139: ='D60'!D101 -> 6.A | F139: ='D60'!H101 -> 764.8169188 | G139: ='D300'!H101 -> 756.23959 | H139: ='D800'!H101 -> 673.3444205 | I139: =Ddál!H101 -> 728.641 | J139: =Dvýš!H101 -> 739.5 | K139: =Dmíč!H101 -> 421.6 | L139: =Dkou!H101 -> 320 | M139: =Dčlu!H101 -> 617.8466914 | N139: =Dls!H101 -> 0 | O139: =Dodbíj!H101 -> 0 | P139: =Dplav!H101 -> 0 | Q139: =Dšplh!H101 -> 0 | R139: =Dšvih!H101 -> 624.5 | S139: ='Dz mís'!H101 -> 571.8385269 | T139: =Drepre!E4 -> 0 | U139: =SUM(F139:T139) -> 6218.327148 | W139: =FREQUENCY(E139:R139,0) -> 4
B140: ='D60'!B102 -> KERLE | C140: ='D60'!C102 -> Nikita | D140: ='D60'!D102 -> 6.A | F140: ='D60'!H102 -> 751.7160543 | G140: ='D300'!H102 -> 768.0251173 | H140: ='D800'!H102 -> 755.4031017 | I140: =Ddál!H102 -> 786.028 | J140: =Dvýš!H102 -> 739.5 | K140: =Dmíč!H102 -> 376.1 | L140: =Dkou!H102 -> 293.3333333 | M140: =Dčlu!H102 -> 652.6879227 | N140: =Dls!H102 -> 0 | O140: =Dodbíj!H102 -> 0 | P140: =Dplav!H102 -> 0 | Q140: =Dšplh!H102 -> 522.60153 | R140: =Dšvih!H102 -> 624.5 | S140: ='Dz mís'!H102 -> 642.4050992 | T140: =Drepre!E5 -> 50 | U140: =SUM(F140:T140) -> 6962.300159 | W140: =FREQUENCY(E140:R140,0) -> 3
B141: ='D60'!B103 -> PACLÍKOVÁ | C141: ='D60'!C103 -> Markéta | D141: ='D60'!D103 -> 6.A | F141: ='D60'!H103 -> 768.9982226 | G141: ='D300'!H103 -> 670.7979785 | H141: ='D800'!H103 -> 637.2104618 | I141: =Ddál!H103 -> 712.99 | J141: =Dvýš!H103 -> 772 | K141: =Dmíč!H103 -> 494.4 | L141: =Dkou!H103 -> 400 | M141: =Dčlu!H103 -> 665.3271387 | N141: =Dls!H103 -> 0 | O141: =Dodbíj!H103 -> 0 | P141: =Dplav!H103 -> 0 | Q141: =Dšplh!H103 -> 451.697354 | R141: =Dšvih!H103 -> 687 | S141: ='Dz mís'!H103 -> 731.789424 | T141: =Drepre!E6 -> 0 | U141: =SUM(F141:T141) -> 6992.21058 | W141: =FREQUENCY(E141:R141,0) -> 3
B142: ='D60'!B104 -> PLŮCHOVÁ | C142: ='D60'!C104 -> Michaela | D142: ='D60'!D104 -> 6.A | F142: ='D60'!H104 -> 768.9982226 | G142: ='D300'!H104 -> 670.5045724 | H142: ='D800'!H104 -> 0 | I142: =Ddál!H104 -> 683.427 | J142: =Dvýš!H104 -> 707 | K142: =Dmíč!H104 -> 348.8 | L142: =Dkou!H104 -> 434.6666667 | M142: =Dčlu!H104 -> 655.8061868 | N142: =Dls!H104 -> 0 | O142: =Dodbíj!H104 -> 0 | P142: =Dplav!H104 -> 0 | Q142: =Dšplh!H104 -> 402.0033409 | R142: =Dšvih!H104 -> 755.75 | S142: ='Dz mís'!H104 -> 684.7450425 | T142: =Drepre!E7 -> 0 | U142: =SUM(F142:T142) -> 6111.701032 | W142: =FREQUENCY(E142:R142,0) -> 4
B143: ='D60'!B105 -> ŠERCLOVÁ | C143: ='D60'!C105 -> Nikola | D143: ='D60'!D105 -> 6.A | F143: ='D60'!H105 -> 615.0502178 | G143: ='D300'!H105 -> 453.5029268 | H143: ='D800'!H105 -> 523.3306615 | I143: =Ddál!H105 -> 605.172 | J143: =Dvýš!H105 -> 0 | K143: =Dmíč!H105 -> 0 | L143: =Dkou!H105 -> 295.1111111 | M143: =Dčlu!H105 -> 0 | N143: =Dls!H105 -> 0 | O143: =Dodbíj!H105 -> 0 | P143: =Dplav!H105 -> 0 | Q143: =Dšplh!H105 -> 0 | R143: =Dšvih!H105 -> 218.25 | S143: ='Dz mís'!H105 -> 553.0207743 | T143: =Drepre!E8 -> 0 | U143: =SUM(F143:T143) -> 3263.437691 | W143: =FREQUENCY(E143:R143,0) -> 7
B144: ='D60'!B106 -> VÁCLAVÍKOVÁ | C144: ='D60'!C106 -> Alena | D144: ='D60'!D106 -> 6.A | F144: ='D60'!H106 -> 732.8279147 | G144: ='D300'!H106 -> 619.6360362 | H144: ='D800'!H106 -> 637.1757464 | I144: =Ddál!H106 -> 667.776 | J144: =Dvýš!H106 -> 609.5 | K144: =Dmíč!H106 -> 0 | L144: =Dkou!H106 -> 299.5555556 | M144: =Dčlu!H106 -> 625.8017316 | N144: =Dls!H106 -> 0 | O144: =Dodbíj!H106 -> 0 | P144: =Dplav!H106 -> 0 | Q144: =Dšplh!H106 -> 0 | R144: =Dšvih!H106 -> 562 | S144: ='Dz mís'!H106 -> 632.9962229 | T144: =Drepre!E9 -> 0 | U144: =SUM(F144:T144) -> 5387.269207 | W144: =FREQUENCY(E144:R144,0) -> 5
B145: ='D60'!B107 -> DUCHÁČKOVÁ | C145: ='D60'!C107 -> Tereza | D145: ='D60'!D107 -> 6.B | F145: ='D60'!H107 -> 639.8829998 | G145: ='D300'!H107 -> 519.5353501 | H145: ='D800'!H107 -> 0 | I145: =Ddál!H107 -> 645.169 | J145: =Dvýš!H107 -> 544.5 | K145: =Dmíč!H107 -> 230.5 | L145: =Dkou!H107 -> 0 | M145: =Dčlu!H107 -> 546.0553207 | N145: =Dls!H107 -> 0 | O145: =Dodbíj!H107 -> 0 | P145: =Dplav!H107 -> 0 | Q145: =Dšplh!H107 -> 0 | R145: =Dšvih!H107 -> 312 | S145: ='Dz mís'!H107 -> 426.0009443 | T145: =Drepre!E10 -> 0 | U145: =SUM(F145:T145) -> 3863.643615 | W145: =FREQUENCY(E145:R145,0) -> 6 | X145: =SUM(W139:W145) -> 32
B146: ='D60'!B108 -> FLAŠKOVÁ | C146: ='D60'!C108 -> Anna Sabriel | D146: ='D60'!D108 -> 6.B | F146: ='D60'!H108 -> 659.5843689 | G146: ='D300'!H108 -> 538.7969665 | H146: ='D800'!H108 -> 0 | I146: =Ddál!H108 -> 662.559 | J146: =Dvýš!H108 -> 674.5 | K146: =Dmíč!H108 -> 421.6 | L146: =Dkou!H108 -> 268.4444444 | M146: =Dčlu!H108 -> 571.7881429 | N146: =Dls!H108 -> 0 | O146: =Dodbíj!H108 -> 0 | P146: =Dplav!H108 -> 0 | Q146: =Dšplh!H108 -> 0 | R146: =Dšvih!H108 -> 287 | S146: ='Dz mís'!H108 -> 411.8876298 | T146: =Drepre!E11 -> 0 | U146: =SUM(F146:T146) -> 4496.160553 | W146: =FREQUENCY(E146:R146,0) -> 5
B147: ='D60'!B109 -> HAASOVÁ | C147: ='D60'!C109 -> Julie | D147: ='D60'!D109 -> 6.B | F147: ='D60'!H109 -> 763.9857211 | G147: ='D300'!H109 -> 669.1866468 | H147: ='D800'!H109 -> 631.6614553 | I147: =Ddál!H109 -> 765.16 | J147: =Dvýš!H109 -> 674.5 | K147: =Dmíč!H109 -> 421.6 | L147: =Dkou!H109 -> 0 | M147: =Dčlu!H109 -> 583.210053 | N147: =Dls!H109 -> 0 | O147: =Dodbíj!H109 -> 0 | P147: =Dplav!H109 -> 0 | Q147: =Dšplh!H109 -> 416.6340522 | R147: =Dšvih!H109 -> 493.25 | S147: ='Dz mís'!H109 -> 694.1539188 | T147: =Drepre!E12 -> 0 | U147: =SUM(F147:T147) -> 6113.341847 | W147: =FREQUENCY(E147:R147,0) -> 4
B148: ='D60'!B110 -> HOBLOVÁ | C148: ='D60'!C110 -> Barbora | D148: ='D60'!D110 -> 6.B | F148: ='D60'!H110 -> 746.9100306 | G148: ='D300'!H110 -> 640.1947662 | H148: ='D800'!H110 -> 607.091731 | I148: =Ddál!H110 -> 619.084 | J148: =Dvýš!H110 -> 609.5 | K148: =Dmíč!H110 -> 376.1 | L148: =Dkou!H110 -> 0 | M148: =Dčlu!H110 -> 618.9717897 | N148: =Dls!H110 -> 0 | O148: =Dodbíj!H110 -> 0 | P148: =Dplav!H110 -> 0 | Q148: =Dšplh!H110 -> 463.7390164 | R148: =Dšvih!H110 -> 612 | S148: ='Dz mís'!H110 -> 581.2474032 | T148: =Drepre!E13 -> 0 | U148: =SUM(F148:T148) -> 5874.838737 | W148: =FREQUENCY(E148:R148,0) -> 4
B149: ='D60'!B111 -> HORÁČKOVÁ | C149: ='D60'!C111 -> Valérie | D149: ='D60'!D111 -> 6.B | F149: ='D60'!H111 -> 749.3058977 | G149: ='D300'!H111 -> 706.3640243 | H149: ='D800'!H111 -> 600.1715761 | I149: =Ddál!H111 -> 664.298 | J149: =Dvýš!H111 -> 642 | K149: =Dmíč!H111 -> 367 | L149: =Dkou!H111 -> 394.6666667 | M149: =Dčlu!H111 -> 652.6879227 | N149: =Dls!H111 -> 0 | O149: =Dodbíj!H111 -> 0 | P149: =Dplav!H111 -> 674.2839858 | Q149: =Dšplh!H111 -> 0 | R149: =Dšvih!H111 -> 0 | S149: ='Dz mís'!H111 -> 675.3361662 | T149: =Drepre!E14 -> 0 | U149: =SUM(F149:T149) -> 6126.114239 | W149: =FREQUENCY(E149:R149,0) -> 4
B150: ='D60'!B112 -> JIRANOVÁ | C150: ='D60'!C112 -> Anežka | D150: ='D60'!D112 -> 6.B | F150: ='D60'!H112 -> 543.3745736 | G150: ='D300'!H112 -> 0 | H150: ='D800'!H112 -> 386.435699 | I150: =Ddál!H112 -> 570.392 | J150: =Dvýš!H112 -> 512 | K150: =Dmíč!H112 -> 321.5 | L150: =Dkou!H112 -> 271.1111111 | M150: =Dčlu!H112 -> 528.6214516 | N150: =Dls!H112 -> 0 | O150: =Dodbíj!H112 -> 0 | P150: =Dplav!H112 -> 0 | Q150: =Dšplh!H112 -> 0 | R150: =Dšvih!H112 -> 280.75 | S150: ='Dz mís'!H112 -> 336.6166195 | T150: =Drepre!E15 -> 0 | U150: =SUM(F150:T150) -> 3750.801455 | W150: =FREQUENCY(E150:R150,0) -> 5
B151: ='D60'!B113 -> JODASOVÁ | C151: ='D60'!C113 -> Denisa | D151: ='D60'!D113 -> 6.B | F151: ='D60'!H113 -> 727.4835608 | G151: ='D300'!H113 -> 0 | H151: ='D800'!H113 -> 614.4710633 | I151: =Ddál!H113 -> 756.465 | J151: =Dvýš!H113 -> 0 | K151: =Dmíč!H113 -> 603.6 | L151: =Dkou!H113 -> 396.4444444 | M151: =Dčlu!H113 -> 684.4726129 | N151: =Dls!H113 -> 0 | O151: =Dodbíj!H113 -> 0 | P151: =Dplav!H113 -> 0 | Q151: =Dšplh!H113 -> 475.8707635 | R151: =Dšvih!H113 -> 555.75 | S151: ='Dz mís'!H113 -> 665.9272899 | T151: =Drepre!E16 -> 0 | U151: =SUM(F151:T151) -> 5480.484735 | W151: =FREQUENCY(E151:R151,0) -> 5
B152: ='D60'!B114 -> KRČÍKOVÁ | C152: ='D60'!C114 -> Beatrix | D152: ='D60'!D114 -> 6.B | F152: ='D60'!H114 -> 723.7101275 | G152: ='D300'!H114 -> 619.6360362 | H152: ='D800'!H114 -> 561.9108716 | I152: =Ddál!H114 -> 737.336 | J152: =Dvýš!H114 -> 707 | K152: =Dmíč!H114 -> 430.7 | L152: =Dkou!H114 -> 402.6666667 | M152: =Dčlu!H114 -> 0 | N152: =Dls!H114 -> 0 | O152: =Dodbíj!H114 -> 0 | P152: =Dplav!H114 -> 0 | Q152: =Dšplh!H114 -> 0 | R152: =Dšvih!H114 -> 455.75 | S152: ='Dz mís'!H114 -> 689.4494806 | T152: =Drepre!E17 -> 0 | U152: =SUM(F152:T152) -> 5328.159183 | W152: =FREQUENCY(E152:R152,0) -> 5
B153: ='D60'!B115 -> KUBÁTOVÁ | C153: ='D60'!C115 -> Veronika | D153: ='D60'!D115 -> 6.B | F153: ='D60'!H115 -> 604.6311348 | G153: ='D300'!H115 -> 479.9161539 | H153: ='D800'!H115 -> 0 | I153: =Ddál!H115 -> 513.005 | J153: =Dvýš!H115 -> 0 | K153: =Dmíč!H115 -> 130.4 | L153: =Dkou!H115 -> 0 | M153: =Dčlu!H115 -> 0 | N153: =Dls!H115 -> 0 | O153: =Dodbíj!H115 -> 0 | P153: =Dplav!H115 -> 0 | Q153: =Dšplh!H115 -> 0 | R153: =Dšvih!H115 -> 5.75 | S153: ='Dz mís'!H115 -> 482.4542021 | T153: =Drepre!E18 -> 0 | U153: =SUM(F153:T153) -> 2216.156491 | W153: =FREQUENCY(E153:R153,0) -> 8
B154: ='D60'!B116 -> LENČEŠOVÁ | C154: ='D60'!C116 -> Silvie | D154: ='D60'!D116 -> 6.B | F154: ='D60'!H116 -> 646.5323184 | G154: ='D300'!H116 -> 574.7607486 | H154: ='D800'!H116 -> 593.1024863 | I154: =Ddál!H116 -> 619.084 | J154: =Dvýš!H116 -> 544.5 | K154: =Dmíč!H116 -> 385.2 | L154: =Dkou!H116 -> 221.3333333 | M154: =Dčlu!H116 -> 590.36733 | N154: =Dls!H116 -> 0 | O154: =Dodbíj!H116 -> 0 | P154: =Dplav!H116 -> 0 | Q154: =Dšplh!H116 -> 0 | R154: =Dšvih!H116 -> 593.25 | S154: ='Dz mís'!H116 -> 505.9763928 | T154: =Drepre!E19 -> 0 | U154: =SUM(F154:T154) -> 5274.106609 | W154: =FREQUENCY(E154:R154,0) -> 4
B155: ='D60'!B117 -> MATERNOVÁ | C155: ='D60'!C117 -> Lenka | D155: ='D60'!D117 -> 6.B | F155: ='D60'!H117 -> 833.3097864 | G155: ='D300'!H117 -> 778.8054495 | H155: ='D800'!H117 -> 655.443528 | I155: =Ddál!H117 -> 627.779 | J155: =Dvýš!H117 -> 707 | K155: =Dmíč!H117 -> 285.1 | L155: =Dkou!H117 -> 0 | M155: =Dčlu!H117 -> 631.5993748 | N155: =Dls!H117 -> 0 | O155: =Dodbíj!H117 -> 0 | P155: =Dplav!H117 -> 0 | Q155: =Dšplh!H117 -> 704.0775205 | R155: =Dšvih!H117 -> 343.25 | S155: ='Dz mís'!H117 -> 520.0897073 | T155: =Drepre!E20 -> 0 | U155: =SUM(F155:T155) -> 6086.454366 | W155: =FREQUENCY(E155:R155,0) -> 4
B156: ='D60'!B118 -> TÓTHOVÁ | C156: ='D60'!C118 -> Viktorie | D156: ='D60'!D118 -> 6.B | F156: ='D60'!H118 -> 665.3271387 | G156: ='D300'!H118 -> 580.7553227 | H156: ='D800'!H118 -> 504.4566103 | I156: =Ddál!H118 -> 669.515 | J156: =Dvýš!H118 -> 642 | K156: =Dmíč!H118 -> 403.4 | L156: =Dkou!H118 -> 297.7777778 | M156: =Dčlu!H118 -> 557.021277 | N156: =Dls!H118 -> 0 | O156: =Dodbíj!H118 -> 0 | P156: =Dplav!H118 -> 0 | Q156: =Dšplh!H118 -> 0 | R156: =Dšvih!H118 -> 380.75 | S156: ='Dz mís'!H118 -> 661.2228517 | T156: =Drepre!E21 -> 0 | U156: =SUM(F156:T156) -> 5362.225978 | W156: =FREQUENCY(E156:R156,0) -> 4 | X156: =SUM(W146:W156)-5 -> 47
B157: ='D60'!B119 -> ERBENOVÁ | C157: ='D60'!C119 -> Sára | D157: ='D60'!D119 -> 7.A | F157: ='D60'!H119 -> 656.433122 | G157: ='D300'!H119 -> 451.6691419 | H157: ='D800'!H119 -> 418.9762983 | I157: =Ddál!H119 -> 599.955 | J157: =Dvýš!H119 -> 0 | K157: =Dmíč!H119 -> 266.9 | L157: =Dkou!H119 -> 0 | M157: =Dčlu!H119 -> 576.2088537 | N157: =Dls!H119 -> 0 | O157: =Dodbíj!H119 -> 51 | P157: =Dplav!H119 -> 0 | Q157: =Dšplh!H119 -> 0 | R157: =Dšvih!H119 -> 0 | S157: ='Dz mís'!H119 -> 491.8630784 | T157: =Drepre!E22 -> 0 | U157: =SUM(F157:T157) -> 3513.005494 | W157: =FREQUENCY(E157:R157,0) -> 6
B158: ='D60'!B120 -> GINGALOVÁ | C158: ='D60'!C120 -> Linda | D158: ='D60'!D120 -> 7.A | F158: ='D60'!H120 -> 794.1122881 | G158: ='D300'!H120 -> 0 | H158: ='D800'!H120 -> 419.0474093 | I158: =Ddál!H120 -> 733.858 | J158: =Dvýš!H120 -> 739.5 | K158: =Dmíč!H120 -> 439.8 | L158: =Dkou!H120 -> 0 | M158: =Dčlu!H120 -> 0 | N158: =Dls!H120 -> 0 | O158: =Dodbíj!H120 -> 0 | P158: =Dplav!H120 -> 0 | Q158: =Dšplh!H120 -> 0 | R158: =Dšvih!H120 -> 593.25 | S158: ='Dz mís'!H120 -> 0 | T158: =Drepre!E23 -> 75 | U158: =SUM(F158:T158) -> 3794.567697 | W158: =FREQUENCY(E158:R158,0) -> 7
B159: ='D60'!B121 -> HOFMANOVÁ | C159: ='D60'!C121 -> Nicol | D159: ='D60'!D121 -> 7.A | F159: ='D60'!H121 -> 687.8763334 | G159: ='D300'!H121 -> 0 | H159: ='D800'!H121 -> 0 | I159: =Ddál!H121 -> 617.345 | J159: =Dvýš!H121 -> 0 | K159: =Dmíč!H121 -> 394.3 | L159: =Dkou!H121 -> 454.2222222 | M159: =Dčlu!H121 -> 527.3543314 | N159: =Dls!H121 -> 0 | O159: =Dodbíj!H121 -> 51 | P159: =Dplav!H121 -> 0 | Q159: =Dšplh!H121 -> 0 | R159: =Dšvih!H121 -> 368.25 | S159: ='Dz mís'!H121 -> 604.769594 | T159: =Drepre!E24 -> 0 | U159: =SUM(F159:T159) -> 3705.117481 | W159: =FREQUENCY(E159:R159,0) -> 6
B160: ='D60'!B122 -> HOLEŠOVSKÁ | C160: ='D60'!C122 -> Aneta | D160: ='D60'!D122 -> 7.A | F160: ='D60'!H122 -> 717.0084238 | G160: ='D300'!H122 -> 0 | H160: ='D800'!H122 -> 455.6505699 | I160: =Ddál!H122 -> 679.949 | J160: =Dvýš!H122 -> 0 | K160: =Dmíč!H122 -> 496.22 | L160: =Dkou!H122 -> 0 | M160: =Dčlu!H122 -> 0 | N160: =Dls!H122 -> 0 | O160: =Dodbíj!H122 -> 0 | P160: =Dplav!H122 -> 0 | Q160: =Dšplh!H122 -> 0 | R160: =Dšvih!H122 -> 1124.5 | S160: ='Dz mís'!H122 -> 0 | T160: =Drepre!E25 -> 25 | U160: =SUM(F160:T160) -> 3498.327994 | W160: =FREQUENCY(E160:R160,0) -> 8
B161: ='D60'!B123 -> HOLUBCOVÁ | C161: ='D60'!C123 -> Alena | D161: ='D60'!D123 -> 7.A | F161: ='D60'!H123 -> 797.6963731 | G161: ='D300'!H123 -> 592.2896774 | H161: ='D800'!H123 -> 563.0705145 | I161: =Ddál!H123 -> 678.21 | J161: =Dvýš!H123 -> 739.5 | K161: =Dmíč!H123 -> 704.792 | L161: =Dkou!H123 -> 546.6666667 | M161: =Dčlu!H123 -> 608.9785948 | N161: =Dls!H123 -> 0 | O161: =Dodbíj!H123 -> 30 | P161: =Dplav!H123 -> 0 | Q161: =Dšplh!H123 -> 0 | R161: =Dšvih!H123 -> 499.5 | S161: ='Dz mís'!H123 -> 717.6761095 | T161: =Drepre!E26 -> 75 | U161: =SUM(F161:T161) -> 6553.379936 | W161: =FREQUENCY(E161:R161,0) -> 3
B162: ='D60'!B124 -> KOHOUTOVÁ | C162: ='D60'!C124 -> Anna | D162: ='D60'!D124 -> 7.A | F162: ='D60'!H124 -> 655.1803496 | G162: ='D300'!H124 -> 493.4515905 | H162: ='D800'!H124 -> 529.275343 | I162: =Ddál!H124 -> 579.087 | J162: =Dvýš!H124 -> 674.5 | K162: =Dmíč!H124 -> 294.2 | L162: =Dkou!H124 -> 329.7777778 | M162: =Dčlu!H124 -> 537.2109456 | N162: =Dls!H124 -> 0 | O162: =Dodbíj!H124 -> 21 | P162: =Dplav!H124 -> 0 | Q162: =Dšplh!H124 -> 0 | R162: =Dšvih!H124 -> 537 | S162: ='Dz mís'!H124 -> 482.4542021 | T162: =Drepre!E27 -> 0 | U162: =SUM(F162:T162) -> 5133.137208 | W162: =FREQUENCY(E162:R162,0) -> 3
B163: ='D60'!B125 -> KRAUSOVÁ | C163: ='D60'!C125 -> Anežka | D163: ='D60'!D125 -> 7.A | F163: ='D60'!H125 -> 657.6902978 | G163: ='D300'!H125 -> 540.0743995 | H163: ='D800'!H125 -> 0 | I163: =Ddál!H125 -> 718.207 | J163: =Dvýš!H125 -> 674.5 | K163: =Dmíč!H125 -> 321.5 | L163: =Dkou!H125 -> 457.7777778 | M163: =Dčlu!H125 -> 608.4320493 | N163: =Dls!H125 -> 0 | O163: =Dodbíj!H125 -> 48 | P163: =Dplav!H125 -> 0 | Q163: =Dšplh!H125 -> 0 | R163: =Dšvih!H125 -> 499.5 | S163: ='Dz mís'!H125 -> 618.8829084 | T163: =Drepre!E28 -> 0 | U163: =SUM(F163:T163) -> 5144.564433 | W163: =FREQUENCY(E163:R163,0) -> 4
B164: ='D60'!B126 -> KUŽELOVÁ | C164: ='D60'!C126 -> Apoléna | D164: ='D60'!D126 -> 7.A | F164: ='D60'!H126 -> 737.466945 | G164: ='D300'!H126 -> 0 | H164: ='D800'!H126 -> 488.103682 | I164: =Ddál!H126 -> 660.82 | J164: =Dvýš!H126 -> 674.5 | K164: =Dmíč!H126 -> 403.4 | L164: =Dkou!H126 -> 0 | M164: =Dčlu!H126 -> 0 | N164: =Dls!H126 -> 0 | O164: =Dodbíj!H126 -> 0 | P164: =Dplav!H126 -> 0 | Q164: =Dšplh!H126 -> 0 | R164: =Dšvih!H126 -> 843.25 | S164: ='Dz mís'!H126 -> 0 | T164: =Drepre!E29 -> 0 | U164: =SUM(F164:T164) -> 3807.540627 | W164: =FREQUENCY(E164:R164,0) -> 7
B165: ='D60'!B127 -> MORÁVKOVÁ | C165: ='D60'!C127 -> Lucie | D165: ='D60'!D127 -> 7.A | F165: ='D60'!H127 -> 635.1253288 | G165: ='D300'!H127 -> 0 | H165: ='D800'!H127 -> 454.8424973 | I165: =Ddál!H127 -> 0 | J165: =Dvýš!H127 -> 0 | K165: =Dmíč!H127 -> 330.6 | L165: =Dkou!H127 -> 0 | M165: =Dčlu!H127 -> 0 | N165: =Dls!H127 -> 0 | O165: =Dodbíj!H127 -> 0 | P165: =Dplav!H127 -> 0 | Q165: =Dšplh!H127 -> 0 | R165: =Dšvih!H127 -> 0 | S165: ='Dz mís'!H127 -> 0 | T165: =Drepre!E30 -> 0 | U165: =SUM(F165:T165) -> 1420.567826 | W165: =FREQUENCY(E165:R165,0) -> 10
B166: ='D60'!B128 -> SKLENÁROVÁ | C166: ='D60'!C128 -> Eliška | D166: ='D60'!D128 -> 7.A | F166: ='D60'!H128 -> 0 | G166: ='D300'!H128 -> 0 | H166: ='D800'!H128 -> 0 | I166: =Ddál!H128 -> 598.216 | J166: =Dvýš!H128 -> 674.5 | K166: =Dmíč!H128 -> 0 | L166: =Dkou!H128 -> 0 | M166: =Dčlu!H128 -> 551.0325142 | N166: =Dls!H128 -> 0 | O166: =Dodbíj!H128 -> 21 | P166: =Dplav!H128 -> 0 | Q166: =Dšplh!H128 -> 0 | R166: =Dšvih!H128 -> 337 | S166: ='Dz mís'!H128 -> 595.3607177 | T166: =Drepre!E31 -> 0 | U166: =SUM(F166:T166) -> 2777.109232 | W166: =FREQUENCY(E166:R166,0) -> 8
B167: ='D60'!B129 -> ŠEJNOVÁ | C167: ='D60'!C129 -> Karolína | D167: ='D60'!D129 -> 7.A | F167: ='D60'!H129 -> 0 | G167: ='D300'!H129 -> 562.6990245 | H167: ='D800'!H129 -> 424.778443 | I167: =Ddál!H129 -> 652.125 | J167: =Dvýš!H129 -> 642 | K167: =Dmíč!H129 -> 294.2 | L167: =Dkou!H129 -> 357.3333333 | M167: =Dčlu!H129 -> 594.0061377 | N167: =Dls!H129 -> 0 | O167: =Dodbíj!H129 -> 51 | P167: =Dplav!H129 -> 0 | Q167: =Dšplh!H129 -> 0 | R167: =Dšvih!H129 -> 299.5 | S167: ='Dz mís'!H129 -> 694.1539188 | T167: =Drepre!E32 -> 0 | U167: =SUM(F167:T167) -> 4571.795857 | W167: =FREQUENCY(E167:R167,0) -> 4
B168: ='D60'!B130 -> ŠTOLFOVÁ | C168: ='D60'!C130 -> Tereza | D168: ='D60'!D130 -> 7.A | F168: ='D60'!H130 -> 698.2771171 | G168: ='D300'!H130 -> 602.2851006 | H168: ='D800'!H130 -> 0 | I168: =Ddál!H130 -> 669.515 | J168: =Dvýš!H130 -> 707 | K168: =Dmíč!H130 -> 266.9 | L168: =Dkou!H130 -> 319.1111111 | M168: =Dčlu!H130 -> 0 | N168: =Dls!H130 -> 0 | O168: =Dodbíj!H130 -> 48 | P168: =Dplav!H130 -> 0 | Q168: =Dšplh!H130 -> 0 | R168: =Dšvih!H130 -> 343.25 | S168: ='Dz mís'!H130 -> 0 | T168: =Drepre!E33 -> 0 | U168: =SUM(F168:T168) -> 3654.338329 | W168: =FREQUENCY(E168:R168,0) -> 5
B169: ='D60'!B131 -> ŠUBÍKOVÁ | C169: ='D60'!C131 -> Klára | D169: ='D60'!D131 -> 7.A | F169: ='D60'!H131 -> 717.7473842 | G169: ='D300'!H131 -> 632.6027201 | H169: ='D800'!H131 -> 559.8837889 | I169: =Ddál!H131 -> 709.512 | J169: =Dvýš!H131 -> 739.5 | K169: =Dmíč!H131 -> 403.4 | L169: =Dkou!H131 -> 306.6666667 | M169: =Dčlu!H131 -> 611.7248058 | N169: =Dls!H131 -> 0 | O169: =Dodbíj!H131 -> 30 | P169: =Dplav!H131 -> 0 | Q169: =Dšplh!H131 -> 446.1265852 | R169: =Dšvih!H131 -> 487 | S169: ='Dz mís'!H131 -> 623.5873466 | T169: =Drepre!E34 -> 75 | U169: =SUM(F169:T169) -> 6342.751297 | W169: =FREQUENCY(E169:R169,0) -> 2
B170: ='D60'!B132 -> ŠULKOVSKÁ | C170: ='D60'!C132 -> Klára | D170: ='D60'!D132 -> 7.A | F170: ='D60'!H132 -> 650.829991 | G170: ='D300'!H132 -> 482.454311 | H170: ='D800'!H132 -> 0 | I170: =Ddál!H132 -> 648.647 | J170: =Dvýš!H132 -> 0 | K170: =Dmíč!H132 -> 385.2 | L170: =Dkou!H132 -> 379.5555556 | M170: =Dčlu!H132 -> 0 | N170: =Dls!H132 -> 0 | O170: =Dodbíj!H132 -> 51 | P170: =Dplav!H132 -> 0 | Q170: =Dšplh!H132 -> 453.8858886 | R170: =Dšvih!H132 -> 249.5 | S170: ='Dz mís'!H132 -> 0 | T170: =Drepre!E35 -> 0 | U170: =SUM(F170:T170) -> 3301.072746 | W170: =FREQUENCY(E170:R170,0) -> 5
B171: ='D60'!B133 -> TULÁČKOVÁ | C171: ='D60'!C133 -> Natálie | D171: ='D60'!D133 -> 7.A | F171: ='D60'!H133 -> 725.2151469 | G171: ='D300'!H133 -> 0 | H171: ='D800'!H133 -> 526.1371516 | I171: =Ddál!H133 -> 672.993 | J171: =Dvýš!H133 -> 0 | K171: =Dmíč!H133 -> 367 | L171: =Dkou!H133 -> 0 | M171: =Dčlu!H133 -> 0 | N171: =Dls!H133 -> 0 | O171: =Dodbíj!H133 -> 0 | P171: =Dplav!H133 -> 0 | Q171: =Dšplh!H133 -> 0 | R171: =Dšvih!H133 -> 699.5 | S171: ='Dz mís'!H133 -> 0 | T171: =Drepre!E36 -> 0 | U171: =SUM(F171:T171) -> 2990.845298 | W171: =FREQUENCY(E171:R171,0) -> 8
B172: ='D60'!B134 -> VOJTÍŠKOVÁ | C172: ='D60'!C134 -> Ella | D172: ='D60'!D134 -> 7.A | F172: ='D60'!H134 -> 797.6963731 | G172: ='D300'!H134 -> 0 | H172: ='D800'!H134 -> 466.572273 | I172: =Ddál!H134 -> 784.289 | J172: =Dvýš!H134 -> 824 | K172: =Dmíč!H134 -> 0 | L172: =Dkou!H134 -> 0 | M172: =Dčlu!H134 -> 0 | N172: =Dls!H134 -> 0 | O172: =Dodbíj!H134 -> 0 | P172: =Dplav!H134 -> 0 | Q172: =Dšplh!H134 -> 0 | R172: =Dšvih!H134 -> 687 | S172: ='Dz mís'!H134 -> 0 | T172: =Drepre!E37 -> 125 | U172: =SUM(F172:T172) -> 3684.557646 | W172: =FREQUENCY(E172:R172,0) -> 8 | X172: =SUM(W157:W172) -> 94
B173: ='D60'!B135 -> DRUGÁČOVÁ | C173: ='D60'!C135 -> Kristinka | D173: ='D60'!D135 -> 7.B | F173: ='D60'!H135 -> 0 | G173: ='D300'!H135 -> 0 | H173: ='D800'!H135 -> 0 | I173: =Ddál!H135 -> 747.77 | J173: =Dvýš!H135 -> 0 | K173: =Dmíč!H135 -> 0 | L173: =Dkou!H135 -> 484.4444444 | M173: =Dčlu!H135 -> 0 | N173: =Dls!H135 -> 0 | O173: =Dodbíj!H135 -> 0 | P173: =Dplav!H135 -> 0 | Q173: =Dšplh!H135 -> 0 | R173: =Dšvih!H135 -> 0 | S173: ='Dz mís'!H135 -> 0 | T173: =Drepre!E38 -> 0 | U173: =SUM(F173:T173) -> 1232.214444 | W173: =FREQUENCY(E173:R173,0) -> 11
B174: ='D60'!B136 -> FAJSTAVROVÁ | C174: ='D60'!C136 -> Karolína | D174: ='D60'!D136 -> 7.B | F174: ='D60'!H136 -> 845.1795388 | G174: ='D300'!H136 -> 0 | H174: ='D800'!H136 -> 708.0911515 | I174: =Ddál!H136 -> 699.078 | J174: =Dvýš!H136 -> 0 | K174: =Dmíč!H136 -> 558.1 | L174: =Dkou!H136 -> 0 | M174: =Dčlu!H136 -> 0 | N174: =Dls!H136 -> 0 | O174: =Dodbíj!H136 -> 0 | P174: =Dplav!H136 -> 0 | Q174: =Dšplh!H136 -> 0 | R174: =Dšvih!H136 -> 974.5 | S174: ='Dz mís'!H136 -> 0 | T174: =Drepre!E39 -> 75 | U174: =SUM(F174:T174) -> 3859.94869 | W174: =FREQUENCY(E174:R174,0) -> 8
B175: ='D60'!B137 -> FAJSTAVROVÁ | C175: ='D60'!C137 -> Magdaléna | D175: ='D60'!D137 -> 7.B | F175: ='D60'!H137 -> 783.5377564 | G175: ='D300'!H137 -> 0 | H175: ='D800'!H137 -> 773.28098 | I175: =Ddál!H137 -> 688.644 | J175: =Dvýš!H137 -> 0 | K175: =Dmíč!H137 -> 521.7 | L175: =Dkou!H137 -> 0 | M175: =Dčlu!H137 -> 0 | N175: =Dls!H137 -> 0 | O175: =Dodbíj!H137 -> 0 | P175: =Dplav!H137 -> 0 | Q175: =Dšplh!H137 -> 444.6165782 | R175: =Dšvih!H137 -> 1193.25 | S175: ='Dz mís'!H137 -> 0 | T175: =Drepre!E40 -> 125 | U175: =SUM(F175:T175) -> 4530.029315 | W175: =FREQUENCY(E175:R175,0) -> 7
B176: ='D60'!B138 -> HLAVATÁ | C176: ='D60'!C138 -> Anna | D176: ='D60'!D138 -> 7.B | F176: ='D60'!H138 -> 0 | G176: ='D300'!H138 -> 0 | H176: ='D800'!H138 -> 0 | I176: =Ddál!H138 -> 688.644 | J176: =Dvýš!H138 -> 0 | K176: =Dmíč!H138 -> 0 | L176: =Dkou!H138 -> 0 | M176: =Dčlu!H138 -> 0 | N176: =Dls!H138 -> 0 | O176: =Dodbíj!H138 -> 0 | P176: =Dplav!H138 -> 0 | Q176: =Dšplh!H138 -> 0 | R176: =Dšvih!H138 -> 0 | S176: ='Dz mís'!H138 -> 0 | T176: =Drepre!E41 -> 0 | U176: =SUM(F176:T176) -> 688.644 | W176: =FREQUENCY(E176:R176,0) -> 12
B177: ='D60'!B139 -> JINDROVÁ | C177: ='D60'!C139 -> Barbora | D177: ='D60'!D139 -> 7.B | F177: ='D60'!H139 -> 696.1738475 | G177: ='D300'!H139 -> 0 | H177: ='D800'!H139 -> 567.4324968 | I177: =Ddál!H139 -> 685.166 | J177: =Dvýš!H139 -> 0 | K177: =Dmíč!H139 -> 294.2 | L177: =Dkou!H139 -> 0 | M177: =Dčlu!H139 -> 0 | N177: =Dls!H139 -> 0 | O177: =Dodbíj!H139 -> 0 | P177: =Dplav!H139 -> 0 | Q177: =Dšplh!H139 -> 431.2749904 | R177: =Dšvih!H139 -> 1187 | S177: ='Dz mís'!H139 -> 0 | T177: =Drepre!E42 -> 75 | U177: =SUM(F177:T177) -> 3936.247335 | W177: =FREQUENCY(E177:R177,0) -> 7
B178: ='D60'!B140 -> MAŘASOVÁ | C178: ='D60'!C140 -> Vendula | D178: ='D60'!D140 -> 7.B | F178: ='D60'!H140 -> 697.5747265 | G178: ='D300'!H140 -> 0 | H178: ='D800'!H140 -> 603.647079 | I178: =Ddál!H140 -> 669.515 | J178: =Dvýš!H140 -> 544.5 | K178: =Dmíč!H140 -> 321.5 | L178: =Dkou!H140 -> 0 | M178: =Dčlu!H140 -> 0 | N178: =Dls!H140 -> 0 | O178: =Dodbíj!H140 -> 0 | P178: =Dplav!H140 -> 0 | Q178: =Dšplh!H140 -> 0 | R178: =Dšvih!H140 -> 0 | S178: ='Dz mís'!H140 -> 0 | T178: =Drepre!E43 -> 25 | U178: =SUM(F178:T178) -> 2861.736806 | W178: =FREQUENCY(E178:R178,0) -> 8
B179: ='D60'!B141 -> PETŘÍČKOVÁ | C179: ='D60'!C141 -> Natálie | D179: ='D60'!D141 -> 7.B | F179: ='D60'!H141 -> 857.3693744 | G179: ='D300'!H141 -> 752.8989932 | H179: ='D800'!H141 -> 621.5329785 | I179: =Ddál!H141 -> 803.418 | J179: =Dvýš!H141 -> 674.5 | K179: =Dmíč!H141 -> 430.7 | L179: =Dkou!H141 -> 0 | M179: =Dčlu!H141 -> 0 | N179: =Dls!H141 -> 0 | O179: =Dodbíj!H141 -> 0 | P179: =Dplav!H141 -> 0 | Q179: =Dšplh!H141 -> 575.7593696 | R179: =Dšvih!H141 -> 0 | S179: ='Dz mís'!H141 -> 0 | T179: =Drepre!E44 -> 125 | U179: =SUM(F179:T179) -> 4841.178716 | W179: =FREQUENCY(E179:R179,0) -> 6
B180: ='D60'!B142 -> PETŘÍKOVÁ | C180: ='D60'!C142 -> Adéla | D180: ='D60'!D142 -> 7.B | F180: ='D60'!H142 -> 684.4726129 | G180: ='D300'!H142 -> 648.0633403 | H180: ='D800'!H142 -> 0 | I180: =Ddál!H142 -> 606.911 | J180: =Dvýš!H142 -> 0 | K180: =Dmíč!H142 -> 294.2 | L180: =Dkou!H142 -> 303.1111111 | M180: =Dčlu!H142 -> 542.4862631 | N180: =Dls!H142 -> 0 | O180: =Dodbíj!H142 -> 18 | P180: =Dplav!H142 -> 0 | Q180: =Dšplh!H142 -> 0 | R180: =Dšvih!H142 -> 180.75 | S180: ='Dz mís'!H142 -> 374.2521246 | T180: =Drepre!E45 -> 0 | U180: =SUM(F180:T180) -> 3652.246452 | W180: =FREQUENCY(E180:R180,0) -> 5
B181: ='D60'!B143 -> REGÁLOVÁ | C181: ='D60'!C143 -> Karolína | D181: ='D60'!D143 -> 7.B | F181: ='D60'!H143 -> 716.2708683 | G181: ='D300'!H143 -> 0 | H181: ='D800'!H143 -> 461.5765526 | I181: =Ddál!H143 -> 669.515 | J181: =Dvýš!H143 -> 674.5 | K181: =Dmíč!H143 -> 530.8 | L181: =Dkou!H143 -> 0 | M181: =Dčlu!H143 -> 0 | N181: =Dls!H143 -> 0 | O181: =Dodbíj!H143 -> 0 | P181: =Dplav!H143 -> 0 | Q181: =Dšplh!H143 -> 0 | R181: =Dšvih!H143 -> 943.25 | S181: ='Dz mís'!H143 -> 0 | T181: =Drepre!E46 -> 25 | U181: =SUM(F181:T181) -> 4020.912421 | W181: =FREQUENCY(E181:R181,0) -> 7
B182: ='D60'!B144 -> RIEGROVÁ | C182: ='D60'!C144 -> Magdaléna | D182: ='D60'!D144 -> 7.B | F182: ='D60'!H144 -> 0 | G182: ='D300'!H144 -> 0 | H182: ='D800'!H144 -> 0 | I182: =Ddál!H144 -> 629.518 | J182: =Dvýš!H144 -> 0 | K182: =Dmíč!H144 -> 367 | L182: =Dkou!H144 -> 342.2222222 | M182: =Dčlu!H144 -> 577.1996631 | N182: =Dls!H144 -> 0 | O182: =Dodbíj!H144 -> 18 | P182: =Dplav!H144 -> 0 | Q182: =Dšplh!H144 -> 409.2425526 | R182: =Dšvih!H144 -> 593.25 | S182: ='Dz mís'!H144 -> 0 | T182: =Drepre!E47 -> 0 | U182: =SUM(F182:T182) -> 2936.432438 | W182: =FREQUENCY(E182:R182,0) -> 6
B183: ='D60'!B145 -> RYBENSKÁ | C183: ='D60'!C145 -> Sabina | D183: ='D60'!D145 -> 7.B | F183: ='D60'!H145 -> 726.7259659 | G183: ='D300'!H145 -> 0 | H183: ='D800'!H145 -> 539.3479667 | I183: =Ddál!H145 -> 0 | J183: =Dvýš!H145 -> 0 | K183: =Dmíč!H145 -> 279.64 | L183: =Dkou!H145 -> 0 | M183: =Dčlu!H145 -> 0 | N183: =Dls!H145 -> 0 | O183: =Dodbíj!H145 -> 0 | P183: =Dplav!H145 -> 0 | Q183: =Dšplh!H145 -> 0 | R183: =Dšvih!H145 -> 0 | S183: ='Dz mís'!H145 -> 0 | T183: =Drepre!E48 -> 0 | U183: =SUM(F183:T183) -> 1545.713933 | W183: =FREQUENCY(E183:R183,0) -> 10
B184: ='D60'!B146 -> STEINEROVÁ | C184: ='D60'!C146 -> Barbora | D184: ='D60'!D146 -> 7.B | F184: ='D60'!H146 -> 758.213978 | G184: ='D300'!H146 -> 576.6316536 | H184: ='D800'!H146 -> 572.0531676 | I184: =Ddál!H146 -> 780.811 | J184: =Dvýš!H146 -> 674.5 | K184: =Dmíč!H146 -> 610.152 | L184: =Dkou!H146 -> 0 | M184: =Dčlu!H146 -> 0 | N184: =Dls!H146 -> 0 | O184: =Dodbíj!H146 -> 0 | P184: =Dplav!H146 -> 0 | Q184: =Dšplh!H146 -> 505.3521125 | R184: =Dšvih!H146 -> 687 | S184: ='Dz mís'!H146 -> 0 | T184: =Drepre!E49 -> 100 | U184: =SUM(F184:T184) -> 5264.713912 | W184: =FREQUENCY(E184:R184,0) -> 5
B185: ='D60'!B147 -> TOMEŠOVÁ | C185: ='D60'!C147 -> Barbora | D185: ='D60'!D147 -> 7.B | F185: ='D60'!H147 -> 758.213978 | G185: ='D300'!H147 -> 0 | H185: ='D800'!H147 -> 622.1998224 | I185: =Ddál!H147 -> 0 | J185: =Dvýš!H147 -> 0 | K185: =Dmíč!H147 -> 439.8 | L185: =Dkou!H147 -> 0 | M185: =Dčlu!H147 -> 0 | N185: =Dls!H147 -> 0 | O185: =Dodbíj!H147 -> 0 | P185: =Dplav!H147 -> 0 | Q185: =Dšplh!H147 -> 0 | R185: =Dšvih!H147 -> 762 | S185: ='Dz mís'!H147 -> 0 | T185: =Drepre!E50 -> 75 | U185: =SUM(F185:T185) -> 2657.2138 | W185: =FREQUENCY(E185:R185,0) -> 9
B186: ='D60'!B148 -> VOHNOUTOVÁ | C186: ='D60'!C148 -> Aneta | D186: ='D60'!D148 -> 7.B | F186: ='D60'!H148 -> 830.3908887 | G186: ='D300'!H148 -> 0 | H186: ='D800'!H148 -> 654.5712168 | I186: =Ddál!H148 -> 765.16 | J186: =Dvýš!H148 -> 674.5 | K186: =Dmíč!H148 -> 640.364 | L186: =Dkou!H148 -> 0 | M186: =Dčlu!H148 -> 0 | N186: =Dls!H148 -> 0 | O186: =Dodbíj!H148 -> 0 | P186: =Dplav!H148 -> 0 | Q186: =Dšplh!H148 -> 0 | R186: =Dšvih!H148 -> 949.5 | S186: ='Dz mís'!H148 -> 0 | T186: =Drepre!E51 -> 125 | U186: =SUM(F186:T186) -> 4639.486106 | W186: =FREQUENCY(E186:R186,0) -> 7 | X186: =SUM(W173:W186) -> 108
B187: ='D60'!B149 -> HAVLÍKOVÁ | C187: ='D60'!C149 -> Michaela | D187: ='D60'!D149 -> 8.A | F187: ='D60'!H149 -> 761.5021628 | G187: ='D300'!H149 -> 551.6592039 | H187: ='D800'!H149 -> 588.871486 | I187: =Ddál!H149 -> 686.905 | J187: =Dvýš!H149 -> 642 | K187: =Dmíč!H149 -> 294.2 | L187: =Dkou!H149 -> 307.5555556 | M187: =Dčlu!H149 -> 597.1577358 | N187: =Dls!H149 -> 0 | O187: =Dodbíj!H149 -> 27 | P187: =Dplav!H149 -> 0 | Q187: =Dšplh!H149 -> 0 | R187: =Dšvih!H149 -> 387 | S187: ='Dz mís'!H149 -> 614.1784703 | T187: =Drepre!E52 -> 0 | U187: =SUM(F187:T187) -> 5458.029614 | W187: =FREQUENCY(E187:R187,0) -> 3
B188: ='D60'!B150 -> HOLUBCOVÁ | C188: ='D60'!C150 -> Sára | D188: ='D60'!D150 -> 8.A | F188: ='D60'!H150 -> 845.1795388 | G188: ='D300'!H150 -> 714.0486869 | H188: ='D800'!H150 -> 622.8678506 | I188: =Ddál!H150 -> 765.16 | J188: =Dvýš!H150 -> 739.5 | K188: =Dmíč!H150 -> 476.2 | L188: =Dkou!H150 -> 455.1111111 | M188: =Dčlu!H150 -> 685.830371 | N188: =Dls!H150 -> 0 | O188: =Dodbíj!H150 -> 30 | P188: =Dplav!H150 -> 0 | Q188: =Dšplh!H150 -> 447.2046317 | R188: =Dšvih!H150 -> 505.75 | S188: ='Dz mís'!H150 -> 811.7648725 | T188: =Drepre!E53 -> 75 | U188: =SUM(F188:T188) -> 7173.617063 | W188: =FREQUENCY(E188:R188,0) -> 2
B189: ='D60'!B151 -> HONCŮ | C189: ='D60'!C151 -> Tereza | D189: ='D60'!D151 -> 8.A | F189: ='D60'!H151 -> 740.5899524 | G189: ='D300'!H151 -> 619.6360362 | H189: ='D800'!H151 -> 0 | I189: =Ddál!H151 -> 712.99 | J189: =Dvýš!H151 -> 707 | K189: =Dmíč!H151 -> 458 | L189: =Dkou!H151 -> 432.8888889 | M189: =Dčlu!H151 -> 680.4288819 | N189: =Dls!H151 -> 0 | O189: =Dodbíj!H151 -> 27 | P189: =Dplav!H151 -> 0 | Q189: =Dšplh!H151 -> 0 | R189: =Dšvih!H151 -> 0 | S189: ='Dz mís'!H151 -> 717.6761095 | T189: =Drepre!E54 -> 0 | U189: =SUM(F189:T189) -> 5096.209869 | W189: =FREQUENCY(E189:R189,0) -> 5
B190: ='D60'!B152 -> HORÁČKOVÁ | C190: ='D60'!C152 -> Kateřina | D190: ='D60'!D152 -> 8.A | F190: ='D60'!H152 -> 771.527443 | G190: ='D300'!H152 -> 731.9845285 | H190: ='D800'!H152 -> 662.7147931 | I190: =Ddál!H152 -> 0 | J190: =Dvýš!H152 -> 772 | K190: =Dmíč!H152 -> 494.4 | L190: =Dkou!H152 -> 678.2222222 | M190: =Dčlu!H152 -> 711.146982 | N190: =Dls!H152 -> 0 | O190: =Dodbíj!H152 -> 57 | P190: =Dplav!H152 -> 0 | Q190: =Dšplh!H152 -> 444.1703492 | R190: =Dšvih!H152 -> 487 | S190: ='Dz mís'!H152 -> 830.5826251 | T190: =Drepre!E55 -> 125 | U190: =SUM(F190:T190) -> 6765.748943 | W190: =FREQUENCY(E190:R190,0) -> 3
B191: ='D60'!B153 -> JOUDALOVÁ | C191: ='D60'!C153 -> Daniela | D191: ='D60'!D153 -> 8.A | F191: ='D60'!H153 -> 0 | G191: ='D300'!H153 -> 0 | H191: ='D800'!H153 -> 0 | I191: =Ddál!H153 -> 0 | J191: =Dvýš!H153 -> 0 | K191: =Dmíč!H153 -> 0 | L191: =Dkou!H153 -> 0 | M191: =Dčlu!H153 -> 0 | N191: =Dls!H153 -> 0 | O191: =Dodbíj!H153 -> 0 | P191: =Dplav!H153 -> 0 | Q191: =Dšplh!H153 -> 0 | R191: =Dšvih!H153 -> 0 | S191: ='Dz mís'!H153 -> 0 | T191: =Drepre!E56 -> 0 | U191: =SUM(F191:T191) -> 0 | W191: =FREQUENCY(E191:R191,0) -> 13
B192: ='D60'!B154 -> KLÍMOVÁ | C192: ='D60'!C154 -> Anna | D192: ='D60'!D154 -> 8.A | F192: ='D60'!H154 -> 689.2465651 | G192: ='D300'!H154 -> 644.7326762 | H192: ='D800'!H154 -> 602.1580514 | I192: =Ddál!H154 -> 686.905 | J192: =Dvýš!H154 -> 707 | K192: =Dmíč!H154 -> 458 | L192: =Dkou!H154 -> 491.5555556 | M192: =Dčlu!H154 -> 650.2128345 | N192: =Dls!H154 -> 0 | O192: =Dodbíj!H154 -> 27 | P192: =Dplav!H154 -> 0 | Q192: =Dšplh!H154 -> 423.2687918 | R192: =Dšvih!H154 -> 518.25 | S192: ='Dz mís'!H154 -> 680.0406043 | T192: =Drepre!E57 -> 0 | U192: =SUM(F192:T192) -> 6578.370079 | W192: =FREQUENCY(E192:R192,0) -> 2
B193: ='D60'!B155 -> KOHOUTOVÁ | C193: ='D60'!C155 -> Veronika | D193: ='D60'!D155 -> 8.A | F193: ='D60'!H155 -> 809.5555339 | G193: ='D300'!H155 -> 714.6948658 | H193: ='D800'!H155 -> 622.1998224 | I193: =Ddál!H155 -> 759.943 | J193: =Dvýš!H155 -> 707 | K193: =Dmíč!H155 -> 512.6 | L193: =Dkou!H155 -> 497.7777778 | M193: =Dčlu!H155 -> 682.4452332 | N193: =Dls!H155 -> 0 | O193: =Dodbíj!H155 -> 30 | P193: =Dplav!H155 -> 0 | Q193: =Dšplh!H155 -> 476.7738135 | R193: =Dšvih!H155 -> 605.75 | S193: ='Dz mís'!H155 -> 670.631728 | T193: =Drepre!E58 -> 75 | U193: =SUM(F193:T193) -> 7164.371775 | W193: =FREQUENCY(E193:R193,0) -> 2
B194: ='D60'!B156 -> KOVÁŘOVÁ | C194: ='D60'!C156 -> Viktorie | D194: ='D60'!D156 -> 8.A | F194: ='D60'!H156 -> 734.3682412 | G194: ='D300'!H156 -> 683.2990891 | H194: ='D800'!H156 -> 713.0921927 | I194: =Ddál!H156 -> 765.16 | J194: =Dvýš!H156 -> 772 | K194: =Dmíč!H156 -> 448.9 | L194: =Dkou!H156 -> 440.8888889 | M194: =Dčlu!H156 -> 669.2069266 | N194: =Dls!H156 -> 0 | O194: =Dodbíj!H156 -> 18 | P194: =Dplav!H156 -> 0 | Q194: =Dšplh!H156 -> 410.0206641 | R194: =Dšvih!H156 -> 474.5 | S194: ='Dz mís'!H156 -> 722.3805477 | T194: =Drepre!E59 -> 75 | U194: =SUM(F194:T194) -> 6926.81655 | W194: =FREQUENCY(E194:R194,0) -> 2
B195: ='D60'!B157 -> KYNČLOVÁ | C195: ='D60'!C157 -> Anna | D195: ='D60'!D157 -> 8.A | F195: ='D60'!H157 -> 809.5555339 | G195: ='D300'!H157 -> 887.4063233 | H195: ='D800'!H157 -> 936.3260374 | I195: =Ddál!H157 -> 766.899 | J195: =Dvýš!H157 -> 707 | K195: =Dmíč!H157 -> 512.6 | L195: =Dkou!H157 -> 413.3333333 | M195: =Dčlu!H157 -> 721.4634001 | N195: =Dls!H157 -> 0 | O195: =Dodbíj!H157 -> 18 | P195: =Dplav!H157 -> 0 | Q195: =Dšplh!H157 -> 475.1994211 | R195: =Dšvih!H157 -> 574.5 | S195: ='Dz mís'!H157 -> 858.809254 | T195: =Drepre!E60 -> 125 | U195: =SUM(F195:T195) -> 7806.092303 | W195: =FREQUENCY(E195:R195,0) -> 2
B196: ='D60'!B158 -> MATOUŠOVÁ | C196: ='D60'!C158 -> Tereza | D196: ='D60'!D158 -> 8.A | F196: ='D60'!H158 -> 717.0084238 | G196: ='D300'!H158 -> 578.8648988 | H196: ='D800'!H158 -> 514.1956 | I196: =Ddál!H158 -> 704.295 | J196: =Dvýš!H158 -> 804.5 | K196: =Dmíč!H158 -> 421.6 | L196: =Dkou!H158 -> 435.5555556 | M196: =Dčlu!H158 -> 591.4028439 | N196: =Dls!H158 -> 0 | O196: =Dodbíj!H158 -> 30 | P196: =Dplav!H158 -> 0 | Q196: =Dšplh!H158 -> 0 | R196: =Dšvih!H158 -> 318.25 | S196: ='Dz mís'!H158 -> 496.5675165 | T196: =Drepre!E61 -> 75 | U196: =SUM(F196:T196) -> 5687.239839 | W196: =FREQUENCY(E196:R196,0) -> 3
B197: ='D60'!B159 -> MAZÁNKOVÁ | C197: ='D60'!C159 -> Zuzana | D197: ='D60'!D159 -> 8.A | F197: ='D60'!H159 -> 706.0903887 | G197: ='D300'!H159 -> 633.2750965 | H197: ='D800'!H159 -> 635.7551148 | I197: =Ddál!H159 -> 660.82 | J197: =Dvýš!H159 -> 0 | K197: =Dmíč!H159 -> 285.1 | L197: =Dkou!H159 -> 377.7777778 | M197: =Dčlu!H159 -> 604.6311348 | N197: =Dls!H159 -> 0 | O197: =Dodbíj!H159 -> 0 | P197: =Dplav!H159 -> 0 | Q197: =Dšplh!H159 -> 0 | R197: =Dšvih!H159 -> 0 | S197: ='Dz mís'!H159 -> 0 | T197: =Drepre!E62 -> 0 | U197: =SUM(F197:T197) -> 3903.449513 | W197: =FREQUENCY(E197:R197,0) -> 6
B198: ='D60'!B160 -> MORKESOVÁ | C198: ='D60'!C160 -> Sabrina | D198: ='D60'!D160 -> 8.A | F198: ='D60'!H160 -> 869.8924174 | G198: ='D300'!H160 -> 716.1520599 | H198: ='D800'!H160 -> 642.1897386 | I198: =Ddál!H160 -> 791.245 | J198: =Dvýš!H160 -> 804.5 | K198: =Dmíč!H160 -> 731 | L198: =Dkou!H160 -> 635.5555556 | M198: =Dčlu!H160 -> 736.6900017 | N198: =Dls!H160 -> 0 | O198: =Dodbíj!H160 -> 57 | P198: =Dplav!H160 -> 0 | Q198: =Dšplh!H160 -> 387.5087813 | R198: =Dšvih!H160 -> 562 | S198: ='Dz mís'!H160 -> 821.1737488 | T198: =Drepre!E63 -> 75 | U198: =SUM(F198:T198) -> 7829.907303 | W198: =FREQUENCY(E198:R198,0) -> 2
B199: ='D60'!B161 -> POHOŘALÁ | C199: ='D60'!C161 -> Alžběta | D199: ='D60'!D161 -> 8.A | F199: ='D60'!H161 -> 785.2819338 | G199: ='D300'!H161 -> 725.4880991 | H199: ='D800'!H161 -> 666.7379697 | I199: =Ddál!H161 -> 768.638 | J199: =Dvýš!H161 -> 739.5 | K199: =Dmíč!H161 -> 439.8 | L199: =Dkou!H161 -> 475.5555556 | M199: =Dčlu!H161 -> 702.5190053 | N199: =Dls!H161 -> 0 | O199: =Dodbíj!H161 -> 18 | P199: =Dplav!H161 -> 0 | Q199: =Dšplh!H161 -> 0 | R199: =Dšvih!H161 -> 480.75 | S199: ='Dz mís'!H161 -> 698.8583569 | T199: =Drepre!E64 -> 75 | U199: =SUM(F199:T199) -> 6576.12892 | W199: =FREQUENCY(E199:R199,0) -> 3
B200: ='D60'!B162 -> SCHOLZOVÁ | C200: ='D60'!C162 -> Laura | D200: ='D60'!D162 -> 8.A | F200: ='D60'!H162 -> 713.3346153 | G200: ='D300'!H162 -> 0 | H200: ='D800'!H162 -> 0 | I200: =Ddál!H162 -> 0 | J200: =Dvýš!H162 -> 0 | K200: =Dmíč!H162 -> 0 | L200: =Dkou!H162 -> 0 | M200: =Dčlu!H162 -> 0 | N200: =Dls!H162 -> 0 | O200: =Dodbíj!H162 -> 6 | P200: =Dplav!H162 -> 0 | Q200: =Dšplh!H162 -> 0 | R200: =Dšvih!H162 -> 418.25 | S200: ='Dz mís'!H162 -> 482.4542021 | T200: =Drepre!E65 -> 0 | U200: =SUM(F200:T200) -> 1620.038817 | W200: =FREQUENCY(E200:R200,0) -> 10
B201: ='D60'!B163 -> VÁCLAVÍKOVÁ | C201: ='D60'!C163 -> Valerie | D201: ='D60'!D163 -> 8.A | F201: ='D60'!H163 -> 763.1561993 | G201: ='D300'!H163 -> 765.5013173 | H201: ='D800'!H163 -> 681.1853019 | I201: =Ddál!H163 -> 742.553 | J201: =Dvýš!H163 -> 739.5 | K201: =Dmíč!H163 -> 530.8 | L201: =Dkou!H163 -> 740.4444444 | M201: =Dčlu!H163 -> 698.9808132 | N201: =Dls!H163 -> 0 | O201: =Dodbíj!H163 -> 30 | P201: =Dplav!H163 -> 0 | Q201: =Dšplh!H163 -> 0 | R201: =Dšvih!H163 -> 530.75 | S201: ='Dz mís'!H163 -> 703.5627951 | T201: =Drepre!E66 -> 125 | U201: =SUM(F201:T201) -> 7051.433871 | W201: =FREQUENCY(E201:R201,0) -> 3
B202: ='D60'!B164 -> ZAPADLOVÁ | C202: ='D60'!C164 -> Emma | D202: ='D60'!D164 -> 8.A | F202: ='D60'!H164 -> 877.3568795 | G202: ='D300'!H164 -> 737.7217531 | H202: ='D800'!H164 -> 0 | I202: =Ddál!H164 -> 722 | J202: =Dvýš!H164 -> 772 | K202: =Dmíč!H164 -> 685.5 | L202: =Dkou!H164 -> 488.8888889 | M202: =Dčlu!H164 -> 662.763503 | N202: =Dls!H164 -> 0 | O202: =Dodbíj!H164 -> 24 | P202: =Dplav!H164 -> 816.3966928 | Q202: =Dšplh!H164 -> 650.8138046 | R202: =Dšvih!H164 -> 562 | S202: ='Dz mís'!H164 -> 694.1539188 | T202: =Drepre!E67 -> 75 | U202: =SUM(F202:T202) -> 7768.595441 | W202: =FREQUENCY(E202:R202,0) -> 2
B203: ='D60'!B165 -> ŽIŠKOVÁ | C203: ='D60'!C165 -> Mia | D203: ='D60'!D165 -> 8.A | F203: ='D60'!H165 -> 0 | G203: ='D300'!H165 -> 0 | H203: ='D800'!H165 -> 0 | I203: =Ddál!H165 -> 0 | J203: =Dvýš!H165 -> 0 | K203: =Dmíč!H165 -> 439.8 | L203: =Dkou!H165 -> 0 | M203: =Dčlu!H165 -> 0 | N203: =Dls!H165 -> 0 | O203: =Dodbíj!H165 -> 24 | P203: =Dplav!H165 -> 0 | Q203: =Dšplh!H165 -> 0 | R203: =Dšvih!H165 -> 0 | S203: ='Dz mís'!H165 -> 0 | T203: =Drepre!E68 -> 0 | U203: =SUM(F203:T203) -> 463.8 | W203: =FREQUENCY(E203:R203,0) -> 11 | X203: =SUM(W187:W203)-13 -> 61
B204: ='D60'!B166 -> FARSKÁ | C204: ='D60'!C166 -> Tereza | D204: ='D60'!D166 -> 8.B | F204: ='D60'!H166 -> 688.5608212 | G204: ='D300'!H166 -> 0 | H204: ='D800'!H166 -> 0 | I204: =Ddál!H166 -> 530.395 | J204: =Dvýš!H166 -> 0 | K204: =Dmíč!H166 -> 348.8 | L204: =Dkou!H166 -> 475.5555556 | M204: =Dčlu!H166 -> 577.1996631 | N204: =Dls!H166 -> 0 | O204: =Dodbíj!H166 -> 0 | P204: =Dplav!H166 -> 0 | Q204: =Dšplh!H166 -> 0 | R204: =Dšvih!H166 -> 718.25 | S204: ='Dz mís'!H166 -> 0 | T204: =Drepre!E69 -> 0 | U204: =SUM(F204:T204) -> 3338.76104 | W204: =FREQUENCY(E204:R204,0) -> 7
B205: ='D60'!B167 -> FEIXOVÁ | C205: ='D60'!C167 -> Rozálie | D205: ='D60'!D167 -> 8.B | F205: ='D60'!H167 -> 629.2685755 | G205: ='D300'!H167 -> 0 | H205: ='D800'!H167 -> 400.3279324 | I205: =Ddál!H167 -> 0 | J205: =Dvýš!H167 -> 0 | K205: =Dmíč!H167 -> 248.7 | L205: =Dkou!H167 -> 0 | M205: =Dčlu!H167 -> 0 | N205: =Dls!H167 -> 0 | O205: =Dodbíj!H167 -> 0 | P205: =Dplav!H167 -> 0 | Q205: =Dšplh!H167 -> 0 | R205: =Dšvih!H167 -> 512 | S205: ='Dz mís'!H167 -> 0 | T205: =Drepre!E70 -> 0 | U205: =SUM(F205:T205) -> 1790.296508 | W205: =FREQUENCY(E205:R205,0) -> 9
B206: ='D60'!B168 -> FIŠEROVÁ | C206: ='D60'!C168 -> Michaela | D206: ='D60'!D168 -> 8.B | F206: ='D60'!H168 -> 653.3093968 | G206: ='D300'!H168 -> 414.7631176 | H206: ='D800'!H168 -> 491.274606 | I206: =Ddál!H168 -> 0 | J206: =Dvýš!H168 -> 0 | K206: =Dmíč!H168 -> 357.9 | L206: =Dkou!H168 -> 0 | M206: =Dčlu!H168 -> 639.8829998 | N206: =Dls!H168 -> 0 | O206: =Dodbíj!H168 -> 0 | P206: =Dplav!H168 -> 665.6336337 | Q206: =Dšplh!H168 -> 0 | R206: =Dšvih!H168 -> 874.5 | S206: ='Dz mís'!H168 -> 0 | T206: =Drepre!E71 -> 25 | U206: =SUM(F206:T206) -> 4122.263754 | W206: =FREQUENCY(E206:R206,0) -> 6
B207: ='D60'!B169 -> HAVLÍČKOVÁ | C207: ='D60'!C169 -> Kristýna | D207: ='D60'!D169 -> 8.B | F207: ='D60'!H169 -> 590.8846744 | G207: ='D300'!H169 -> 485.7450286 | H207: ='D800'!H169 -> 419.2252672 | I207: =Ddál!H169 -> 0 | J207: =Dvýš!H169 -> 0 | K207: =Dmíč!H169 -> 294.2 | L207: =Dkou!H169 -> 520 | M207: =Dčlu!H169 -> 525.2545668 | N207: =Dls!H169 -> 0 | O207: =Dodbíj!H169 -> 0 | P207: =Dplav!H169 -> 673.7673432 | Q207: =Dšplh!H169 -> 0 | R207: =Dšvih!H169 -> 505.75 | S207: ='Dz mís'!H169 -> 0 | T207: =Drepre!E72 -> 25 | U207: =SUM(F207:T207) -> 4039.82688 | W207: =FREQUENCY(E207:R207,0) -> 5
B208: ='D60'!B170 -> JODASOVÁ | C208: ='D60'!C170 -> Nikola | D208: ='D60'!D170 -> 8.B | F208: ='D60'!H170 -> 745.3206618 | G208: ='D300'!H170 -> 673.1522455 | H208: ='D800'!H170 -> 0 | I208: =Ddál!H170 -> 0 | J208: =Dvýš!H170 -> 0 | K208: =Dmíč!H170 -> 0 | L208: =Dkou!H170 -> 564.4444444 | M208: =Dčlu!H170 -> 0 | N208: =Dls!H170 -> 0 | O208: =Dodbíj!H170 -> 0 | P208: =Dplav!H170 -> 0 | Q208: =Dšplh!H170 -> 0 | R208: =Dšvih!H170 -> 737 | S208: ='Dz mís'!H170 -> 0 | T208: =Drepre!E73 -> 25 | U208: =SUM(F208:T208) -> 2744.917352 | W208: =FREQUENCY(E208:R208,0) -> 9
B209: ='D60'!B171 -> KADAVÁ | C209: ='D60'!C171 -> Nikola | D209: ='D60'!D171 -> 8.B | F209: ='D60'!H171 -> 587.2804808 | G209: ='D300'!H171 -> 461.7956858 | H209: ='D800'!H171 -> 407.3877654 | I209: =Ddál!H171 -> 608.65 | J209: =Dvýš!H171 -> 0 | K209: =Dmíč!H171 -> 276 | L209: =Dkou!H171 -> 448.8888889 | M209: =Dčlu!H171 -> 542.4862631 | N209: =Dls!H171 -> 0 | O209: =Dodbíj!H171 -> 0 | P209: =Dplav!H171 -> 0 | Q209: =Dšplh!H171 -> 0 | R209: =Dšvih!H171 -> 312 | S209: ='Dz mís'!H171 -> 0 | T209: =Drepre!E74 -> 0 | U209: =SUM(F209:T209) -> 3644.489084 | W209: =FREQUENCY(E209:R209,0) -> 5
B210: ='D60'!B172 -> KRAFKOVÁ | C210: ='D60'!C172 -> Lucie | D210: ='D60'!D172 -> 8.B | F210: ='D60'!H172 -> 0 | G210: ='D300'!H172 -> 0 | H210: ='D800'!H172 -> 0 | I210: =Ddál!H172 -> 0 | J210: =Dvýš!H172 -> 0 | K210: =Dmíč!H172 -> 0 | L210: =Dkou!H172 -> 0 | M210: =Dčlu!H172 -> 0 | N210: =Dls!H172 -> 0 | O210: =Dodbíj!H172 -> 0 | P210: =Dplav!H172 -> 0 | Q210: =Dšplh!H172 -> 0 | R210: =Dšvih!H172 -> 0 | S210: ='Dz mís'!H172 -> 0 | T210: =Drepre!E75 -> 0 | U210: =SUM(F210:T210) -> 0 | W210: =FREQUENCY(E210:R210,0) -> 13
B211: ='D60'!B173 -> KŘIVINKOVÁ | C211: ='D60'!C173 -> Alžběta | D211: ='D60'!D173 -> 8.B | F211: ='D60'!H173 -> 683.1197966 | G211: ='D300'!H173 -> 0 | H211: ='D800'!H173 -> 488.554688 | I211: =Ddál!H173 -> 700.817 | J211: =Dvýš!H173 -> 0 | K211: =Dmíč!H173 -> 439.8 | L211: =Dkou!H173 -> 0 | M211: =Dčlu!H173 -> 0 | N211: =Dls!H173 -> 0 | O211: =Dodbíj!H173 -> 0 | P211: =Dplav!H173 -> 0 | Q211: =Dšplh!H173 -> 0 | R211: =Dšvih!H173 -> 474.5 | S211: ='Dz mís'!H173 -> 0 | T211: =Drepre!E76 -> 0 | U211: =SUM(F211:T211) -> 2786.791485 | W211: =FREQUENCY(E211:R211,0) -> 8
B212: ='D60'!B174 -> LEŠÁKOVÁ | C212: ='D60'!C174 -> Lenka | D212: ='D60'!D174 -> 8.B | F212: ='D60'!H174 -> 568.3921302 | G212: ='D300'!H174 -> 495.0510051 | H212: ='D800'!H174 -> 468.4674902 | I212: =Ddál!H174 -> 645.169 | J212: =Dvýš!H174 -> 0 | K212: =Dmíč!H174 -> 276 | L212: =Dkou!H174 -> 306.6666667 | M212: =Dčlu!H174 -> 562.1813176 | N212: =Dls!H174 -> 0 | O212: =Dodbíj!H174 -> 0 | P212: =Dplav!H174 -> 0 | Q212: =Dšplh!H174 -> 0 | R212: =Dšvih!H174 -> 712 | S212: ='Dz mís'!H174 -> 0 | T212: =Drepre!E77 -> 0 | U212: =SUM(F212:T212) -> 4033.92761 | W212: =FREQUENCY(E212:R212,0) -> 5
B213: ='D60'!B175 -> NYKLÍČKOVÁ | C213: ='D60'!C175 -> Adéla | D213: ='D60'!D175 -> 8.B | F213: ='D60'!H175 -> 783.5377564 | G213: ='D300'!H175 -> 739.5928269 | H213: ='D800'!H175 -> 754.4331766 | I213: =Ddál!H175 -> 756.465 | J213: =Dvýš!H175 -> 759 | K213: =Dmíč!H175 -> 430.7 | L213: =Dkou!H175 -> 0 | M213: =Dčlu!H175 -> 687.193098 | N213: =Dls!H175 -> 0 | O213: =Dodbíj!H175 -> 0 | P213: =Dplav!H175 -> 0 | Q213: =Dšplh!H175 -> 0 | R213: =Dšvih!H175 -> 1312 | S213: ='Dz mís'!H175 -> 0 | T213: =Drepre!E78 -> 125 | U213: =SUM(F213:T213) -> 6347.921858 | W213: =FREQUENCY(E213:R213,0) -> 5
B214: ='D60'!B176 -> PLŮCHOVÁ | C214: ='D60'!C176 -> Petra | D214: ='D60'!D176 -> 8.B | F214: ='D60'!H176 -> 714.799956 | G214: ='D300'!H176 -> 605.0427942 | H214: ='D800'!H176 -> 571.4722382 | I214: =Ddál!H176 -> 632.996 | J214: =Dvýš!H176 -> 0 | K214: =Dmíč!H176 -> 439.8 | L214: =Dkou!H176 -> 564.4444444 | M214: =Dčlu!H176 -> 607.8863977 | N214: =Dls!H176 -> 0 | O214: =Dodbíj!H176 -> 0 | P214: =Dplav!H176 -> 0 | Q214: =Dšplh!H176 -> 0 | R214: =Dšvih!H176 -> 1430.75 | S214: ='Dz mís'!H176 -> 0 | T214: =Drepre!E79 -> 75 | U214: =SUM(F214:T214) -> 5642.19183 | W214: =FREQUENCY(E214:R214,0) -> 5
B215: ='D60'!B177 -> PODZIMKOVÁ | C215: ='D60'!C177 -> Eliška | D215: ='D60'!D177 -> 8.B | F215: ='D60'!H177 -> 696.1738475 | G215: ='D300'!H177 -> 414.7631176 | H215: ='D800'!H177 -> 452.8320384 | I215: =Ddál!H177 -> 648.647 | J215: =Dvýš!H177 -> 0 | K215: =Dmíč!H177 -> 476.2 | L215: =Dkou!H177 -> 0 | M215: =Dčlu!H177 -> 604.0916787 | N215: =Dls!H177 -> 0 | O215: =Dodbíj!H177 -> 0 | P215: =Dplav!H177 -> 0 | Q215: =Dšplh!H177 -> 0 | R215: =Dšvih!H177 -> 999.5 | S215: ='Dz mís'!H177 -> 0 | T215: =Drepre!E80 -> 25 | U215: =SUM(F215:T215) -> 4317.207682 | W215: =FREQUENCY(E215:R215,0) -> 6
B216: ='D60'!B178 -> RUTKAYOVÁ | C216: ='D60'!C178 -> Klára | D216: ='D60'!D178 -> 8.B | F216: ='D60'!H178 -> 568.3921302 | G216: ='D300'!H178 -> 0 | H216: ='D800'!H178 -> 458.4964942 | I216: =Ddál!H178 -> 613.867 | J216: =Dvýš!H178 -> 0 | K216: =Dmíč!H178 -> 276 | L216: =Dkou!H178 -> 0 | M216: =Dčlu!H178 -> 0 | N216: =Dls!H178 -> 0 | O216: =Dodbíj!H178 -> 0 | P216: =Dplav!H178 -> 0 | Q216: =Dšplh!H178 -> 0 | R216: =Dšvih!H178 -> 405.75 | S216: ='Dz mís'!H178 -> 0 | T216: =Drepre!E81 -> 0 | U216: =SUM(F216:T216) -> 2322.505624 | W216: =FREQUENCY(E216:R216,0) -> 8
B217: ='D60'!B179 -> SEIDLOVÁ | C217: ='D60'!C179 -> Zuzana | D217: ='D60'!D179 -> 8.B | F217: ='D60'!H179 -> 690.6218344 | G217: ='D300'!H179 -> 620.4185028 | H217: ='D800'!H179 -> 500.281933 | I217: =Ddál!H179 -> 721.685 | J217: =Dvýš!H179 -> 0 | K217: =Dmíč!H179 -> 527.16 | L217: =Dkou!H179 -> 0 | M217: =Dčlu!H179 -> 0 | N217: =Dls!H179 -> 0 | O217: =Dodbíj!H179 -> 0 | P217: =Dplav!H179 -> 0 | Q217: =Dšplh!H179 -> 0 | R217: =Dšvih!H179 -> 730.75 | S217: ='Dz mís'!H179 -> 0 | T217: =Drepre!E82 -> 75 | U217: =SUM(F217:T217) -> 3865.91727 | W217: =FREQUENCY(E217:R217,0) -> 7
B218: ='D60'!B180 -> TOMÁŠOVÁ | C218: ='D60'!C180 -> Sára | D218: ='D60'!D180 -> 8.B | F218: ='D60'!H180 -> 0 | G218: ='D300'!H180 -> 422.2691738 | H218: ='D800'!H180 -> 0 | I218: =Ddál!H180 -> 636.474 | J218: =Dvýš!H180 -> 0 | K218: =Dmíč!H180 -> 339.7 | L218: =Dkou!H180 -> 478.2222222 | M218: =Dčlu!H180 -> 513.7683828 | N218: =Dls!H180 -> 0 | O218: =Dodbíj!H180 -> 0 | P218: =Dplav!H180 -> 0 | Q218: =Dšplh!H180 -> 0 | R218: =Dšvih!H180 -> 418.25 | S218: ='Dz mís'!H180 -> 0 | T218: =Drepre!E83 -> 0 | U218: =SUM(F218:T218) -> 2808.683779 | W218: =FREQUENCY(E218:R218,0) -> 7
B219: ='D60'!B181 -> VANCLOVÁ | C219: ='D60'!C181 -> Barbora | D219: ='D60'!D181 -> 8.B | F219: ='D60'!H181 -> 704.6578226 | G219: ='D300'!H181 -> 621.7258792 | H219: ='D800'!H181 -> 500.0477145 | I219: =Ddál!H181 -> 0 | J219: =Dvýš!H181 -> 0 | K219: =Dmíč!H181 -> 0 | L219: =Dkou!H181 -> 413.3333333 | M219: =Dčlu!H181 -> 0 | N219: =Dls!H181 -> 0 | O219: =Dodbíj!H181 -> 0 | P219: =Dplav!H181 -> 697.4771063 | Q219: =Dšplh!H181 -> 0 | R219: =Dšvih!H181 -> 1012 | S219: ='Dz mís'!H181 -> 0 | T219: =Drepre!E84 -> 50 | U219: =SUM(F219:T219) -> 3999.241856 | W219: =FREQUENCY(E219:R219,0) -> 7
B220: ='D60'!B182 -> VOTOČKOVÁ | C220: ='D60'!C182 -> Veronika | D220: ='D60'!D182 -> 8.B | F220: ='D60'!H182 -> 552.4041764 | G220: ='D300'!H182 -> 0 | H220: ='D800'!H182 -> 419.581329 | I220: =Ddál!H182 -> 624.301 | J220: =Dvýš!H182 -> 0 | K220: =Dmíč!H182 -> 294.2 | L220: =Dkou!H182 -> 0 | M220: =Dčlu!H182 -> 0 | N220: =Dls!H182 -> 0 | O220: =Dodbíj!H182 -> 0 | P220: =Dplav!H182 -> 0 | Q220: =Dšplh!H182 -> 0 | R220: =Dšvih!H182 -> 280.75 | S220: ='Dz mís'!H182 -> 0 | T220: =Drepre!E85 -> 0 | U220: =SUM(F220:T220) -> 2171.236505 | W220: =FREQUENCY(E220:R220,0) -> 8 | X220: =SUM(W204:W220)-13 -> 107
B221: ='D60'!B183 -> HARTIGOVÁ | C221: ='D60'!C183 -> Anna | D221: ='D60'!D183 -> 9.A | F221: ='D60'!H183 -> 735.914573 | G221: ='D300'!H183 -> 0 | H221: ='D800'!H183 -> 582.3774788 | I221: =Ddál!H183 -> 704.295 | J221: =Dvýš!H183 -> 804.5 | K221: =Dmíč!H183 -> 448.9 | L221: =Dkou!H183 -> 608.8888889 | M221: =Dčlu!H183 -> 663.4027089 | N221: =Dls!H183 -> 0 | O221: =Dodbíj!H183 -> 117 | P221: =Dplav!H183 -> 0 | Q221: =Dšplh!H183 -> 0 | R221: =Dšvih!H183 -> 0 | S221: ='Dz mís'!H183 -> 802.3559962 | T221: =Drepre!E86 -> 0 | U221: =SUM(F221:T221) -> 5467.634646 | W221: =FREQUENCY(E221:R221,0) -> 5
B222: ='D60'!B184 -> HONCŮ | C222: ='D60'!C184 -> Rozálie | D222: ='D60'!D184 -> 9.A | F222: ='D60'!H184 -> 878.4330368 | G222: ='D300'!H184 -> 759.9587597 | H222: ='D800'!H184 -> 542.3207232 | I222: =Ddál!H184 -> 850.371 | J222: =Dvýš!H184 -> 772 | K222: =Dmíč!H184 -> 512.6 | L222: =Dkou!H184 -> 612.4444444 | M222: =Dčlu!H184 -> 740.5899524 | N222: =Dls!H184 -> 0 | O222: =Dodbíj!H184 -> 36 | P222: =Dplav!H184 -> 0 | Q222: =Dšplh!H184 -> 413.0164443 | R222: =Dšvih!H184 -> 749.5 | S222: ='Dz mís'!H184 -> 854.1048159 | T222: =Drepre!E87 -> 50 | U222: =SUM(F222:T222) -> 7771.339177 | W222: =FREQUENCY(E222:R222,0) -> 2
B223: ='D60'!B185 -> CHALOUPSKÁ | C223: ='D60'!C185 -> Lucie | D223: ='D60'!D185 -> 9.A | F223: ='D60'!H185 -> 862.5460372 | G223: ='D300'!H185 -> 769.8358009 | H223: ='D800'!H185 -> 0 | I223: =Ddál!H185 -> 791.245 | J223: =Dvýš!H185 -> 0 | K223: =Dmíč!H185 -> 512.6 | L223: =Dkou!H185 -> 644.4444444 | M223: =Dčlu!H185 -> 743.7375504 | N223: =Dls!H185 -> 0 | O223: =Dodbíj!H185 -> 0 | P223: =Dplav!H185 -> 0 | Q223: =Dšplh!H185 -> 0 | R223: =Dšvih!H185 -> 449.5 | S223: ='Dz mís'!H185 -> 0 | T223: =Drepre!E88 -> 0 | U223: =SUM(F223:T223) -> 4773.908833 | W223: =FREQUENCY(E223:R223,0) -> 6
B224: ='D60'!B186 -> KŘÍŽKOVÁ | C224: ='D60'!C186 -> Anna | D224: ='D60'!D186 -> 9.A | F224: ='D60'!H186 -> 735.914573 | G224: ='D300'!H186 -> 602.785119 | H224: ='D800'!H186 -> 553.8180204 | I224: =Ddál!H186 -> 704.295 | J224: =Dvýš!H186 -> 707 | K224: =Dmíč!H186 -> 439.8 | L224: =Dkou!H186 -> 506.6666667 | M224: =Dčlu!H186 -> 647.1430823 | N224: =Dls!H186 -> 0 | O224: =Dodbíj!H186 -> 45 | P224: =Dplav!H186 -> 0 | Q224: =Dšplh!H186 -> 517.1207348 | R224: =Dšvih!H186 -> 562 | S224: ='Dz mís'!H186 -> 680.0406043 | T224: =Drepre!E89 -> 0 | U224: =SUM(F224:T224) -> 6701.5838 | W224: =FREQUENCY(E224:R224,0) -> 2
B225: ='D60'!B187 -> LUKEŠOVÁ | C225: ='D60'!C187 -> Kristýna | D225: ='D60'!D187 -> 9.A | F225: ='D60'!H187 -> 772.3739541 | G225: ='D300'!H187 -> 0 | H225: ='D800'!H187 -> 550.224032 | I225: =Ddál!H187 -> 723.424 | J225: =Dvýš!H187 -> 642 | K225: =Dmíč!H187 -> 367 | L225: =Dkou!H187 -> 493.3333333 | M225: =Dčlu!H187 -> 644.7063505 | N225: =Dls!H187 -> 0 | O225: =Dodbíj!H187 -> 36 | P225: =Dplav!H187 -> 0 | Q225: =Dšplh!H187 -> 533.5855559 | R225: =Dšvih!H187 -> 437 | S225: ='Dz mís'!H187 -> 647.1095373 | T225: =Drepre!E90 -> 0 | U225: =SUM(F225:T225) -> 5846.756763 | W225: =FREQUENCY(E225:R225,0) -> 3
B226: ='D60'!B188 -> MOTLÍKOVÁ | C226: ='D60'!C188 -> Eliška | D226: ='D60'!D188 -> 9.A | F226: ='D60'!H188 -> 803.1293306 | G226: ='D300'!H188 -> 687.5449085 | H226: ='D800'!H188 -> 735.4713627 | I226: =Ddál!H188 -> 779.072 | J226: =Dvýš!H188 -> 0 | K226: =Dmíč!H188 -> 421.6 | L226: =Dkou!H188 -> 657.7777778 | M226: =Dčlu!H188 -> 710.4205226 | N226: =Dls!H188 -> 0 | O226: =Dodbíj!H188 -> 66 | P226: =Dplav!H188 -> 0 | Q226: =Dšplh!H188 -> 406.3782689 | R226: =Dšvih!H188 -> 780.75 | S226: ='Dz mís'!H188 -> 722.3805477 | T226: =Drepre!E91 -> 50 | U226: =SUM(F226:T226) -> 6820.524719 | W226: =FREQUENCY(E226:R226,0) -> 3
B227: ='D60'!B189 -> POHOŘELÁ | C227: ='D60'!C189 -> Amálie | D227: ='D60'!D189 -> 9.A | F227: ='D60'!H189 -> 798.5971053 | G227: ='D300'!H189 -> 661.3607479 | H227: ='D800'!H189 -> 550.224032 | I227: =Ddál!H189 -> 643.43 | J227: =Dvýš!H189 -> 0 | K227: =Dmíč!H189 -> 330.6 | L227: =Dkou!H189 -> 640 | M227: =Dčlu!H189 -> 693.3875973 | N227: =Dls!H189 -> 0 | O227: =Dodbíj!H189 -> 45 | P227: =Dplav!H189 -> 0 | Q227: =Dšplh!H189 -> 0 | R227: =Dšvih!H189 -> 774.5 | S227: ='Dz mís'!H189 -> 745.9027384 | T227: =Drepre!E92 -> 0 | U227: =SUM(F227:T227) -> 5883.002221 | W227: =FREQUENCY(E227:R227,0) -> 4
B228: ='D60'!B190 -> POLÁČKOVÁ | C228: ='D60'!C190 -> Natálie | D228: ='D60'!D190 -> 9.A | F228: ='D60'!H190 -> 557.9530791 | G228: ='D300'!H190 -> 335.4112609 | H228: ='D800'!H190 -> 0 | I228: =Ddál!H190 -> 558.219 | J228: =Dvýš!H190 -> 0 | K228: =Dmíč!H190 -> 367 | L228: =Dkou!H190 -> 383.1111111 | M228: =Dčlu!H190 -> 543.3745736 | N228: =Dls!H190 -> 0 | O228: =Dodbíj!H190 -> 27 | P228: =Dplav!H190 -> 0 | Q228: =Dšplh!H190 -> 0 | R228: =Dšvih!H190 -> 249.5 | S228: ='Dz mís'!H190 -> 454.2275732 | T228: =Drepre!E93 -> 0 | U228: =SUM(F228:T228) -> 3475.796598 | W228: =FREQUENCY(E228:R228,0) -> 5
B229: ='D60'!B191 -> ŘEHOŘKOVÁ | C229: ='D60'!C191 -> Lucie | D229: ='D60'!D191 -> 9.A | F229: ='D60'!H191 -> 753.3308272 | G229: ='D300'!H191 -> 588.2872143 | H229: ='D800'!H191 -> 478.6073658 | I229: =Ddál!H191 -> 773.855 | J229: =Dvýš!H191 -> 707 | K229: =Dmíč!H191 -> 467.1 | L229: =Dkou!H191 -> 717.3333333 | M229: =Dčlu!H191 -> 647.1430823 | N229: =Dls!H191 -> 0 | O229: =Dodbíj!H191 -> 27 | P229: =Dplav!H191 -> 0 | Q229: =Dšplh!H191 -> 0 | R229: =Dšvih!H191 -> 368.25 | S229: ='Dz mís'!H191 -> 680.0406043 | T229: =Drepre!E94 -> 0 | U229: =SUM(F229:T229) -> 6207.947427 | W229: =FREQUENCY(E229:R229,0) -> 3
B230: ='D60'!B192 -> SKÁLOVÁ | C230: ='D60'!C192 -> Alena | D230: ='D60'!D192 -> 9.A | F230: ='D60'!H192 -> 675.105182 | G230: ='D300'!H192 -> 526.7705963 | H230: ='D800'!H192 -> 447.0398202 | I230: =Ddál!H192 -> 641.691 | J230: =Dvýš!H192 -> 642 | K230: =Dmíč!H192 -> 357.9 | L230: =Dkou!H192 -> 680 | M230: =Dčlu!H192 -> 600.8732728 | N230: =Dls!H192 -> 0 | O230: =Dodbíj!H192 -> 15 | P230: =Dplav!H192 -> 0 | Q230: =Dšplh!H192 -> 0 | R230: =Dšvih!H192 -> 249.5 | S230: ='Dz mís'!H192 -> 510.680831 | T230: =Drepre!E95 -> 0 | U230: =SUM(F230:T230) -> 5346.560702 | W230: =FREQUENCY(E230:R230,0) -> 3
B231: ='D60'!B193 -> VÁVROVÁ | C231: ='D60'!C193 -> Aneta | D231: ='D60'!D193 -> 9.A | F231: ='D60'!H193 -> 817.9599417 | G231: ='D300'!H193 -> 745.5954452 | H231: ='D800'!H193 -> 546.9377943 | I231: =Ddál!H193 -> 839.937 | J231: =Dvýš!H193 -> 772 | K231: =Dmíč!H193 -> 430.7 | L231: =Dkou!H193 -> 497.7777778 | M231: =Dčlu!H193 -> 675.105182 | N231: =Dls!H193 -> 0 | O231: =Dodbíj!H193 -> 117 | P231: =Dplav!H193 -> 0 | Q231: =Dšplh!H193 -> 0 | R231: =Dšvih!H193 -> 737 | S231: ='Dz mís'!H193 -> 717.6761095 | T231: =Drepre!E96 -> 50 | U231: =SUM(F231:T231) -> 6947.689251 | W231: =FREQUENCY(E231:R231,0) -> 3
B232: ='D60'!B194 -> ZELINKOVÁ | C232: ='D60'!C194 -> Klára | D232: ='D60'!D194 -> 9.A | F232: ='D60'!H194 -> 768.9982226 | G232: ='D300'!H194 -> 578.8648988 | H232: ='D800'!H194 -> 0 | I232: =Ddál!H194 -> 716.468 | J232: =Dvýš!H194 -> 739.5 | K232: =Dmíč!H194 -> 503.5 | L232: =Dkou!H194 -> 795.5555556 | M232: =Dčlu!H194 -> 708.9717082 | N232: =Dls!H194 -> 0 | O232: =Dodbíj!H194 -> 66 | P232: =Dplav!H194 -> 0 | Q232: =Dšplh!H194 -> 0 | R232: =Dšvih!H194 -> 468.25 | S232: ='Dz mís'!H194 -> 788.2426818 | T232: =Drepre!E97 -> 50 | U232: =SUM(F232:T232) -> 6184.351067 | W232: =FREQUENCY(E232:R232,0) -> 4 | X232: =SUM(W221:W232) -> 43

Sheet Dvýk

Sheet D60
B1: SPORTOVEC ŠKOLY 2021 - 2022 | G1: 60 M
K2: stav k | L2: =TODAY() -> 44740
H3: BODY | J3: 20 - 21 | K3: 19 - 20 | L3: 18 - 19
A5: 1. | B5: =B101 -> HEJRALOVÁ | C5: =C101 -> Natálie | D5: 6.A | E5: 9.9 | G5: Jilemnice 03.05.22 | H5: 764.8169188 | J5: 0 | K5: 0 | L5: 0
A6: 2. | B6: =B102 -> KERLE | C6: Nikita | D6: 6.A | E6: 10.06 | G6: Jilemnice 03.05.22 | H6: 751.7160543 | J6: 0 | K6: 0 | L6: 0
A7: 3. | B7: =B103 -> PACLÍKOVÁ | C7: Markéta | D7: 6.A | E7: 9.85 | G7: Jilemnice 03.05.22 | H7: 768.9982226 | J7: 0 | K7: 0 | L7: 0
A8: 4. | B8: =B104 -> PLŮCHOVÁ | C8: Michaela | D8: 6.A | E8: 9.85 | G8: Jilemnice 10.09.21 | H8: 768.9982226 | J8: 0 | K8: 0 | L8: 0
A9: 5. | B9: =B105 -> ŠERCLOVÁ | C9: Nikola | D9: 6.A | E9: 12.1 | G9: Jilemnice 10.09.21 | H9: 615.0502178 | J9: 0 | K9: 0 | L9: 0
A10: 6. | B10: =B106 -> VÁCLAVÍKOVÁ | C10: Alena | D10: 6.A | E10: 10.3 | G10: Jilemnice 10.09.21 | H10: 732.8279147 | J10: 0 | K10: 0 | L10: 0
A11: 7. | B11: =B107 -> DUCHÁČKOVÁ | C11: Tereza | D11: 6.B | E11: 11.67 | G11: Jilemnice 03.05.22 | H11: 639.8829998 | J11: 0 | K11: 0 | L11: 0
A12: 8. | B12: =B108 -> FLAŠKOVÁ | C12: Anna Sabriel | D12: 6.B | E12: 11.35 | G12: Jilemnice 03.05.22 | H12: 659.5843689 | J12: 0 | K12: 0 | L12: 0
A13: 9. | B13: =B109 -> HAASOVÁ | C13: Julie | D13: 6.B | E13: 9.91 | G13: Jilemnice 10.09.21 | H13: 763.9857211 | J13: 0 | K13: 0 | L13: 0
A14: 10. | B14: =B110 -> HOBLOVÁ | C14: Barbora | D14: 6.B | E14: 10.12 | G14: Jilemnice 03.05.22 | H14: 746.9100306 | J14: 0 | K14: 0 | L14: 0
A15: 11. | B15: =B111 -> HORÁČKOVÁ | C15: Valérie | D15: 6.B | E15: 10.09 | G15: Jilemnice 03.05.22 | H15: 749.3058977 | J15: 0 | K15: 0 | L15: 0
A16: 12. | B16: =B112 -> JIRANOVÁ | C16: Anežka | D16: 6.B | E16: 13.54 | G16: Jilemnice 03.05.22 | H16: 543.3745736 | J16: 0 | K16: 0 | L16: 0
A17: 13. | B17: =B113 -> JODASOVÁ | C17: Denisa | D17: 6.B | E17: 10.37 | G17: Jilemnice 10.09.21 | H17: 727.4835608 | J17: 0 | K17: 0 | L17: 0
A18: 14. | B18: =B114 -> KRČÍKOVÁ | C18: Beatrix | D18: 6.B | E18: 10.42 | G18: Jilemnice 10.09.21 | H18: 723.7101275 | J18: 0 | K18: 0 | L18: 0
A19: 15. | B19: =B115 -> KUBÁTOVÁ | C19: Veronika | D19: 6.B | E19: 12.29 | G19: Jilemnice 03.05.22 | H19: 604.6311348 | J19: 0 | K19: 0 | L19: 0
A20: 16. | B20: =B116 -> LENČEŠOVÁ | C20: Silvie | D20: 6.B | E20: 11.56 | G20: Jilemnice 03.05.22 | H20: 646.5323184 | J20: 0 | K20: 0 | L20: 0
A21: 17. | B21: =B117 -> MATERNOVÁ | C21: Lenka | D21: 6.B | E21: 9.14 | G21: Jilemnice 03.05.22 | H21: 833.3097864 | J21: 0 | K21: 0 | L21: 0
A22: 18. | B22: =B118 -> TÓTHOVÁ | C22: Viktorie | D22: 6.B | E22: 11.26 | G22: Jilemnice 10.09.21 | H22: 665.3271387 | J22: 0 | K22: 0 | L22: 0
A23: 19. | B23: =B119 -> ERBENOVÁ | C23: Sára | D23: 7.A | E23: 11.4 | G23: Jilemnice 29.04.22 | H23: 656.433122 | J23: 11.58 | K23: 0 | L23: 0
A24: 20. | B24: =B120 -> GINGALOVÁ | C24: Linda | D24: 7.A | E24: 9.56 | H24: 794.1122881 | J24: 0 | K24: 0 | L24: 0
A25: 21. | B25: =B121 -> HOFMANOVÁ | C25: Nicol | D25: 7.A | E25: 10.92 | G25: Jilemnice 29.04.22 | H25: 687.8763334 | J25: 11.92 | K25: 0 | L25: 0
A26: 22. | B26: =B122 -> HOLEŠOVSKÁ | C26: Aneta | D26: 7.A | E26: 10.51 | G26: 0 | H26: 717.0084238 | J26: 10.99 | K26: 0 | L26: 0
A27: 23. | B27: =B123 -> HOLUBCOVÁ | C27: Alena | D27: 7.A | E27: 9.52 | G27: Jilemnice 29.04.22 | H27: 797.6963731 | J27: 0 | K27: 0 | L27: 0
A28: 24. | B28: =B124 -> KOHOUTOVÁ | C28: Anna | D28: 7.A | E28: 11.42 | G28: Jilemnice 29.04.22 | H28: 655.1803496 | J28: 13.25 | K28: 0 | L28: 0
A29: 25. | B29: =B125 -> KRAUSOVÁ | C29: Anežka | D29: 7.A | E29: 11.38 | G29: Jilemnice 29.04.22 | H29: 657.6902978 | J29: 11.74 | K29: 0 | L29: 0
A30: 26. | B30: =B126 -> KUŽELOVÁ | C30: Apoléna | D30: 7.A | E30: 10.24 | G30: 0 | H30: 737.466945 | J30: 10.86 | K30: 0 | L30: 0
A31: 27. | B31: =B127 -> MORÁVKOVÁ | C31: Lucie | D31: 7.A | E31: 11.75 | G31: 0 | H31: 635.1253288 | J31: 11.58 | K31: 0 | L31: 0
A32: 28. | B32: =B128 -> SKLENÁROVÁ | C32: Eliška | D32: 7.A | E32: 0 | G32: 0 | H32: 0 | J32: 0 | K32: 0 | L32: 0
A33: 29. | B33: =B129 -> ŠEJNOVÁ | C33: Karolína | D33: 7.A | E33: 0 | G33: 0 | H33: 0 | J33: 0 | K33: 0 | L33: 0
A34: 30. | B34: =B130 -> ŠTOLFOVÁ | C34: Tereza | D34: 7.A | E34: 10.77 | G34: Jilemnice 29.04.22 | H34: 698.2771171 | J34: 10.82 | K34: 0 | L34: 0
A35: 31. | B35: =B131 -> ŠUBÍKOVÁ | C35: Klára | D35: 7.A | E35: 10.5 | G35: Jilemnice 29.04.22 | H35: 717.7473842 | J35: 0 | K35: 0 | L35: 0
A36: 32. | B36: =B132 -> ŠULKOVSKÁ | C36: Klára | D36: 7.A | E36: 11.49 | G36: Jilemnice 29.04.22 | H36: 650.829991 | J36: 0 | K36: 0 | L36: 0
A37: 33. | B37: =B133 -> TULÁČKOVÁ | C37: Natálie | D37: 7.A | E37: 10.4 | G37: 0 | H37: 725.2151469 | J37: 11.52 | K37: 0 | L37: 0
A38: 34. | B38: =B134 -> VOJTÍŠKOVÁ | C38: Ella | D38: 7.A | E38: 9.52 | G38: 0 | H38: 797.6963731 | J38: 10.61 | K38: 0 | L38: 0
A39: 35. | B39: =B135 -> DRUGÁČOVÁ | C39: Kristinka | D39: 7.B | E39: 0 | G39: 0 | H39: 0 | J39: 0 | K39: 0 | L39: 0
A40: 36. | B40: =B136 -> FAJSTAVROVÁ | C40: Karolína | D40: 7.B | E40: 9.02 | G40: Turnov 10.05.22 | H40: 845.1795388 | J40: 10.61 | K40: 0 | L40: 0
A41: 37. | B41: =B137 -> FAJSTAVROVÁ | C41: Magdaléna | D41: 7.B | E41: 9.68 | G41: 0 | H41: 783.5377564 | J41: 10.25 | K41: 0 | L41: 0
A42: 38. | B42: =B138 -> HLAVATÁ | C42: Anna | D42: 7.B | E42: 0 | G42: 0 | H42: 0 | J42: 0 | K42: 0 | L42: 0
A43: 39. | B43: =B139 -> JINDROVÁ | C43: Barbora | D43: 7.B | E43: 10.8 | G43: 0 | H43: 696.1738475 | J43: 12.1 | K43: 0 | L43: 0
A44: 40. | B44: =B140 -> MAŘASOVÁ | C44: Vendula | D44: 7.B | E44: 10.78 | G44: 0 | H44: 697.5747265 | J44: 0 | K44: 0 | L44: 0
A45: 41. | B45: =B141 -> PETŘÍČKOVÁ | C45: Natálie | D45: 7.B | E45: 8.9 | G45: Jilemnice 14.6.22 | H45: 857.3693744 | J45: 10.78 | K45: 0 | L45: 0
A46: 42. | B46: =B142 -> PETŘÍKOVÁ | C46: Adéla | D46: 7.B | E46: 10.97 | G46: Jilemnice 29.04.22 | H46: 684.4726129 | J46: 12.38 | K46: 0 | L46: 0
A47: 43. | B47: =B143 -> REGÁLOVÁ | C47: Karolína | D47: 7.B | E47: 10.52 | G47: 0 | H47: 716.2708683 | J47: 11.39 | K47: 0 | L47: 0
A48: 44. | B48: =B144 -> RIEGROVÁ | C48: Magdaléna | D48: 7.B | E48: 0 | G48: 0 | H48: 0 | J48: 0 | K48: 0 | L48: 0
A49: 45. | B49: =B145 -> RYBENSKÁ | C49: Sabina | D49: 7.B | E49: 10.38 | G49: 0 | H49: 726.7259659 | J49: 11.01 | K49: 0 | L49: 0
A50: 46. | B50: =B146 -> STEINEROVÁ | C50: Barbora | D50: 7.B | E50: 9.98 | G50: 0 | H50: 758.213978 | J50: 11.26 | K50: 0 | L50: 0
A51: 47. | B51: =B147 -> TOMEŠOVÁ | C51: Barbora | D51: 7.B | E51: 9.98 | G51: 0 | H51: 758.213978 | J51: 11.59 | K51: 0 | L51: 0
A52: 48. | B52: =B148 -> VOHNOUTOVÁ | C52: Aneta | D52: 7.B | E52: 9.17 | H52: 830.3908887 | J52: 10.21 | K52: 0 | L52: 0
A53: 49. | B53: =B149 -> HAVLÍKOVÁ | C53: Michaela | D53: 8.A | E53: 9.94 | G53: Jilemnice 08.06.22 | H53: 761.5021628 | J53: 11.75 | K53: 12.24 | L53: 0
A54: 50. | B54: =B150 -> HOLUBCOVÁ | C54: Sára | D54: 8.A | E54: 9.02 | G54: Jilemnice 08.06.22 | H54: 845.1795388 | J54: 9.58 | K54: 9.96 | L54: 0
A55: 51. | B55: =B151 -> HONCŮ | C55: Tereza | D55: 8.A | E55: 10.2 | G55: Jilemnice 08.06.22 | H55: 740.5899524 | J55: 11.17 | K55: 0 | L55: 0
A56: 52. | B56: =B152 -> HORÁČKOVÁ | C56: Kateřina | D56: 8.A | E56: 9.82 | G56: Jilemnice 13.09.21 | H56: 771.527443 | J56: 9.59 | K56: 9.91 | L56: 0
A57: 53. | B57: =B153 -> JOUDALOVÁ | C57: Daniela | D57: 8.A | E57: 0 | G57: 0 | H57: 0 | J57: 0 | K57: 13.96 | L57: 0
A58: 54. | B58: =B154 -> KLÍMOVÁ | C58: Anna | D58: 8.A | E58: 10.9 | G58: Jilemnice 08.06.22 | H58: 689.2465651 | J58: 10.81 | K58: 11.09 | L58: 0
A59: 55. | B59: =B155 -> KOHOUTOVÁ | C59: Veronika | D59: 8.A | E59: 9.39 | G59: Jilemnice 08.06.22 | H59: 809.5555339 | J59: 0 | K59: 9.96 | L59: 0
A60: 56. | B60: =B156 -> KOVÁŘOVÁ | C60: Viktorie | D60: 8.A | E60: 10.28 | G60: Jilemnice 13.09.21 | H60: 734.3682412 | J60: 10.62 | K60: 11.22 | L60: 0
A61: 57. | B61: =B157 -> KYNČLOVÁ | C61: Anna | D61: 8.A | E61: 9.39 | G61: Jilemnice 08.06.22 | H61: 809.5555339 | J61: 9.5 | K61: 10.51 | L61: 0
A62: 58. | B62: =B158 -> MATOUŠOVÁ | C62: Tereza | D62: 8.A | E62: 10.51 | G62: Jilemnice 08.06.22 | H62: 717.0084238 | J62: 10.81 | K62: 11.37 | L62: 0
A63: 59. | B63: =B159 -> MAZÁNKOVÁ | C63: Zuzana | D63: 8.A | E63: 10.66 | G63: Jilemnice 13.09.21 | H63: 706.0903887 | J63: 10.26 | K63: 11.5 | L63: 0
A64: 60. | B64: =B160 -> MORKESOVÁ | C64: Sabrina | D64: 8.A | E64: 8.78 | G64: Jilemnice 08.06.22 | H64: 869.8924174 | J64: 0 | K64: 9.39 | L64: 0
A65: 61. | B65: =B161 -> POHOŘALÁ | C65: Alžběta | D65: 8.A | E65: 9.66 | G65: Jilemnice 13.09.21 | H65: 785.2819338 | J65: 9.5 | K65: 10.59 | L65: 0
A66: 62. | B66: =B162 -> SCHOLZOVÁ | C66: Laura | D66: 8.A | E66: 10.56 | G66: Jilemnice 13.09.21 | H66: 713.3346153 | J66: 11.29 | K66: 0 | L66: 0
A67: 63. | B67: =B163 -> VÁCLAVÍKOVÁ | C67: Valerie | D67: 8.A | E67: 9.92 | G67: Jilemnice 08.06.22 | H67: 763.1561993 | J67: 9.42 | K67: 10.34 | L67: 0
A68: 64. | B68: =B164 -> ZAPADLOVÁ | C68: Emma | D68: 8.A | E68: 8.71 | G68: Jilemnice 08.06.22 | H68: 877.3568795 | J68: 9.52 | K68: 0 | L68: 0
A69: 65. | B69: =B165 -> ŽIŠKOVÁ | C69: Mia | D69: 8.A | E69: 0 | G69: 0 | H69: 0 | J69: 9.58 | K69: 10.58 | L69: 0
A70: 66. | B70: =B166 -> FARSKÁ | C70: Tereza | D70: 8.B | E70: 10.91 | G70: Jilemnice 30.10.21 | H70: 688.5608212 | J70: 11.55 | K70: 11.73 | L70: 0
A71: 67. | B71: =B167 -> FEIXOVÁ | C71: Rozálie | D71: 8.B | E71: 11.85 | G71: Jilemnice 30.10.21 | H71: 629.2685755 | J71: 11.58 | K71: 12.86 | L71: 0
A72: 68. | B72: =B168 -> FIŠEROVÁ | C72: Michaela | D72: 8.B | E72: 11.45 | G72: Jilemnice 30.10.21 | H72: 653.3093968 | J72: 10.9 | K72: 11.71 | L72: 0
A73: 69. | B73: =B169 -> HAVLÍČKOVÁ | C73: Kristýna | D73: 8.B | E73: 12.55 | G73: Jilemnice 30.10.21 | H73: 590.8846744 | J73: 12.36 | K73: 12.86 | L73: 0
A74: 70. | B74: =B170 -> JODASOVÁ | C74: Nikola | D74: 8.B | E74: 10.14 | G74: Jilemnice 30.10.21 | H74: 745.3206618 | J74: 9.75 | K74: 10.37 | L74: 0
A75: 71. | B75: =B171 -> KADAVÁ | C75: Nikola | D75: 8.B | E75: 12.62 | G75: Jilemnice 30.10.21 | H75: 587.2804808 | J75: 0 | K75: 12.41 | L75: 0
A76: 72. | B76: =B172 -> KRAFKOVÁ | C76: Lucie | D76: 8.B | E76: 0 | G76: 0 | H76: 0 | J76: 11.1 | K76: 0 | L76: 0
A77: 73. | B77: =B173 -> KŘIVINKOVÁ | C77: Alžběta | D77: 8.B | E77: 10.99 | G77: Jilemnice 30.10.21 | H77: 683.1197966 | J77: 11.01 | K77: 0 | L77: 0
A78: 74. | B78: =B174 -> LEŠÁKOVÁ | C78: Lenka | D78: 8.B | E78: 13 | G78: Jilemnice 30.10.21 | H78: 568.3921302 | J78: 12.4 | K78: 12.92 | L78: 0
A79: 75. | B79: =B175 -> NYKLÍČKOVÁ | C79: Adéla | D79: 8.B | E79: 9.68 | G79: Jilemnice 30.10.21 | H79: 783.5377564 | J79: 10.11 | K79: 10 | L79: 0
A80: 76. | B80: =B176 -> PLŮCHOVÁ | C80: Petra | D80: 8.B | E80: 10.54 | G80: 0 | H80: 714.799956 | J80: 11.01 | K80: 11.32 | L80: 0
A81: 77. | B81: =B177 -> PODZIMKOVÁ | C81: Eliška | D81: 8.B | E81: 10.8 | G81: Jilemnice 30.10.21 | H81: 696.1738475 | J81: 12.35 | K81: 12.09 | L81: 0
A82: 78. | B82: =B178 -> RUTKAYOVÁ | C82: Klára | D82: 8.B | E82: 13 | G82: Jilemnice 30.10.21 | H82: 568.3921302 | J82: 0 | K82: 0 | L82: 0
A83: 79. | B83: =B179 -> SEIDLOVÁ | C83: Zuzana | D83: 8.B | E83: 10.88 | G83: Jilemnice 30.10.21 | H83: 690.6218344 | J83: 12.14 | K83: 0 | L83: 0
A84: 80. | B84: =B180 -> TOMÁŠOVÁ | C84: Sára | D84: 8.B | E84: 0 | G84: 0 | H84: 0 | J84: 12.51 | K84: 12.51 | L84: 0
A85: 81. | B85: =B181 -> VANCLOVÁ | C85: Barbora | D85: 8.B | E85: 10.68 | G85: Jilemnice 30.10.21 | H85: 704.6578226 | J85: 9.97 | K85: 0 | L85: 0
A86: 82. | B86: =B182 -> VOTOČKOVÁ | C86: Veronika | D86: 8.B | E86: 13.34 | G86: Jilemnice 13.09.21 | H86: 552.4041764 | J86: 12.55 | K86: 13.86 | L86: 0
A87: 83. | B87: =B183 -> HARTIGOVÁ | C87: Anna | D87: 9.A | E87: 10.26 | G87: Jilemnice 13.09.21 | H87: 735.914573 | J87: 10.7 | K87: 10.5 | L87: 13.01
A88: 84. | B88: =B184 -> HONCŮ | C88: Rozálie | D88: 9.A | E88: 8.7 | G88: Jilemnice 04.05.22 | H88: 878.4330368 | J88: 9.18 | K88: 9.34 | L88: 9.91
A89: 85. | B89: =B185 -> CHALOUPSKÁ | C89: Lucie | D89: 9.A | E89: 8.85 | G89: Jilemnice 04.05.22 | H89: 862.5460372 | J89: 0 | K89: 9.12 | L89: 9.95
A90: 86. | B90: =B186 -> KŘÍŽKOVÁ | C90: Anna | D90: 9.A | E90: 10.26 | G90: Jilemnice 13.09.21 | H90: 735.914573 | J90: 10.8 | K90: 11.23 | L90: 11.61
A91: 87. | B91: =B187 -> LUKEŠOVÁ | C91: Kristýna | D91: 9.A | E91: 9.81 | G91: Jilemnice 13.09.21 | H91: 772.3739541 | J91: 0 | K91: 10.65 | L91: 11.73
A92: 88. | B92: =B188 -> MOTLÍKOVÁ | C92: Eliška | D92: 9.A | E92: 9.46 | G92: Jilemnice 04.05.22 | H92: 803.1293306 | J92: 10.45 | K92: 10.77 | L92: 11.39
A93: 89. | B93: =B189 -> POHOŘELÁ | C93: Amálie | D93: 9.A | E93: 9.51 | G93: Jilemnice 04.05.22 | H93: 798.5971053 | J93: 9.28 | K93: 10.23 | L93: 10.33
A94: 90. | B94: =B190 -> POLÁČKOVÁ | C94: Natálie | D94: 9.A | E94: 13.22 | G94: Jilemnice 04.05.22 | H94: 557.9530791 | J94: 0 | K94: 12.7 | L94: 13.16
A95: 91. | B95: =B191 -> ŘEHOŘKOVÁ | C95: Lucie | D95: 9.A | E95: 10.04 | G95: Jilemnice 13.09.21 | H95: 753.3308272 | J95: 10.38 | K95: 10.4 | L95: 11.62
A96: 92. | B96: =B192 -> SKÁLOVÁ | C96: Alena | D96: 9.A | E96: 11.11 | G96: =G192 -> Jilemnice 04.05.22 | H96: 675.105182 | J96: =J192 -> 11.43 | K96: 12.9 | L96: 12.88
A97: 93. | B97: =B193 -> VÁVROVÁ | C97: Aneta | D97: 9.A | E97: 9.3 | G97: =G193 -> Jilemnice 13.09.21 | H97: 817.9599417 | J97: =J193 -> 9.72 | K97: 9.7 | L97: 10.59
A98: 94. | B98: =B194 -> ZELINKOVÁ | C98: Klára | D98: 9.A | E98: 9.85 | G98: =G194 -> Jilemnice 04.05.22 | H98: 768.9982226 | J98: =J194 -> 9.71 | K98: 10.4 | L98: 10.92
B101: HEJRALOVÁ | C101: Natálie | D101: 6.A | E101: 9.9 | G101: Jilemnice 03.05.22 | H101: =IF(E101=0,0,IF(E101>0,((1000 - 321 / E101 + 340 / E101*2 - 16600 / E101*3 + 32190000000 / E101*4)/15000000-62)*0.95)) -> 764.8169188
B102: KERLE | C102: Nikita | D102: 6.A | E102: 10.06 | G102: Jilemnice 03.05.22 | H102: 751.7160543
B103: PACLÍKOVÁ | C103: Markéta | D103: 6.A | E103: 9.85 | G103: Jilemnice 03.05.22 | H103: 768.9982226
B104: PLŮCHOVÁ | C104: Michaela | D104: 6.A | E104: 9.85 | G104: Jilemnice 10.09.21 | H104: 768.9982226
B105: ŠERCLOVÁ | C105: Nikola | D105: 6.A | E105: 12.1 | G105: Jilemnice 10.09.21 | H105: 615.0502178
B106: VÁCLAVÍKOVÁ | C106: Alena | D106: 6.A | E106: 10.3 | G106: Jilemnice 10.09.21 | H106: 732.8279147
B107: DUCHÁČKOVÁ | C107: Tereza | D107: 6.B | E107: 11.67 | G107: Jilemnice 03.05.22 | H107: 639.8829998
B108: FLAŠKOVÁ | C108: Anna Sabriel | D108: 6.B | E108: 11.35 | G108: Jilemnice 03.05.22 | H108: 659.5843689
B109: HAASOVÁ | C109: Julie | D109: 6.B | E109: 9.91 | G109: Jilemnice 10.09.21 | H109: 763.9857211
B110: HOBLOVÁ | C110: Barbora | D110: 6.B | E110: 10.12 | G110: Jilemnice 03.05.22 | H110: 746.9100306
B111: HORÁČKOVÁ | C111: Valérie | D111: 6.B | E111: 10.09 | G111: Jilemnice 03.05.22 | H111: 749.3058977
B112: JIRANOVÁ | C112: Anežka | D112: 6.B | E112: 13.54 | G112: Jilemnice 03.05.22 | H112: 543.3745736
B113: JODASOVÁ | C113: Denisa | D113: 6.B | E113: 10.37 | G113: Jilemnice 10.09.21 | H113: 727.4835608
B114: KRČÍKOVÁ | C114: Beatrix | D114: 6.B | E114: 10.42 | G114: Jilemnice 10.09.21 | H114: 723.7101275
B115: KUBÁTOVÁ | C115: Veronika | D115: 6.B | E115: 12.29 | G115: Jilemnice 03.05.22 | H115: 604.6311348
B116: LENČEŠOVÁ | C116: Silvie | D116: 6.B | E116: 11.56 | G116: Jilemnice 03.05.22 | H116: 646.5323184
B117: MATERNOVÁ | C117: Lenka | D117: 6.B | E117: 9.14 | G117: Jilemnice 03.05.22 | H117: 833.3097864
B118: TÓTHOVÁ | C118: Viktorie | D118: 6.B | E118: 11.26 | G118: Jilemnice 10.09.21 | H118: 665.3271387
B119: ERBENOVÁ | C119: Sára | D119: 7.A | E119: 11.4 | G119: Jilemnice 29.04.22 | H119: 656.433122 | J119: 11.58
B120: GINGALOVÁ | C120: Linda | D120: 7.A | E120: 9.56 | H120: 794.1122881
B121: HOFMANOVÁ | C121: Nicol | D121: 7.A | E121: 10.92 | G121: Jilemnice 29.04.22 | H121: 687.8763334 | J121: 11.92
B122: HOLEŠOVSKÁ | C122: Aneta | D122: 7.A | E122: 10.51 | H122: 717.0084238 | J122: 10.99
B123: HOLUBCOVÁ | C123: Alena | D123: 7.A | E123: 9.52 | G123: Jilemnice 29.04.22 | H123: 797.6963731
B124: KOHOUTOVÁ | C124: Anna | D124: 7.A | E124: 11.42 | G124: Jilemnice 29.04.22 | H124: 655.1803496 | J124: 13.25
B125: KRAUSOVÁ | C125: Anežka | D125: 7.A | E125: 11.38 | G125: Jilemnice 29.04.22 | H125: 657.6902978 | J125: 11.74
B126: KUŽELOVÁ | C126: Apoléna | D126: 7.A | E126: 10.24 | H126: 737.466945 | J126: 10.86
B127: MORÁVKOVÁ | C127: Lucie | D127: 7.A | E127: 11.75 | H127: 635.1253288 | J127: 11.58
B128: SKLENÁROVÁ | C128: Eliška | D128: 7.A | H128: 0
B129: ŠEJNOVÁ | C129: Karolína | D129: 7.A | H129: 0
B130: ŠTOLFOVÁ | C130: Tereza | D130: 7.A | E130: 10.77 | G130: Jilemnice 29.04.22 | H130: 698.2771171 | J130: 10.82
B131: ŠUBÍKOVÁ | C131: Klára | D131: 7.A | E131: 10.5 | G131: Jilemnice 29.04.22 | H131: 717.7473842
B132: ŠULKOVSKÁ | C132: Klára | D132: 7.A | E132: 11.49 | G132: Jilemnice 29.04.22 | H132: 650.829991
B133: TULÁČKOVÁ | C133: Natálie | D133: 7.A | E133: 10.4 | H133: =IF(E133=0,0,IF(E133>0,((1000 - 321 / E133 + 340 / E133*2 - 16600 / E133*3 + 32190000000 / E133*4)/15000000-62)*0.95)) -> 725.2151469 | J133: 11.52
B134: VOJTÍŠKOVÁ | C134: Ella | D134: 7.A | E134: 9.52 | H134: 797.6963731 | J134: 10.61
B135: DRUGÁČOVÁ | C135: Kristinka | D135: 7.B | H135: 0
B136: FAJSTAVROVÁ | C136: Karolína | D136: 7.B | E136: 9.02 | G136: Turnov 10.05.22 | H136: 845.1795388 | J136: 10.61
B137: FAJSTAVROVÁ | C137: Magdaléna | D137: 7.B | E137: 9.68 | H137: 783.5377564 | J137: 10.25
B138: HLAVATÁ | C138: Anna | D138: 7.B | H138: 0
B139: JINDROVÁ | C139: Barbora | D139: 7.B | E139: 10.8 | H139: 696.1738475 | J139: 12.1
B140: MAŘASOVÁ | C140: Vendula | D140: 7.B | E140: 10.78 | H140: 697.5747265
B141: PETŘÍČKOVÁ | C141: Natálie | D141: 7.B | E141: 8.9 | G141: Jilemnice 14.6.22 | H141: 857.3693744 | J141: 10.78
B142: PETŘÍKOVÁ | C142: Adéla | D142: 7.B | E142: 10.97 | G142: Jilemnice 29.04.22 | H142: 684.4726129 | J142: 12.38
B143: REGÁLOVÁ | C143: Karolína | D143: 7.B | E143: 10.52 | H143: 716.2708683 | J143: 11.39
B144: RIEGROVÁ | C144: Magdaléna | D144: 7.B | H144: 0
B145: RYBENSKÁ | C145: Sabina | D145: 7.B | E145: 10.38 | H145: 726.7259659 | J145: 11.01
B146: STEINEROVÁ | C146: Barbora | D146: 7.B | E146: 9.98 | H146: 758.213978 | J146: 11.26
B147: TOMEŠOVÁ | C147: Barbora | D147: 7.B | E147: 9.98 | H147: 758.213978 | J147: 11.59
B148: VOHNOUTOVÁ | C148: Aneta | D148: 7.B | E148: 9.17 | H148: 830.3908887 | J148: 10.21
B149: HAVLÍKOVÁ | C149: Michaela | D149: 8.A | E149: 9.94 | G149: Jilemnice 08.06.22 | H149: 761.5021628 | J149: 11.75 | K149: 12.24
B150: HOLUBCOVÁ | C150: Sára | D150: 8.A | E150: 9.02 | G150: Jilemnice 08.06.22 | H150: 845.1795388 | J150: 9.58 | K150: 9.96
B151: HONCŮ | C151: Tereza | D151: 8.A | E151: 10.2 | G151: Jilemnice 08.06.22 | H151: 740.5899524 | J151: 11.17
B152: HORÁČKOVÁ | C152: Kateřina | D152: 8.A | E152: 9.82 | G152: Jilemnice 13.09.21 | H152: 771.527443 | J152: 9.59 | K152: 9.91
B153: JOUDALOVÁ | C153: Daniela | D153: 8.A | H153: 0 | K153: 13.96
B154: KLÍMOVÁ | C154: Anna | D154: 8.A | E154: 10.9 | G154: Jilemnice 08.06.22 | H154: 689.2465651 | J154: 10.81 | K154: 11.09
B155: KOHOUTOVÁ | C155: Veronika | D155: 8.A | E155: 9.39 | G155: Jilemnice 08.06.22 | H155: 809.5555339 | K155: 9.96
B156: KOVÁŘOVÁ | C156: Viktorie | D156: 8.A | E156: 10.28 | G156: Jilemnice 13.09.21 | H156: 734.3682412 | J156: 10.62 | K156: 11.22
B157: KYNČLOVÁ | C157: Anna | D157: 8.A | E157: 9.39 | G157: Jilemnice 08.06.22 | H157: 809.5555339 | J157: 9.5 | K157: 10.51
B158: MATOUŠOVÁ | C158: Tereza | D158: 8.A | E158: 10.51 | G158: Jilemnice 08.06.22 | H158: 717.0084238 | J158: 10.81 | K158: 11.37
B159: MAZÁNKOVÁ | C159: Zuzana | D159: 8.A | E159: 10.66 | G159: Jilemnice 13.09.21 | H159: 706.0903887 | J159: 10.26 | K159: 11.5
B160: MORKESOVÁ | C160: Sabrina | D160: 8.A | E160: 8.78 | G160: Jilemnice 08.06.22 | H160: 869.8924174 | K160: 9.39
B161: POHOŘALÁ | C161: Alžběta | D161: 8.A | E161: 9.66 | G161: Jilemnice 13.09.21 | H161: 785.2819338 | J161: 9.5 | K161: 10.59
B162: SCHOLZOVÁ | C162: Laura | D162: 8.A | E162: 10.56 | G162: Jilemnice 13.09.21 | H162: 713.3346153 | J162: 11.29
B163: VÁCLAVÍKOVÁ | C163: Valerie | D163: 8.A | E163: 9.92 | G163: Jilemnice 08.06.22 | H163: 763.1561993 | J163: 9.42 | K163: 10.34
B164: ZAPADLOVÁ | C164: Emma | D164: 8.A | E164: 8.71 | G164: Jilemnice 08.06.22 | H164: 877.3568795 | J164: 9.52
B165: ŽIŠKOVÁ | C165: Mia | D165: 8.A | H165: =IF(E165=0,0,IF(E165>0,((1000 - 321 / E165 + 340 / E165*2 - 16600 / E165*3 + 32190000000 / E165*4)/15000000-62)*0.95)) -> 0 | J165: 9.58 | K165: 10.58
B166: FARSKÁ | C166: Tereza | D166: 8.B | E166: 10.91 | G166: Jilemnice 30.10.21 | H166: 688.5608212 | J166: 11.55 | K166: 11.73
B167: FEIXOVÁ | C167: Rozálie | D167: 8.B | E167: 11.85 | G167: Jilemnice 30.10.21 | H167: 629.2685755 | J167: 11.58 | K167: 12.86
B168: FIŠEROVÁ | C168: Michaela | D168: 8.B | E168: 11.45 | G168: Jilemnice 30.10.21 | H168: 653.3093968 | J168: 10.9 | K168: 11.71
B169: HAVLÍČKOVÁ | C169: Kristýna | D169: 8.B | E169: 12.55 | G169: Jilemnice 30.10.21 | H169: 590.8846744 | J169: 12.36 | K169: 12.86
B170: JODASOVÁ | C170: Nikola | D170: 8.B | E170: 10.14 | G170: Jilemnice 30.10.21 | H170: 745.3206618 | J170: 9.75 | K170: 10.37
B171: KADAVÁ | C171: Nikola | D171: 8.B | E171: 12.62 | G171: Jilemnice 30.10.21 | H171: 587.2804808 | K171: 12.41
B172: KRAFKOVÁ | C172: Lucie | D172: 8.B | H172: 0 | J172: 11.1
B173: KŘIVINKOVÁ | C173: Alžběta | D173: 8.B | E173: 10.99 | G173: Jilemnice 30.10.21 | H173: 683.1197966 | J173: 11.01
B174: LEŠÁKOVÁ | C174: Lenka | D174: 8.B | E174: 13 | G174: Jilemnice 30.10.21 | H174: 568.3921302 | J174: 12.4 | K174: 12.92
B175: NYKLÍČKOVÁ | C175: Adéla | D175: 8.B | E175: 9.68 | G175: Jilemnice 30.10.21 | H175: 783.5377564 | J175: 10.11 | K175: 10
B176: PLŮCHOVÁ | C176: Petra | D176: 8.B | E176: 10.54 | H176: 714.799956 | J176: 11.01 | K176: 11.32
B177: PODZIMKOVÁ | C177: Eliška | D177: 8.B | E177: 10.8 | G177: Jilemnice 30.10.21 | H177: 696.1738475 | J177: 12.35 | K177: 12.09
B178: RUTKAYOVÁ | C178: Klára | D178: 8.B | E178: 13 | G178: Jilemnice 30.10.21 | H178: 568.3921302
B179: SEIDLOVÁ | C179: Zuzana | D179: 8.B | E179: 10.88 | G179: Jilemnice 30.10.21 | H179: 690.6218344 | J179: 12.14
B180: TOMÁŠOVÁ | C180: Sára | D180: 8.B | H180: 0 | J180: 12.51 | K180: 12.51
B181: VANCLOVÁ | C181: Barbora | D181: 8.B | E181: 10.68 | G181: Jilemnice 30.10.21 | H181: 704.6578226 | J181: 9.97
B182: VOTOČKOVÁ | C182: Veronika | D182: 8.B | E182: 13.34 | G182: Jilemnice 13.09.21 | H182: 552.4041764 | J182: 12.55 | K182: 13.86
B183: HARTIGOVÁ | C183: Anna | D183: 9.A | E183: 10.26 | G183: Jilemnice 13.09.21 | H183: 735.914573 | J183: 10.7 | K183: 10.5 | L183: 13.01
B184: HONCŮ | C184: Rozálie | D184: 9.A | E184: 8.7 | G184: Jilemnice 04.05.22 | H184: 878.4330368 | J184: 9.18 | K184: 9.34 | L184: 9.91
B185: CHALOUPSKÁ | C185: Lucie | D185: 9.A | E185: 8.85 | G185: Jilemnice 04.05.22 | H185: 862.5460372 | K185: 9.12 | L185: 9.95
B186: KŘÍŽKOVÁ | C186: Anna | D186: 9.A | E186: 10.26 | G186: Jilemnice 13.09.21 | H186: 735.914573 | J186: 10.8 | K186: 11.23 | L186: 11.61
B187: LUKEŠOVÁ | C187: Kristýna | D187: 9.A | E187: 9.81 | G187: Jilemnice 13.09.21 | H187: 772.3739541 | K187: 10.65 | L187: 11.73
B188: MOTLÍKOVÁ | C188: Eliška | D188: 9.A | E188: 9.46 | G188: Jilemnice 04.05.22 | H188: 803.1293306 | J188: 10.45 | K188: 10.77 | L188: 11.39
B189: POHOŘELÁ | C189: Amálie | D189: 9.A | E189: 9.51 | G189: Jilemnice 04.05.22 | H189: 798.5971053 | J189: 9.28 | K189: 10.23 | L189: 10.33
B190: POLÁČKOVÁ | C190: Natálie | D190: 9.A | E190: 13.22 | G190: Jilemnice 04.05.22 | H190: 557.9530791 | K190: 12.7 | L190: 13.16
B191: ŘEHOŘKOVÁ | C191: Lucie | D191: 9.A | E191: 10.04 | G191: Jilemnice 13.09.21 | H191: 753.3308272 | J191: 10.38 | K191: 10.4 | L191: 11.62
B192: SKÁLOVÁ | C192: Alena | D192: 9.A | E192: 11.11 | G192: Jilemnice 04.05.22 | H192: 675.105182 | J192: 11.43 | K192: 12.9 | L192: 12.88
B193: VÁVROVÁ | C193: Aneta | D193: 9.A | E193: 9.3 | G193: Jilemnice 13.09.21 | H193: 817.9599417 | J193: 9.72 | K193: 9.7 | L193: 10.59
B194: ZELINKOVÁ | C194: Klára | D194: 9.A | E194: 9.85 | G194: Jilemnice 04.05.22 | H194: 768.9982226 | J194: 9.71 | K194: 10.4 | L194: 10.92

Sheet D300
C1: VÝKONY 2020 - 2021 | G1: 300 M
K2: stav k | L2: =TODAY() -> 44740
H3: BODY | J3: 20 - 21 | K3: 19 - 20 | L3: 18 - 19
A5: 1. | B5: =B101 -> HEJRALOVÁ | C5: =C101 -> Natálie | D5: 6.A | E5: 00:00:55.050 | G5: Jilemnice 27.05.22 | H5: 756.23959 | J5: 00:00:00 | K5: 00:00:00 | L5: 00:00:00
A6: 2. | B6: =B102 -> KERLE | C6: Nikita | D6: 6.A | E6: 00:00:54.390 | G6: Jilemnice 27.05.22 | H6: 768.0251173 | J6: 00:00:00 | K6: 00:00:00 | L6: 00:00:00
A7: 3. | B7: =B103 -> PACLÍKOVÁ | C7: Markéta | D7: 6.A | E7: 00:01:00.360 | G7: Jilemnice 27.05.22 | H7: 670.7979785 | J7: 00:00:00 | K7: 00:00:00 | L7: 00:00:00
A8: 4. | B8: =B104 -> PLŮCHOVÁ | C8: Michaela | D8: 6.A | E8: 00:01:00.380 | G8: Jilemnice 27.05.22 | H8: 670.5045724 | J8: 00:00:00 | K8: 00:00:00 | L8: 00:00:00
A9: 5. | B9: =B105 -> ŠERCLOVÁ | C9: Nikola | D9: 6.A | E9: 00:01:19.980 | G9: Jilemnice 27.05.22 | H9: 453.5029268 | J9: 00:00:00 | K9: 00:00:00 | L9: 00:00:00
A10: 6. | B10: =B106 -> VÁCLAVÍKOVÁ | C10: Alena | D10: 6.A | E10: 00:01:04.060 | G10: Jilemnice 27.05.22 | H10: 619.6360362 | J10: 00:00:00 | K10: 00:00:00 | L10: 00:00:00
A11: 7. | B11: =B107 -> DUCHÁČKOVÁ | C11: Tereza | D11: 6.B | E11: 00:01:12.790 | G11: Jilemnice 27.05.22 | H11: 519.5353501 | J11: 00:00:00 | K11: 00:00:00 | L11: 00:00:00
A12: 8. | B12: =B108 -> FLAŠKOVÁ | C12: Anna Sabriel | D12: 6.B | E12: 00:01:10.930 | G12: Jilemnice 27.05.22 | H12: 538.7969665 | J12: 00:00:00 | K12: 00:00:00 | L12: 00:00:00
A13: 9. | B13: =B109 -> HAASOVÁ | C13: Julie | D13: 6.B | E13: 00:01:00.470 | G13: Jilemnice 27.05.22 | H13: 669.1866468 | J13: 00:00:00 | K13: 00:00:00 | L13: 00:00:00
A14: 10. | B14: =B110 -> HOBLOVÁ | C14: Barbora | D14: 6.B | E14: 00:01:02.520 | G14: Jilemnice 27.05.22 | H14: 640.1947662 | J14: 00:00:00 | K14: 00:00:00 | L14: 00:00:00
A15: 11. | B15: =B111 -> HORÁČKOVÁ | C15: Valérie | D15: 6.B | E15: 00:00:58.030 | G15: Jilemnice 27.05.22 | H15: 706.3640243 | J15: 00:00:00 | K15: 00:00:00 | L15: 00:00:00
A16: 12. | B16: =B112 -> JIRANOVÁ | C16: Anežka | D16: 6.B | E16: 00:00:00 | G16: 0 | H16: 0 | J16: 00:00:00 | K16: 00:00:00 | L16: 00:00:00
A17: 13. | B17: =B113 -> JODASOVÁ | C17: Denisa | D17: 6.B | E17: 00:00:00 | G17: 0 | H17: 0 | J17: 00:00:00 | K17: 00:00:00 | L17: 00:00:00
A18: 14. | B18: =B114 -> KRČÍKOVÁ | C18: Beatrix | D18: 6.B | E18: 00:01:04.060 | G18: Jilemnice 27.05.22 | H18: 619.6360362 | J18: 00:00:00 | K18: 00:00:00 | L18: 00:00:00
A19: 15. | B19: =B115 -> KUBÁTOVÁ | C19: Veronika | D19: 6.B | E19: 00:01:16.940 | G19: Jilemnice 27.05.22 | H19: 479.9161539 | J19: 00:00:00 | K19: 00:00:00 | L19: 00:00:00
A20: 16. | B20: =B116 -> LENČEŠOVÁ | C20: Silvie | D20: 6.B | E20: 00:01:07.700 | G20: Jilemnice 27.05.22 | H20: 574.7607486 | J20: 00:00:00 | K20: 00:00:00 | L20: 00:00:00
A21: 17. | B21: =B117 -> MATERNOVÁ | C21: Lenka | D21: 6.B | E21: 00:00:53.800 | G21: Jilemnice 27.05.22 | H21: 778.8054495 | J21: 00:00:00 | K21: 00:00:00 | L21: 00:00:00
A22: 18. | B22: =B118 -> TÓTHOVÁ | C22: Viktorie | D22: 6.B | E22: 00:01:07.190 | G22: Jilemnice 27.05.22 | H22: 580.7553227 | J22: 00:00:00 | K22: 00:00:00 | L22: 00:00:00
A23: 19. | B23: =B119 -> ERBENOVÁ | C23: Sára | D23: 7.A | E23: 00:01:20.200 | G23: Jilemnice 27.05.22 | H23: 451.6691419 | J23: 00:00:00 | K23: 00:00:00 | L23: 00:00:00
A24: 20. | B24: =B120 -> GINGALOVÁ | C24: Linda | D24: 7.A | E24: 00:00:00 | G24: 0 | H24: 0 | J24: 00:00:00 | K24: 00:00:00 | L24: 00:00:00
A25: 21. | B25: =B121 -> HOFMANOVÁ | C25: Nicol | D25: 7.A | E25: 00:00:00 | G25: 0 | H25: 0 | J25: 00:01:15.700 | K25: 00:00:00 | L25: 00:00:00
A26: 22. | B26: =B122 -> HOLEŠOVSKÁ | C26: Aneta | D26: 7.A | E26: 00:00:00 | G26: 0 | H26: 0 | J26: 00:00:00 | K26: 00:00:00 | L26: 00:00:00
A27: 23. | B27: =B123 -> HOLUBCOVÁ | C27: Alena | D27: 7.A | E27: 00:01:06.230 | G27: Jilemnice 27.05.22 | H27: 592.2896774 | J27: 00:00:59.270 | K27: 00:00:00 | L27: 00:00:00
A28: 24. | B28: =B124 -> KOHOUTOVÁ | C28: Anna | D28: 7.A | E28: 00:01:15.470 | G28: Jilemnice 27.05.22 | H28: 493.4515905 | J28: 00:01:24.100 | K28: 00:00:00 | L28: 00:00:00
A29: 25. | B29: =B125 -> KRAUSOVÁ | C29: Anežka | D29: 7.A | E29: 00:01:10.810 | G29: Jilemnice 27.05.22 | H29: 540.0743995 | J29: 00:01:04.100 | K29: 00:00:00 | L29: 00:00:00
A30: 26. | B30: =B126 -> KUŽELOVÁ | C30: Apoléna | D30: 7.A | E30: 00:00:00 | G30: 0 | H30: 0 | J30: 00:00:00 | K30: 00:00:00 | L30: 00:00:00
A31: 27. | B31: =B127 -> MORÁVKOVÁ | C31: Lucie | D31: 7.A | E31: 00:00:00 | G31: 0 | H31: 0 | J31: 00:00:00 | K31: 00:00:00 | L31: 00:00:00
A32: 28. | B32: =B128 -> SKLENÁROVÁ | C32: Eliška | D32: 7.A | E32: 00:00:00 | G32: 0 | H32: 0 | J32: 00:01:17.530 | K32: 00:00:00 | L32: 00:00:00
A33: 29. | B33: =B129 -> ŠEJNOVÁ | C33: Karolína | D33: 7.A | E33: 00:01:08.750 | G33: Jilemnice 27.05.22 | H33: 562.6990245 | J33: 00:00:00 | K33: 00:00:00 | L33: 00:00:00
A34: 30. | B34: =B130 -> ŠTOLFOVÁ | C34: Tereza | D34: 7.A | E34: 00:01:05.420 | G34: Jilemnice 27.05.22 | H34: 602.2851006 | J34: 00:01:04.880 | K34: 00:00:00 | L34: 00:00:00
A35: 31. | B35: =B131 -> ŠUBÍKOVÁ | C35: Klára | D35: 7.A | E35: 00:01:03.080 | G35: Jilemnice 27.05.22 | H35: 632.6027201 | J35: 00:01:06.100 | K35: 00:00:00 | L35: 00:00:00
A36: 32. | B36: =B132 -> ŠULKOVSKÁ | C36: Klára | D36: 7.A | E36: 00:01:16.660 | G36: Jilemnice 27.05.22 | H36: 482.454311 | J36: 00:00:00 | K36: 00:00:00 | L36: 00:00:00
A37: 33. | B37: =B133 -> TULÁČKOVÁ | C37: Natálie | D37: 7.A | E37: 00:00:00 | G37: 0 | H37: 0 | J37: 00:00:00 | K37: 00:00:00 | L37: 00:00:00
A38: 34. | B38: =B134 -> VOJTÍŠKOVÁ | C38: Ella | D38: 7.A | E38: 00:00:00 | G38: 0 | H38: 0 | J38: 00:00:00 | K38: 00:00:00 | L38: 00:00:00
A39: 35. | B39: =B135 -> DRUGÁČOVÁ | C39: Kristinka | D39: 7.B | E39: 00:00:00 | G39: 0 | H39: 0 | J39: 00:01:03.360 | K39: 00:00:00 | L39: 00:00:00
A40: 36. | B40: =B136 -> FAJSTAVROVÁ | C40: Karolína | D40: 7.B | E40: 00:00:00 | G40: 0 | H40: 0 | J40: 00:00:00 | K40: 00:00:00 | L40: 00:00:00
A41: 37. | B41: =B137 -> FAJSTAVROVÁ | C41: Magdaléna | D41: 7.B | E41: 00:00:00 | G41: 0 | H41: 0 | J41: 00:00:00 | K41: 00:00:00 | L41: 00:00:00
A42: 38. | B42: =B138 -> HLAVATÁ | C42: Anna | D42: 7.B | E42: 00:00:00 | G42: 0 | H42: 0 | J42: 00:00:00 | K42: 00:00:00 | L42: 00:00:00
A43: 39. | B43: =B139 -> JINDROVÁ | C43: Barbora | D43: 7.B | E43: 00:00:00 | G43: 0 | H43: 0 | J43: 00:00:00 | K43: 00:00:00 | L43: 00:00:00
A44: 40. | B44: =B140 -> MAŘASOVÁ | C44: Vendula | D44: 7.B | E44: 00:00:00 | G44: 0 | H44: 0 | J44: 00:00:00 | K44: 00:00:00 | L44: 00:00:00
A45: 41. | B45: =B141 -> PETŘÍČKOVÁ | C45: Natálie | D45: 7.B | E45: 00:00:55.240 | G45: 0 | H45: 752.8989932 | J45: 00:00:00 | K45: 00:00:00 | L45: 00:00:00
A46: 42. | B46: =B142 -> PETŘÍKOVÁ | C46: Adéla | D46: 7.B | E46: 00:01:01.950 | G46: Jilemnice 27.05.22 | H46: 648.0633403 | J46: 00:01:10.660 | K46: 00:00:00 | L46: 00:00:00
A47: 43. | B47: =B143 -> REGÁLOVÁ | C47: Karolína | D47: 7.B | E47: 00:00:00 | G47: 0 | H47: 0 | J47: 00:00:00 | K47: 00:00:00 | L47: 00:00:00
A48: 44. | B48: =B144 -> RIEGROVÁ | C48: Magdaléna | D48: 7.B | E48: 00:00:00 | G48: 0 | H48: 0 | J48: 00:01:13.300 | K48: 00:00:00 | L48: 00:00:00
A49: 45. | B49: =B145 -> RYBENSKÁ | C49: Sabina | D49: 7.B | E49: 00:00:00 | G49: 0 | H49: 0 | J49: 00:00:00 | K49: 00:00:00 | L49: 00:00:00
A50: 46. | B50: =B146 -> STEINEROVÁ | C50: Barbora | D50: 7.B | E50: 00:01:07.540 | G50: Jilemnice 27.05.22 | H50: 576.6316536 | J50: 00:00:00 | K50: 00:00:00 | L50: 00:00:00
A51: 47. | B51: =B147 -> TOMEŠOVÁ | C51: Barbora | D51: 7.B | E51: 00:00:00 | G51: 0 | H51: 0 | J51: 00:00:00 | K51: 00:00:00 | L51: 00:00:00
A52: 48. | B52: =B148 -> VOHNOUTOVÁ | C52: Aneta | D52: 7.B | E52: 00:00:00 | G52: 0 | H52: 0 | J52: 00:00:00 | K52: 00:00:00 | L52: 00:00:00
A53: 49. | B53: =B149 -> HAVLÍKOVÁ | C53: Michaela | D53: 8.A | E53: 00:01:09.740 | G53: Jilemnice 29.09.21 | H53: 551.6592039 | J53: 00:00:00 | K53: 00:01:18.970 | L53: 00:00:00
A54: 50. | B54: =B150 -> HOLUBCOVÁ | C54: Sára | D54: 8.A | E54: 00:00:57.550 | G54: Jilemnice 29.09.21 | H54: 714.0486869 | J54: 00:00:00 | K54: 00:00:58.890 | L54: 00:00:00
A55: 51. | B55: =B151 -> HONCŮ | C55: Tereza | D55: 8.A | E55: 00:01:04.060 | G55: Jilemnice 22.06.22 | H55: 619.6360362 | J55: 00:00:00 | K55: 00:01:07.580 | L55: 00:00:00
A56: 52. | B56: =B152 -> HORÁČKOVÁ | C56: Kateřina | D56: 8.A | E56: 00:00:56.460 | G56: Jilemnice 29.09.21 | H56: 731.9845285 | J56: 00:00:00 | K56: 00:01:02.240 | L56: 00:00:00
A57: 53. | B57: =B153 -> JOUDALOVÁ | C57: Daniela | D57: 8.A | E57: 00:00:00 | G57: 0 | H57: 0 | J57: 00:00:00 | K57: 00:01:29.440 | L57: 00:00:00
A58: 54. | B58: =B154 -> KLÍMOVÁ | C58: Anna | D58: 8.A | E58: 00:01:02.190 | G58: Jilemnice 22.06.22 | H58: 644.7326762 | J58: 00:00:00 | K58: 00:01:03.720 | L58: 00:00:00
A59: 55. | B59: =B155 -> KOHOUTOVÁ | C59: Veronika | D59: 8.A | E59: 00:00:57.510 | G59: Jilemnice 29.09.21 | H59: 714.6948658 | J59: 00:00:00 | K59: 00:00:59.130 | L59: 00:00:00
A60: 56. | B60: =B156 -> KOVÁŘOVÁ | C60: Viktorie | D60: 8.A | E60: 00:00:59.520 | G60: Jilemnice 22.06.22 | H60: 683.2990891 | J60: 00:00:00 | K60: 00:01:04.860 | L60: 00:00:00
A61: 57. | B61: =B157 -> KYNČLOVÁ | C61: Anna | D61: 8.A | E61: 00:00:48.500 | G61: Jilemnice 22.06.22 | H61: 887.4063233 | J61: 00:00:00 | K61: 00:00:59.780 | L61: 00:00:00
A62: 58. | B62: =B158 -> MATOUŠOVÁ | C62: Tereza | D62: 8.A | E62: 00:01:07.350 | G62: Jilemnice 22.06.22 | H62: 578.8648988 | J62: 00:00:00 | K62: 00:01:10.610 | L62: 00:00:00
A63: 59. | B63: =B159 -> MAZÁNKOVÁ | C63: Zuzana | D63: 8.A | E63: 00:01:03.030 | G63: Jilemnice 29.09.21 | H63: 633.2750965 | J63: 00:00:00 | K63: 00:01:04.850 | L63: 00:00:00
A64: 60. | B64: =B160 -> MORKESOVÁ | C64: Sabrina | D64: 8.A | E64: 00:00:57.420 | G64: Jilemnice 22.06.22 | H64: 716.1520599 | J64: 00:00:00 | K64: 00:01:00.680 | L64: 00:00:00
A65: 61. | B65: =B161 -> POHOŘALÁ | C65: Alžběta | D65: 8.A | E65: 00:00:56.850 | G65: Jilemnice 22.06.22 | H65: 725.4880991 | J65: 00:00:00 | K65: 00:01:05.990 | L65: 00:00:00
A66: 62. | B66: =B162 -> SCHOLZOVÁ | C66: Laura | D66: 8.A | E66: 00:00:00 | G66: 0 | H66: 0 | J66: 00:00:00 | K66: 00:01:14.770 | L66: 00:00:00
A67: 63. | B67: =B163 -> VÁCLAVÍKOVÁ | C67: Valerie | D67: 8.A | E67: 00:00:54.530 | G67: Jilemnice 22.06.22 | H67: 765.5013173 | J67: 00:00:00 | K67: 00:01:03.520 | L67: 00:00:00
A68: 64. | B68: =B164 -> ZAPADLOVÁ | C68: Emma | D68: 8.A | E68: 00:00:56.120 | G68: Jilemnice 22.06.22 | H68: 737.7217531 | J68: 00:00:00 | K68: 00:01:04.690 | L68: 00:00:00
A69: 65. | B69: =B165 -> ŽIŠKOVÁ | C69: Mia | D69: 8.A | E69: 00:00:00 | G69: 0 | H69: 0 | J69: 00:00:00 | K69: 00:01:06.460 | L69: 00:00:00
A70: 66. | B70: =B166 -> FARSKÁ | C70: Tereza | D70: 8.B | E70: 00:00:00 | G70: 0 | H70: 0 | J70: 00:00:00 | K70: 00:01:14.230 | L70: 00:00:00
A71: 67. | B71: =B167 -> FEIXOVÁ | C71: Rozálie | D71: 8.B | E71: 00:00:00 | G71: 0 | H71: 0 | J71: 00:00:00 | K71: 00:01:28.320 | L71: 00:00:00
A72: 68. | B72: =B168 -> FIŠEROVÁ | C72: Michaela | D72: 8.B | E72: 00:01:24.900 | G72: Jilemnice 30.10.21 | H72: 414.7631176 | J72: 00:00:00 | K72: 00:01:19.320 | L72: 00:00:00
A73: 69. | B73: =B169 -> HAVLÍČKOVÁ | C73: Kristýna | D73: 8.B | E73: 00:01:16.300 | G73: Jilemnice 30.10.21 | H73: 485.7450286 | J73: 00:00:00 | K73: 00:00:00 | L73: 00:00:00
A74: 70. | B74: =B170 -> JODASOVÁ | C74: Nikola | D74: 8.B | E74: 00:01:00.200 | G74: Jilemnice 30.10.21 | H74: 673.1522455 | J74: 00:00:00 | K74: 00:01:11.830 | L74: 00:00:00
A75: 71. | B75: =B171 -> KADAVÁ | C75: Nikola | D75: 8.B | E75: 00:01:19 | G75: Jilemnice 30.10.21 | H75: 461.7956858 | J75: 00:00:00 | K75: 00:01:29.980 | L75: 00:00:00
A76: 72. | B76: =B172 -> KRAFKOVÁ | C76: Lucie | D76: 8.B | E76: 00:00:00 | G76: 0 | H76: 0 | J76: 00:00:00 | K76: 00:00:00 | L76: 00:00:00
A77: 73. | B77: =B173 -> KŘIVINKOVÁ | C77: Alžběta | D77: 8.B | E77: 00:00:00 | G77: 0 | H77: 0 | J77: 00:00:00 | K77: 00:01:12.620 | L77: 00:00:00
A78: 74. | B78: =B174 -> LEŠÁKOVÁ | C78: Lenka | D78: 8.B | E78: 00:01:15.300 | G78: Jilemnice 30.10.21 | H78: 495.0510051 | J78: 00:00:00 | K78: 00:01:32.350 | L78: 00:00:00
A79: 75. | B79: =B175 -> NYKLÍČKOVÁ | C79: Adéla | D79: 8.B | E79: 00:00:56.010 | G79: Jilemnice 30.10.21 | H79: 739.5928269 | J79: 00:00:00 | K79: 00:01:09.160 | L79: 00:00:00
A80: 76. | B80: =B176 -> PLŮCHOVÁ | C80: Petra | D80: 8.B | E80: 00:01:05.200 | G80: Jilemnice 30.10.21 | H80: 605.0427942 | J80: 00:00:00 | K80: 00:01:10.250 | L80: 00:00:00
A81: 77. | B81: =B177 -> PODZIMKOVÁ | C81: Eliška | D81: 8.B | E81: 00:01:24.900 | G81: Jilemnice 30.10.21 | H81: 414.7631176 | J81: 00:00:00 | K81: 00:01:21.100 | L81: 00:00:00
A82: 78. | B82: =B178 -> RUTKAYOVÁ | C82: Klára | D82: 8.B | E82: 00:00:00 | G82: 0 | H82: 0 | J82: 00:00:00 | K82: 00:01:19.660 | L82: 00:00:00
A83: 79. | B83: =B179 -> SEIDLOVÁ | C83: Zuzana | D83: 8.B | E83: 00:01:04 | G83: 0 | H83: 620.4185028 | J83: 00:00:00 | K83: 00:01:25.020 | L83: 00:00:00
A84: 80. | B84: =B180 -> TOMÁŠOVÁ | C84: Sára | D84: 8.B | E84: 00:01:23.900 | G84: Jilemnice 30.10.21 | H84: 422.2691738 | J84: 00:00:00 | K84: 00:00:00 | L84: 00:00:00
A85: 81. | B85: =B181 -> VANCLOVÁ | C85: Barbora | D85: 8.B | E85: 00:01:03.900 | G85: Jilemnice 30.10.21 | H85: 621.7258792 | J85: 00:00:00 | K85: 00:01:16.110 | L85: 00:00:00
A86: 82. | B86: =B182 -> VOTOČKOVÁ | C86: Veronika | D86: 8.B | E86: 00:00:00 | G86: 0 | H86: 0 | J86: 00:00:00 | K86: 00:01:36.510 | L86: 00:00:00
A87: 83. | B87: =B183 -> HARTIGOVÁ | C87: Anna | D87: 9.A | E87: 00:00:00 | G87: 0 | H87: 0 | J87: 00:00:00 | K87: 00:01:03.510 | L87: 00:01:29.540
A88: 84. | B88: =B184 -> HONCŮ | C88: Rozálie | D88: 9.A | E88: 00:00:54.840 | G88: Jilemnice 29.09.21 | H88: 759.9587597 | J88: 00:00:00 | K88: 00:01:03.850 | L88: 00:01:06.010
A89: 85. | B89: =B185 -> CHALOUPSKÁ | C89: Lucie | D89: 9.A | E89: 00:00:54.290 | G89: Jilemnice 29.09.21 | H89: 769.8358009 | J89: 00:00:50.300 | K89: 00:00:57.680 | L89: 00:00:56.920
A90: 86. | B90: =B186 -> KŘÍŽKOVÁ | C90: Anna | D90: 9.A | E90: 00:01:05.380 | G90: Jilemnice 29.09.21 | H90: 602.785119 | J90: 00:01:01.790 | K90: 00:01:07.500 | L90: 00:01:05.510
A91: 87. | B91: =B187 -> LUKEŠOVÁ | C91: Kristýna | D91: 9.A | E91: 00:00:00 | G91: 0 | H91: 0 | J91: 00:00:56.800 | K91: 00:01:05.900 | L91: 00:01:15.580
A92: 88. | B92: =B188 -> MOTLÍKOVÁ | C92: Eliška | D92: 9.A | E92: 00:00:59.240 | G92: Jilemnice 29.09.21 | H92: 687.5449085 | J92: 00:00:00 | K92: 00:01:02.560 | L92: 00:01:06.450
A93: 89. | B93: =B189 -> POHOŘELÁ | C93: Amálie | D93: 9.A | E93: 00:01:01.010 | G93: Jilemnice 29.09.21 | H93: 661.3607479 | J93: 00:01:00.730 | K93: 00:01:03.840 | L93: 00:01:07.200
A94: 90. | B94: =B190 -> POLÁČKOVÁ | C94: Natálie | D94: 9.A | E94: 00:01:37.140 | G94: Jilemnice 29.09.21 | H94: 335.4112609 | J94: 00:01:32.640 | K94: 00:01:29.720 | L94: 00:01:29.520
A95: 91. | B95: =B191 -> ŘEHOŘKOVÁ | C95: Lucie | D95: 9.A | E95: 00:01:06.560 | G95: Jilemnice 29.09.21 | H95: 588.2872143 | J95: 00:00:59.520 | K95: 00:00:00 | L95: 00:01:18.550
A96: 92. | B96: =B192 -> SKÁLOVÁ | C96: Alena | D96: 9.A | E96: 00:01:12.080 | G96: =G192 -> Jilemnice 29.09.21 | H96: 526.7705963 | J96: =J192 -> 00:01:10.120 | K96: 00:01:20.570 | L96: 00:01:32.380
A97: 93. | B97: =B193 -> VÁVROVÁ | C97: Aneta | D97: 9.A | E97: 00:00:55.660 | G97: =G193 -> Jilemnice 29.09.21 | H97: 745.5954452 | J97: =J193 -> 00:00:53.350 | K97: 00:00:53.320 | L97: 00:01:05.390
A98: 94. | B98: =B194 -> ZELINKOVÁ | C98: Klára | D98: 9.A | E98: 00:01:07.350 | G98: =G194 -> Jilemnice 29.09.21 | H98: 578.8648988 | J98: =J194 -> 00:01:01.100 | K98: 00:01:01.220 | L98: 00:01:08.240
B101: HEJRALOVÁ | C101: Natálie | D101: 6.A | E101: 00:00:55.050 | G101: Jilemnice 27.05.22 | H101: =IF(E101=0,0,IF(E101>0,(1000000000 - 313216 / E101 + 34538300 / E101*2 - 1698600000 / E101*3 + 32198000000 / E101*4)/200000000000-215)) -> 756.23959
B102: KERLE | C102: Nikita | D102: 6.A | E102: 00:00:54.390 | G102: Jilemnice 27.05.22 | H102: 768.0251173
B103: PACLÍKOVÁ | C103: Markéta | D103: 6.A | E103: 00:01:00.360 | G103: Jilemnice 27.05.22 | H103: 670.7979785
B104: PLŮCHOVÁ | C104: Michaela | D104: 6.A | E104: 00:01:00.380 | G104: Jilemnice 27.05.22 | H104: 670.5045724
B105: ŠERCLOVÁ | C105: Nikola | D105: 6.A | E105: 00:01:19.980 | G105: Jilemnice 27.05.22 | H105: 453.5029268
B106: VÁCLAVÍKOVÁ | C106: Alena | D106: 6.A | E106: 00:01:04.060 | G106: Jilemnice 27.05.22 | H106: 619.6360362
B107: DUCHÁČKOVÁ | C107: Tereza | D107: 6.B | E107: 00:01:12.790 | G107: Jilemnice 27.05.22 | H107: 519.5353501
B108: FLAŠKOVÁ | C108: Anna Sabriel | D108: 6.B | E108: 00:01:10.930 | G108: Jilemnice 27.05.22 | H108: 538.7969665
B109: HAASOVÁ | C109: Julie | D109: 6.B | E109: 00:01:00.470 | G109: Jilemnice 27.05.22 | H109: 669.1866468
B110: HOBLOVÁ | C110: Barbora | D110: 6.B | E110: 00:01:02.520 | G110: Jilemnice 27.05.22 | H110: 640.1947662
B111: HORÁČKOVÁ | C111: Valérie | D111: 6.B | E111: 00:00:58.030 | G111: Jilemnice 27.05.22 | H111: 706.3640243
B112: JIRANOVÁ | C112: Anežka | D112: 6.B | H112: 0
B113: JODASOVÁ | C113: Denisa | D113: 6.B | H113: 0
B114: KRČÍKOVÁ | C114: Beatrix | D114: 6.B | E114: 00:01:04.060 | G114: Jilemnice 27.05.22 | H114: 619.6360362
B115: KUBÁTOVÁ | C115: Veronika | D115: 6.B | E115: 00:01:16.940 | G115: Jilemnice 27.05.22 | H115: 479.9161539
B116: LENČEŠOVÁ | C116: Silvie | D116: 6.B | E116: 00:01:07.700 | G116: Jilemnice 27.05.22 | H116: 574.7607486
B117: MATERNOVÁ | C117: Lenka | D117: 6.B | E117: 00:00:53.800 | G117: Jilemnice 27.05.22 | H117: 778.8054495
B118: TÓTHOVÁ | C118: Viktorie | D118: 6.B | E118: 00:01:07.190 | G118: Jilemnice 27.05.22 | H118: 580.7553227
B119: ERBENOVÁ | C119: Sára | D119: 7.A | E119: 00:01:20.200 | G119: Jilemnice 27.05.22 | H119: 451.6691419
B120: GINGALOVÁ | C120: Linda | D120: 7.A | H120: 0
B121: HOFMANOVÁ | C121: Nicol | D121: 7.A | H121: 0 | J121: 00:01:15.700
B122: HOLEŠOVSKÁ | C122: Aneta | D122: 7.A | H122: 0
B123: HOLUBCOVÁ | C123: Alena | D123: 7.A | E123: 00:01:06.230 | G123: Jilemnice 27.05.22 | H123: 592.2896774 | J123: 00:00:59.270
B124: KOHOUTOVÁ | C124: Anna | D124: 7.A | E124: 00:01:15.470 | G124: Jilemnice 27.05.22 | H124: 493.4515905 | J124: 00:01:24.100
B125: KRAUSOVÁ | C125: Anežka | D125: 7.A | E125: 00:01:10.810 | G125: Jilemnice 27.05.22 | H125: 540.0743995 | J125: 00:01:04.100
B126: KUŽELOVÁ | C126: Apoléna | D126: 7.A | H126: 0
B127: MORÁVKOVÁ | C127: Lucie | D127: 7.A | H127: 0
B128: SKLENÁROVÁ | C128: Eliška | D128: 7.A | H128: 0 | J128: 00:01:17.530
B129: ŠEJNOVÁ | C129: Karolína | D129: 7.A | E129: 00:01:08.750 | G129: Jilemnice 27.05.22 | H129: 562.6990245
B130: ŠTOLFOVÁ | C130: Tereza | D130: 7.A | E130: 00:01:05.420 | G130: Jilemnice 27.05.22 | H130: 602.2851006 | J130: 00:01:04.880
B131: ŠUBÍKOVÁ | C131: Klára | D131: 7.A | E131: 00:01:03.080 | G131: Jilemnice 27.05.22 | H131: 632.6027201 | J131: 00:01:06.100
B132: ŠULKOVSKÁ | C132: Klára | D132: 7.A | E132: 00:01:16.660 | G132: Jilemnice 27.05.22 | H132: 482.454311
B133: TULÁČKOVÁ | C133: Natálie | D133: 7.A | H133: =IF(E133=0,0,IF(E133>0,(1000000000 - 313216 / E133 + 34538300 / E133*2 - 1698600000 / E133*3 + 32198000000 / E133*4)/200000000000-215)) -> 0
B134: VOJTÍŠKOVÁ | C134: Ella | D134: 7.A | H134: 0
B135: DRUGÁČOVÁ | C135: Kristinka | D135: 7.B | H135: 0 | J135: 00:01:03.360
B136: FAJSTAVROVÁ | C136: Karolína | D136: 7.B | H136: 0
B137: FAJSTAVROVÁ | C137: Magdaléna | D137: 7.B | H137: 0
B138: HLAVATÁ | C138: Anna | D138: 7.B | H138: 0
B139: JINDROVÁ | C139: Barbora | D139: 7.B | H139: 0
B140: MAŘASOVÁ | C140: Vendula | D140: 7.B | H140: 0
B141: PETŘÍČKOVÁ | C141: Natálie | D141: 7.B | E141: 00:00:55.240 | H141: 752.8989932
B142: PETŘÍKOVÁ | C142: Adéla | D142: 7.B | E142: 00:01:01.950 | G142: Jilemnice 27.05.22 | H142: 648.0633403 | J142: 00:01:10.660
B143: REGÁLOVÁ | C143: Karolína | D143: 7.B | H143: 0
B144: RIEGROVÁ | C144: Magdaléna | D144: 7.B | H144: 0 | J144: 00:01:13.300
B145: RYBENSKÁ | C145: Sabina | D145: 7.B | H145: 0
B146: STEINEROVÁ | C146: Barbora | D146: 7.B | E146: 00:01:07.540 | G146: Jilemnice 27.05.22 | H146: 576.6316536
B147: TOMEŠOVÁ | C147: Barbora | D147: 7.B | H147: 0
B148: VOHNOUTOVÁ | C148: Aneta | D148: 7.B | H148: 0
B149: HAVLÍKOVÁ | C149: Michaela | D149: 8.A | E149: 00:01:09.740 | G149: Jilemnice 29.09.21 | H149: 551.6592039 | K149: 00:01:18.970
B150: HOLUBCOVÁ | C150: Sára | D150: 8.A | E150: 00:00:57.550 | G150: Jilemnice 29.09.21 | H150: 714.0486869 | K150: 00:00:58.890
B151: HONCŮ | C151: Tereza | D151: 8.A | E151: 00:01:04.060 | G151: Jilemnice 22.06.22 | H151: 619.6360362 | K151: 00:01:07.580
B152: HORÁČKOVÁ | C152: Kateřina | D152: 8.A | E152: 00:00:56.460 | G152: Jilemnice 29.09.21 | H152: 731.9845285 | K152: 00:01:02.240
B153: JOUDALOVÁ | C153: Daniela | D153: 8.A | H153: 0 | K153: 00:01:29.440
B154: KLÍMOVÁ | C154: Anna | D154: 8.A | E154: 00:01:02.190 | G154: Jilemnice 22.06.22 | H154: 644.7326762 | K154: 00:01:03.720
B155: KOHOUTOVÁ | C155: Veronika | D155: 8.A | E155: 00:00:57.510 | G155: Jilemnice 29.09.21 | H155: 714.6948658 | K155: 00:00:59.130
B156: KOVÁŘOVÁ | C156: Viktorie | D156: 8.A | E156: 00:00:59.520 | G156: Jilemnice 22.06.22 | H156: 683.2990891 | K156: 00:01:04.860
B157: KYNČLOVÁ | C157: Anna | D157: 8.A | E157: 00:00:48.500 | G157: Jilemnice 22.06.22 | H157: 887.4063233 | K157: 00:00:59.780
B158: MATOUŠOVÁ | C158: Tereza | D158: 8.A | E158: 00:01:07.350 | G158: Jilemnice 22.06.22 | H158: 578.8648988 | K158: 00:01:10.610
B159: MAZÁNKOVÁ | C159: Zuzana | D159: 8.A | E159: 00:01:03.030 | G159: Jilemnice 29.09.21 | H159: 633.2750965 | K159: 00:01:04.850
B160: MORKESOVÁ | C160: Sabrina | D160: 8.A | E160: 00:00:57.420 | G160: Jilemnice 22.06.22 | H160: 716.1520599 | K160: 00:01:00.680
B161: POHOŘALÁ | C161: Alžběta | D161: 8.A | E161: 00:00:56.850 | G161: Jilemnice 22.06.22 | H161: 725.4880991 | K161: 00:01:05.990
B162: SCHOLZOVÁ | C162: Laura | D162: 8.A | H162: 0 | K162: 00:01:14.770
B163: VÁCLAVÍKOVÁ | C163: Valerie | D163: 8.A | E163: 00:00:54.530 | G163: Jilemnice 22.06.22 | H163: 765.5013173 | K163: 00:01:03.520
B164: ZAPADLOVÁ | C164: Emma | D164: 8.A | E164: 00:00:56.120 | G164: Jilemnice 22.06.22 | H164: 737.7217531 | K164: 00:01:04.690
B165: ŽIŠKOVÁ | C165: Mia | D165: 8.A | H165: =IF(E165=0,0,IF(E165>0,(1000000000 - 313216 / E165 + 34538300 / E165*2 - 1698600000 / E165*3 + 32198000000 / E165*4)/200000000000-215)) -> 0 | K165: 00:01:06.460
B166: FARSKÁ | C166: Tereza | D166: 8.B | H166: 0 | K166: 00:01:14.230
B167: FEIXOVÁ | C167: Rozálie | D167: 8.B | H167: 0 | K167: 00:01:28.320
B168: FIŠEROVÁ | C168: Michaela | D168: 8.B | E168: 00:01:24.900 | G168: Jilemnice 30.10.21 | H168: 414.7631176 | K168: 00:01:19.320
B169: HAVLÍČKOVÁ | C169: Kristýna | D169: 8.B | E169: 00:01:16.300 | G169: Jilemnice 30.10.21 | H169: 485.7450286
B170: JODASOVÁ | C170: Nikola | D170: 8.B | E170: 00:01:00.200 | G170: Jilemnice 30.10.21 | H170: 673.1522455 | K170: 00:01:11.830
B171: KADAVÁ | C171: Nikola | D171: 8.B | E171: 00:01:19 | G171: Jilemnice 30.10.21 | H171: 461.7956858 | K171: 00:01:29.980
B172: KRAFKOVÁ | C172: Lucie | D172: 8.B | H172: 0
B173: KŘIVINKOVÁ | C173: Alžběta | D173: 8.B | H173: 0 | K173: 00:01:12.620
B174: LEŠÁKOVÁ | C174: Lenka | D174: 8.B | E174: 00:01:15.300 | G174: Jilemnice 30.10.21 | H174: 495.0510051 | K174: 00:01:32.350
B175: NYKLÍČKOVÁ | C175: Adéla | D175: 8.B | E175: 00:00:56.010 | G175: Jilemnice 30.10.21 | H175: 739.5928269 | K175: 00:01:09.160
B176: PLŮCHOVÁ | C176: Petra | D176: 8.B | E176: 00:01:05.200 | G176: Jilemnice 30.10.21 | H176: 605.0427942 | K176: 00:01:10.250
B177: PODZIMKOVÁ | C177: Eliška | D177: 8.B | E177: 00:01:24.900 | G177: Jilemnice 30.10.21 | H177: 414.7631176 | K177: 00:01:21.100
B178: RUTKAYOVÁ | C178: Klára | D178: 8.B | H178: 0 | K178: 00:01:19.660
B179: SEIDLOVÁ | C179: Zuzana | D179: 8.B | E179: 00:01:04 | H179: 620.4185028 | K179: 00:01:25.020
B180: TOMÁŠOVÁ | C180: Sára | D180: 8.B | E180: 00:01:23.900 | G180: Jilemnice 30.10.21 | H180: 422.2691738
B181: VANCLOVÁ | C181: Barbora | D181: 8.B | E181: 00:01:03.900 | G181: Jilemnice 30.10.21 | H181: 621.7258792 | K181: 00:01:16.110
B182: VOTOČKOVÁ | C182: Veronika | D182: 8.B | H182: 0 | K182: 00:01:36.510
B183: HARTIGOVÁ | C183: Anna | D183: 9.A | H183: 0 | K183: 00:01:03.510 | L183: 00:01:29.540
B184: HONCŮ | C184: Rozálie | D184: 9.A | E184: 00:00:54.840 | G184: Jilemnice 29.09.21 | H184: 759.9587597 | K184: 00:01:03.850 | L184: 00:01:06.010
B185: CHALOUPSKÁ | C185: Lucie | D185: 9.A | E185: 00:00:54.290 | G185: Jilemnice 29.09.21 | H185: 769.8358009 | J185: 00:00:50.300 | K185: 00:00:57.680 | L185: 00:00:56.920
B186: KŘÍŽKOVÁ | C186: Anna | D186: 9.A | E186: 00:01:05.380 | G186: Jilemnice 29.09.21 | H186: 602.785119 | J186: 00:01:01.790 | K186: 00:01:07.500 | L186: 00:01:05.510
B187: LUKEŠOVÁ | C187: Kristýna | D187: 9.A | H187: 0 | J187: 00:00:56.800 | K187: 00:01:05.900 | L187: 00:01:15.580
B188: MOTLÍKOVÁ | C188: Eliška | D188: 9.A | E188: 00:00:59.240 | G188: Jilemnice 29.09.21 | H188: 687.5449085 | K188: 00:01:02.560 | L188: 00:01:06.450
B189: POHOŘELÁ | C189: Amálie | D189: 9.A | E189: 00:01:01.010 | G189: Jilemnice 29.09.21 | H189: 661.3607479 | J189: 00:01:00.730 | K189: 00:01:03.840 | L189: 00:01:07.200
B190: POLÁČKOVÁ | C190: Natálie | D190: 9.A | E190: 00:01:37.140 | G190: Jilemnice 29.09.21 | H190: 335.4112609 | J190: 00:01:32.640 | K190: 00:01:29.720 | L190: 00:01:29.520
B191: ŘEHOŘKOVÁ | C191: Lucie | D191: 9.A | E191: 00:01:06.560 | G191: Jilemnice 29.09.21 | H191: 588.2872143 | J191: 00:00:59.520 | L191: 00:01:18.550
B192: SKÁLOVÁ | C192: Alena | D192: 9.A | E192: 00:01:12.080 | G192: Jilemnice 29.09.21 | H192: 526.7705963 | J192: 00:01:10.120 | K192: 00:01:20.570 | L192: 00:01:32.380
B193: VÁVROVÁ | C193: Aneta | D193: 9.A | E193: 00:00:55.660 | G193: Jilemnice 29.09.21 | H193: 745.5954452 | J193: 00:00:53.350 | K193: 00:00:53.320 | L193: 00:01:05.390
B194: ZELINKOVÁ | C194: Klára | D194: 9.A | E194: 00:01:07.350 | G194: Jilemnice 29.09.21 | H194: 578.8648988 | J194: 00:01:01.100 | K194: 00:01:01.220 | L194: 00:01:08.240

Sheet D800
C1: VÝKONY 2020 - 2021 | G1: 800 M | H1: DĚVČATA 6. - 9. ROČ.
K2: stav k | L2: =TODAY() -> 44740
H3: BODY | J3: 20 - 21 | K3: 19 - 20 | L3: 18 - 19
A5: 1. | B5: =B101 -> HEJRALOVÁ | C5: =C101 -> Natálie | D5: 6.A | E5: 00:03:31.050 | G5: Jilemnice 19.10.21 | H5: 673.3444205 | J5: 00:00:00 | K5: 00:00:00 | L5: 00:00:00
A6: 2. | B6: =B102 -> KERLE | C6: Nikita | D6: 6.A | E6: 00:03:11.490 | G6: Jilemnice 10.06.22 | H6: 755.4031017 | J6: 00:00:00 | K6: 00:00:00 | L6: 00:00:00
A7: 3. | B7: =B103 -> PACLÍKOVÁ | C7: Markéta | D7: 6.A | E7: 00:03:40.990 | G7: Jilemnice 10.06.22 | H7: 637.2104618 | J7: 00:00:00 | K7: 00:00:00 | L7: 00:00:00
A8: 4. | B8: =B104 -> PLŮCHOVÁ | C8: Michaela | D8: 6.A | E8: 00:00:00 | G8: 0 | H8: 0 | J8: 00:00:00 | K8: 00:00:00 | L8: 00:00:00
A9: 5. | B9: =B105 -> ŠERCLOVÁ | C9: Nikola | D9: 6.A | E9: 00:04:19.510 | G9: Jilemnice 10.06.22 | H9: 523.3306615 | J9: 00:00:00 | K9: 00:00:00 | L9: 00:00:00
A10: 6. | B10: =B106 -> VÁCLAVÍKOVÁ | C10: Alena | D10: 6.A | E10: 00:03:41 | G10: Jilemnice 19.10.21 | H10: 637.1757464 | J10: 00:00:00 | K10: 00:00:00 | L10: 00:00:00
A11: 7. | B11: =B107 -> DUCHÁČKOVÁ | C11: Tereza | D11: 6.B | E11: 00:00:00 | G11: 0 | H11: 0 | J11: 00:00:00 | K11: 00:00:00 | L11: 00:00:00
A12: 8. | B12: =B108 -> FLAŠKOVÁ | C12: Anna Sabriel | D12: 6.B | E12: 00:00:00 | G12: 0 | H12: 0 | J12: 00:00:00 | K12: 00:00:00 | L12: 00:00:00
A13: 9. | B13: =B109 -> HAASOVÁ | C13: Julie | D13: 6.B | E13: 00:03:42.600 | G13: Jilemnice 10.06.22 | H13: 631.6614553 | J13: 00:00:00 | K13: 00:00:00 | L13: 00:00:00
A14: 10. | B14: =B110 -> HOBLOVÁ | C14: Barbora | D14: 6.B | E14: 00:03:50.020 | G14: Jilemnice 10.06.22 | H14: 607.091731 | J14: 00:00:00 | K14: 00:00:00 | L14: 00:00:00
A15: 11. | B15: =B111 -> HORÁČKOVÁ | C15: Valérie | D15: 6.B | E15: 00:03:52.200 | G15: Jilemnice 10.06.22 | H15: 600.1715761 | J15: 00:00:00 | K15: 00:00:00 | L15: 00:00:00
A16: 12. | B16: =B112 -> JIRANOVÁ | C16: Anežka | D16: 6.B | E16: 00:05:28.300 | G16: Jilemnice 19.10.21 | H16: 386.435699 | J16: 00:00:00 | K16: 00:00:00 | L16: 00:00:00
A17: 13. | B17: =B113 -> JODASOVÁ | C17: Denisa | D17: 6.B | E17: 00:03:47.740 | G17: Jilemnice 19.10.21 | H17: 614.4710633 | J17: 00:00:00 | K17: 00:00:00 | L17: 00:00:00
A18: 14. | B18: =B114 -> KRČÍKOVÁ | C18: Beatrix | D18: 6.B | E18: 00:04:05.040 | G18: Jilemnice 19.10.21 | H18: 561.9108716 | J18: 00:00:00 | K18: 00:00:00 | L18: 00:00:00
A19: 15. | B19: =B115 -> KUBÁTOVÁ | C19: Veronika | D19: 6.B | E19: 00:00:00 | G19: 0 | H19: 0 | J19: 00:00:00 | K19: 00:00:00 | L19: 00:00:00
A20: 16. | B20: =B116 -> LENČEŠOVÁ | C20: Silvie | D20: 6.B | E20: 00:03:54.470 | G20: Jilemnice 10.06.22 | H20: 593.1024863 | J20: 00:00:00 | K20: 00:00:00 | L20: 00:00:00
A21: 17. | B21: =B117 -> MATERNOVÁ | C21: Lenka | D21: 6.B | E21: 00:03:35.860 | G21: Jilemnice 10.06.22 | H21: 655.443528 | J21: 00:00:00 | K21: 00:00:00 | L21: 00:00:00
A22: 18. | B22: =B118 -> TÓTHOVÁ | C22: Viktorie | D22: 6.B | E22: 00:04:27.230 | G22: Jilemnice 19.10.21 | H22: 504.4566103 | J22: 00:00:00 | K22: 00:00:00 | L22: 00:00:00
A23: 19. | B23: =B119 -> ERBENOVÁ | C23: Sára | D23: 7.A | E23: 00:05:08.840 | G23: Jilemnice 06.05.22 | H23: 418.9762983 | J23: 00:00:00 | K23: 00:00:00 | L23: 00:00:00
A24: 20. | B24: =B120 -> GINGALOVÁ | C24: Linda | D24: 7.A | E24: 00:05:08.800 | G24: Jilemnice 30.10.21 | H24: 419.0474093 | J24: 00:00:00 | K24: 00:00:00 | L24: 00:00:00
A25: 21. | B25: =B121 -> HOFMANOVÁ | C25: Nicol | D25: 7.A | E25: 00:00:00 | G25: 0 | H25: 0 | J25: 00:00:00 | K25: 00:00:00 | L25: 00:00:00
A26: 22. | B26: =B122 -> HOLEŠOVSKÁ | C26: Aneta | D26: 7.A | E26: 00:04:49.500 | G26: Jilemnice 30.10.21 | H26: 455.6505699 | J26: 00:06:54 | K26: 00:00:00 | L26: 00:00:00
A27: 23. | B27: =B123 -> HOLUBCOVÁ | C27: Alena | D27: 7.A | E27: 00:04:04.630 | G27: Jilemnice 06.05.22 | H27: 563.0705145 | J27: 00:00:00 | K27: 00:00:00 | L27: 00:00:00
A28: 24. | B28: =B124 -> KOHOUTOVÁ | C28: Anna | D28: 7.A | E28: 00:04:17.170 | G28: Jilemnice 06.05.22 | H28: 529.275343 | J28: 00:00:00 | K28: 00:00:00 | L28: 00:00:00
A29: 25. | B29: =B125 -> KRAUSOVÁ | C29: Anežka | D29: 7.A | E29: 00:00:00 | G29: 0 | H29: 0 | J29: 00:00:00 | K29: 00:00:00 | L29: 00:00:00
A30: 26. | B30: =B126 -> KUŽELOVÁ | C30: Apoléna | D30: 7.A | E30: 00:04:34.300 | G30: Jilemnice 30.10.21 | H30: 488.103682 | J30: 00:04:22 | K30: 00:00:00 | L30: 00:00:00
A31: 27. | B31: =B127 -> MORÁVKOVÁ | C31: Lucie | D31: 7.A | E31: 00:04:49.900 | G31: Jilemnice 30.10.21 | H31: 454.8424973 | J31: 00:04:54 | K31: 00:00:00 | L31: 00:00:00
A32: 28. | B32: =B128 -> SKLENÁROVÁ | C32: Eliška | D32: 7.A | E32: 00:00:00 | G32: 0 | H32: 0 | J32: 00:00:00 | K32: 00:00:00 | L32: 00:00:00
A33: 29. | B33: =B129 -> ŠEJNOVÁ | C33: Karolína | D33: 7.A | E33: 00:05:05.610 | G33: Jilemnice 06.05.22 | H33: 424.778443 | J33: 00:00:00 | K33: 00:00:00 | L33: 00:00:00
A34: 30. | B34: =B130 -> ŠTOLFOVÁ | C34: Tereza | D34: 7.A | E34: 00:00:00 | G34: 0 | H34: 0 | J34: 00:00:00 | K34: 00:00:00 | L34: 00:00:00
A35: 31. | B35: =B131 -> ŠUBÍKOVÁ | C35: Klára | D35: 7.A | E35: 00:04:05.760 | G35: Jilemnice 06.05.22 | H35: 559.8837889 | J35: 00:00:00 | K35: 00:00:00 | L35: 00:00:00
A36: 32. | B36: =B132 -> ŠULKOVSKÁ | C36: Klára | D36: 7.A | E36: 00:00:00 | G36: 0 | H36: 0 | J36: 00:00:00 | K36: 00:00:00 | L36: 00:00:00
A37: 33. | B37: =B133 -> TULÁČKOVÁ | C37: Natálie | D37: 7.A | E37: 00:04:18.400 | G37: 0 | H37: 526.1371516 | J37: 00:04:48 | K37: 00:00:00 | L37: 00:00:00
A38: 34. | B38: =B134 -> VOJTÍŠKOVÁ | C38: Ella | D38: 7.A | E38: 00:04:44.200 | G38: Jilemnice 30.10.21 | H38: 466.572273 | J38: 00:00:00 | K38: 00:00:00 | L38: 00:00:00
A39: 35. | B39: =B135 -> DRUGÁČOVÁ | C39: Kristinka | D39: 7.B | E39: 00:00:00 | G39: 0 | H39: 0 | J39: 00:00:00 | K39: 00:00:00 | L39: 00:00:00
A40: 36. | B40: =B136 -> FAJSTAVROVÁ | C40: Karolína | D40: 7.B | E40: 00:03:22.300 | G40: Jilemnice 30.10.21 | H40: 708.0911515 | J40: 00:03:11 | K40: 00:00:00 | L40: 00:00:00
A41: 37. | B41: =B137 -> FAJSTAVROVÁ | C41: Magdaléna | D41: 7.B | E41: 00:03:07.700 | H41: 773.28098 | J41: 00:03:02 | K41: 00:00:00 | L41: 00:00:00
A42: 38. | B42: =B138 -> HLAVATÁ | C42: Anna | D42: 7.B | E42: 00:00:00 | G42: 0 | H42: 0 | J42: 00:00:00 | K42: 00:00:00 | L42: 00:00:00
A43: 39. | B43: =B139 -> JINDROVÁ | C43: Barbora | D43: 7.B | E43: 00:04:03.100 | H43: 567.4324968 | J43: 00:04:04 | K43: 00:00:00 | L43: 00:00:00
A44: 40. | B44: =B140 -> MAŘASOVÁ | C44: Vendula | D44: 7.B | E44: 00:03:51.100 | H44: 603.647079 | J44: 00:04:11 | K44: 00:00:00 | L44: 00:00:00
A45: 41. | B45: =B141 -> PETŘÍČKOVÁ | C45: Natálie | D45: 7.B | E45: 00:03:45.600 | H45: 621.5329785 | J45: 00:00:00 | K45: 00:00:00 | L45: 00:00:00
A46: 42. | B46: =B142 -> PETŘÍKOVÁ | C46: Adéla | D46: 7.B | E46: 00:00:00 | G46: 0 | H46: 0 | J46: 00:00:00 | K46: 00:00:00 | L46: 00:00:00
A47: 43. | B47: =B143 -> REGÁLOVÁ | C47: Karolína | D47: 7.B | E47: 00:04:46.600 | G47: Jilemnice 30.10.21 | H47: 461.5765526 | J47: 00:04:17 | K47: 00:00:00 | L47: 00:00:00
A48: 44. | B48: =B144 -> RIEGROVÁ | C48: Magdaléna | D48: 7.B | E48: 00:00:00 | G48: 0 | H48: 0 | J48: 00:00:00 | K48: 00:00:00 | L48: 00:00:00
A49: 45. | B49: =B145 -> RYBENSKÁ | C49: Sabina | D49: 7.B | E49: 00:04:13.300 | H49: 539.3479667 | J49: 00:04:17 | K49: 00:00:00 | L49: 00:00:00
A50: 46. | B50: =B146 -> STEINEROVÁ | C50: Barbora | D50: 7.B | E50: 00:04:01.500 | H50: 572.0531676 | J50: 00:04:18 | K50: 00:00:00 | L50: 00:00:00
A51: 47. | B51: =B147 -> TOMEŠOVÁ | C51: Barbora | D51: 7.B | E51: 00:03:45.400 | G51: 0 | H51: 622.1998224 | J51: 00:04:20 | K51: 00:00:00 | L51: 00:00:00
A52: 48. | B52: =B148 -> VOHNOUTOVÁ | C52: Aneta | D52: 7.B | E52: 00:03:36.100 | H52: 654.5712168 | J52: 00:03:36 | K52: 00:00:00 | L52: 00:00:00
A53: 49. | B53: =B149 -> HAVLÍKOVÁ | C53: Michaela | D53: 8.A | E53: 00:03:55.850 | G53: Jilemnice 09.05.22 | H53: 588.871486 | J53: 00:00:00 | K53: 00:04:12.990 | L53: 00:00:00
A54: 50. | B54: =B150 -> HOLUBCOVÁ | C54: Sára | D54: 8.A | E54: 00:03:45.200 | G54: Jilemnice 09.05.22 | H54: 622.8678506 | J54: 00:00:00 | K54: 00:03:44.190 | L54: 00:00:00
A55: 51. | B55: =B151 -> HONCŮ | C55: Tereza | D55: 8.A | E55: 00:00:00 | G55: 0 | H55: 0 | J55: 00:00:00 | K55: 00:04:00.600 | L55: 00:00:00
A56: 52. | B56: =B152 -> HORÁČKOVÁ | C56: Kateřina | D56: 8.A | E56: 00:03:33.880 | G56: Jilemnice 09.05.22 | H56: 662.7147931 | J56: 00:00:00 | K56: 00:03:39.880 | L56: 00:00:00
A57: 53. | B57: =B153 -> JOUDALOVÁ | C57: Daniela | D57: 8.A | E57: 00:00:00 | G57: 0 | H57: 0 | J57: 00:00:00 | K57: 00:00:00 | L57: 00:00:00
A58: 54. | B58: =B154 -> KLÍMOVÁ | C58: Anna | D58: 8.A | E58: 00:03:51.570 | G58: Jilemnice 09.05.22 | H58: 602.1580514 | J58: 00:00:00 | K58: 00:03:43.750 | L58: 00:00:00
A59: 55. | B59: =B155 -> KOHOUTOVÁ | C59: Veronika | D59: 8.A | E59: 00:03:45.400 | G59: Jilemnice 09.05.22 | H59: 622.1998224 | J59: 00:00:00 | K59: 00:03:21.790 | L59: 00:00:00
A60: 56. | B60: =B156 -> KOVÁŘOVÁ | C60: Viktorie | D60: 8.A | E60: 00:03:21.100 | G60: Jilemnice 09.05.22 | H60: 713.0921927 | J60: 00:00:00 | K60: 00:03:46.100 | L60: 00:00:00
A61: 57. | B61: =B157 -> KYNČLOVÁ | C61: Anna | D61: 8.A | E61: 00:02:39 | G61: Turnov 10.05.22 | H61: 936.3260374 | J61: 00:00:00 | K61: 00:03:11.460 | L61: 00:00:00
A62: 58. | B62: =B158 -> MATOUŠOVÁ | C62: Tereza | D62: 8.A | E62: 00:04:23.190 | G62: Jilemnice 09.05.22 | H62: 514.1956 | J62: 00:00:00 | K62: 00:04:28.960 | L62: 00:00:00
A63: 59. | B63: =B159 -> MAZÁNKOVÁ | C63: Zuzana | D63: 8.A | E63: 00:03:41.410 | G63: Jilemnice 09.05.22 | H63: 635.7551148 | J63: 00:00:00 | K63: 00:04:00.600 | L63: 00:00:00
A64: 60. | B64: =B160 -> MORKESOVÁ | C64: Sabrina | D64: 8.A | E64: 00:03:39.565 | G64: Jilemnice 09.05.22 | H64: 642.1897386 | J64: 00:00:00 | K64: 00:03:22.340 | L64: 00:00:00
A65: 61. | B65: =B161 -> POHOŘALÁ | C65: Alžběta | D65: 8.A | E65: 00:03:32.800 | G65: Jilemnice 09.05.22 | H65: 666.7379697 | J65: 00:00:00 | K65: 00:04:00.600 | L65: 00:00:00
A66: 62. | B66: =B162 -> SCHOLZOVÁ | C66: Laura | D66: 8.A | E66: 00:00:00 | G66: 0 | H66: 0 | J66: 00:00:00 | K66: 00:04:18.780 | L66: 00:00:00
A67: 63. | B67: =B163 -> VÁCLAVÍKOVÁ | C67: Valerie | D67: 8.A | E67: 00:03:29.010 | G67: Jilemnice 09.05.22 | H67: 681.1853019 | J67: 00:00:00 | K67: 00:03:49.500 | L67: 00:00:00
A68: 64. | B68: =B164 -> ZAPADLOVÁ | C68: Emma | D68: 8.A | E68: 00:00:00 | G68: 0 | H68: 0 | J68: 00:00:00 | K68: 00:03:24.360 | L68: 00:00:00
A69: 65. | B69: =B165 -> ŽIŠKOVÁ | C69: Mia | D69: 8.A | E69: 00:00:00 | G69: 0 | H69: 0 | J69: 00:00:00 | K69: 00:04:11.900 | L69: 00:00:00
A70: 66. | B70: =B166 -> FARSKÁ | C70: Tereza | D70: 8.B | E70: =E166 -> 00:00:00 | G70: 0 | H70: 0 | J70: 00:00:00 | K70: 00:00:00 | L70: 00:00:00
A71: 67. | B71: =B167 -> FEIXOVÁ | C71: Rozálie | D71: 8.B | E71: =E167 -> 00:05:19.700 | G71: 0 | H71: 400.3279324 | J71: 00:00:00 | K71: 00:00:00 | L71: 00:00:00
A72: 68. | B72: =B168 -> FIŠEROVÁ | C72: Michaela | D72: 8.B | E72: 00:04:32.900 | G72: 0 | H72: 491.274606 | J72: 00:00:00 | K72: 00:00:00 | L72: 00:00:00
A73: 69. | B73: =B169 -> HAVLÍČKOVÁ | C73: Kristýna | D73: 8.B | E73: 00:05:08.700 | G73: 0 | H73: 419.2252672 | J73: 00:00:00 | K73: 00:00:00 | L73: 00:00:00
A74: 70. | B74: =B170 -> JODASOVÁ | C74: Nikola | D74: 8.B | E74: 00:00:00 | G74: 0 | H74: 0 | J74: 00:00:00 | K74: 00:00:00 | L74: 00:00:00
A75: 71. | B75: =B171 -> KADAVÁ | C75: Nikola | D75: 8.B | E75: 00:05:15.500 | G75: 0 | H75: 407.3877654 | J75: 00:00:00 | K75: 00:00:00 | L75: 00:00:00
A76: 72. | B76: =B172 -> KRAFKOVÁ | C76: Lucie | D76: 8.B | E76: 00:00:00 | G76: 0 | H76: 0 | J76: 00:00:00 | K76: 00:00:00 | L76: 00:00:00
A77: 73. | B77: =B173 -> KŘIVINKOVÁ | C77: Alžběta | D77: 8.B | E77: 00:04:34.100 | G77: 0 | H77: 488.554688 | J77: 00:00:00 | K77: 00:00:00 | L77: 00:00:00
A78: 74. | B78: =B174 -> LEŠÁKOVÁ | C78: Lenka | D78: 8.B | E78: 00:04:43.300 | G78: 0 | H78: 468.4674902 | J78: 00:00:00 | K78: 00:00:00 | L78: 00:00:00
A79: 75. | B79: =B175 -> NYKLÍČKOVÁ | C79: Adéla | D79: 8.B | E79: 00:03:11.700 | G79: Turnov 10.05.22 | H79: 754.4331766 | J79: 00:00:00 | K79: 00:00:00 | L79: 00:00:00
A80: 76. | B80: =B176 -> PLŮCHOVÁ | C80: Petra | D80: 8.B | E80: 00:04:01.700 | G80: 0 | H80: 571.4722382 | J80: 00:00:00 | K80: 00:00:00 | L80: 00:00:00
A81: 77. | B81: =B177 -> PODZIMKOVÁ | C81: Eliška | D81: 8.B | E81: 00:04:50.900 | G81: 0 | H81: 452.8320384 | J81: 00:00:00 | K81: 00:00:00 | L81: 00:00:00
A82: 78. | B82: =B178 -> RUTKAYOVÁ | C82: Klára | D82: 8.B | E82: 00:04:48.100 | G82: 0 | H82: 458.4964942 | J82: 00:00:00 | K82: 00:00:00 | L82: 00:00:00
A83: 79. | B83: =B179 -> SEIDLOVÁ | C83: Zuzana | D83: 8.B | E83: 00:04:29 | G83: 0 | H83: 500.281933 | J83: 00:00:00 | K83: 00:00:00 | L83: 00:00:00
A84: 80. | B84: =B180 -> TOMÁŠOVÁ | C84: Sára | D84: 8.B | E84: 00:00:00 | G84: 0 | H84: 0 | J84: 00:00:00 | K84: 00:00:00 | L84: 00:00:00
A85: 81. | B85: =B181 -> VANCLOVÁ | C85: Barbora | D85: 8.B | E85: 00:04:29.100 | G85: 0 | H85: 500.0477145 | J85: 00:00:00 | K85: 00:00:00 | L85: 00:00:00
A86: 82. | B86: =B182 -> VOTOČKOVÁ | C86: Veronika | D86: 8.B | E86: 00:05:08.500 | G86: 0 | H86: 419.581329 | J86: 00:00:00 | K86: 00:00:00 | L86: 00:00:00
A87: 83. | B87: =B183 -> HARTIGOVÁ | C87: Anna | D87: 9.A | E87: 00:03:58 | G87: Jilemnice 13.06.22 | H87: 582.3774788 | J87: 00:00:00 | K87: 00:00:00 | L87: 00:04:39.330
A88: 84. | B88: =B184 -> HONCŮ | C88: Rozálie | D88: 9.A | E88: 00:04:12.180 | G88: Jilemnice 10.06.22 | H88: 542.3207232 | J88: 00:00:00 | K88: 00:00:00 | L88: 00:04:50.840
A89: 85. | B89: =B185 -> CHALOUPSKÁ | C89: Lucie | D89: 9.A | E89: 00:00:00 | G89: 0 | H89: 0 | J89: 00:00:00 | K89: 00:00:00 | L89: 00:04:20.270
A90: 86. | B90: =B186 -> KŘÍŽKOVÁ | C90: Anna | D90: 9.A | E90: 00:04:07.940 | G90: Jilemnice 10.06.22 | H90: 553.8180204 | J90: 00:00:00 | K90: 00:00:00 | L90: 00:04:01.790
A91: 87. | B91: =B187 -> LUKEŠOVÁ | C91: Kristýna | D91: 9.A | E91: 00:04:09.250 | G91: Jilemnice 10.06.22 | H91: 550.224032 | J91: 00:00:00 | K91: 00:00:00 | L91: 00:04:33.830
A92: 88. | B92: =B188 -> MOTLÍKOVÁ | C92: Eliška | D92: 9.A | E92: 00:03:15.900 | G92: Turnov 10.05.22 | H92: 735.4713627 | J92: 00:00:00 | K92: 00:00:00 | L92: 00:03:45.680
A93: 89. | B93: =B189 -> POHOŘELÁ | C93: Amálie | D93: 9.A | E93: 00:04:09.250 | G93: Jilemnice 10.06.22 | H93: 550.224032 | J93: 00:00:00 | K93: 00:00:00 | L93: 00:04:11.300
A94: 90. | B94: =B190 -> POLÁČKOVÁ | C94: Natálie | D94: 9.A | E94: 00:00:00 | G94: 0 | H94: 0 | J94: 00:00:00 | K94: 00:00:00 | L94: 00:05:24.730
A95: 91. | B95: =B191 -> ŘEHOŘKOVÁ | C95: Lucie | D95: 9.A | E95: 00:04:38.580 | G95: Jilemnice 10.06.22 | H95: 478.6073658 | J95: 00:00:00 | K95: 00:00:00 | L95: 00:04:53.870
A96: 92. | B96: =B192 -> SKÁLOVÁ | C96: Alena | D96: 9.A | E96: 00:04:53.820 | G96: =G192 -> Jilemnice 10.06.22 | H96: 447.0398202 | J96: =J192 -> 00:00:00 | K96: 00:00:00 | L96: 00:05:00.980
A97: 93. | B97: =B193 -> VÁVROVÁ | C97: Aneta | D97: 9.A | E97: 00:04:10.460 | G97: =G193 -> Jilemnice 10.06.22 | H97: 546.9377943 | J97: =J193 -> 00:00:00 | K97: 00:00:00 | L97: 00:04:39.330
A98: 94. | B98: =B194 -> ZELINKOVÁ | C98: Klára | D98: 9.A | E98: 00:00:00 | G98: =G194 -> 0 | H98: 0 | J98: =J194 -> 00:00:00 | K98: 00:00:00 | L98: 00:03:48.280
B101: HEJRALOVÁ | C101: Natálie | D101: 6.A | E101: 00:03:31.050 | G101: Jilemnice 19.10.21 | H101: =IF(E101=0,0,IF(E101>0,(100 - 313216 / E101 + 3453830 / E101*2 - 169860000 / E101*3 + 321980000/ E101*4)/400000000-130)) -> 673.3444205
B102: KERLE | C102: Nikita | D102: 6.A | E102: 00:03:11.490 | G102: Jilemnice 10.06.22 | H102: 755.4031017
B103: PACLÍKOVÁ | C103: Markéta | D103: 6.A | E103: 00:03:40.990 | G103: Jilemnice 10.06.22 | H103: 637.2104618
B104: PLŮCHOVÁ | C104: Michaela | D104: 6.A | H104: 0
B105: ŠERCLOVÁ | C105: Nikola | D105: 6.A | E105: 00:04:19.510 | G105: Jilemnice 10.06.22 | H105: 523.3306615
B106: VÁCLAVÍKOVÁ | C106: Alena | D106: 6.A | E106: 00:03:41 | G106: Jilemnice 19.10.21 | H106: 637.1757464
B107: DUCHÁČKOVÁ | C107: Tereza | D107: 6.B | H107: 0
B108: FLAŠKOVÁ | C108: Anna Sabriel | D108: 6.B | H108: 0
B109: HAASOVÁ | C109: Julie | D109: 6.B | E109: 00:03:42.600 | G109: Jilemnice 10.06.22 | H109: 631.6614553
B110: HOBLOVÁ | C110: Barbora | D110: 6.B | E110: 00:03:50.020 | G110: Jilemnice 10.06.22 | H110: 607.091731
B111: HORÁČKOVÁ | C111: Valérie | D111: 6.B | E111: 00:03:52.200 | G111: Jilemnice 10.06.22 | H111: 600.1715761
B112: JIRANOVÁ | C112: Anežka | D112: 6.B | E112: 00:05:28.300 | G112: Jilemnice 19.10.21 | H112: 386.435699
B113: JODASOVÁ | C113: Denisa | D113: 6.B | E113: 00:03:47.740 | G113: Jilemnice 19.10.21 | H113: 614.4710633
B114: KRČÍKOVÁ | C114: Beatrix | D114: 6.B | E114: 00:04:05.040 | G114: Jilemnice 19.10.21 | H114: 561.9108716
B115: KUBÁTOVÁ | C115: Veronika | D115: 6.B | H115: 0
B116: LENČEŠOVÁ | C116: Silvie | D116: 6.B | E116: 00:03:54.470 | G116: Jilemnice 10.06.22 | H116: 593.1024863
B117: MATERNOVÁ | C117: Lenka | D117: 6.B | E117: 00:03:35.860 | G117: Jilemnice 10.06.22 | H117: 655.443528
B118: TÓTHOVÁ | C118: Viktorie | D118: 6.B | E118: 00:04:27.230 | G118: Jilemnice 19.10.21 | H118: 504.4566103
B119: ERBENOVÁ | C119: Sára | D119: 7.A | E119: 00:05:08.840 | G119: Jilemnice 06.05.22 | H119: 418.9762983
B120: GINGALOVÁ | C120: Linda | D120: 7.A | E120: 00:05:08.800 | G120: Jilemnice 30.10.21 | H120: 419.0474093
B121: HOFMANOVÁ | C121: Nicol | D121: 7.A | H121: 0
B122: HOLEŠOVSKÁ | C122: Aneta | D122: 7.A | E122: 00:04:49.500 | G122: Jilemnice 30.10.21 | H122: 455.6505699 | J122: 00:06:54
B123: HOLUBCOVÁ | C123: Alena | D123: 7.A | E123: 00:04:04.630 | G123: Jilemnice 06.05.22 | H123: 563.0705145
B124: KOHOUTOVÁ | C124: Anna | D124: 7.A | E124: 00:04:17.170 | G124: Jilemnice 06.05.22 | H124: 529.275343
B125: KRAUSOVÁ | C125: Anežka | D125: 7.A | H125: 0
B126: KUŽELOVÁ | C126: Apoléna | D126: 7.A | E126: 00:04:34.300 | G126: Jilemnice 30.10.21 | H126: 488.103682 | J126: 00:04:22
B127: MORÁVKOVÁ | C127: Lucie | D127: 7.A | E127: 00:04:49.900 | G127: Jilemnice 30.10.21 | H127: 454.8424973 | J127: 00:04:54
B128: SKLENÁROVÁ | C128: Eliška | D128: 7.A | H128: 0
B129: ŠEJNOVÁ | C129: Karolína | D129: 7.A | E129: 00:05:05.610 | G129: Jilemnice 06.05.22 | H129: 424.778443
B130: ŠTOLFOVÁ | C130: Tereza | D130: 7.A | H130: 0
B131: ŠUBÍKOVÁ | C131: Klára | D131: 7.A | E131: 00:04:05.760 | G131: Jilemnice 06.05.22 | H131: 559.8837889
B132: ŠULKOVSKÁ | C132: Klára | D132: 7.A | H132: 0
B133: TULÁČKOVÁ | C133: Natálie | D133: 7.A | E133: 00:04:18.400 | H133: =IF(E133=0,0,IF(E133>0,(100 - 313216 / E133 + 3453830 / E133*2 - 169860000 / E133*3 + 321980000/ E133*4)/400000000-130)) -> 526.1371516 | J133: 00:04:48
B134: VOJTÍŠKOVÁ | C134: Ella | D134: 7.A | E134: 00:04:44.200 | G134: Jilemnice 30.10.21 | H134: 466.572273
B135: DRUGÁČOVÁ | C135: Kristinka | D135: 7.B | H135: 0
B136: FAJSTAVROVÁ | C136: Karolína | D136: 7.B | E136: 00:03:22.300 | G136: Jilemnice 30.10.21 | H136: 708.0911515 | J136: 00:03:11
B137: FAJSTAVROVÁ | C137: Magdaléna | D137: 7.B | E137: 00:03:07.700 | H137: 773.28098 | J137: 00:03:02
B138: HLAVATÁ | C138: Anna | D138: 7.B | H138: 0
B139: JINDROVÁ | C139: Barbora | D139: 7.B | E139: 00:04:03.100 | H139: 567.4324968 | J139: 00:04:04
B140: MAŘASOVÁ | C140: Vendula | D140: 7.B | E140: 00:03:51.100 | H140: 603.647079 | J140: 00:04:11
B141: PETŘÍČKOVÁ | C141: Natálie | D141: 7.B | E141: 00:03:45.600 | H141: 621.5329785
B142: PETŘÍKOVÁ | C142: Adéla | D142: 7.B | H142: 0
B143: REGÁLOVÁ | C143: Karolína | D143: 7.B | E143: 00:04:46.600 | G143: Jilemnice 30.10.21 | H143: 461.5765526 | J143: 00:04:17
B144: RIEGROVÁ | C144: Magdaléna | D144: 7.B | H144: 0
B145: RYBENSKÁ | C145: Sabina | D145: 7.B | E145: 00:04:13.300 | H145: 539.3479667 | J145: 00:04:17
B146: STEINEROVÁ | C146: Barbora | D146: 7.B | E146: 00:04:01.500 | H146: 572.0531676 | J146: 00:04:18
B147: TOMEŠOVÁ | C147: Barbora | D147: 7.B | E147: 00:03:45.400 | H147: 622.1998224 | J147: 00:04:20
B148: VOHNOUTOVÁ | C148: Aneta | D148: 7.B | E148: 00:03:36.100 | H148: 654.5712168 | J148: 00:03:36
B149: HAVLÍKOVÁ | C149: Michaela | D149: 8.A | E149: 00:03:55.850 | G149: Jilemnice 09.05.22 | H149: 588.871486 | K149: 00:04:12.990
B150: HOLUBCOVÁ | C150: Sára | D150: 8.A | E150: 00:03:45.200 | G150: Jilemnice 09.05.22 | H150: 622.8678506 | K150: 00:03:44.190
B151: HONCŮ | C151: Tereza | D151: 8.A | H151: 0 | K151: 00:04:00.600
B152: HORÁČKOVÁ | C152: Kateřina | D152: 8.A | E152: 00:03:33.880 | G152: Jilemnice 09.05.22 | H152: 662.7147931 | K152: 00:03:39.880
B153: JOUDALOVÁ | C153: Daniela | D153: 8.A | H153: 0
B154: KLÍMOVÁ | C154: Anna | D154: 8.A | E154: 00:03:51.570 | G154: Jilemnice 09.05.22 | H154: 602.1580514 | K154: 00:03:43.750
B155: KOHOUTOVÁ | C155: Veronika | D155: 8.A | E155: 00:03:45.400 | G155: Jilemnice 09.05.22 | H155: 622.1998224 | K155: 00:03:21.790
B156: KOVÁŘOVÁ | C156: Viktorie | D156: 8.A | E156: 00:03:21.100 | G156: Jilemnice 09.05.22 | H156: 713.0921927 | K156: 00:03:46.100
B157: KYNČLOVÁ | C157: Anna | D157: 8.A | E157: 00:02:39 | G157: Turnov 10.05.22 | H157: 936.3260374 | K157: 00:03:11.460
B158: MATOUŠOVÁ | C158: Tereza | D158: 8.A | E158: 00:04:23.190 | G158: Jilemnice 09.05.22 | H158: 514.1956 | K158: 00:04:28.960
B159: MAZÁNKOVÁ | C159: Zuzana | D159: 8.A | E159: 00:03:41.410 | G159: Jilemnice 09.05.22 | H159: 635.7551148 | K159: 00:04:00.600
B160: MORKESOVÁ | C160: Sabrina | D160: 8.A | E160: 00:03:39.565 | G160: Jilemnice 09.05.22 | H160: 642.1897386 | K160: 00:03:22.340
B161: POHOŘALÁ | C161: Alžběta | D161: 8.A | E161: 00:03:32.800 | G161: Jilemnice 09.05.22 | H161: 666.7379697 | K161: 00:04:00.600
B162: SCHOLZOVÁ | C162: Laura | D162: 8.A | H162: 0 | K162: 00:04:18.780
B163: VÁCLAVÍKOVÁ | C163: Valerie | D163: 8.A | E163: 00:03:29.010 | G163: Jilemnice 09.05.22 | H163: 681.1853019 | K163: 00:03:49.500
B164: ZAPADLOVÁ | C164: Emma | D164: 8.A | H164: 0 | K164: 00:03:24.360
B165: ŽIŠKOVÁ | C165: Mia | D165: 8.A | H165: =IF(E165=0,0,IF(E165>0,(100 - 313216 / E165 + 3453830 / E165*2 - 169860000 / E165*3 + 321980000/ E165*4)/400000000-130)) -> 0 | K165: 00:04:11.900
B166: FARSKÁ | C166: Tereza | D166: 8.B | H166: 0
B167: FEIXOVÁ | C167: Rozálie | D167: 8.B | E167: 00:05:19.700 | H167: 400.3279324
B168: FIŠEROVÁ | C168: Michaela | D168: 8.B | E168: 00:04:32.900 | H168: 491.274606
B169: HAVLÍČKOVÁ | C169: Kristýna | D169: 8.B | E169: 00:05:08.700 | H169: 419.2252672
B170: JODASOVÁ | C170: Nikola | D170: 8.B | H170: 0
B171: KADAVÁ | C171: Nikola | D171: 8.B | E171: 00:05:15.500 | H171: 407.3877654
B172: KRAFKOVÁ | C172: Lucie | D172: 8.B | H172: 0
B173: KŘIVINKOVÁ | C173: Alžběta | D173: 8.B | E173: 00:04:34.100 | H173: 488.554688
B174: LEŠÁKOVÁ | C174: Lenka | D174: 8.B | E174: 00:04:43.300 | H174: 468.4674902
B175: NYKLÍČKOVÁ | C175: Adéla | D175: 8.B | E175: 00:03:11.700 | G175: Turnov 10.05.22 | H175: 754.4331766
B176: PLŮCHOVÁ | C176: Petra | D176: 8.B | E176: 00:04:01.700 | H176: 571.4722382
B177: PODZIMKOVÁ | C177: Eliška | D177: 8.B | E177: 00:04:50.900 | H177: 452.8320384
B178: RUTKAYOVÁ | C178: Klára | D178: 8.B | E178: 00:04:48.100 | H178: 458.4964942
B179: SEIDLOVÁ | C179: Zuzana | D179: 8.B | E179: 00:04:29 | H179: 500.281933
B180: TOMÁŠOVÁ | C180: Sára | D180: 8.B | H180: 0
B181: VANCLOVÁ | C181: Barbora | D181: 8.B | E181: 00:04:29.100 | H181: 500.0477145
B182: VOTOČKOVÁ | C182: Veronika | D182: 8.B | E182: 00:05:08.500 | H182: 419.581329
B183: HARTIGOVÁ | C183: Anna | D183: 9.A | E183: 00:03:58 | G183: Jilemnice 13.06.22 | H183: 582.3774788 | L183: 00:04:39.330
B184: HONCŮ | C184: Rozálie | D184: 9.A | E184: 00:04:12.180 | G184: Jilemnice 10.06.22 | H184: 542.3207232 | L184: 00:04:50.840
B185: CHALOUPSKÁ | C185: Lucie | D185: 9.A | H185: 0 | L185: 00:04:20.270
B186: KŘÍŽKOVÁ | C186: Anna | D186: 9.A | E186: 00:04:07.940 | G186: Jilemnice 10.06.22 | H186: 553.8180204 | L186: 00:04:01.790
B187: LUKEŠOVÁ | C187: Kristýna | D187: 9.A | E187: 00:04:09.250 | G187: Jilemnice 10.06.22 | H187: 550.224032 | L187: 00:04:33.830
B188: MOTLÍKOVÁ | C188: Eliška | D188: 9.A | E188: 00:03:15.900 | G188: Turnov 10.05.22 | H188: 735.4713627 | L188: 00:03:45.680
B189: POHOŘELÁ | C189: Amálie | D189: 9.A | E189: 00:04:09.250 | G189: Jilemnice 10.06.22 | H189: 550.224032 | L189: 00:04:11.300
B190: POLÁČKOVÁ | C190: Natálie | D190: 9.A | H190: 0 | L190: 00:05:24.730
B191: ŘEHOŘKOVÁ | C191: Lucie | D191: 9.A | E191: 00:04:38.580 | G191: Jilemnice 10.06.22 | H191: 478.6073658 | L191: 00:04:53.870
B192: SKÁLOVÁ | C192: Alena | D192: 9.A | E192: 00:04:53.820 | G192: Jilemnice 10.06.22 | H192: 447.0398202 | L192: 00:05:00.980
B193: VÁVROVÁ | C193: Aneta | D193: 9.A | E193: 00:04:10.460 | G193: Jilemnice 10.06.22 | H193: 546.9377943 | L193: 00:04:39.330
B194: ZELINKOVÁ | C194: Klára | D194: 9.A | H194: 0 | L194: 00:03:48.280

Sheet Ddál
C1: VÝKONY 2020 - 2021 | G1: DÁLKA | H1: DĚVČATA 6. - 9. ROČ.
K2: stav k | L2: =TODAY() -> 2022-06-28
H3: BODY | J3: 20 - 21 | K3: 19 - 20 | L3: 18 - 19
A5: 1. | B5: =B101 -> HEJRALOVÁ | C5: =C101 -> Natálie | D5: 6.A | E5: 344 | G5: Jilemnice 02.05.22 | H5: 728.641 | J5: 0 | K5: 0 | L5: 0
A6: 2. | B6: =B102 -> KERLE | C6: Nikita | D6: 6.A | E6: 377 | G6: Turnov 10.05.22 | H6: 786.028 | J6: 0 | K6: 0 | L6: 0
A7: 3. | B7: =B103 -> PACLÍKOVÁ | C7: Markéta | D7: 6.A | E7: 335 | G7: Jilemnice 24.09.21 | H7: 712.99 | J7: 0 | K7: 0 | L7: 0
A8: 4. | B8: =B104 -> PLŮCHOVÁ | C8: Michaela | D8: 6.A | E8: 318 | G8: Jilemnice 24.09.21 | H8: 683.427 | J8: 0 | K8: 0 | L8: 0
A9: 5. | B9: =B105 -> ŠERCLOVÁ | C9: Nikola | D9: 6.A | E9: 273 | G9: Jilemnice 02.05.22 | H9: 605.172 | J9: 0 | K9: 0 | L9: 0
A10: 6. | B10: =B106 -> VÁCLAVÍKOVÁ | C10: Alena | D10: 6.A | E10: 309 | G10: Jilemnice 24.09.21 | H10: 667.776 | J10: 0 | K10: 0 | L10: 0
A11: 7. | B11: =B107 -> DUCHÁČKOVÁ | C11: Tereza | D11: 6.B | E11: 296 | G11: Jilemnice 02.05.22 | H11: 645.169 | J11: 0 | K11: 0 | L11: 0
A12: 8. | B12: =B108 -> FLAŠKOVÁ | C12: Anna Sabriel | D12: 6.B | E12: 306 | G12: Jilemnice 24.09.21 | H12: 662.559 | J12: 0 | K12: 0 | L12: 0
A13: 9. | B13: =B109 -> HAASOVÁ | C13: Julie | D13: 6.B | E13: 365 | G13: Jilemnice 24.09.21 | H13: 765.16 | J13: 0 | K13: 0 | L13: 0
A14: 10. | B14: =B110 -> HOBLOVÁ | C14: Barbora | D14: 6.B | E14: 281 | G14: Jilemnice 24.09.21 | H14: 619.084 | J14: 0 | K14: 0 | L14: 0
A15: 11. | B15: =B111 -> HORÁČKOVÁ | C15: Valérie | D15: 6.B | E15: 307 | G15: Jilemnice 24.09.21 | H15: 664.298 | J15: 0 | K15: 0 | L15: 0
A16: 12. | B16: =B112 -> JIRANOVÁ | C16: Anežka | D16: 6.B | E16: 253 | G16: Jilemnice 02.05.22 | H16: 570.392 | J16: 0 | K16: 0 | L16: 0
A17: 13. | B17: =B113 -> JODASOVÁ | C17: Denisa | D17: 6.B | E17: 360 | G17: Jilemnice 24.09.21 | H17: 756.465 | J17: 0 | K17: 0 | L17: 0
A18: 14. | B18: =B114 -> KRČÍKOVÁ | C18: Beatrix | D18: 6.B | E18: 349 | G18: Jilemnice 24.09.21 | H18: 737.336 | J18: 0 | K18: 0 | L18: 0
A19: 15. | B19: =B115 -> KUBÁTOVÁ | C19: Veronika | D19: 6.B | E19: 220 | G19: Jilemnice 02.05.22 | H19: 513.005 | J19: 0 | K19: 0 | L19: 0
A20: 16. | B20: =B116 -> LENČEŠOVÁ | C20: Silvie | D20: 6.B | E20: 281 | G20: Jilemnice 02.05.22 | H20: 619.084 | J20: 0 | K20: 0 | L20: 0
A21: 17. | B21: =B117 -> MATERNOVÁ | C21: Lenka | D21: 6.B | E21: 286 | G21: Jilemnice 24.09.21 | H21: 627.779 | J21: 0 | K21: 0 | L21: 0
A22: 18. | B22: =B118 -> TÓTHOVÁ | C22: Viktorie | D22: 6.B | E22: 310 | G22: Jilemnice 24.09.21 | H22: 669.515 | J22: 0 | K22: 0 | L22: 0
A23: 19. | B23: =B119 -> ERBENOVÁ | C23: Sára | D23: 7.A | E23: 270 | G23: 0 | H23: 599.955 | J23: 253 | K23: 0 | L23: 0
A24: 20. | B24: =B120 -> GINGALOVÁ | C24: Linda | D24: 7.A | E24: 347 | H24: 733.858 | J24: 0 | K24: 0 | L24: 0
A25: 21. | B25: =B121 -> HOFMANOVÁ | C25: Nicol | D25: 7.A | E25: 280 | H25: 617.345 | J25: 297 | K25: 0 | L25: 0
A26: 22. | B26: =B122 -> HOLEŠOVSKÁ | C26: Aneta | D26: 7.A | E26: 316 | G26: Jilemnice 30.10.21 | H26: 679.949 | J26: 283 | K26: 0 | L26: 0
A27: 23. | B27: =B123 -> HOLUBCOVÁ | C27: Alena | D27: 7.A | E27: 315 | H27: 678.21 | J27: 290 | K27: 0 | L27: 0
A28: 24. | B28: =B124 -> KOHOUTOVÁ | C28: Anna | D28: 7.A | E28: 258 | H28: 579.087 | J28: 227 | K28: 0 | L28: 0
A29: 25. | B29: =B125 -> KRAUSOVÁ | C29: Anežka | D29: 7.A | E29: 338 | G29: Jilemnice 24.09.21 | H29: 718.207 | J29: 0 | K29: 0 | L29: 0
A30: 26. | B30: =B126 -> KUŽELOVÁ | C30: Apoléna | D30: 7.A | E30: 305 | G30: Jilemnice 30.10.21 | H30: 660.82 | J30: 274 | K30: 0 | L30: 0
A31: 27. | B31: =B127 -> MORÁVKOVÁ | C31: Lucie | D31: 7.A | E31: 0 | G31: 0 | H31: 0 | J31: 220 | K31: 0 | L31: 0
A32: 28. | B32: =B128 -> SKLENÁROVÁ | C32: Eliška | D32: 7.A | E32: 269 | G32: 0 | H32: 598.216 | J32: 0 | K32: 0 | L32: 0
A33: 29. | B33: =B129 -> ŠEJNOVÁ | C33: Karolína | D33: 7.A | E33: 300 | G33: Jilemnice 24.09.21 | H33: 652.125 | J33: 0 | K33: 0 | L33: 0
A34: 30. | B34: =B130 -> ŠTOLFOVÁ | C34: Tereza | D34: 7.A | E34: 310 | H34: 669.515 | J34: 0 | K34: 0 | L34: 0
A35: 31. | B35: =B131 -> ŠUBÍKOVÁ | C35: Klára | D35: 7.A | E35: 333 | G35: Jilemnice 24.09.21 | H35: 709.512 | J35: 310 | K35: 0 | L35: 0
A36: 32. | B36: =B132 -> ŠULKOVSKÁ | C36: Klára | D36: 7.A | E36: 298 | G36: Jilemnice 24.09.21 | H36: 648.647 | J36: 0 | K36: 0 | L36: 0
A37: 33. | B37: =B133 -> TULÁČKOVÁ | C37: Natálie | D37: 7.A | E37: 312 | G37: Jilemnice 30.10.21 | H37: 672.993 | J37: 257 | K37: 0 | L37: 0
A38: 34. | B38: =B134 -> VOJTÍŠKOVÁ | C38: Ella | D38: 7.A | E38: 376 | H38: 784.289 | J38: 304 | K38: 0 | L38: 0
A39: 35. | B39: =B135 -> DRUGÁČOVÁ | C39: Kristinka | D39: 7.B | E39: 355 | G39: Jilemnice 24.09.21 | H39: 747.77 | J39: 307 | K39: 0 | L39: 0
A40: 36. | B40: =B136 -> FAJSTAVROVÁ | C40: Karolína | D40: 7.B | E40: 327 | G40: Jilemnice 30.10.21 | H40: 699.078 | J40: 290 | K40: 0 | L40: 0
A41: 37. | B41: =B137 -> FAJSTAVROVÁ | C41: Magdaléna | D41: 7.B | E41: 321 | G41: Jilemnice 30.10.21 | H41: 688.644 | J41: 0 | K41: 0 | L41: 0
A42: 38. | B42: =B138 -> HLAVATÁ | C42: Anna | D42: 7.B | E42: 321 | G42: Jilemnice 30.10.21 | H42: 688.644 | J42: 291 | K42: 0 | L42: 0
A43: 39. | B43: =B139 -> JINDROVÁ | C43: Barbora | D43: 7.B | E43: 319 | G43: 0 | H43: 685.166 | J43: 295 | K43: 0 | L43: 0
A44: 40. | B44: =B140 -> MAŘASOVÁ | C44: Vendula | D44: 7.B | E44: 310 | G44: 0 | H44: 669.515 | J44: 240 | K44: 0 | L44: 0
A45: 41. | B45: =B141 -> PETŘÍČKOVÁ | C45: Natálie | D45: 7.B | E45: 387 | G45: Turnov 10.05.22 | H45: 803.418 | J45: 313 | K45: 0 | L45: 0
A46: 42. | B46: =B142 -> PETŘÍKOVÁ | C46: Adéla | D46: 7.B | E46: 274 | G46: Jilemnice 24.09.21 | H46: 606.911 | J46: 192 | K46: 0 | L46: 0
A47: 43. | B47: =B143 -> REGÁLOVÁ | C47: Karolína | D47: 7.B | E47: 310 | G47: Jilemnice 30.10.21 | H47: 669.515 | J47: 291 | K47: 0 | L47: 0
A48: 44. | B48: =B144 -> RIEGROVÁ | C48: Magdaléna | D48: 7.B | E48: 287 | G48: Jilemnice 24.09.21 | H48: 629.518 | J48: 0 | K48: 0 | L48: 0
A49: 45. | B49: =B145 -> RYBENSKÁ | C49: Sabina | D49: 7.B | E49: 0 | G49: 0 | H49: 0 | J49: 260 | K49: 0 | L49: 0
A50: 46. | B50: =B146 -> STEINEROVÁ | C50: Barbora | D50: 7.B | E50: 374 | G50: Turnov 10.05.22 | H50: 780.811 | J50: 288 | K50: 0 | L50: 0
A51: 47. | B51: =B147 -> TOMEŠOVÁ | C51: Barbora | D51: 7.B | E51: 0 | G51: 0 | H51: 0 | J51: 218 | K51: 0 | L51: 0
A52: 48. | B52: =B148 -> VOHNOUTOVÁ | C52: Aneta | D52: 7.B | E52: 365 | H52: 765.16 | J52: 0 | K52: 0 | L52: 0
A53: 49. | B53: =B149 -> HAVLÍKOVÁ | C53: Michaela | D53: 8.A | E53: 320 | G53: Jilemnice 05.02.22 | H53: 686.905 | J53: 290 | K53: 237 | L53: 0
A54: 50. | B54: =B150 -> HOLUBCOVÁ | C54: Sára | D54: 8.A | E54: 365 | G54: Jilemnice 27.09.21 | H54: 765.16 | J54: 361 | K54: 327 | L54: 0
A55: 51. | B55: =B151 -> HONCŮ | C55: Tereza | D55: 8.A | E55: 335 | G55: Jilemnice 27.09.21 | H55: 712.99 | J55: 341 | K55: 280 | L55: 0
A56: 52. | B56: =B152 -> HORÁČKOVÁ | C56: Kateřina | D56: 8.A | E56: 0 | G56: 0 | H56: 0 | J56: 359 | K56: 293 | L56: 0
A57: 53. | B57: =B153 -> JOUDALOVÁ | C57: Daniela | D57: 8.A | E57: 0 | G57: 0 | H57: 0 | J57: 0 | K57: 0 | L57: 0
A58: 54. | B58: =B154 -> KLÍMOVÁ | C58: Anna | D58: 8.A | E58: 320 | G58: Jilemnice 27.09.21 | H58: 686.905 | J58: 0 | K58: 277 | L58: 0
A59: 55. | B59: =B155 -> KOHOUTOVÁ | C59: Veronika | D59: 8.A | E59: 362 | G59: Jilemnice 27.09.21 | H59: 759.943 | J59: 374 | K59: 323 | L59: 0
A60: 56. | B60: =B156 -> KOVÁŘOVÁ | C60: Viktorie | D60: 8.A | E60: 365 | G60: Jilemnice 05.02.22 | H60: 765.16 | J60: 340 | K60: 279 | L60: 0
A61: 57. | B61: =B157 -> KYNČLOVÁ | C61: Anna | D61: 8.A | E61: 366 | G61: Jilemnice 27.09.21 | H61: 766.899 | J61: 366 | K61: 292 | L61: 0
A62: 58. | B62: =B158 -> MATOUŠOVÁ | C62: Tereza | D62: 8.A | E62: 330 | G62: Jilemnice 05.02.22 | H62: 704.295 | J62: 350 | K62: 260 | L62: 0
A63: 59. | B63: =B159 -> MAZÁNKOVÁ | C63: Zuzana | D63: 8.A | E63: 305 | G63: Jilemnice 27.09.21 | H63: 660.82 | J63: 312 | K63: 241 | L63: 0
A64: 60. | B64: =B160 -> MORKESOVÁ | C64: Sabrina | D64: 8.A | E64: 380 | G64: Jilemnice 05.02.22 | H64: 791.245 | J64: 366 | K64: 350 | L64: 0
A65: 61. | B65: =B161 -> POHOŘALÁ | C65: Alžběta | D65: 8.A | E65: 367 | G65: Jilemnice 05.02.22 | H65: 768.638 | J65: 347 | K65: 323 | L65: 0
A66: 62. | B66: =B162 -> SCHOLZOVÁ | C66: Laura | D66: 8.A | E66: 0 | G66: 0 | H66: 0 | J66: 0 | K66: 225 | L66: 0
A67: 63. | B67: =B163 -> VÁCLAVÍKOVÁ | C67: Valerie | D67: 8.A | E67: 352 | G67: Jilemnice 05.02.22 | H67: 742.553 | J67: 352 | K67: 310 | L67: 0
A68: 64. | B68: =B164 -> ZAPADLOVÁ | C68: Emma | D68: 8.A | E68: 340 | G68: Jilemnice 26.04.22 | H68: 722 | J68: 344 | K68: 0 | L68: 0
A69: 65. | B69: =B165 -> ŽIŠKOVÁ | C69: Mia | D69: 8.A | E69: 0 | G69: 0 | H69: 0 | J69: 342 | K69: 0 | L69: 0
A70: 66. | B70: =B166 -> FARSKÁ | C70: Tereza | D70: 8.B | E70: 230 | G70: 0 | H70: 530.395 | J70: 0 | K70: 0 | L70: 0
A71: 67. | B71: =B167 -> FEIXOVÁ | C71: Rozálie | D71: 8.B | E71: 0 | G71: 0 | H71: 0 | J71: 250 | K71: 0 | L71: 0
A72: 68. | B72: =B168 -> FIŠEROVÁ | C72: Michaela | D72: 8.B | E72: 0 | G72: 0 | H72: 0 | J72: 243 | K72: 0 | L72: 0
A73: 69. | B73: =B169 -> HAVLÍČKOVÁ | C73: Kristýna | D73: 8.B | E73: 0 | G73: 0 | H73: 0 | J73: 235 | K73: 0 | L73: 0
A74: 70. | B74: =B170 -> JODASOVÁ | C74: Nikola | D74: 8.B | E74: 0 | G74: 0 | H74: 0 | J74: 325 | K74: 319 | L74: 0
A75: 71. | B75: =B171 -> KADAVÁ | C75: Nikola | D75: 8.B | E75: 275 | G75: 0 | H75: 608.65 | J75: 0 | K75: 0 | L75: 0
A76: 72. | B76: =B172 -> KRAFKOVÁ | C76: Lucie | D76: 8.B | E76: 0 | G76: 0 | H76: 0 | J76: 234 | K76: 0 | L76: 0
A77: 73. | B77: =B173 -> KŘIVINKOVÁ | C77: Alžběta | D77: 8.B | E77: 328 | G77: 0 | H77: 700.817 | J77: 285 | K77: 0 | L77: 0
A78: 74. | B78: =B174 -> LEŠÁKOVÁ | C78: Lenka | D78: 8.B | E78: 296 | G78: 0 | H78: 645.169 | J78: 0 | K78: 0 | L78: 0
A79: 75. | B79: =B175 -> NYKLÍČKOVÁ | C79: Adéla | D79: 8.B | E79: 360 | G79: 0 | H79: 756.465 | J79: 325 | K79: 0 | L79: 0
A80: 76. | B80: =B176 -> PLŮCHOVÁ | C80: Petra | D80: 8.B | E80: 289 | G80: 0 | H80: 632.996 | J80: 225 | K80: 0 | L80: 0
A81: 77. | B81: =B177 -> PODZIMKOVÁ | C81: Eliška | D81: 8.B | E81: 298 | G81: 0 | H81: 648.647 | J81: 190 | K81: 0 | L81: 0
A82: 78. | B82: =B178 -> RUTKAYOVÁ | C82: Klára | D82: 8.B | E82: 278 | G82: 0 | H82: 613.867 | J82: 0 | K82: 0 | L82: 0
A83: 79. | B83: =B179 -> SEIDLOVÁ | C83: Zuzana | D83: 8.B | E83: 340 | G83: 0 | H83: 721.685 | J83: 284 | K83: 0 | L83: 0
A84: 80. | B84: =B180 -> TOMÁŠOVÁ | C84: Sára | D84: 8.B | E84: 291 | G84: 0 | H84: 636.474 | J84: 197 | K84: 0 | L84: 0
A85: 81. | B85: =B181 -> VANCLOVÁ | C85: Barbora | D85: 8.B | E85: 0 | G85: 0 | H85: 0 | J85: 278 | K85: 0 | L85: 0
A86: 82. | B86: =B182 -> VOTOČKOVÁ | C86: Veronika | D86: 8.B | E86: 284 | G86: 0 | H86: 624.301 | J86: 255 | K86: 0 | L86: 0
A87: 83. | B87: =B183 -> HARTIGOVÁ | C87: Anna | D87: 9.A | E87: 330 | G87: Jilemnice 27.09.21 | H87: 704.295 | J87: 337 | K87: 0 | L87: 0
A88: 84. | B88: =B184 -> HONCŮ | C88: Rozálie | D88: 9.A | E88: 414 | G88: Jilemnice 02.05.22 | H88: 850.371 | J88: 391 | K88: 0 | L88: 0
A89: 85. | B89: =B185 -> CHALOUPSKÁ | C89: Lucie | D89: 9.A | E89: 380 | G89: Jilemnice 02.05.22 | H89: 791.245 | J89: 380 | K89: 320 | L89: 0
A90: 86. | B90: =B186 -> KŘÍŽKOVÁ | C90: Anna | D90: 9.A | E90: 330 | G90: Jilemnice 02.05.22 | H90: 704.295 | J90: 278 | K90: 0 | L90: 0
A91: 87. | B91: =B187 -> LUKEŠOVÁ | C91: Kristýna | D91: 9.A | E91: 341 | G91: Jilemnice 27.09.21 | H91: 723.424 | J91: 341 | K91: 0 | L91: 0
A92: 88. | B92: =B188 -> MOTLÍKOVÁ | C92: Eliška | D92: 9.A | E92: 373 | G92: Jilemnice 02.05.22 | H92: 779.072 | J92: 327 | K92: 0 | L92: 0
A93: 89. | B93: =B189 -> POHOŘELÁ | C93: Amálie | D93: 9.A | E93: 295 | G93: Jilemnice 02.05.22 | H93: 643.43 | J93: 0 | K93: 0 | L93: 0
A94: 90. | B94: =B190 -> POLÁČKOVÁ | C94: Natálie | D94: 9.A | E94: 246 | G94: Jilemnice 02.05.22 | H94: 558.219 | J94: 0 | K94: 0 | L94: 0
A95: 91. | B95: =B191 -> ŘEHOŘKOVÁ | C95: Lucie | D95: 9.A | E95: 370 | G95: =G193 -> Jilemnice 02.05.22 | H95: 773.855 | J95: 353 | K95: 0 | L95: 0
A96: 92. | B96: =B192 -> SKÁLOVÁ | C96: Alena | D96: 9.A | E96: 294 | G96: =G192 -> Jilemnice 27.09.21 | H96: 641.691 | J96: =J192 -> 312 | K96: 0 | L96: 0
A97: 93. | B97: =B193 -> VÁVROVÁ | C97: Aneta | D97: 9.A | E97: 408 | G97: Jilemnice 02.05.22 | H97: =H193 -> 839.937 | J97: =J193 -> 377 | K97: 0 | L97: 0
A98: 94. | B98: =B194 -> ZELINKOVÁ | C98: Klára | D98: 9.A | E98: 337 | G98: =G194 -> Jilemnice 27.09.21 | H98: 716.468 | J98: =J194 -> 344 | K98: 0 | L98: 0
B101: HEJRALOVÁ | C101: Natálie | D101: 6.A | E101: 344 | G101: Jilemnice 02.05.22 | H101: =IF(E101=0,0,IF(E101>0,(E101+75)*1.739)) -> 728.641
B102: KERLE | C102: Nikita | D102: 6.A | E102: 377 | G102: Turnov 10.05.22 | H102: 786.028
B103: PACLÍKOVÁ | C103: Markéta | D103: 6.A | E103: 335 | G103: Jilemnice 24.09.21 | H103: 712.99
B104: PLŮCHOVÁ | C104: Michaela | D104: 6.A | E104: 318 | G104: Jilemnice 24.09.21 | H104: 683.427
B105: ŠERCLOVÁ | C105: Nikola | D105: 6.A | E105: 273 | G105: Jilemnice 02.05.22 | H105: 605.172
B106: VÁCLAVÍKOVÁ | C106: Alena | D106: 6.A | E106: 309 | G106: Jilemnice 24.09.21 | H106: 667.776
B107: DUCHÁČKOVÁ | C107: Tereza | D107: 6.B | E107: 296 | G107: Jilemnice 02.05.22 | H107: 645.169
B108: FLAŠKOVÁ | C108: Anna Sabriel | D108: 6.B | E108: 306 | G108: Jilemnice 24.09.21 | H108: 662.559
B109: HAASOVÁ | C109: Julie | D109: 6.B | E109: 365 | G109: Jilemnice 24.09.21 | H109: 765.16
B110: HOBLOVÁ | C110: Barbora | D110: 6.B | E110: 281 | G110: Jilemnice 24.09.21 | H110: 619.084
B111: HORÁČKOVÁ | C111: Valérie | D111: 6.B | E111: 307 | G111: Jilemnice 24.09.21 | H111: 664.298
B112: JIRANOVÁ | C112: Anežka | D112: 6.B | E112: 253 | G112: Jilemnice 02.05.22 | H112: 570.392
B113: JODASOVÁ | C113: Denisa | D113: 6.B | E113: 360 | G113: Jilemnice 24.09.21 | H113: 756.465
B114: KRČÍKOVÁ | C114: Beatrix | D114: 6.B | E114: 349 | G114: Jilemnice 24.09.21 | H114: 737.336
B115: KUBÁTOVÁ | C115: Veronika | D115: 6.B | E115: 220 | G115: Jilemnice 02.05.22 | H115: 513.005
B116: LENČEŠOVÁ | C116: Silvie | D116: 6.B | E116: 281 | G116: Jilemnice 02.05.22 | H116: 619.084
B117: MATERNOVÁ | C117: Lenka | D117: 6.B | E117: 286 | G117: Jilemnice 24.09.21 | H117: 627.779
B118: TÓTHOVÁ | C118: Viktorie | D118: 6.B | E118: 310 | G118: Jilemnice 24.09.21 | H118: 669.515
B119: ERBENOVÁ | C119: Sára | D119: 7.A | E119: 270 | H119: 599.955 | J119: 253
B120: GINGALOVÁ | C120: Linda | D120: 7.A | E120: 347 | H120: 733.858
B121: HOFMANOVÁ | C121: Nicol | D121: 7.A | E121: 280 | H121: 617.345 | J121: 297
B122: HOLEŠOVSKÁ | C122: Aneta | D122: 7.A | E122: 316 | G122: Jilemnice 30.10.21 | H122: 679.949 | J122: 283
B123: HOLUBCOVÁ | C123: Alena | D123: 7.A | E123: 315 | H123: 678.21 | J123: 290
B124: KOHOUTOVÁ | C124: Anna | D124: 7.A | E124: 258 | H124: 579.087 | J124: 227
B125: KRAUSOVÁ | C125: Anežka | D125: 7.A | E125: 338 | G125: Jilemnice 24.09.21 | H125: 718.207 | J125: =J204 -> 0
B126: KUŽELOVÁ | C126: Apoléna | D126: 7.A | E126: 305 | G126: Jilemnice 30.10.21 | H126: 660.82 | J126: 274
B127: MORÁVKOVÁ | C127: Lucie | D127: 7.A | H127: 0 | J127: 220
B128: SKLENÁROVÁ | C128: Eliška | D128: 7.A | E128: 269 | H128: 598.216 | J128: =J207 -> 0
B129: ŠEJNOVÁ | C129: Karolína | D129: 7.A | E129: 300 | G129: Jilemnice 24.09.21 | H129: 652.125
B130: ŠTOLFOVÁ | C130: Tereza | D130: 7.A | E130: 310 | H130: 669.515 | J130: =J208 -> 0
B131: ŠUBÍKOVÁ | C131: Klára | D131: 7.A | E131: 333 | G131: Jilemnice 24.09.21 | H131: 709.512 | J131: 310
B132: ŠULKOVSKÁ | C132: Klára | D132: 7.A | E132: 298 | G132: Jilemnice 24.09.21 | H132: 648.647
B133: TULÁČKOVÁ | C133: Natálie | D133: 7.A | E133: 312 | G133: Jilemnice 30.10.21 | H133: =IF(E133=0,0,IF(E133>0,(E133+75)*1.739)) -> 672.993 | J133: 257
B134: VOJTÍŠKOVÁ | C134: Ella | D134: 7.A | E134: 376 | H134: 784.289 | J134: 304
B135: DRUGÁČOVÁ | C135: Kristinka | D135: 7.B | E135: 355 | G135: Jilemnice 24.09.21 | H135: 747.77 | J135: 307
B136: FAJSTAVROVÁ | C136: Karolína | D136: 7.B | E136: 327 | G136: Jilemnice 30.10.21 | H136: 699.078 | J136: 290
B137: FAJSTAVROVÁ | C137: Magdaléna | D137: 7.B | E137: 321 | G137: Jilemnice 30.10.21 | H137: 688.644 | J137: =J214 -> 0
B138: HLAVATÁ | C138: Anna | D138: 7.B | E138: 321 | G138: Jilemnice 30.10.21 | H138: 688.644 | J138: 291
B139: JINDROVÁ | C139: Barbora | D139: 7.B | E139: 319 | H139: 685.166 | J139: 295
B140: MAŘASOVÁ | C140: Vendula | D140: 7.B | E140: 310 | H140: 669.515 | J140: 240
B141: PETŘÍČKOVÁ | C141: Natálie | D141: 7.B | E141: 387 | G141: Turnov 10.05.22 | H141: 803.418 | J141: 313
B142: PETŘÍKOVÁ | C142: Adéla | D142: 7.B | E142: 274 | G142: Jilemnice 24.09.21 | H142: 606.911 | J142: 192
B143: REGÁLOVÁ | C143: Karolína | D143: 7.B | E143: 310 | G143: Jilemnice 30.10.21 | H143: 669.515 | J143: 291
B144: RIEGROVÁ | C144: Magdaléna | D144: 7.B | E144: 287 | G144: Jilemnice 24.09.21 | H144: 629.518 | J144: =J221 -> 0
B145: RYBENSKÁ | C145: Sabina | D145: 7.B | H145: 0 | J145: 260
B146: STEINEROVÁ | C146: Barbora | D146: 7.B | E146: 374 | G146: Turnov 10.05.22 | H146: 780.811 | J146: 288
B147: TOMEŠOVÁ | C147: Barbora | D147: 7.B | H147: 0 | J147: 218
B148: VOHNOUTOVÁ | C148: Aneta | D148: 7.B | E148: 365 | H148: 765.16 | J148: =J225 -> 0
B149: HAVLÍKOVÁ | C149: Michaela | D149: 8.A | E149: 320 | G149: Jilemnice 05.02.22 | H149: 686.905 | J149: 290 | K149: 237
B150: HOLUBCOVÁ | C150: Sára | D150: 8.A | E150: 365 | G150: Jilemnice 27.09.21 | H150: 765.16 | J150: 361 | K150: 327
B151: HONCŮ | C151: Tereza | D151: 8.A | E151: 335 | G151: Jilemnice 27.09.21 | H151: 712.99 | J151: 341 | K151: 280
B152: HORÁČKOVÁ | C152: Kateřina | D152: 8.A | H152: 0 | J152: 359 | K152: 293
B153: JOUDALOVÁ | C153: Daniela | D153: 8.A | H153: 0 | J153: =J230 -> 0
B154: KLÍMOVÁ | C154: Anna | D154: 8.A | E154: 320 | G154: Jilemnice 27.09.21 | H154: 686.905 | J154: =J231 -> 0 | K154: 277
B155: KOHOUTOVÁ | C155: Veronika | D155: 8.A | E155: 362 | G155: Jilemnice 27.09.21 | H155: 759.943 | J155: 374 | K155: 323
B156: KOVÁŘOVÁ | C156: Viktorie | D156: 8.A | E156: 365 | G156: Jilemnice 05.02.22 | H156: 765.16 | J156: 340 | K156: 279
B157: KYNČLOVÁ | C157: Anna | D157: 8.A | E157: 366 | G157: Jilemnice 27.09.21 | H157: 766.899 | J157: 366 | K157: 292
B158: MATOUŠOVÁ | C158: Tereza | D158: 8.A | E158: 330 | G158: Jilemnice 05.02.22 | H158: 704.295 | J158: 350 | K158: 260
B159: MAZÁNKOVÁ | C159: Zuzana | D159: 8.A | E159: 305 | G159: Jilemnice 27.09.21 | H159: 660.82 | J159: 312 | K159: 241
B160: MORKESOVÁ | C160: Sabrina | D160: 8.A | E160: 380 | G160: Jilemnice 05.02.22 | H160: 791.245 | J160: 366 | K160: 350
B161: POHOŘALÁ | C161: Alžběta | D161: 8.A | E161: 367 | G161: Jilemnice 05.02.22 | H161: 768.638 | J161: 347 | K161: 323
B162: SCHOLZOVÁ | C162: Laura | D162: 8.A | H162: 0 | J162: =J239 -> 0 | K162: 225
B163: VÁCLAVÍKOVÁ | C163: Valerie | D163: 8.A | E163: 352 | G163: Jilemnice 05.02.22 | H163: 742.553 | J163: 352 | K163: 310
B164: ZAPADLOVÁ | C164: Emma | D164: 8.A | E164: 340 | G164: Jilemnice 26.04.22 | H164: 722 | J164: 344
B165: ŽIŠKOVÁ | C165: Mia | D165: 8.A | H165: =IF(E165=0,0,IF(E165>0,(E165+75)*1.739)) -> 0 | J165: 342
B166: FARSKÁ | C166: Tereza | D166: 8.B | E166: 230 | H166: 530.395
B167: FEIXOVÁ | C167: Rozálie | D167: 8.B | H167: 0 | J167: 250
B168: FIŠEROVÁ | C168: Michaela | D168: 8.B | H168: 0 | J168: 243
B169: HAVLÍČKOVÁ | C169: Kristýna | D169: 8.B | H169: 0 | J169: 235
B170: JODASOVÁ | C170: Nikola | D170: 8.B | H170: 0 | J170: 325 | K170: 319
B171: KADAVÁ | C171: Nikola | D171: 8.B | E171: 275 | H171: 608.65 | J171: =J248 -> 0
B172: KRAFKOVÁ | C172: Lucie | D172: 8.B | H172: 0 | J172: 234
B173: KŘIVINKOVÁ | C173: Alžběta | D173: 8.B | E173: 328 | H173: 700.817 | J173: 285
B174: LEŠÁKOVÁ | C174: Lenka | D174: 8.B | E174: 296 | H174: 645.169 | J174: =J251 -> 0
B175: NYKLÍČKOVÁ | C175: Adéla | D175: 8.B | E175: 360 | H175: 756.465 | J175: 325
B176: PLŮCHOVÁ | C176: Petra | D176: 8.B | E176: 289 | H176: 632.996 | J176: 225
B177: PODZIMKOVÁ | C177: Eliška | D177: 8.B | E177: 298 | H177: 648.647 | J177: 190
B178: RUTKAYOVÁ | C178: Klára | D178: 8.B | E178: 278 | H178: 613.867 | J178: =J255 -> 0
B179: SEIDLOVÁ | C179: Zuzana | D179: 8.B | E179: 340 | H179: 721.685 | J179: 284
B180: TOMÁŠOVÁ | C180: Sára | D180: 8.B | E180: 291 | H180: 636.474 | J180: 197
B181: VANCLOVÁ | C181: Barbora | D181: 8.B | H181: 0 | J181: 278
B182: VOTOČKOVÁ | C182: Veronika | D182: 8.B | E182: 284 | H182: 624.301 | J182: 255
B183: HARTIGOVÁ | C183: Anna | D183: 9.A | E183: 330 | G183: Jilemnice 27.09.21 | H183: 704.295 | J183: 337
B184: HONCŮ | C184: Rozálie | D184: 9.A | E184: 414 | G184: Jilemnice 02.05.22 | H184: 850.371 | J184: 391
B185: CHALOUPSKÁ | C185: Lucie | D185: 9.A | E185: 380 | G185: Jilemnice 02.05.22 | H185: 791.245 | J185: 380 | K185: 320
B186: KŘÍŽKOVÁ | C186: Anna | D186: 9.A | E186: 330 | G186: Jilemnice 02.05.22 | H186: 704.295 | J186: 278
B187: LUKEŠOVÁ | C187: Kristýna | D187: 9.A | E187: 341 | G187: Jilemnice 27.09.21 | H187: 723.424 | J187: 341
B188: MOTLÍKOVÁ | C188: Eliška | D188: 9.A | E188: 373 | G188: Jilemnice 02.05.22 | H188: 779.072 | J188: 327
B189: POHOŘELÁ | C189: Amálie | D189: 9.A | E189: 295 | G189: Jilemnice 02.05.22 | H189: 643.43 | J189: =J266 -> 0
B190: POLÁČKOVÁ | C190: Natálie | D190: 9.A | E190: 246 | G190: Jilemnice 02.05.22 | H190: 558.219 | J190: =J267 -> 0
B191: ŘEHOŘKOVÁ | C191: Lucie | D191: 9.A | E191: 370 | G191: Jilemnice 02.05.22 | H191: 773.855 | J191: 353
B192: SKÁLOVÁ | C192: Alena | D192: 9.A | E192: 294 | G192: Jilemnice 27.09.21 | H192: 641.691 | J192: 312
B193: VÁVROVÁ | C193: Aneta | D193: 9.A | E193: 408 | G193: Jilemnice 02.05.22 | H193: 839.937 | J193: 377
B194: ZELINKOVÁ | C194: Klára | D194: 9.A | E194: 337 | G194: Jilemnice 27.09.21 | H194: 716.468 | J194: 344

Sheet Dvýš
C1: VÝKONY 2020 - 2021 | G1: VÝŠKA | H1: DĚVČATA 6. - 9. ROČ.
K2: stav k | L2: =TODAY() -> 2022-06-28
H3: BODY | J3: 20 - 21 | K3: 19 - 20 | L3: 18 - 19
A5: 1. | B5: =B101 -> HEJRALOVÁ | C5: =C101 -> Natálie | D5: 6.A | E5: 115 | G5: Jilemnice 13.05.22 | H5: 739.5 | J5: 0 | K5: 0 | L5: 0
A6: 2. | B6: =B102 -> KERLE | C6: Nikita | D6: 6.A | E6: 115 | G6: Jilemnice 03.06.22 | H6: 739.5 | J6: 0 | K6: 0 | L6: 0
A7: 3. | B7: =B103 -> PACLÍKOVÁ | C7: Markéta | D7: 6.A | E7: 120 | G7: Jilemnice 17.05.22 | H7: 772 | J7: 0 | K7: 0 | L7: 0
A8: 4. | B8: =B104 -> PLŮCHOVÁ | C8: Michaela | D8: 6.A | E8: 110 | G8: Jilemnice 13.05.22 | H8: 707 | J8: 0 | K8: 0 | L8: 0
A9: 5. | B9: =B105 -> ŠERCLOVÁ | C9: Nikola | D9: 6.A | E9: 0 | G9: 0 | H9: 0 | J9: 0 | K9: 0 | L9: 0
A10: 6. | B10: =B106 -> VÁCLAVÍKOVÁ | C10: Alena | D10: 6.A | E10: 95 | G10: Jilemnice 13.05.22 | H10: 609.5 | J10: 0 | K10: 0 | L10: 0
A11: 7. | B11: =B107 -> DUCHÁČKOVÁ | C11: Tereza | D11: 6.B | E11: 85 | G11: Jilemnice 13.05.22 | H11: 544.5 | J11: 0 | K11: 0 | L11: 0
A12: 8. | B12: =B108 -> FLAŠKOVÁ | C12: Anna Sabriel | D12: 6.B | E12: 105 | G12: Jilemnice 13.05.22 | H12: 674.5 | J12: 0 | K12: 0 | L12: 0
A13: 9. | B13: =B109 -> HAASOVÁ | C13: Julie | D13: 6.B | E13: 105 | G13: Jilemnice 03.06.22 | H13: 674.5 | J13: 0 | K13: 0 | L13: 0
A14: 10. | B14: =B110 -> HOBLOVÁ | C14: Barbora | D14: 6.B | E14: 95 | G14: Jilemnice 03.06.22 | H14: 609.5 | J14: 0 | K14: 0 | L14: 0
A15: 11. | B15: =B111 -> HORÁČKOVÁ | C15: Valérie | D15: 6.B | E15: 100 | G15: Jilemnice 03.06.22 | H15: 642 | J15: 0 | K15: 0 | L15: 0
A16: 12. | B16: =B112 -> JIRANOVÁ | C16: Anežka | D16: 6.B | E16: 80 | G16: Jilemnice 13.05.22 | H16: 512 | J16: 0 | K16: 0 | L16: 0
A17: 13. | B17: =B113 -> JODASOVÁ | C17: Denisa | D17: 6.B | E17: 0 | G17: 0 | H17: 0 | J17: 0 | K17: 0 | L17: 0
A18: 14. | B18: =B114 -> KRČÍKOVÁ | C18: Beatrix | D18: 6.B | E18: 110 | G18: Jilemnice 13.05.22 | H18: 707 | J18: 0 | K18: 0 | L18: 0
A19: 15. | B19: =B115 -> KUBÁTOVÁ | C19: Veronika | D19: 6.B | E19: 0 | G19: 0 | H19: 0 | J19: 0 | K19: 0 | L19: 0
A20: 16. | B20: =B116 -> LENČEŠOVÁ | C20: Silvie | D20: 6.B | E20: 85 | G20: Jilemnice 13.05.22 | H20: 544.5 | J20: 0 | K20: 0 | L20: 0
A21: 17. | B21: =B117 -> MATERNOVÁ | C21: Lenka | D21: 6.B | E21: 110 | G21: Jilemnice 03.06.22 | H21: 707 | J21: 0 | K21: 0 | L21: 0
A22: 18. | B22: =B118 -> TÓTHOVÁ | C22: Viktorie | D22: 6.B | E22: 100 | G22: Jilemnice 03.06.22 | H22: 642 | J22: 0 | K22: 0 | L22: 0
A23: 19. | B23: =B119 -> ERBENOVÁ | C23: Sára | D23: 7.A | E23: 0 | G23: 0 | H23: 0 | J23: 0 | K23: 0 | L23: 0
A24: 20. | B24: =B120 -> GINGALOVÁ | C24: Linda | D24: 7.A | E24: 115 | G24: Jilemnice 17.05.22 | H24: 739.5 | J24: 0 | K24: 0 | L24: 0
A25: 21. | B25: =B121 -> HOFMANOVÁ | C25: Nicol | D25: 7.A | E25: 0 | G25: 0 | H25: 0 | J25: 0 | K25: 0 | L25: 0
A26: 22. | B26: =B122 -> HOLEŠOVSKÁ | C26: Aneta | D26: 7.A | E26: 0 | G26: 0 | H26: 0 | J26: 0 | K26: 0 | L26: 0
A27: 23. | B27: =B123 -> HOLUBCOVÁ | C27: Alena | D27: 7.A | E27: 115 | G27: Jilemnice 17.05.22 | H27: 739.5 | J27: 0 | K27: 0 | L27: 0
A28: 24. | B28: =B124 -> KOHOUTOVÁ | C28: Anna | D28: 7.A | E28: 105 | G28: Jilemnice 03.06.22 | H28: 674.5 | J28: 0 | K28: 0 | L28: 0
A29: 25. | B29: =B125 -> KRAUSOVÁ | C29: Anežka | D29: 7.A | E29: 105 | G29: Jilemnice 03.06.22 | H29: 674.5 | J29: 0 | K29: 0 | L29: 0
A30: 26. | B30: =B126 -> KUŽELOVÁ | C30: Apoléna | D30: 7.A | E30: 105 | G30: 0 | H30: 674.5 | J30: 0 | K30: 0 | L30: 0
A31: 27. | B31: =B127 -> MORÁVKOVÁ | C31: Lucie | D31: 7.A | E31: 0 | G31: 0 | H31: 0 | J31: 0 | K31: 0 | L31: 0
A32: 28. | B32: =B128 -> SKLENÁROVÁ | C32: Eliška | D32: 7.A | E32: 105 | G32: Jilemnice 03.06.22 | H32: 674.5 | J32: 0 | K32: 0 | L32: 0
A33: 29. | B33: =B129 -> ŠEJNOVÁ | C33: Karolína | D33: 7.A | E33: 100 | G33: Jilemnice 03.06.22 | H33: 642 | J33: 0 | K33: 0 | L33: 0
A34: 30. | B34: =B130 -> ŠTOLFOVÁ | C34: Tereza | D34: 7.A | E34: 110 | G34: Jilemnice 03.06.22 | H34: 707 | J34: 0 | K34: 0 | L34: 0
A35: 31. | B35: =B131 -> ŠUBÍKOVÁ | C35: Klára | D35: 7.A | E35: 115 | G35: Jilemnice 03.06.22 | H35: 739.5 | J35: 0 | K35: 0 | L35: 0
A36: 32. | B36: =B132 -> ŠULKOVSKÁ | C36: Klára | D36: 7.A | E36: 0 | G36: 0 | H36: 0 | J36: 0 | K36: 0 | L36: 0
A37: 33. | B37: =B133 -> TULÁČKOVÁ | C37: Natálie | D37: 7.A | E37: 0 | G37: 0 | H37: 0 | J37: 0 | K37: 0 | L37: 0
A38: 34. | B38: =B134 -> VOJTÍŠKOVÁ | C38: Ella | D38: 7.A | E38: 128 | G38: Jilemnice 17.05.22 | H38: 824 | J38: 0 | K38: 0 | L38: 0
A39: 35. | B39: =B135 -> DRUGÁČOVÁ | C39: Kristinka | D39: 7.B | E39: 0 | G39: 0 | H39: 0 | J39: 0 | K39: 0 | L39: 0
A40: 36. | B40: =B136 -> FAJSTAVROVÁ | C40: Karolína | D40: 7.B | E40: 0 | G40: 0 | H40: 0 | J40: 0 | K40: 0 | L40: 0
A41: 37. | B41: =B137 -> FAJSTAVROVÁ | C41: Magdaléna | D41: 7.B | E41: 0 | G41: 0 | H41: 0 | J41: 0 | K41: 0 | L41: 0
A42: 38. | B42: =B138 -> HLAVATÁ | C42: Anna | D42: 7.B | E42: 0 | G42: 0 | H42: 0 | J42: 0 | K42: 0 | L42: 0
A43: 39. | B43: =B139 -> JINDROVÁ | C43: Barbora | D43: 7.B | E43: 0 | G43: 0 | H43: 0 | J43: 0 | K43: 0 | L43: 0
A44: 40. | B44: =B140 -> MAŘASOVÁ | C44: Vendula | D44: 7.B | E44: 85 | G44: 0 | H44: 544.5 | J44: 0 | K44: 0 | L44: 0
A45: 41. | B45: =B141 -> PETŘÍČKOVÁ | C45: Natálie | D45: 7.B | E45: 105 | G45: 0 | H45: 674.5 | J45: 0 | K45: 0 | L45: 0
A46: 42. | B46: =B142 -> PETŘÍKOVÁ | C46: Adéla | D46: 7.B | E46: 0 | G46: 0 | H46: 0 | J46: 0 | K46: 0 | L46: 0
A47: 43. | B47: =B143 -> REGÁLOVÁ | C47: Karolína | D47: 7.B | E47: 105 | G47: 0 | H47: 674.5 | J47: 0 | K47: 0 | L47: 0
A48: 44. | B48: =B144 -> RIEGROVÁ | C48: Magdaléna | D48: 7.B | E48: 0 | G48: 0 | H48: 0 | J48: 0 | K48: 0 | L48: 0
A49: 45. | B49: =B145 -> RYBENSKÁ | C49: Sabina | D49: 7.B | E49: 0 | G49: 0 | H49: 0 | J49: 0 | K49: 0 | L49: 0
A50: 46. | B50: =B146 -> STEINEROVÁ | C50: Barbora | D50: 7.B | E50: 105 | G50: 0 | H50: 674.5 | J50: 0 | K50: 0 | L50: 0
A51: 47. | B51: =B147 -> TOMEŠOVÁ | C51: Barbora | D51: 7.B | E51: 0 | G51: 0 | H51: 0 | J51: 0 | K51: 0 | L51: 0
A52: 48. | B52: =B148 -> VOHNOUTOVÁ | C52: Aneta | D52: 7.B | E52: 105 | G52: 0 | H52: 674.5 | J52: 0 | K52: 0 | L52: 0
A53: 49. | B53: =B149 -> HAVLÍKOVÁ | C53: Michaela | D53: 8.A | E53: 100 | G53: Jilemnice 17.05.22 | H53: 642 | J53: 0 | K53: 0 | L53: 0
A54: 50. | B54: =B150 -> HOLUBCOVÁ | C54: Sára | D54: 8.A | E54: 115 | G54: Jilemnice 15.06.22 | H54: 739.5 | J54: 0 | K54: 0 | L54: 0
A55: 51. | B55: =B151 -> HONCŮ | C55: Tereza | D55: 8.A | E55: 110 | G55: Jilemnice 15.06.22 | H55: 707 | J55: 0 | K55: 0 | L55: 0
A56: 52. | B56: =B152 -> HORÁČKOVÁ | C56: Kateřina | D56: 8.A | E56: 120 | G56: Jilemnice 15.06.22 | H56: 772 | J56: 0 | K56: 0 | L56: 0
A57: 53. | B57: =B153 -> JOUDALOVÁ | C57: Daniela | D57: 8.A | E57: 0 | G57: 0 | H57: 0 | J57: 0 | K57: 0 | L57: 0
A58: 54. | B58: =B154 -> KLÍMOVÁ | C58: Anna | D58: 8.A | E58: 110 | G58: Jilemnice 15.06.22 | H58: 707 | J58: 0 | K58: 0 | L58: 0
A59: 55. | B59: =B155 -> KOHOUTOVÁ | C59: Veronika | D59: 8.A | E59: 110 | G59: Jilemnice 15.06.22 | H59: 707 | J59: 0 | K59: 0 | L59: 0
A60: 56. | B60: =B156 -> KOVÁŘOVÁ | C60: Viktorie | D60: 8.A | E60: 120 | G60: Jilemnice 17.05.22 | H60: 772 | J60: 0 | K60: 0 | L60: 0
A61: 57. | B61: =B157 -> KYNČLOVÁ | C61: Anna | D61: 8.A | E61: 110 | G61: Jilemnice 15.06.22 | H61: 707 | J61: 0 | K61: 0 | L61: 0
A62: 58. | B62: =B158 -> MATOUŠOVÁ | C62: Tereza | D62: 8.A | E62: 125 | G62: Jilemnice 17.05.22 | H62: 804.5 | J62: 0 | K62: 0 | L62: 0
A63: 59. | B63: =B159 -> MAZÁNKOVÁ | C63: Zuzana | D63: 8.A | E63: 0 | G63: 0 | H63: 0 | J63: 0 | K63: 0 | L63: 0
A64: 60. | B64: =B160 -> MORKESOVÁ | C64: Sabrina | D64: 8.A | E64: 125 | G64: Jilemnice 15.06.22 | H64: 804.5 | J64: 0 | K64: 0 | L64: 0
A65: 61. | B65: =B161 -> POHOŘALÁ | C65: Alžběta | D65: 8.A | E65: 115 | G65: Jilemnice 15.06.22 | H65: 739.5 | J65: 0 | K65: 0 | L65: 0
A66: 62. | B66: =B162 -> SCHOLZOVÁ | C66: Laura | D66: 8.A | E66: 0 | G66: 0 | H66: 0 | J66: 0 | K66: 0 | L66: 0
A67: 63. | B67: =B163 -> VÁCLAVÍKOVÁ | C67: Valerie | D67: 8.A | E67: 115 | G67: Jilemnice 15.06.22 | H67: 739.5 | J67: 0 | K67: 0 | L67: 0
A68: 64. | B68: =B164 -> ZAPADLOVÁ | C68: Emma | D68: 8.A | E68: 120 | G68: Jilemnice 15.06.22 | H68: 772 | J68: 0 | K68: 0 | L68: 0
A69: 65. | B69: =B165 -> ŽIŠKOVÁ | C69: Mia | D69: 8.A | E69: 0 | G69: 0 | H69: 0 | J69: 0 | K69: 0 | L69: 0
A70: 66. | B70: =B166 -> FARSKÁ | C70: Tereza | D70: 8.B | E70: 0 | G70: 0 | H70: 0 | J70: 0 | K70: 0 | L70: 0
A71: 67. | B71: =B167 -> FEIXOVÁ | C71: Rozálie | D71: 8.B | E71: 0 | G71: 0 | H71: 0 | J71: 0 | K71: 0 | L71: 0
A72: 68. | B72: =B168 -> FIŠEROVÁ | C72: Michaela | D72: 8.B | E72: 0 | G72: 0 | H72: 0 | J72: 89 | K72: 0 | L72: 0
A73: 69. | B73: =B169 -> HAVLÍČKOVÁ | C73: Kristýna | D73: 8.B | E73: 0 | G73: 0 | H73: 0 | J73: 0 | K73: 0 | L73: 0
A74: 70. | B74: =B170 -> JODASOVÁ | C74: Nikola | D74: 8.B | E74: 0 | G74: 0 | H74: 0 | J74: 0 | K74: 0 | L74: 0
A75: 71. | B75: =B171 -> KADAVÁ | C75: Nikola | D75: 8.B | E75: 0 | G75: 0 | H75: 0 | J75: 0 | K75: 0 | L75: 0
A76: 72. | B76: =B172 -> KRAFKOVÁ | C76: Lucie | D76: 8.B | E76: 0 | G76: 0 | H76: 0 | J76: 0 | K76: 0 | L76: 0
A77: 73. | B77: =B173 -> KŘIVINKOVÁ | C77: Alžběta | D77: 8.B | E77: 0 | G77: 0 | H77: 0 | J77: 0 | K77: 0 | L77: 0
A78: 74. | B78: =B174 -> LEŠÁKOVÁ | C78: Lenka | D78: 8.B | E78: 0 | G78: 0 | H78: 0 | J78: 0 | K78: 0 | L78: 0
A79: 75. | B79: =B175 -> NYKLÍČKOVÁ | C79: Adéla | D79: 8.B | E79: 118 | G79: Turnov 10.05.22 | H79: 759 | J79: 104 | K79: 0 | L79: 0
A80: 76. | B80: =B176 -> PLŮCHOVÁ | C80: Petra | D80: 8.B | E80: 0 | G80: 0 | H80: 0 | J80: 104 | K80: 0 | L80: 0
A81: 77. | B81: =B177 -> PODZIMKOVÁ | C81: Eliška | D81: 8.B | E81: 0 | G81: 0 | H81: 0 | J81: 93 | K81: 0 | L81: 0
A82: 78. | B82: =B178 -> RUTKAYOVÁ | C82: Klára | D82: 8.B | E82: 0 | G82: 0 | H82: 0 | J82: 0 | K82: 0 | L82: 0
A83: 79. | B83: =B179 -> SEIDLOVÁ | C83: Zuzana | D83: 8.B | E83: 0 | G83: 0 | H83: 0 | J83: 99 | K83: 0 | L83: 0
A84: 80. | B84: =B180 -> TOMÁŠOVÁ | C84: Sára | D84: 8.B | E84: 0 | G84: 0 | H84: 0 | J84: 0 | K84: 0 | L84: 0
A85: 81. | B85: =B181 -> VANCLOVÁ | C85: Barbora | D85: 8.B | E85: 0 | G85: 0 | H85: 0 | J85: 99 | K85: 0 | L85: 0
A86: 82. | B86: =B182 -> VOTOČKOVÁ | C86: Veronika | D86: 8.B | E86: 0 | G86: 0 | H86: 0 | J86: 0 | K86: 0 | L86: 0
A87: 83. | B87: =B183 -> HARTIGOVÁ | C87: Anna | D87: 9.A | E87: 125 | G87: Jilemnice 15.06.22 | H87: 804.5 | J87: 0 | K87: 0 | L87: 0
A88: 84. | B88: =B184 -> HONCŮ | C88: Rozálie | D88: 9.A | E88: 120 | G88: Jilemnice 15.06.22 | H88: 772 | J88: 0 | K88: 110 | L88: 0
A89: 85. | B89: =B185 -> CHALOUPSKÁ | C89: Lucie | D89: 9.A | E89: 0 | G89: 0 | H89: 0 | J89: 0 | K89: 0 | L89: 0
A90: 86. | B90: =B186 -> KŘÍŽKOVÁ | C90: Anna | D90: 9.A | E90: 110 | G90: Jilemnice 15.06.22 | H90: 707 | J90: 0 | K90: 0 | L90: 0
A91: 87. | B91: =B187 -> LUKEŠOVÁ | C91: Kristýna | D91: 9.A | E91: 100 | G91: Jilemnice 15.06.22 | H91: 642 | J91: 0 | K91: 0 | L91: 0
A92: 88. | B92: =B188 -> MOTLÍKOVÁ | C92: Eliška | D92: 9.A | E92: 0 | G92: 0 | H92: 0 | J92: 0 | K92: 0 | L92: 0
A93: 89. | B93: =B189 -> POHOŘELÁ | C93: Amálie | D93: 9.A | E93: 0 | G93: 0 | H93: 0 | J93: 0 | K93: 0 | L93: 0
A94: 90. | B94: =B190 -> POLÁČKOVÁ | C94: Natálie | D94: 9.A | E94: 0 | G94: 0 | H94: 0 | J94: 0 | K94: 0 | L94: 0
A95: 91. | B95: =B191 -> ŘEHOŘKOVÁ | C95: Lucie | D95: 9.A | E95: 110 | G95: Jilemnice 15.06.22 | H95: 707 | J95: 0 | K95: 0 | L95: 0
A96: 92. | B96: =B192 -> SKÁLOVÁ | C96: Alena | D96: 9.A | E96: 100 | G96: =G192 -> Jilemnice 15.06.22 | H96: 642 | J96: =J192 -> 0 | K96: 0 | L96: 0
A97: 93. | B97: =B193 -> VÁVROVÁ | C97: Aneta | D97: 9.A | E97: 120 | G97: =G193 -> Jilemnice 15.06.22 | H97: 772 | J97: =J193 -> 0 | K97: 0 | L97: 0
A98: 94. | B98: =B194 -> ZELINKOVÁ | C98: Klára | D98: 9.A | E98: 115 | G98: =G194 -> Jilemnice 15.06.22 | H98: 739.5 | J98: =J194 -> 0 | K98: 105 | L98: 0
B101: HEJRALOVÁ | C101: Natálie | D101: 6.A | E101: 115 | G101: Jilemnice 13.05.22 | H101: =IF(E101=0,0,(IF(E101>0,E101*5*1.3-8))) -> 739.5
B102: KERLE | C102: Nikita | D102: 6.A | E102: 115 | G102: Jilemnice 03.06.22 | H102: 739.5
B103: PACLÍKOVÁ | C103: Markéta | D103: 6.A | E103: 120 | G103: Jilemnice 17.05.22 | H103: 772
B104: PLŮCHOVÁ | C104: Michaela | D104: 6.A | E104: 110 | G104: Jilemnice 13.05.22 | H104: 707
B105: ŠERCLOVÁ | C105: Nikola | D105: 6.A | H105: 0
B106: VÁCLAVÍKOVÁ | C106: Alena | D106: 6.A | E106: 95 | G106: Jilemnice 13.05.22 | H106: 609.5
B107: DUCHÁČKOVÁ | C107: Tereza | D107: 6.B | E107: 85 | G107: Jilemnice 13.05.22 | H107: 544.5
B108: FLAŠKOVÁ | C108: Anna Sabriel | D108: 6.B | E108: 105 | G108: Jilemnice 13.05.22 | H108: 674.5
B109: HAASOVÁ | C109: Julie | D109: 6.B | E109: 105 | G109: Jilemnice 03.06.22 | H109: 674.5
B110: HOBLOVÁ | C110: Barbora | D110: 6.B | E110: 95 | G110: Jilemnice 03.06.22 | H110: 609.5
B111: HORÁČKOVÁ | C111: Valérie | D111: 6.B | E111: 100 | G111: Jilemnice 03.06.22 | H111: 642
B112: JIRANOVÁ | C112: Anežka | D112: 6.B | E112: 80 | G112: Jilemnice 13.05.22 | H112: 512
B113: JODASOVÁ | C113: Denisa | D113: 6.B | H113: 0
B114: KRČÍKOVÁ | C114: Beatrix | D114: 6.B | E114: 110 | G114: Jilemnice 13.05.22 | H114: 707
B115: KUBÁTOVÁ | C115: Veronika | D115: 6.B | H115: 0
B116: LENČEŠOVÁ | C116: Silvie | D116: 6.B | E116: 85 | G116: Jilemnice 13.05.22 | H116: 544.5
B117: MATERNOVÁ | C117: Lenka | D117: 6.B | E117: 110 | G117: Jilemnice 03.06.22 | H117: 707
B118: TÓTHOVÁ | C118: Viktorie | D118: 6.B | E118: 100 | G118: Jilemnice 03.06.22 | H118: 642
B119: ERBENOVÁ | C119: Sára | D119: 7.A | H119: 0
B120: GINGALOVÁ | C120: Linda | D120: 7.A | E120: 115 | G120: Jilemnice 17.05.22 | H120: 739.5
B121: HOFMANOVÁ | C121: Nicol | D121: 7.A | H121: 0
B122: HOLEŠOVSKÁ | C122: Aneta | D122: 7.A | H122: 0
B123: HOLUBCOVÁ | C123: Alena | D123: 7.A | E123: 115 | G123: Jilemnice 17.05.22 | H123: 739.5
B124: KOHOUTOVÁ | C124: Anna | D124: 7.A | E124: 105 | G124: Jilemnice 03.06.22 | H124: 674.5
B125: KRAUSOVÁ | C125: Anežka | D125: 7.A | E125: 105 | G125: Jilemnice 03.06.22 | H125: 674.5
B126: KUŽELOVÁ | C126: Apoléna | D126: 7.A | E126: 105 | H126: 674.5
B127: MORÁVKOVÁ | C127: Lucie | D127: 7.A | H127: 0
B128: SKLENÁROVÁ | C128: Eliška | D128: 7.A | E128: 105 | G128: Jilemnice 03.06.22 | H128: 674.5
B129: ŠEJNOVÁ | C129: Karolína | D129: 7.A | E129: 100 | G129: Jilemnice 03.06.22 | H129: 642
B130: ŠTOLFOVÁ | C130: Tereza | D130: 7.A | E130: 110 | G130: Jilemnice 03.06.22 | H130: 707
B131: ŠUBÍKOVÁ | C131: Klára | D131: 7.A | E131: 115 | G131: Jilemnice 03.06.22 | H131: 739.5
B132: ŠULKOVSKÁ | C132: Klára | D132: 7.A | H132: 0
B133: TULÁČKOVÁ | C133: Natálie | D133: 7.A | H133: =IF(E133=0,0,(IF(E133>0,E133*5*1.3-8))) -> 0
B134: VOJTÍŠKOVÁ | C134: Ella | D134: 7.A | E134: 128 | G134: Jilemnice 17.05.22 | H134: 824
B135: DRUGÁČOVÁ | C135: Kristinka | D135: 7.B | H135: 0
B136: FAJSTAVROVÁ | C136: Karolína | D136: 7.B | H136: 0
B137: FAJSTAVROVÁ | C137: Magdaléna | D137: 7.B | H137: 0
B138: HLAVATÁ | C138: Anna | D138: 7.B | H138: 0
B139: JINDROVÁ | C139: Barbora | D139: 7.B | H139: 0
B140: MAŘASOVÁ | C140: Vendula | D140: 7.B | E140: 85 | H140: 544.5
B141: PETŘÍČKOVÁ | C141: Natálie | D141: 7.B | E141: 105 | H141: 674.5
B142: PETŘÍKOVÁ | C142: Adéla | D142: 7.B | H142: 0
B143: REGÁLOVÁ | C143: Karolína | D143: 7.B | E143: 105 | H143: 674.5
B144: RIEGROVÁ | C144: Magdaléna | D144: 7.B | H144: 0
B145: RYBENSKÁ | C145: Sabina | D145: 7.B | H145: 0
B146: STEINEROVÁ | C146: Barbora | D146: 7.B | E146: 105 | H146: 674.5
B147: TOMEŠOVÁ | C147: Barbora | D147: 7.B | H147: 0
B148: VOHNOUTOVÁ | C148: Aneta | D148: 7.B | E148: 105 | H148: 674.5
B149: HAVLÍKOVÁ | C149: Michaela | D149: 8.A | E149: 100 | G149: Jilemnice 17.05.22 | H149: 642
B150: HOLUBCOVÁ | C150: Sára | D150: 8.A | E150: 115 | G150: Jilemnice 15.06.22 | H150: 739.5
B151: HONCŮ | C151: Tereza | D151: 8.A | E151: 110 | G151: Jilemnice 15.06.22 | H151: 707
B152: HORÁČKOVÁ | C152: Kateřina | D152: 8.A | E152: 120 | G152: Jilemnice 15.06.22 | H152: 772
B153: JOUDALOVÁ | C153: Daniela | D153: 8.A | H153: 0
B154: KLÍMOVÁ | C154: Anna | D154: 8.A | E154: 110 | G154: Jilemnice 15.06.22 | H154: 707
B155: KOHOUTOVÁ | C155: Veronika | D155: 8.A | E155: 110 | G155: Jilemnice 15.06.22 | H155: 707
B156: KOVÁŘOVÁ | C156: Viktorie | D156: 8.A | E156: 120 | G156: Jilemnice 17.05.22 | H156: 772
B157: KYNČLOVÁ | C157: Anna | D157: 8.A | E157: 110 | G157: Jilemnice 15.06.22 | H157: 707
B158: MATOUŠOVÁ | C158: Tereza | D158: 8.A | E158: 125 | G158: Jilemnice 17.05.22 | H158: 804.5
B159: MAZÁNKOVÁ | C159: Zuzana | D159: 8.A | H159: 0
B160: MORKESOVÁ | C160: Sabrina | D160: 8.A | E160: 125 | G160: Jilemnice 15.06.22 | H160: 804.5
B161: POHOŘALÁ | C161: Alžběta | D161: 8.A | E161: 115 | G161: Jilemnice 15.06.22 | H161: 739.5
B162: SCHOLZOVÁ | C162: Laura | D162: 8.A | H162: 0
B163: VÁCLAVÍKOVÁ | C163: Valerie | D163: 8.A | E163: 115 | G163: Jilemnice 15.06.22 | H163: 739.5
B164: ZAPADLOVÁ | C164: Emma | D164: 8.A | E164: 120 | G164: Jilemnice 15.06.22 | H164: 772
B165: ŽIŠKOVÁ | C165: Mia | D165: 8.A | H165: =IF(E165=0,0,(IF(E165>0,E165*5*1.3-8))) -> 0
B166: FARSKÁ | C166: Tereza | D166: 8.B | H166: 0
B167: FEIXOVÁ | C167: Rozálie | D167: 8.B | H167: 0
B168: FIŠEROVÁ | C168: Michaela | D168: 8.B | H168: 0 | J168: 89
B169: HAVLÍČKOVÁ | C169: Kristýna | D169: 8.B | H169: 0
B170: JODASOVÁ | C170: Nikola | D170: 8.B | H170: 0
B171: KADAVÁ | C171: Nikola | D171: 8.B | H171: 0
B172: KRAFKOVÁ | C172: Lucie | D172: 8.B | H172: 0
B173: KŘIVINKOVÁ | C173: Alžběta | D173: 8.B | H173: 0
B174: LEŠÁKOVÁ | C174: Lenka | D174: 8.B | H174: 0
B175: NYKLÍČKOVÁ | C175: Adéla | D175: 8.B | E175: 118 | G175: Turnov 10.05.22 | H175: 759 | J175: 104
B176: PLŮCHOVÁ | C176: Petra | D176: 8.B | H176: 0 | J176: 104
B177: PODZIMKOVÁ | C177: Eliška | D177: 8.B | H177: 0 | J177: 93
B178: RUTKAYOVÁ | C178: Klára | D178: 8.B | H178: 0
B179: SEIDLOVÁ | C179: Zuzana | D179: 8.B | H179: 0 | J179: 99
B180: TOMÁŠOVÁ | C180: Sára | D180: 8.B | H180: 0
B181: VANCLOVÁ | C181: Barbora | D181: 8.B | H181: 0 | J181: 99
B182: VOTOČKOVÁ | C182: Veronika | D182: 8.B | H182: 0
B183: HARTIGOVÁ | C183: Anna | D183: 9.A | E183: 125 | G183: Jilemnice 15.06.22 | H183: 804.5
B184: HONCŮ | C184: Rozálie | D184: 9.A | E184: 120 | G184: Jilemnice 15.06.22 | H184: 772 | K184: 110
B185: CHALOUPSKÁ | C185: Lucie | D185: 9.A | H185: 0
B186: KŘÍŽKOVÁ | C186: Anna | D186: 9.A | E186: 110 | G186: Jilemnice 15.06.22 | H186: 707
B187: LUKEŠOVÁ | C187: Kristýna | D187: 9.A | E187: 100 | G187: Jilemnice 15.06.22 | H187: 642
B188: MOTLÍKOVÁ | C188: Eliška | D188: 9.A | H188: 0
B189: POHOŘELÁ | C189: Amálie | D189: 9.A | H189: 0
B190: POLÁČKOVÁ | C190: Natálie | D190: 9.A | H190: 0
B191: ŘEHOŘKOVÁ | C191: Lucie | D191: 9.A | E191: 110 | G191: Jilemnice 15.06.22 | H191: 707
B192: SKÁLOVÁ | C192: Alena | D192: 9.A | E192: 100 | G192: Jilemnice 15.06.22 | H192: 642
B193: VÁVROVÁ | C193: Aneta | D193: 9.A | E193: 120 | G193: Jilemnice 15.06.22 | H193: 772
B194: ZELINKOVÁ | C194: Klára | D194: 9.A | E194: 115 | G194: Jilemnice 15.06.22 | H194: 739.5 | K194: 105

Sheet Dmíč
C1: VÝKONY 2020 - 2021 | G1: MÍČEK | H1: DĚVČATA 6. - 9. ROČ.
K2: stav k | L2: =TODAY() -> 44740
H3: BODY | J3: 20 - 21 | K3: 19 - 20 | L3: 18 - 19
A5: 1. | B5: =B101 -> HEJRALOVÁ | C5: =C101 -> Natálie | D5: 6.A | E5: 23 | G5: Jilemnice 25.03.22 | H5: 421.6 | J5: 0 | K5: 0 | L5: 0
A6: 2. | B6: =B102 -> KERLE | C6: Nikita | D6: 6.A | E6: 20.5 | G6: Jilemnice 25.03.22 | H6: 376.1 | J6: 0 | K6: 0 | L6: 0
A7: 3. | B7: =B103 -> PACLÍKOVÁ | C7: Markéta | D7: 6.A | E7: 27 | G7: Jilemnice 25.03.22 | H7: 494.4 | J7: 0 | K7: 0 | L7: 0
A8: 4. | B8: =B104 -> PLŮCHOVÁ | C8: Michaela | D8: 6.A | E8: 19 | G8: Jilemnice 25.03.22 | H8: 348.8 | J8: 0 | K8: 0 | L8: 0
A9: 5. | B9: =B105 -> ŠERCLOVÁ | C9: Nikola | D9: 6.A | E9: 0 | G9: 0 | H9: 0 | J9: 0 | K9: 0 | L9: 0
A10: 6. | B10: =B106 -> VÁCLAVÍKOVÁ | C10: Alena | D10: 6.A | E10: 0 | G10: 0 | H10: 0 | J10: 0 | K10: 0 | L10: 0
A11: 7. | B11: =B107 -> DUCHÁČKOVÁ | C11: Tereza | D11: 6.B | E11: 12.5 | G11: Jilemnice 14.09.21 | H11: 230.5 | J11: 0 | K11: 0 | L11: 0
A12: 8. | B12: =B108 -> FLAŠKOVÁ | C12: Anna Sabriel | D12: 6.B | E12: 23 | G12: Jilemnice 25.03.22 | H12: 421.6 | J12: 0 | K12: 0 | L12: 0
A13: 9. | B13: =B109 -> HAASOVÁ | C13: Julie | D13: 6.B | E13: 23 | G13: Jilemnice 25.03.22 | H13: 421.6 | J13: 0 | K13: 0 | L13: 0
A14: 10. | B14: =B110 -> HOBLOVÁ | C14: Barbora | D14: 6.B | E14: 20.5 | G14: Jilemnice 25.03.22 | H14: 376.1 | J14: 0 | K14: 0 | L14: 0
A15: 11. | B15: =B111 -> HORÁČKOVÁ | C15: Valérie | D15: 6.B | E15: 20 | G15: Jilemnice 25.03.22 | H15: 367 | J15: 0 | K15: 0 | L15: 0
A16: 12. | B16: =B112 -> JIRANOVÁ | C16: Anežka | D16: 6.B | E16: 17.5 | G16: Jilemnice 25.03.22 | H16: 321.5 | J16: 0 | K16: 0 | L16: 0
A17: 13. | B17: =B113 -> JODASOVÁ | C17: Denisa | D17: 6.B | E17: 33 | G17: Jilemnice 25.03.22 | H17: 603.6 | J17: 0 | K17: 0 | L17: 0
A18: 14. | B18: =B114 -> KRČÍKOVÁ | C18: Beatrix | D18: 6.B | E18: 23.5 | G18: Jilemnice 25.03.22 | H18: 430.7 | J18: 0 | K18: 0 | L18: 0
A19: 15. | B19: =B115 -> KUBÁTOVÁ | C19: Veronika | D19: 6.B | E19: 7 | G19: Jilemnice 14.09.21 | H19: 130.4 | J19: 0 | K19: 0 | L19: 0
A20: 16. | B20: =B116 -> LENČEŠOVÁ | C20: Silvie | D20: 6.B | E20: 21 | G20: Jilemnice 25.03.22 | H20: 385.2 | J20: 0 | K20: 0 | L20: 0
A21: 17. | B21: =B117 -> MATERNOVÁ | C21: Lenka | D21: 6.B | E21: 15.5 | G21: Jilemnice 14.09.21 | H21: 285.1 | J21: 0 | K21: 0 | L21: 0
A22: 18. | B22: =B118 -> TÓTHOVÁ | C22: Viktorie | D22: 6.B | E22: 22 | G22: Jilemnice 25.03.22 | H22: 403.4 | J22: 0 | K22: 0 | L22: 0
A23: 19. | B23: =B119 -> ERBENOVÁ | C23: Sára | D23: 7.A | E23: 14.5 | G23: Jilemnice 13.09.21 | H23: 266.9 | J23: 17.5 | K23: 0 | L23: 0
A24: 20. | B24: =B120 -> GINGALOVÁ | C24: Linda | D24: 7.A | E24: 24 | G24: Jilemnice 30.10.21 | H24: 439.8 | J24: 0 | K24: 0 | L24: 0
A25: 21. | B25: =B121 -> HOFMANOVÁ | C25: Nicol | D25: 7.A | E25: 21.5 | G25: 0 | H25: 394.3 | J25: 15.5 | K25: 0 | L25: 0
A26: 22. | B26: =B122 -> HOLEŠOVSKÁ | C26: Aneta | D26: 7.A | E26: 27.1 | G26: Jilemnice 30.10.21 | H26: 496.22 | J26: 22.6 | K26: 0 | L26: 0
A27: 23. | B27: =B123 -> HOLUBCOVÁ | C27: Alena | D27: 7.A | E27: 38.56 | G27: Turnov 10.05.22 | H27: 704.792 | J27: 29 | K27: 0 | L27: 0
A28: 24. | B28: =B124 -> KOHOUTOVÁ | C28: Anna | D28: 7.A | E28: 16 | G28: Jilemnice 13.09.21 | H28: 294.2 | J28: 13 | K28: 0 | L28: 0
A29: 25. | B29: =B125 -> KRAUSOVÁ | C29: Anežka | D29: 7.A | E29: 17.5 | G29: 0 | H29: 321.5 | J29: 0 | K29: 0 | L29: 0
A30: 26. | B30: =B126 -> KUŽELOVÁ | C30: Apoléna | D30: 7.A | E30: 22 | G30: 0 | H30: 403.4 | J30: 18.4 | K30: 0 | L30: 0
A31: 27. | B31: =B127 -> MORÁVKOVÁ | C31: Lucie | D31: 7.A | E31: 18 | G31: Jilemnice 30.10.21 | H31: 330.6 | J31: 20.9 | K31: 0 | L31: 0
A32: 28. | B32: =B128 -> SKLENÁROVÁ | C32: Eliška | D32: 7.A | E32: 0 | G32: 0 | H32: 0 | J32: 0 | K32: 0 | L32: 0
A33: 29. | B33: =B129 -> ŠEJNOVÁ | C33: Karolína | D33: 7.A | E33: 16 | G33: 0 | H33: 294.2 | J33: 0 | K33: 0 | L33: 0
A34: 30. | B34: =B130 -> ŠTOLFOVÁ | C34: Tereza | D34: 7.A | E34: 14.5 | G34: 0 | H34: 266.9 | J34: 14 | K34: 0 | L34: 0
A35: 31. | B35: =B131 -> ŠUBÍKOVÁ | C35: Klára | D35: 7.A | E35: 22 | G35: 0 | H35: 403.4 | J35: 13 | K35: 0 | L35: 0
A36: 32. | B36: =B132 -> ŠULKOVSKÁ | C36: Klára | D36: 7.A | E36: 21 | G36: 0 | H36: 385.2 | J36: 0 | K36: 0 | L36: 0
A37: 33. | B37: =B133 -> TULÁČKOVÁ | C37: Natálie | D37: 7.A | E37: 20 | G37: Jilemnice 30.10.21 | H37: 367 | J37: 17.8 | K37: 0 | L37: 0
A38: 34. | B38: =B134 -> VOJTÍŠKOVÁ | C38: Ella | D38: 7.A | E38: 0 | G38: 0 | H38: 0 | J38: 24.6 | K38: 0 | L38: 0
A39: 35. | B39: =B135 -> DRUGÁČOVÁ | C39: Kristinka | D39: 7.B | E39: 0 | G39: 0 | H39: 0 | J39: 16.5 | K39: 0 | L39: 0
A40: 36. | B40: =B136 -> FAJSTAVROVÁ | C40: Karolína | D40: 7.B | E40: 30.5 | G40: Jilemnice 30.10.21 | H40: 558.1 | J40: 22.4 | K40: 0 | L40: 0
A41: 37. | B41: =B137 -> FAJSTAVROVÁ | C41: Magdaléna | D41: 7.B | E41: 28.5 | G41: Jilemnice 30.10.21 | H41: 521.7 | J41: 29 | K41: 0 | L41: 0
A42: 38. | B42: =B138 -> HLAVATÁ | C42: Anna | D42: 7.B | E42: 0 | G42: 0 | H42: 0 | J42: 0 | K42: 0 | L42: 0
A43: 39. | B43: =B139 -> JINDROVÁ | C43: Barbora | D43: 7.B | E43: 16 | G43: Jilemnice 30.10.21 | H43: 294.2 | J43: 12 | K43: 0 | L43: 0
A44: 40. | B44: =B140 -> MAŘASOVÁ | C44: Vendula | D44: 7.B | E44: 17.5 | G44: Jilemnice 30.10.21 | H44: 321.5 | J44: 13 | K44: 0 | L44: 0
A45: 41. | B45: =B141 -> PETŘÍČKOVÁ | C45: Natálie | D45: 7.B | E45: 23.5 | G45: 0 | H45: 430.7 | J45: 21.8 | K45: 0 | L45: 0
A46: 42. | B46: =B142 -> PETŘÍKOVÁ | C46: Adéla | D46: 7.B | E46: 16 | G46: 0 | H46: 294.2 | J46: 11 | K46: 0 | L46: 0
A47: 43. | B47: =B143 -> REGÁLOVÁ | C47: Karolína | D47: 7.B | E47: 29 | G47: Jilemnice 30.10.21 | H47: 530.8 | J47: 23.2 | K47: 0 | L47: 0
A48: 44. | B48: =B144 -> RIEGROVÁ | C48: Magdaléna | D48: 7.B | E48: 20 | G48: 0 | H48: 367 | J48: 15.5 | K48: 0 | L48: 0
A49: 45. | B49: =B145 -> RYBENSKÁ | C49: Sabina | D49: 7.B | E49: 15.2 | G49: Jilemnice 30.10.21 | H49: 279.64 | J49: 12.6 | K49: 0 | L49: 0
A50: 46. | B50: =B146 -> STEINEROVÁ | C50: Barbora | D50: 7.B | E50: 33.36 | G50: Turnov 10.05.22 | H50: 610.152 | J50: 24.4 | K50: 0 | L50: 0
A51: 47. | B51: =B147 -> TOMEŠOVÁ | C51: Barbora | D51: 7.B | E51: 24 | G51: Jilemnice 30.10.21 | H51: 439.8 | J51: 16.2 | K51: 0 | L51: 0
A52: 48. | B52: =B148 -> VOHNOUTOVÁ | C52: Aneta | D52: 7.B | E52: 35.02 | G52: Turnov 10.05.22 | H52: 640.364 | J52: 29 | K52: 0 | L52: 0
A53: 49. | B53: =B149 -> HAVLÍKOVÁ | C53: Michaela | D53: 8.A | E53: 16 | G53: Jilemnice 28.03.22 | H53: 294.2 | J53: 0 | K53: 10.5 | L53: 0
A54: 50. | B54: =B150 -> HOLUBCOVÁ | C54: Sára | D54: 8.A | E54: 26 | G54: Jilemnice 20.09.21 | H54: 476.2 | J54: 25 | K54: 0 | L54: 0
A55: 51. | B55: =B151 -> HONCŮ | C55: Tereza | D55: 8.A | E55: 25 | G55: Jilemnice 28.03.22 | H55: 458 | J55: 22 | K55: 18.5 | L55: 0
A56: 52. | B56: =B152 -> HORÁČKOVÁ | C56: Kateřina | D56: 8.A | E56: 27 | G56: Jilemnice 28.03.22 | H56: 494.4 | J56: 22 | K56: 21 | L56: 0
A57: 53. | B57: =B153 -> JOUDALOVÁ | C57: Daniela | D57: 8.A | E57: 0 | G57: 0 | H57: 0 | J57: 0 | K57: 10 | L57: 0
A58: 54. | B58: =B154 -> KLÍMOVÁ | C58: Anna | D58: 8.A | E58: 25 | G58: Jilemnice 28.03.22 | H58: 458 | J58: 0 | K58: 17.5 | L58: 0
A59: 55. | B59: =B155 -> KOHOUTOVÁ | C59: Veronika | D59: 8.A | E59: 28 | G59: Jilemnice 20.09.21 | H59: 512.6 | J59: 29.5 | K59: 24 | L59: 0
A60: 56. | B60: =B156 -> KOVÁŘOVÁ | C60: Viktorie | D60: 8.A | E60: 24.5 | G60: Jilemnice 28.03.22 | H60: 448.9 | J60: 19.5 | K60: 17.5 | L60: 0
A61: 57. | B61: =B157 -> KYNČLOVÁ | C61: Anna | D61: 8.A | E61: 28 | G61: Jilemnice 28.03.22 | H61: 512.6 | J61: 27.5 | K61: 21 | L61: 0
A62: 58. | B62: =B158 -> MATOUŠOVÁ | C62: Tereza | D62: 8.A | E62: 23 | G62: Jilemnice 28.03.22 | H62: 421.6 | J62: 20.5 | K62: 17.5 | L62: 0
A63: 59. | B63: =B159 -> MAZÁNKOVÁ | C63: Zuzana | D63: 8.A | E63: 15.5 | G63: Jilemnice 28.03.22 | H63: 285.1 | J63: 19 | K63: 14.5 | L63: 0
A64: 60. | B64: =B160 -> MORKESOVÁ | C64: Sabrina | D64: 8.A | E64: 40 | G64: Jilemnice 20.09.21 | H64: 731 | J64: 42 | K64: 36.5 | L64: 0
A65: 61. | B65: =B161 -> POHOŘALÁ | C65: Alžběta | D65: 8.A | E65: 24 | G65: Jilemnice 20.09.21 | H65: 439.8 | J65: 22.5 | K65: 15.5 | L65: 0
A66: 62. | B66: =B162 -> SCHOLZOVÁ | C66: Laura | D66: 8.A | E66: 0 | G66: 0 | H66: 0 | J66: 0 | K66: 0 | L66: 0
A67: 63. | B67: =B163 -> VÁCLAVÍKOVÁ | C67: Valerie | D67: 8.A | E67: 29 | G67: Jilemnice 20.09.21 | H67: 530.8 | J67: 26.5 | K67: 25.5 | L67: 0
A68: 64. | B68: =B164 -> ZAPADLOVÁ | C68: Emma | D68: 8.A | E68: 37.5 | G68: Jilemnice 28.03.22 | H68: 685.5 | J68: 33.5 | K68: 27.5 | L68: 0
A69: 65. | B69: =B165 -> ŽIŠKOVÁ | C69: Mia | D69: 8.A | E69: 24 | G69: Jilemnice 28.03.22 | H69: 439.8 | J69: 22.5 | K69: 0 | L69: 0
A70: 66. | B70: =B166 -> FARSKÁ | C70: Tereza | D70: 8.B | E70: 19 | G70: 0 | H70: 348.8 | J70: 0 | K70: 0 | L70: 0
A71: 67. | B71: =B167 -> FEIXOVÁ | C71: Rozálie | D71: 8.B | E71: 13.5 | G71: 0 | H71: 248.7 | J71: 0 | K71: 0 | L71: 0
A72: 68. | B72: =B168 -> FIŠEROVÁ | C72: Michaela | D72: 8.B | E72: 19.5 | G72: 0 | H72: 357.9 | J72: 0 | K72: 0 | L72: 0
A73: 69. | B73: =B169 -> HAVLÍČKOVÁ | C73: Kristýna | D73: 8.B | E73: 16 | G73: 0 | H73: 294.2 | J73: 0 | K73: 0 | L73: 0
A74: 70. | B74: =B170 -> JODASOVÁ | C74: Nikola | D74: 8.B | E74: 0 | G74: 0 | H74: 0 | J74: 0 | K74: 24 | L74: 0
A75: 71. | B75: =B171 -> KADAVÁ | C75: Nikola | D75: 8.B | E75: 15 | G75: 0 | H75: 276 | J75: 0 | K75: 0 | L75: 0
A76: 72. | B76: =B172 -> KRAFKOVÁ | C76: Lucie | D76: 8.B | E76: 0 | G76: 0 | H76: 0 | J76: 0 | K76: 0 | L76: 0
A77: 73. | B77: =B173 -> KŘIVINKOVÁ | C77: Alžběta | D77: 8.B | E77: 24 | G77: 0 | H77: 439.8 | J77: 0 | K77: 0 | L77: 0
A78: 74. | B78: =B174 -> LEŠÁKOVÁ | C78: Lenka | D78: 8.B | E78: 15 | G78: 0 | H78: 276 | J78: 0 | K78: 0 | L78: 0
A79: 75. | B79: =B175 -> NYKLÍČKOVÁ | C79: Adéla | D79: 8.B | E79: 23.5 | G79: 0 | H79: 430.7 | J79: 0 | K79: 0 | L79: 0
A80: 76. | B80: =B176 -> PLŮCHOVÁ | C80: Petra | D80: 8.B | E80: 24 | G80: 0 | H80: 439.8 | J80: 0 | K80: 0 | L80: 0
A81: 77. | B81: =B177 -> PODZIMKOVÁ | C81: Eliška | D81: 8.B | E81: 26 | G81: 0 | H81: 476.2 | J81: 0 | K81: 0 | L81: 0
A82: 78. | B82: =B178 -> RUTKAYOVÁ | C82: Klára | D82: 8.B | E82: 15 | G82: 0 | H82: 276 | J82: 0 | K82: 0 | L82: 0
A83: 79. | B83: =B179 -> SEIDLOVÁ | C83: Zuzana | D83: 8.B | E83: 28.8 | G83: 0 | H83: 527.16 | J83: 0 | K83: 0 | L83: 0
A84: 80. | B84: =B180 -> TOMÁŠOVÁ | C84: Sára | D84: 8.B | E84: 18.5 | G84: 0 | H84: 339.7 | J84: 0 | K84: 0 | L84: 0
A85: 81. | B85: =B181 -> VANCLOVÁ | C85: Barbora | D85: 8.B | E85: 0 | G85: 0 | H85: 0 | J85: 0 | K85: 0 | L85: 0
A86: 82. | B86: =B182 -> VOTOČKOVÁ | C86: Veronika | D86: 8.B | E86: 16 | G86: 0 | H86: 294.2 | J86: 0 | K86: 0 | L86: 0
A87: 83. | B87: =B183 -> HARTIGOVÁ | C87: Anna | D87: 9.A | E87: 24.5 | G87: Jilemnice 28.03.22 | H87: 448.9 | J87: 25 | K87: 0 | L87: 20.5
A88: 84. | B88: =B184 -> HONCŮ | C88: Rozálie | D88: 9.A | E88: 28 | G88: Jilemnice 28.03.22 | H88: 512.6 | J88: 27 | K88: 21.5 | L88: 20
A89: 85. | B89: =B185 -> CHALOUPSKÁ | C89: Lucie | D89: 9.A | E89: 28 | G89: Jilemnice 20.09.21 | H89: 512.6 | J89: 29 | K89: 0 | L89: 22
A90: 86. | B90: =B186 -> KŘÍŽKOVÁ | C90: Anna | D90: 9.A | E90: 24 | G90: Jilemnice 28.03.22 | H90: 439.8 | J90: 25 | K90: 0 | L90: 17
A91: 87. | B91: =B187 -> LUKEŠOVÁ | C91: Kristýna | D91: 9.A | E91: 20 | G91: Jilemnice 28.03.22 | H91: 367 | J91: 22.5 | K91: 0 | L91: 16.5
A92: 88. | B92: =B188 -> MOTLÍKOVÁ | C92: Eliška | D92: 9.A | E92: 23 | G92: Jilemnice 28.03.22 | H92: 421.6 | J92: 25 | K92: 0 | L92: 17
A93: 89. | B93: =B189 -> POHOŘELÁ | C93: Amálie | D93: 9.A | E93: 18 | G93: Jilemnice 28.03.22 | H93: 330.6 | J93: 0 | K93: 0 | L93: 14.5
A94: 90. | B94: =B190 -> POLÁČKOVÁ | C94: Natálie | D94: 9.A | E94: 20 | G94: Jilemnice 28.03.22 | H94: 367 | J94: 24 | K94: 0 | L94: 18.5
A95: 91. | B95: =B191 -> ŘEHOŘKOVÁ | C95: Lucie | D95: 9.A | E95: 25.5 | G95: Jilemnice 20.09.21 | H95: 467.1 | J95: 30.5 | K95: 0 | L95: 29
A96: 92. | B96: =B192 -> SKÁLOVÁ | C96: Alena | D96: 9.A | E96: 19.5 | G96: =G192 -> Jilemnice 28.03.22 | H96: 357.9 | J96: =J192 -> 20 | K96: 0 | L96: 14
A97: 93. | B97: =B193 -> VÁVROVÁ | C97: Aneta | D97: 9.A | E97: 23.5 | G97: =G193 -> Jilemnice 20.09.21 | H97: 430.7 | J97: =J193 -> 24 | K97: 0 | L97: 19.5
A98: 94. | B98: =B194 -> ZELINKOVÁ | C98: Klára | D98: 9.A | E98: 27.5 | G98: =G194 -> Jilemnice 28.03.22 | H98: 503.5 | J98: =J194 -> 27 | K98: 22 | L98: 20
B101: HEJRALOVÁ | C101: Natálie | D101: 6.A | E101: 23 | G101: Jilemnice 25.03.22 | H101: =IF(E101=0,0,IF(E101>0,E101*10*1.82+3)) -> 421.6
B102: KERLE | C102: Nikita | D102: 6.A | E102: 20.5 | G102: Jilemnice 25.03.22 | H102: 376.1
B103: PACLÍKOVÁ | C103: Markéta | D103: 6.A | E103: 27 | G103: Jilemnice 25.03.22 | H103: 494.4
B104: PLŮCHOVÁ | C104: Michaela | D104: 6.A | E104: 19 | G104: Jilemnice 25.03.22 | H104: 348.8
B105: ŠERCLOVÁ | C105: Nikola | D105: 6.A | H105: 0
B106: VÁCLAVÍKOVÁ | C106: Alena | D106: 6.A | H106: 0
B107: DUCHÁČKOVÁ | C107: Tereza | D107: 6.B | E107: 12.5 | G107: Jilemnice 14.09.21 | H107: 230.5
B108: FLAŠKOVÁ | C108: Anna Sabriel | D108: 6.B | E108: 23 | G108: Jilemnice 25.03.22 | H108: 421.6
B109: HAASOVÁ | C109: Julie | D109: 6.B | E109: 23 | G109: Jilemnice 25.03.22 | H109: 421.6
B110: HOBLOVÁ | C110: Barbora | D110: 6.B | E110: 20.5 | G110: Jilemnice 25.03.22 | H110: 376.1
B111: HORÁČKOVÁ | C111: Valérie | D111: 6.B | E111: 20 | G111: Jilemnice 25.03.22 | H111: 367
B112: JIRANOVÁ | C112: Anežka | D112: 6.B | E112: 17.5 | G112: Jilemnice 25.03.22 | H112: 321.5
B113: JODASOVÁ | C113: Denisa | D113: 6.B | E113: 33 | G113: Jilemnice 25.03.22 | H113: 603.6
B114: KRČÍKOVÁ | C114: Beatrix | D114: 6.B | E114: 23.5 | G114: Jilemnice 25.03.22 | H114: 430.7
B115: KUBÁTOVÁ | C115: Veronika | D115: 6.B | E115: 7 | G115: Jilemnice 14.09.21 | H115: 130.4
B116: LENČEŠOVÁ | C116: Silvie | D116: 6.B | E116: 21 | G116: Jilemnice 25.03.22 | H116: 385.2
B117: MATERNOVÁ | C117: Lenka | D117: 6.B | E117: 15.5 | G117: Jilemnice 14.09.21 | H117: 285.1
B118: TÓTHOVÁ | C118: Viktorie | D118: 6.B | E118: 22 | G118: Jilemnice 25.03.22 | H118: 403.4
B119: ERBENOVÁ | C119: Sára | D119: 7.A | E119: 14.5 | G119: Jilemnice 13.09.21 | H119: 266.9 | J119: 17.5
B120: GINGALOVÁ | C120: Linda | D120: 7.A | E120: 24 | G120: Jilemnice 30.10.21 | H120: 439.8
B121: HOFMANOVÁ | C121: Nicol | D121: 7.A | E121: 21.5 | H121: 394.3 | J121: 15.5
B122: HOLEŠOVSKÁ | C122: Aneta | D122: 7.A | E122: 27.1 | G122: Jilemnice 30.10.21 | H122: 496.22 | J122: 22.6
B123: HOLUBCOVÁ | C123: Alena | D123: 7.A | E123: 38.56 | G123: Turnov 10.05.22 | H123: 704.792 | J123: 29
B124: KOHOUTOVÁ | C124: Anna | D124: 7.A | E124: 16 | G124: Jilemnice 13.09.21 | H124: 294.2 | J124: 13
B125: KRAUSOVÁ | C125: Anežka | D125: 7.A | E125: 17.5 | H125: 321.5
B126: KUŽELOVÁ | C126: Apoléna | D126: 7.A | E126: 22 | H126: 403.4 | J126: 18.4
B127: MORÁVKOVÁ | C127: Lucie | D127: 7.A | E127: 18 | G127: Jilemnice 30.10.21 | H127: 330.6 | J127: 20.9
B128: SKLENÁROVÁ | C128: Eliška | D128: 7.A | H128: 0
B129: ŠEJNOVÁ | C129: Karolína | D129: 7.A | E129: 16 | H129: 294.2
B130: ŠTOLFOVÁ | C130: Tereza | D130: 7.A | E130: 14.5 | H130: 266.9 | J130: 14
B131: ŠUBÍKOVÁ | C131: Klára | D131: 7.A | E131: 22 | H131: 403.4 | J131: 13
B132: ŠULKOVSKÁ | C132: Klára | D132: 7.A | E132: 21 | H132: 385.2
B133: TULÁČKOVÁ | C133: Natálie | D133: 7.A | E133: 20 | G133: Jilemnice 30.10.21 | H133: =IF(E133=0,0,IF(E133>0,E133*10*1.82+3)) -> 367 | J133: 17.8
B134: VOJTÍŠKOVÁ | C134: Ella | D134: 7.A | H134: 0 | J134: 24.6
B135: DRUGÁČOVÁ | C135: Kristinka | D135: 7.B | H135: 0 | J135: 16.5
B136: FAJSTAVROVÁ | C136: Karolína | D136: 7.B | E136: 30.5 | G136: Jilemnice 30.10.21 | H136: 558.1 | J136: 22.4
B137: FAJSTAVROVÁ | C137: Magdaléna | D137: 7.B | E137: 28.5 | G137: Jilemnice 30.10.21 | H137: 521.7 | J137: 29
B138: HLAVATÁ | C138: Anna | D138: 7.B | H138: 0
B139: JINDROVÁ | C139: Barbora | D139: 7.B | E139: 16 | G139: Jilemnice 30.10.21 | H139: 294.2 | J139: 12
B140: MAŘASOVÁ | C140: Vendula | D140: 7.B | E140: 17.5 | G140: Jilemnice 30.10.21 | H140: 321.5 | J140: 13
B141: PETŘÍČKOVÁ | C141: Natálie | D141: 7.B | E141: 23.5 | H141: 430.7 | J141: 21.8
B142: PETŘÍKOVÁ | C142: Adéla | D142: 7.B | E142: 16 | H142: 294.2 | J142: 11
B143: REGÁLOVÁ | C143: Karolína | D143: 7.B | E143: 29 | G143: Jilemnice 30.10.21 | H143: 530.8 | J143: 23.2
B144: RIEGROVÁ | C144: Magdaléna | D144: 7.B | E144: 20 | H144: 367 | J144: 15.5
B145: RYBENSKÁ | C145: Sabina | D145: 7.B | E145: 15.2 | G145: Jilemnice 30.10.21 | H145: 279.64 | J145: 12.6
B146: STEINEROVÁ | C146: Barbora | D146: 7.B | E146: 33.36 | G146: Turnov 10.05.22 | H146: 610.152 | J146: 24.4
B147: TOMEŠOVÁ | C147: Barbora | D147: 7.B | E147: 24 | G147: Jilemnice 30.10.21 | H147: 439.8 | J147: 16.2
B148: VOHNOUTOVÁ | C148: Aneta | D148: 7.B | E148: 35.02 | G148: Turnov 10.05.22 | H148: 640.364 | J148: 29
B149: HAVLÍKOVÁ | C149: Michaela | D149: 8.A | E149: 16 | G149: Jilemnice 28.03.22 | H149: 294.2 | K149: 10.5
B150: HOLUBCOVÁ | C150: Sára | D150: 8.A | E150: 26 | G150: Jilemnice 20.09.21 | H150: 476.2 | J150: 25
B151: HONCŮ | C151: Tereza | D151: 8.A | E151: 25 | G151: Jilemnice 28.03.22 | H151: 458 | J151: 22 | K151: 18.5
B152: HORÁČKOVÁ | C152: Kateřina | D152: 8.A | E152: 27 | G152: Jilemnice 28.03.22 | H152: 494.4 | J152: 22 | K152: 21
B153: JOUDALOVÁ | C153: Daniela | D153: 8.A | H153: 0 | K153: 10
B154: KLÍMOVÁ | C154: Anna | D154: 8.A | E154: 25 | G154: Jilemnice 28.03.22 | H154: 458 | K154: 17.5
B155: KOHOUTOVÁ | C155: Veronika | D155: 8.A | E155: 28 | G155: Jilemnice 20.09.21 | H155: 512.6 | J155: 29.5 | K155: 24
B156: KOVÁŘOVÁ | C156: Viktorie | D156: 8.A | E156: 24.5 | G156: Jilemnice 28.03.22 | H156: 448.9 | J156: 19.5 | K156: 17.5
B157: KYNČLOVÁ | C157: Anna | D157: 8.A | E157: 28 | G157: Jilemnice 28.03.22 | H157: 512.6 | J157: 27.5 | K157: 21
B158: MATOUŠOVÁ | C158: Tereza | D158: 8.A | E158: 23 | G158: Jilemnice 28.03.22 | H158: 421.6 | J158: 20.5 | K158: 17.5
B159: MAZÁNKOVÁ | C159: Zuzana | D159: 8.A | E159: 15.5 | G159: Jilemnice 28.03.22 | H159: 285.1 | J159: 19 | K159: 14.5
B160: MORKESOVÁ | C160: Sabrina | D160: 8.A | E160: 40 | G160: Jilemnice 20.09.21 | H160: 731 | J160: 42 | K160: 36.5
B161: POHOŘALÁ | C161: Alžběta | D161: 8.A | E161: 24 | G161: Jilemnice 20.09.21 | H161: 439.8 | J161: 22.5 | K161: 15.5
B162: SCHOLZOVÁ | C162: Laura | D162: 8.A | H162: 0
B163: VÁCLAVÍKOVÁ | C163: Valerie | D163: 8.A | E163: 29 | G163: Jilemnice 20.09.21 | H163: 530.8 | J163: 26.5 | K163: 25.5
B164: ZAPADLOVÁ | C164: Emma | D164: 8.A | E164: 37.5 | G164: Jilemnice 28.03.22 | H164: 685.5 | J164: 33.5 | K164: 27.5
B165: ŽIŠKOVÁ | C165: Mia | D165: 8.A | E165: 24 | G165: Jilemnice 28.03.22 | H165: =IF(E165=0,0,IF(E165>0,E165*10*1.82+3)) -> 439.8 | J165: 22.5
B166: FARSKÁ | C166: Tereza | D166: 8.B | E166: 19 | H166: 348.8
B167: FEIXOVÁ | C167: Rozálie | D167: 8.B | E167: 13.5 | H167: 248.7
B168: FIŠEROVÁ | C168: Michaela | D168: 8.B | E168: 19.5 | H168: 357.9
B169: HAVLÍČKOVÁ | C169: Kristýna | D169: 8.B | E169: 16 | H169: 294.2
B170: JODASOVÁ | C170: Nikola | D170: 8.B | H170: 0 | K170: 24
B171: KADAVÁ | C171: Nikola | D171: 8.B | E171: 15 | H171: 276
B172: KRAFKOVÁ | C172: Lucie | D172: 8.B | H172: 0
B173: KŘIVINKOVÁ | C173: Alžběta | D173: 8.B | E173: 24 | H173: 439.8
B174: LEŠÁKOVÁ | C174: Lenka | D174: 8.B | E174: 15 | H174: 276
B175: NYKLÍČKOVÁ | C175: Adéla | D175: 8.B | E175: 23.5 | H175: 430.7
B176: PLŮCHOVÁ | C176: Petra | D176: 8.B | E176: 24 | H176: 439.8
B177: PODZIMKOVÁ | C177: Eliška | D177: 8.B | E177: 26 | H177: 476.2
B178: RUTKAYOVÁ | C178: Klára | D178: 8.B | E178: 15 | H178: 276
B179: SEIDLOVÁ | C179: Zuzana | D179: 8.B | E179: 28.8 | H179: 527.16
B180: TOMÁŠOVÁ | C180: Sára | D180: 8.B | E180: 18.5 | H180: 339.7
B181: VANCLOVÁ | C181: Barbora | D181: 8.B | H181: 0
B182: VOTOČKOVÁ | C182: Veronika | D182: 8.B | E182: 16 | H182: 294.2
B183: HARTIGOVÁ | C183: Anna | D183: 9.A | E183: 24.5 | G183: Jilemnice 28.03.22 | H183: 448.9 | J183: 25 | L183: 20.5
B184: HONCŮ | C184: Rozálie | D184: 9.A | E184: 28 | G184: Jilemnice 28.03.22 | H184: 512.6 | J184: 27 | K184: 21.5 | L184: 20
B185: CHALOUPSKÁ | C185: Lucie | D185: 9.A | E185: 28 | G185: Jilemnice 20.09.21 | H185: 512.6 | J185: 29 | L185: 22
B186: KŘÍŽKOVÁ | C186: Anna | D186: 9.A | E186: 24 | G186: Jilemnice 28.03.22 | H186: 439.8 | J186: 25 | L186: 17
B187: LUKEŠOVÁ | C187: Kristýna | D187: 9.A | E187: 20 | G187: Jilemnice 28.03.22 | H187: 367 | J187: 22.5 | L187: 16.5
B188: MOTLÍKOVÁ | C188: Eliška | D188: 9.A | E188: 23 | G188: Jilemnice 28.03.22 | H188: 421.6 | J188: 25 | L188: 17
B189: POHOŘELÁ | C189: Amálie | D189: 9.A | E189: 18 | G189: Jilemnice 28.03.22 | H189: 330.6 | L189: 14.5
B190: POLÁČKOVÁ | C190: Natálie | D190: 9.A | E190: 20 | G190: Jilemnice 28.03.22 | H190: 367 | J190: 24 | L190: 18.5
B191: ŘEHOŘKOVÁ | C191: Lucie | D191: 9.A | E191: 25.5 | G191: Jilemnice 20.09.21 | H191: 467.1 | J191: 30.5 | L191: 29
B192: SKÁLOVÁ | C192: Alena | D192: 9.A | E192: 19.5 | G192: Jilemnice 28.03.22 | H192: 357.9 | J192: 20 | L192: 14
B193: VÁVROVÁ | C193: Aneta | D193: 9.A | E193: 23.5 | G193: Jilemnice 20.09.21 | H193: 430.7 | J193: 24 | L193: 19.5
B194: ZELINKOVÁ | C194: Klára | D194: 9.A | E194: 27.5 | G194: Jilemnice 28.03.22 | H194: 503.5 | J194: 27 | K194: 22 | L194: 20

Sheet Dkou
C1: VÝKONY 2020 - 2021 | G1: KOULE | H1: DĚVČATA 6. - 9. ROČ.
K2: stav k | L2: =TODAY() -> 44740
H3: BODY | J3: 20 - 21 | K3: 19 - 20 | L3: 18 - 19
A5: 1. | B5: =B101 -> HEJRALOVÁ | C5: =C101 -> Natálie | D5: 6.A | E5: 3.35 | G5: Jilemnice 27.09.21 | H5: 320 | J5: 0 | K5: 0 | L5: 0
A6: 2. | B6: =B102 -> KERLE | C6: nikita | D6: 6.A | E6: 3.05 | G6: =G102 -> Jilemnice 03.05.22 | H6: 293.3333333 | J6: =J102 -> 0 | K6: 0 | L6: 0
A7: 3. | B7: =B103 -> PACLÍKOVÁ | C7: Markéta | D7: 6.A | E7: 4.25 | G7: =G103 -> Jilemnice 27.09.21 | H7: 400 | J7: =J103 -> 0 | K7: 0 | L7: 0
A8: 4. | B8: =B104 -> PLŮCHOVÁ | C8: Michaela | D8: 6.A | E8: 4.64 | G8: =G104 -> Jilemnice 27.09.21 | H8: 434.6666667 | J8: =J104 -> 0 | K8: 0 | L8: 0
A9: 5. | B9: =B105 -> ŠERCLOVÁ | C9: Nikola | D9: 6.A | E9: 3.07 | G9: =G105 -> Jilemnice 27.09.21 | H9: 295.1111111 | J9: =J105 -> 0 | K9: 0 | L9: 0
A10: 6. | B10: =B106 -> VÁCLAVÍKOVÁ | C10: Alena | D10: 6.A | E10: 3.12 | G10: =G106 -> Jilemnice 27.09.21 | H10: 299.5555556 | J10: =J106 -> 0 | K10: 0 | L10: 0
A11: 7. | B11: =B107 -> DUCHÁČKOVÁ | C11: Tereza | D11: 6.B | E11: 0 | G11: =G107 -> 0 | H11: 0 | J11: =J107 -> 0 | K11: 0 | L11: 0
A12: 8. | B12: =B108 -> FLAŠKOVÁ | C12: Anna Sabriel | D12: 6.B | E12: 2.77 | G12: =G108 -> Jilemnice 27.09.21 | H12: 268.4444444 | J12: =J108 -> 0 | K12: 0 | L12: 0
A13: 9. | B13: =B109 -> HAASOVÁ | C13: Julie | D13: 6.B | E13: 0 | G13: =G109 -> 0 | H13: 0 | J13: =J109 -> 0 | K13: 0 | L13: 0
A14: 10. | B14: =B110 -> HOBLOVÁ | C14: Barbora | D14: 6.B | E14: 0 | G14: =G110 -> 0 | H14: 0 | J14: =J110 -> 0 | K14: 0 | L14: 0
A15: 11. | B15: =B111 -> HORÁČKOVÁ | C15: Valérie | D15: 6.B | E15: 4.19 | G15: =G111 -> Jilemnice 27.09.21 | H15: 394.6666667 | J15: =J111 -> 0 | K15: 0 | L15: 0
A16: 12. | B16: =B112 -> JIRANOVÁ | C16: Anežka | D16: 6.B | E16: 2.8 | G16: =G112 -> Jilemnice 27.09.21 | H16: 271.1111111 | J16: =J112 -> 0 | K16: 0 | L16: 0
A17: 13. | B17: =B113 -> JODASOVÁ | C17: Denisa | D17: 6.B | E17: 4.21 | G17: =G113 -> Jilemnice 27.09.21 | H17: 396.4444444 | J17: =J113 -> 0 | K17: 0 | L17: 0
A18: 14. | B18: =B114 -> KRČÍKOVÁ | C18: Beatrix | D18: 6.B | E18: 4.28 | G18: =G114 -> Jilemnice 27.09.21 | H18: 402.6666667 | J18: =J114 -> 0 | K18: 0 | L18: 0
A19: 15. | B19: =B115 -> KUBÁTOVÁ | C19: Veronika | D19: 6.B | E19: 0 | G19: =G115 -> 0 | H19: 0 | J19: =J115 -> 0 | K19: 0 | L19: 0
A20: 16. | B20: =B116 -> LENČEŠOVÁ | C20: Silvie | D20: 6.B | E20: 2.24 | G20: =G116 -> Jilemnice 27.09.21 | H20: 221.3333333 | J20: =J116 -> 0 | K20: 0 | L20: 0
A21: 17. | B21: =B117 -> MATERNOVÁ | C21: Lenka | D21: 6.B | E21: 0 | G21: =G117 -> 0 | H21: 0 | J21: =J117 -> 0 | K21: 0 | L21: 0
A22: 18. | B22: =B118 -> TÓTHOVÁ | C22: Viktorie | D22: 6.B | E22: 3.1 | G22: =G118 -> Jilemnice 27.09.21 | H22: 297.7777778 | J22: =J118 -> 0 | K22: 0 | L22: 0
A23: 19. | B23: =B119 -> ERBENOVÁ | C23: Sára | D23: 7.A | E23: 0 | G23: =G119 -> 0 | H23: 0 | J23: =J119 -> 3.41 | K23: 0 | L23: 0
A24: 20. | B24: =B120 -> GINGALOVÁ | C24: Linda | D24: 7.A | E24: 0 | G24: =G120 -> 0 | H24: 0 | J24: =J120 -> 0 | K24: 0 | L24: 0
A25: 21. | B25: =B121 -> HOFMANOVÁ | C25: Nicol | D25: 7.A | E25: 4.86 | G25: =G121 -> Jilemnice 27.09.21 | H25: 454.2222222 | J25: =J121 -> 4.47 | K25: 0 | L25: 0
A26: 22. | B26: =B122 -> HOLEŠOVSKÁ | C26: Aneta | D26: 7.A | E26: 0 | G26: =G122 -> 0 | H26: 0 | J26: =J122 -> 0 | K26: 0 | L26: 0
A27: 23. | B27: =B123 -> HOLUBCOVÁ | C27: Alena | D27: 7.A | E27: 5.9 | G27: =G123 -> Jilemnice 27.09.21 | H27: 546.6666667 | J27: =J123 -> 6.21 | K27: 0 | L27: 0
A28: 24. | B28: =B124 -> KOHOUTOVÁ | C28: Anna | D28: 7.A | E28: 3.46 | G28: =G124 -> Jilemnice 27.09.21 | H28: 329.7777778 | J28: =J124 -> 2.82 | K28: 0 | L28: 0
A29: 25. | B29: =B125 -> KRAUSOVÁ | C29: Anežka | D29: 7.A | E29: 4.9 | G29: =G125 -> Jilemnice 27.09.21 | H29: 457.7777778 | J29: =J125 -> 0 | K29: 0 | L29: 0
A30: 26. | B30: =B126 -> KUŽELOVÁ | C30: Apoléna | D30: 7.A | E30: 0 | G30: =G126 -> 0 | H30: 0 | J30: =J126 -> 0 | K30: 0 | L30: 0
A31: 27. | B31: =B127 -> MORÁVKOVÁ | C31: Lucie | D31: 7.A | E31: 0 | G31: =G127 -> 0 | H31: 0 | J31: =J127 -> 0 | K31: 0 | L31: 0
A32: 28. | B32: =B128 -> SKLENÁROVÁ | C32: Eliška | D32: 7.A | E32: 0 | G32: =G128 -> 0 | H32: 0 | J32: =J128 -> 0 | K32: 0 | L32: 0
A33: 29. | B33: =B129 -> ŠEJNOVÁ | C33: Karolína | D33: 7.A | E33: 3.77 | G33: =G129 -> Jilemnice 27.09.21 | H33: 357.3333333 | J33: =J129 -> 0 | K33: 0 | L33: 0
A34: 30. | B34: =B130 -> ŠTOLFOVÁ | C34: Tereza | D34: 7.A | E34: 3.34 | G34: =G130 -> Jilemnice 27.09.21 | H34: 319.1111111 | J34: =J130 -> 3.05 | K34: 0 | L34: 0
A35: 31. | B35: =B131 -> ŠUBÍKOVÁ | C35: Klára | D35: 7.A | E35: 3.2 | G35: =G131 -> Jilemnice 27.09.21 | H35: 306.6666667 | J35: =J131 -> 3.85 | K35: 0 | L35: 0
A36: 32. | B36: =B132 -> ŠULKOVSKÁ | C36: Klára | D36: 7.A | E36: 4.02 | G36: =G132 -> Jilemnice 27.09.21 | H36: 379.5555556 | J36: =J132 -> 0 | K36: 0 | L36: 0
A37: 33. | B37: =B133 -> TULÁČKOVÁ | C37: Natálie | D37: 7.A | E37: 0 | G37: =G133 -> 0 | H37: 0 | J37: =J133 -> 0 | K37: 0 | L37: 0
A38: 34. | B38: =B134 -> VOJTÍŠKOVÁ | C38: Ella | D38: 7.A | E38: 0 | G38: =G134 -> 0 | H38: 0 | J38: =J134 -> 0 | K38: 0 | L38: 0
A39: 35. | B39: =B135 -> DRUGÁČOVÁ | C39: Kristinka | D39: 7.B | E39: 5.2 | G39: =G135 -> Jilemnice 27.09.21 | H39: 484.4444444 | J39: =J135 -> 4 | K39: 0 | L39: 0
A40: 36. | B40: =B136 -> FAJSTAVROVÁ | C40: Karolína | D40: 7.B | E40: 0 | G40: =G136 -> 0 | H40: 0 | J40: =J136 -> 0 | K40: 0 | L40: 0
A41: 37. | B41: =B137 -> FAJSTAVROVÁ | C41: Magdaléna | D41: 7.B | E41: 0 | G41: =G137 -> 0 | H41: 0 | J41: =J137 -> 0 | K41: 0 | L41: 0
A42: 38. | B42: =B138 -> HLAVATÁ | C42: Anna | D42: 7.B | E42: 0 | G42: =G138 -> 0 | H42: 0 | J42: =J138 -> 0 | K42: 0 | L42: 0
A43: 39. | B43: =B139 -> JINDROVÁ | C43: Barbora | D43: 7.B | E43: 0 | G43: =G139 -> 0 | H43: 0 | J43: =J139 -> 0 | K43: 0 | L43: 0
A44: 40. | B44: =B140 -> MAŘASOVÁ | C44: Vendula | D44: 7.B | E44: 0 | G44: =G140 -> 0 | H44: 0 | J44: =J140 -> 0 | K44: 0 | L44: 0
A45: 41. | B45: =B141 -> PETŘÍČKOVÁ | C45: Natálie | D45: 7.B | E45: 0 | G45: =G141 -> 0 | H45: 0 | J45: =J141 -> 0 | K45: 0 | L45: 0
A46: 42. | B46: =B142 -> PETŘÍKOVÁ | C46: Adéla | D46: 7.B | E46: 3.16 | G46: =G142 -> Jilemnice 27.09.21 | H46: 303.1111111 | J46: =J142 -> 3.73 | K46: 0 | L46: 0
A47: 43. | B47: =B143 -> REGÁLOVÁ | C47: Karolína | D47: 7.B | E47: 0 | G47: =G143 -> 0 | H47: 0 | J47: =J143 -> 0 | K47: 0 | L47: 0
A48: 44. | B48: =B144 -> RIEGROVÁ | C48: Magdaléna | D48: 7.B | E48: 3.6 | G48: =G144 -> Jilemnice 27.09.21 | H48: 342.2222222 | J48: =J144 -> 2.64 | K48: 0 | L48: 0
A49: 45. | B49: =B145 -> RYBENSKÁ | C49: Sabina | D49: 7.B | E49: 0 | G49: =G145 -> 0 | H49: 0 | J49: =J145 -> 0 | K49: 0 | L49: 0
A50: 46. | B50: =B146 -> STEINEROVÁ | C50: Barbora | D50: 7.B | E50: 0 | G50: =G146 -> 0 | H50: 0 | J50: =J146 -> 0 | K50: 0 | L50: 0
A51: 47. | B51: =B147 -> TOMEŠOVÁ | C51: Barbora | D51: 7.B | E51: 0 | G51: =G147 -> 0 | H51: 0 | J51: =J147 -> 0 | K51: 0 | L51: 0
A52: 48. | B52: =B148 -> VOHNOUTOVÁ | C52: Aneta | D52: 7.B | E52: 0 | G52: =G148 -> 0 | H52: 0 | J52: =J148 -> 0 | K52: 0 | L52: 0
A53: 49. | B53: =B149 -> HAVLÍKOVÁ | C53: Michaela | D53: 8.A | E53: 3.21 | G53: =G149 -> Jilemnice 15.09.21 | H53: 307.5555556 | J53: =J149 -> 2.61 | K53: 0 | L53: 0
A54: 50. | B54: =B150 -> HOLUBCOVÁ | C54: Sára | D54: 8.A | E54: 4.87 | G54: =G150 -> Jilemnice 09.05.22 | H54: 455.1111111 | J54: =J150 -> 4.04 | K54: 3.1 | L54: 0
A55: 51. | B55: =B151 -> HONCŮ | C55: Tereza | D55: 8.A | E55: 4.62 | G55: =G151 -> Jilemnice 09.05.22 | H55: 432.8888889 | J55: =J151 -> 3.76 | K55: 2.62 | L55: 0
A56: 52. | B56: =B152 -> HORÁČKOVÁ | C56: Kateřina | D56: 8.A | E56: 7.38 | G56: =G152 -> Turnov 10.05.22 | H56: 678.2222222 | J56: =J152 -> 5.5 | K56: 4.9 | L56: 0
A57: 53. | B57: =B153 -> JOUDALOVÁ | C57: Daniela | D57: 8.A | E57: 0 | G57: =G153 -> 0 | H57: 0 | J57: =J153 -> 3.85 | K57: 2.87 | L57: 0
A58: 54. | B58: =B154 -> KLÍMOVÁ | C58: Anna | D58: 8.A | E58: 5.28 | G58: =G154 -> Jilemnice 09.05.22 | H58: 491.5555556 | J58: =J154 -> 4.5 | K58: 4.44 | L58: 0
A59: 55. | B59: =B155 -> KOHOUTOVÁ | C59: Veronika | D59: 8.A | E59: 5.35 | G59: =G155 -> Jilemnice 15.09.21 | H59: 497.7777778 | J59: =J155 -> 5.31 | K59: 3.57 | L59: 0
A60: 56. | B60: =B156 -> KOVÁŘOVÁ | C60: Viktorie | D60: 8.A | E60: 4.71 | G60: =G156 -> Jilemnice 15.09.21 | H60: 440.8888889 | J60: =J156 -> 3.94 | K60: 3.16 | L60: 0
A61: 57. | B61: =B157 -> KYNČLOVÁ | C61: Anna | D61: 8.A | E61: 4.4 | G61: =G157 -> Jilemnice 15.09.21 | H61: 413.3333333 | J61: =J157 -> 3.46 | K61: 2.46 | L61: 0
A62: 58. | B62: =B158 -> MATOUŠOVÁ | C62: Tereza | D62: 8.A | E62: 4.65 | G62: =G158 -> Jilemnice 15.09.21 | H62: 435.5555556 | J62: =J158 -> 4.61 | K62: 3.51 | L62: 0
A63: 59. | B63: =B159 -> MAZÁNKOVÁ | C63: Zuzana | D63: 8.A | E63: 4 | G63: =G159 -> Jilemnice 15.09.21 | H63: 377.7777778 | J63: =J159 -> 4.5 | K63: 3.66 | L63: 0
A64: 60. | B64: =B160 -> MORKESOVÁ | C64: Sabrina | D64: 8.A | E64: 6.9 | G64: =G160 -> Jilemnice 15.09.21 | H64: 635.5555556 | J64: =J160 -> 6.62 | K64: 5.65 | L64: 0
A65: 61. | B65: =B161 -> POHOŘALÁ | C65: Alžběta | D65: 8.A | E65: 5.1 | G65: =G161 -> Jilemnice 09.05.22 | H65: 475.5555556 | J65: =J161 -> 4.26 | K65: 3.78 | L65: 0
A66: 62. | B66: =B162 -> SCHOLZOVÁ | C66: Laura | D66: 8.A | E66: 0 | G66: =G162 -> 0 | H66: 0 | J66: =J162 -> 3.08 | K66: 2.75 | L66: 0
A67: 63. | B67: =B163 -> VÁCLAVÍKOVÁ | C67: Valerie | D67: 8.A | E67: 8.08 | G67: =G163 -> Jilemnice 15.09.21 | H67: 740.4444444 | J67: =J163 -> 5.92 | K67: 5.56 | L67: 0
A68: 64. | B68: =B164 -> ZAPADLOVÁ | C68: Emma | D68: 8.A | E68: 5.25 | G68: =G164 -> Jilemnice 15.09.21 | H68: 488.8888889 | J68: =J164 -> 4.26 | K68: 5.08 | L68: 0
A69: 65. | B69: =B165 -> ŽIŠKOVÁ | C69: Mia | D69: 8.A | E69: 0 | G69: =G165 -> 0 | H69: 0 | J69: =J165 -> 0 | K69: 3.84 | L69: 0
A70: 66. | B70: =B166 -> FARSKÁ | C70: Tereza | D70: 8.B | E70: 5.1 | G70: =G166 -> Jilemnice 30.10.21 | H70: 475.5555556 | J70: =J166 -> 0 | K70: 2.2 | L70: 0
A71: 67. | B71: =B167 -> FEIXOVÁ | C71: Rozálie | D71: 8.B | E71: 0 | G71: =G167 -> 0 | H71: 0 | J71: =J167 -> 0 | K71: 2.8 | L71: 0
A72: 68. | B72: =B168 -> FIŠEROVÁ | C72: Michaela | D72: 8.B | E72: 0 | G72: =G168 -> 0 | H72: 0 | J72: =J168 -> 0 | K72: 4.15 | L72: 0
A73: 69. | B73: =B169 -> HAVLÍČKOVÁ | C73: Kristýna | D73: 8.B | E73: 5.6 | G73: =G169 -> Jilemnice 30.10.21 | H73: 520 | J73: =J169 -> 0 | K73: 3.75 | L73: 0
A74: 70. | B74: =B170 -> JODASOVÁ | C74: Nikola | D74: 8.B | E74: 6.1 | G74: =G170 -> Jilemnice 30.10.21 | H74: 564.4444444 | J74: =J170 -> 0 | K74: 4.8 | L74: 0
A75: 71. | B75: =B171 -> KADAVÁ | C75: Nikola | D75: 8.B | E75: 4.8 | G75: =G171 -> Jilemnice 30.10.21 | H75: 448.8888889 | J75: =J171 -> 0 | K75: 3.79 | L75: 0
A76: 72. | B76: =B172 -> KRAFKOVÁ | C76: Lucie | D76: 8.B | E76: 0 | G76: =G172 -> 0 | H76: 0 | J76: =J172 -> 0 | K76: 0 | L76: 0
A77: 73. | B77: =B173 -> KŘIVINKOVÁ | C77: Alžběta | D77: 8.B | E77: 0 | G77: =G173 -> 0 | H77: 0 | J77: =J173 -> 0 | K77: 5.15 | L77: 0
A78: 74. | B78: =B174 -> LEŠÁKOVÁ | C78: Lenka | D78: 8.B | E78: 3.2 | G78: =G174 -> Jilemnice 30.10.21 | H78: 306.6666667 | J78: =J174 -> 0 | K78: 3.23 | L78: 0
A79: 75. | B79: =B175 -> NYKLÍČKOVÁ | C79: Adéla | D79: 8.B | E79: 0 | G79: =G175 -> 0 | H79: 0 | J79: =J175 -> 0 | K79: 4.28 | L79: 0
A80: 76. | B80: =B176 -> PLŮCHOVÁ | C80: Petra | D80: 8.B | E80: 6.1 | G80: =G176 -> Jilemnice 30.10.21 | H80: 564.4444444 | J80: =J176 -> 0 | K80: 5.53 | L80: 0
A81: 77. | B81: =B177 -> PODZIMKOVÁ | C81: Eliška | D81: 8.B | E81: 0 | G81: =G177 -> 0 | H81: 0 | J81: =J177 -> 0 | K81: 2.4 | L81: 0
A82: 78. | B82: =B178 -> RUTKAYOVÁ | C82: Klára | D82: 8.B | E82: 0 | G82: =G178 -> 0 | H82: 0 | J82: =J178 -> 0 | K82: 4.31 | L82: 0
A83: 79. | B83: =B179 -> SEIDLOVÁ | C83: Zuzana | D83: 8.B | E83: 0 | G83: =G179 -> 0 | H83: 0 | J83: =J179 -> 0 | K83: 5.9 | L83: 0
A84: 80. | B84: =B180 -> TOMÁŠOVÁ | C84: Sára | D84: 8.B | E84: 5.13 | G84: =G180 -> Jilemnice 30.10.21 | H84: 478.2222222 | J84: =J180 -> 0 | K84: 4.8 | L84: 0
A85: 81. | B85: =B181 -> VANCLOVÁ | C85: Barbora | D85: 8.B | E85: 4.4 | G85: =G181 -> Jilemnice 30.10.21 | H85: 413.3333333 | J85: =J181 -> 0 | K85: 3.98 | L85: 0
A86: 82. | B86: =B182 -> VOTOČKOVÁ | C86: Veronika | D86: 8.B | E86: 0 | G86: =G182 -> 0 | H86: 0 | J86: =J182 -> 0 | K86: 0 | L86: 0
A87: 83. | B87: =B183 -> HARTIGOVÁ | C87: Anna | D87: 9.A | E87: 6.6 | G87: =G183 -> Jilemnice 06.05.22 | H87: 608.8888889 | J87: =J183 -> 6.81 | K87: 0 | L87: 5.16
A88: 84. | B88: =B184 -> HONCŮ | C88: Rozálie | D88: 9.A | E88: 6.64 | G88: =G184 -> Jilemnice 06.05.22 | H88: 612.4444444 | J88: =J184 -> 7.1 | K88: 0 | L88: 5.34
A89: 85. | B89: =B185 -> CHALOUPSKÁ | C89: Lucie | D89: 9.A | E89: 7 | G89: =G185 -> Jilemnice 15.09.21 | H89: 644.4444444 | J89: =J185 -> 7.18 | K89: 0 | L89: 5.18
A90: 86. | B90: =B186 -> KŘÍŽKOVÁ | C90: Anna | D90: 9.A | E90: 5.45 | G90: =G186 -> Jilemnice 06.05.22 | H90: 506.6666667 | J90: =J186 -> 5.8 | K90: 0 | L90: 4
A91: 87. | B91: =B187 -> LUKEŠOVÁ | C91: Kristýna | D91: 9.A | E91: 5.3 | G91: =G187 -> Jilemnice 06.05.22 | H91: 493.3333333 | J91: =J187 -> 5.6 | K91: 0 | L91: 4.37
A92: 88. | B92: =B188 -> MOTLÍKOVÁ | C92: Eliška | D92: 9.A | E92: 7.15 | G92: =G188 -> Jilemnice 06.05.22 | H92: 657.7777778 | J92: =J188 -> 6.39 | K92: 0 | L92: 5.3
A93: 89. | B93: =B189 -> POHOŘELÁ | C93: Amálie | D93: 9.A | E93: 6.95 | G93: =G189 -> Jilemnice 06.05.22 | H93: 640 | J93: =J189 -> 5.9 | K93: 0 | L93: 4.55
A94: 90. | B94: =B190 -> POLÁČKOVÁ | C94: Natálie | D94: 9.A | E94: 4.06 | G94: =G190 -> Jilemnice 06.05.22 | H94: 383.1111111 | J94: =J190 -> 3.6 | K94: 0 | L94: 2.73
A95: 91. | B95: =B191 -> ŘEHOŘKOVÁ | C95: Lucie | D95: 9.A | E95: 7.82 | G95: =G191 -> Jilemnice 06.05.22 | H95: 717.3333333 | J95: =J191 -> 7.5 | K95: 0 | L95: 6.03
A96: 92. | B96: =B192 -> SKÁLOVÁ | C96: Alena | D96: 9.A | E96: 7.4 | G96: =G192 -> Jilemnice 06.05.22 | H96: 680 | J96: =J192 -> 7.5 | K96: 0 | L96: 4.17
A97: 93. | B97: =B193 -> VÁVROVÁ | C97: Aneta | D97: 9.A | E97: 5.35 | G97: =G193 -> Jilemnice 06.05.22 | H97: 497.7777778 | J97: =J193 -> 5.5 | K97: 0 | L97: 3.8
A98: 94. | B98: =B194 -> ZELINKOVÁ | C98: Klára | D98: 9.A | E98: 8.7 | G98: =G194 -> Turnov 10.05.22 | H98: 795.5555556 | J98: =J194 -> 6.74 | K98: 0 | L98: 5.5
B101: HEJRALOVÁ | C101: Natálie | D101: 6.A | E101: 3.35 | G101: Jilemnice 27.09.21 | H101: =IF(E101=0,0,IF(E101>0,(40*E101+10)/0.45)) -> 320
B102: KERLE | C102: nikita | D102: 6.A | E102: 3.05 | G102: Jilemnice 03.05.22 | H102: 293.3333333
B103: PACLÍKOVÁ | C103: Markéta | D103: 6.A | E103: 4.25 | G103: Jilemnice 27.09.21 | H103: 400
B104: PLŮCHOVÁ | C104: Michaela | D104: 6.A | E104: 4.64 | G104: Jilemnice 27.09.21 | H104: 434.6666667
B105: ŠERCLOVÁ | C105: Nikola | D105: 6.A | E105: 3.07 | G105: Jilemnice 27.09.21 | H105: 295.1111111
B106: VÁCLAVÍKOVÁ | C106: Alena | D106: 6.A | E106: 3.12 | G106: Jilemnice 27.09.21 | H106: 299.5555556
B107: DUCHÁČKOVÁ | C107: Tereza | D107: 6.B | H107: 0
B108: FLAŠKOVÁ | C108: Anna Sabriel | D108: 6.B | E108: 2.77 | G108: Jilemnice 27.09.21 | H108: 268.4444444
B109: HAASOVÁ | C109: Julie | D109: 6.B | H109: 0
B110: HOBLOVÁ | C110: Barbora | D110: 6.B | H110: 0
B111: HORÁČKOVÁ | C111: Valérie | D111: 6.B | E111: 4.19 | G111: Jilemnice 27.09.21 | H111: 394.6666667
B112: JIRANOVÁ | C112: Anežka | D112: 6.B | E112: 2.8 | G112: Jilemnice 27.09.21 | H112: 271.1111111
B113: JODASOVÁ | C113: Denisa | D113: 6.B | E113: 4.21 | G113: Jilemnice 27.09.21 | H113: 396.4444444
B114: KRČÍKOVÁ | C114: Beatrix | D114: 6.B | E114: 4.28 | G114: Jilemnice 27.09.21 | H114: 402.6666667
B115: KUBÁTOVÁ | C115: Veronika | D115: 6.B | H115: 0
B116: LENČEŠOVÁ | C116: Silvie | D116: 6.B | E116: 2.24 | G116: Jilemnice 27.09.21 | H116: 221.3333333
B117: MATERNOVÁ | C117: Lenka | D117: 6.B | H117: 0
B118: TÓTHOVÁ | C118: Viktorie | D118: 6.B | E118: 3.1 | G118: Jilemnice 27.09.21 | H118: 297.7777778
B119: ERBENOVÁ | C119: Sára | D119: 7.A | H119: 0 | J119: 3.41
B120: GINGALOVÁ | C120: Linda | D120: 7.A | H120: 0
B121: HOFMANOVÁ | C121: Nicol | D121: 7.A | E121: 4.86 | G121: Jilemnice 27.09.21 | H121: 454.2222222 | J121: 4.47
B122: HOLEŠOVSKÁ | C122: Aneta | D122: 7.A | H122: 0
B123: HOLUBCOVÁ | C123: Alena | D123: 7.A | E123: 5.9 | G123: Jilemnice 27.09.21 | H123: 546.6666667 | J123: 6.21
B124: KOHOUTOVÁ | C124: Anna | D124: 7.A | E124: 3.46 | G124: Jilemnice 27.09.21 | H124: 329.7777778 | J124: 2.82
B125: KRAUSOVÁ | C125: Anežka | D125: 7.A | E125: 4.9 | G125: Jilemnice 27.09.21 | H125: 457.7777778
B126: KUŽELOVÁ | C126: Apoléna | D126: 7.A | H126: 0
B127: MORÁVKOVÁ | C127: Lucie | D127: 7.A | H127: 0
B128: SKLENÁROVÁ | C128: Eliška | D128: 7.A | H128: 0
B129: ŠEJNOVÁ | C129: Karolína | D129: 7.A | E129: 3.77 | G129: Jilemnice 27.09.21 | H129: 357.3333333
B130: ŠTOLFOVÁ | C130: Tereza | D130: 7.A | E130: 3.34 | G130: Jilemnice 27.09.21 | H130: 319.1111111 | J130: 3.05
B131: ŠUBÍKOVÁ | C131: Klára | D131: 7.A | E131: 3.2 | G131: Jilemnice 27.09.21 | H131: 306.6666667 | J131: 3.85
B132: ŠULKOVSKÁ | C132: Klára | D132: 7.A | E132: 4.02 | G132: Jilemnice 27.09.21 | H132: 379.5555556
B133: TULÁČKOVÁ | C133: Natálie | D133: 7.A | H133: =IF(E133=0,0,IF(E133>0,(40*E133+10)/0.45)) -> 0
B134: VOJTÍŠKOVÁ | C134: Ella | D134: 7.A | H134: 0
B135: DRUGÁČOVÁ | C135: Kristinka | D135: 7.B | E135: 5.2 | G135: Jilemnice 27.09.21 | H135: 484.4444444 | J135: 4
B136: FAJSTAVROVÁ | C136: Karolína | D136: 7.B | H136: 0
B137: FAJSTAVROVÁ | C137: Magdaléna | D137: 7.B | H137: 0
B138: HLAVATÁ | C138: Anna | D138: 7.B | H138: 0
B139: JINDROVÁ | C139: Barbora | D139: 7.B | H139: 0
B140: MAŘASOVÁ | C140: Vendula | D140: 7.B | H140: 0
B141: PETŘÍČKOVÁ | C141: Natálie | D141: 7.B | H141: 0
B142: PETŘÍKOVÁ | C142: Adéla | D142: 7.B | E142: 3.16 | G142: Jilemnice 27.09.21 | H142: 303.1111111 | J142: 3.73
B143: REGÁLOVÁ | C143: Karolína | D143: 7.B | H143: 0
B144: RIEGROVÁ | C144: Magdaléna | D144: 7.B | E144: 3.6 | G144: Jilemnice 27.09.21 | H144: 342.2222222 | J144: 2.64
B145: RYBENSKÁ | C145: Sabina | D145: 7.B | H145: 0
B146: STEINEROVÁ | C146: Barbora | D146: 7.B | H146: 0
B147: TOMEŠOVÁ | C147: Barbora | D147: 7.B | H147: 0
B148: VOHNOUTOVÁ | C148: Aneta | D148: 7.B | H148: 0
B149: HAVLÍKOVÁ | C149: Michaela | D149: 8.A | E149: 3.21 | G149: Jilemnice 15.09.21 | H149: 307.5555556 | J149: 2.61
B150: HOLUBCOVÁ | C150: Sára | D150: 8.A | E150: 4.87 | G150: Jilemnice 09.05.22 | H150: 455.1111111 | J150: 4.04 | K150: 3.1
B151: HONCŮ | C151: Tereza | D151: 8.A | E151: 4.62 | G151: Jilemnice 09.05.22 | H151: 432.8888889 | J151: 3.76 | K151: 2.62
B152: HORÁČKOVÁ | C152: Kateřina | D152: 8.A | E152: 7.38 | G152: Turnov 10.05.22 | H152: 678.2222222 | J152: 5.5 | K152: 4.9
B153: JOUDALOVÁ | C153: Daniela | D153: 8.A | H153: 0 | J153: 3.85 | K153: 2.87
B154: KLÍMOVÁ | C154: Anna | D154: 8.A | E154: 5.28 | G154: Jilemnice 09.05.22 | H154: 491.5555556 | J154: 4.5 | K154: 4.44
B155: KOHOUTOVÁ | C155: Veronika | D155: 8.A | E155: 5.35 | G155: Jilemnice 15.09.21 | H155: 497.7777778 | J155: 5.31 | K155: 3.57
B156: KOVÁŘOVÁ | C156: Viktorie | D156: 8.A | E156: 4.71 | G156: Jilemnice 15.09.21 | H156: 440.8888889 | J156: 3.94 | K156: 3.16
B157: KYNČLOVÁ | C157: Anna | D157: 8.A | E157: 4.4 | G157: Jilemnice 15.09.21 | H157: 413.3333333 | J157: 3.46 | K157: 2.46
B158: MATOUŠOVÁ | C158: Tereza | D158: 8.A | E158: 4.65 | G158: Jilemnice 15.09.21 | H158: 435.5555556 | J158: 4.61 | K158: 3.51
B159: MAZÁNKOVÁ | C159: Zuzana | D159: 8.A | E159: 4 | G159: Jilemnice 15.09.21 | H159: 377.7777778 | J159: 4.5 | K159: 3.66
B160: MORKESOVÁ | C160: Sabrina | D160: 8.A | E160: 6.9 | G160: Jilemnice 15.09.21 | H160: 635.5555556 | J160: 6.62 | K160: 5.65
B161: POHOŘALÁ | C161: Alžběta | D161: 8.A | E161: 5.1 | G161: Jilemnice 09.05.22 | H161: 475.5555556 | J161: 4.26 | K161: 3.78
B162: SCHOLZOVÁ | C162: Laura | D162: 8.A | H162: 0 | J162: 3.08 | K162: 2.75
B163: VÁCLAVÍKOVÁ | C163: Valerie | D163: 8.A | E163: 8.08 | G163: Jilemnice 15.09.21 | H163: 740.4444444 | J163: 5.92 | K163: 5.56
B164: ZAPADLOVÁ | C164: Emma | D164: 8.A | E164: 5.25 | G164: Jilemnice 15.09.21 | H164: 488.8888889 | J164: 4.26 | K164: 5.08
B165: ŽIŠKOVÁ | C165: Mia | D165: 8.A | H165: =IF(E165=0,0,IF(E165>0,(40*E165+10)/0.45)) -> 0 | K165: 3.84
B166: FARSKÁ | C166: Tereza | D166: 8.B | E166: 5.1 | G166: Jilemnice 30.10.21 | H166: 475.5555556 | K166: 2.2
B167: FEIXOVÁ | C167: Rozálie | D167: 8.B | H167: 0 | K167: 2.8
B168: FIŠEROVÁ | C168: Michaela | D168: 8.B | H168: 0 | K168: 4.15
B169: HAVLÍČKOVÁ | C169: Kristýna | D169: 8.B | E169: 5.6 | G169: Jilemnice 30.10.21 | H169: 520 | K169: 3.75
B170: JODASOVÁ | C170: Nikola | D170: 8.B | E170: 6.1 | G170: Jilemnice 30.10.21 | H170: 564.4444444 | K170: 4.8
B171: KADAVÁ | C171: Nikola | D171: 8.B | E171: 4.8 | G171: Jilemnice 30.10.21 | H171: 448.8888889 | K171: 3.79
B172: KRAFKOVÁ | C172: Lucie | D172: 8.B | H172: 0
B173: KŘIVINKOVÁ | C173: Alžběta | D173: 8.B | H173: 0 | K173: 5.15
B174: LEŠÁKOVÁ | C174: Lenka | D174: 8.B | E174: 3.2 | G174: Jilemnice 30.10.21 | H174: 306.6666667 | K174: 3.23
B175: NYKLÍČKOVÁ | C175: Adéla | D175: 8.B | H175: 0 | K175: 4.28
B176: PLŮCHOVÁ | C176: Petra | D176: 8.B | E176: 6.1 | G176: Jilemnice 30.10.21 | H176: 564.4444444 | K176: 5.53
B177: PODZIMKOVÁ | C177: Eliška | D177: 8.B | H177: 0 | K177: 2.4
B178: RUTKAYOVÁ | C178: Klára | D178: 8.B | H178: 0 | K178: 4.31
B179: SEIDLOVÁ | C179: Zuzana | D179: 8.B | H179: 0 | K179: 5.9
B180: TOMÁŠOVÁ | C180: Sára | D180: 8.B | E180: 5.13 | G180: Jilemnice 30.10.21 | H180: 478.2222222 | K180: 4.8
B181: VANCLOVÁ | C181: Barbora | D181: 8.B | E181: 4.4 | G181: Jilemnice 30.10.21 | H181: 413.3333333 | K181: 3.98
B182: VOTOČKOVÁ | C182: Veronika | D182: 8.B | H182: 0
B183: HARTIGOVÁ | C183: Anna | D183: 9.A | E183: 6.6 | G183: Jilemnice 06.05.22 | H183: 608.8888889 | J183: 6.81 | L183: 5.16
B184: HONCŮ | C184: Rozálie | D184: 9.A | E184: 6.64 | G184: Jilemnice 06.05.22 | H184: 612.4444444 | J184: 7.1 | L184: 5.34
B185: CHALOUPSKÁ | C185: Lucie | D185: 9.A | E185: 7 | G185: Jilemnice 15.09.21 | H185: 644.4444444 | J185: 7.18 | L185: 5.18
